{"text_format":"1","workbook":"xlsx","n_sheets":33,"sheets":["第一面","計変第一面","第二面","第三面","第四面","第四面 (2)","第四面 (3)","第四面 (4)","第四面 (5)","第五面","第五面 (2)","第五面 (3)","第五面 (4)","第五面 (5)","第六面","第六面 (2)","第六面 (3)","第六面 (4)","第六面 (5)","建築計画概要書","建築工事届","現地調査票","委任状","完了第一面","完了第二面","完了第三面","完了第四面","建築主情報","建築士情報","外部仕上登録","更新履歴","施工者情報","マスター"],"not_rendered":{"charts":0,"images":1,"macros":1,"external_links":2,"defined_names":33,"comments":20,"pivot_tables":0},"unopened":[],"bounds":{"document_bytes":16777216,"sheet_cells":100000,"rows_first":2000,"rows_last":500,"rows_between":2000,"halvings":0,"cell_chars":16384,"cell_head_chars":4096},"cells_cut":0,"cells_raw":0,"read":"row_number_cap","date_system":"1900"}

{"sheet":"第一面","index":0,"n_rows":41,"n_cols":30,"rows_kept":41,"cut":false,"hidden":false,"merged":[[19,2,19,5],[1,0,1,30],[17,22,17,23],[5,1,5,29],[8,1,8,29],[16,1,16,29],[15,1,15,29],[11,1,13,29],[40,1,42,8],[22,2,22,5],[19,6,19,28],[22,6,22,28],[31,20,33,29],[34,15,42,19],[34,20,36,29],[37,20,39,20],[40,20,42,29],[27,1,27,5],[28,1,30,29],[23,16,23,28],[34,1,36,8],[31,9,33,14],[31,1,33,8],[31,15,33,19]]}
[null,"確認申請書（第一面）"]
["第二号様式（第一条の三、第三条、第三条の三関係）（Ａ４）"]
[]
[]
[]
[null,"確認申請書（建築物）"]
[]
[]
[null,"（第一面）"]
[]
[]
[null,"　建築基準法第６条第１項又は第６条の２第１項の規定による確認を申請します。この申請書及び添付図書に記載の事項は、事実に相違ありません。"]
[]
[]
[]
[null,"　(公財)鹿児島県住宅・建築総合センター　御中"]
[]
[null,null,null,null,null,null,null,null,null,null,null,null,null,null,null,null,null,null,null,null,null,null,"令和",null,null,"年",null,"月",null,"日"]
[]
[null,null,"申請者氏名",null,null,null,{"$f":"第二面!K6","v":0}]
[]
[]
[null,null,"設計者氏名",null,null,null,{"$f":"第二面!K23","v":0}]
[]
[]
[]
[]
[null,"※手数料欄"]
[]
[]
[]
[null,"※受付欄",null,null,null,null,null,null,null,"※消防関係同意欄",null,null,null,null,null,"※決裁欄",null,null,null,null,"※確認番号欄"]
[]
[]
[null,"　令和　　　年　　　月　　　日　",null,null,null,null,null,null,null,null,null,null,null,null,null,null,null,null,null,null,"　令和　　　　年　　　　月　　　　日"]
[]
[]
[null,null,null,null,null,null,null,null,null,null,null,null,null,null,null,null,null,null,null,null,"第　　　　　　　　　　　　　　　　　　　　　"]
[null,"第",null,null,null,null,null,null,"号",null,null,null,null,null,null,null,null,null,null,null,null,null,null,null,null,null,null,null,null,"号"]
[]
[null,"　係員氏名　",null,null,null,null,null,null,null,null,null,null,null,null,null,null,null,null,null,null,"　係員氏名　"]

{"sheet":"計変第一面","index":1,"n_rows":47,"n_cols":30,"rows_kept":47,"cut":false,"hidden":false,"merged":[[40,1,42,8],[40,15,48,19],[40,20,42,29],[43,20,45,20],[46,20,48,29],[46,1,48,8],[37,9,39,14],[37,15,39,19],[33,1,33,5],[34,1,36,29],[37,1,39,8],[37,20,39,29],[28,9,28,29],[26,10,26,15],[29,9,29,29],[32,9,32,29],[30,9,30,29],[31,9,31,29],[27,9,27,10],[19,6,19,28],[23,6,23,28],[17,22,17,23],[5,1,5,29],[8,1,8,29],[11,1,13,29],[15,1,15,29],[16,1,16,29],[20,17,20,28]]}
[null,"計画変更確認申請書（第一面）"]
[null,"第四号様式（第一条の三、第三条、第三条の三関係）（Ａ４）"]
[]
[]
[]
[null,"計画変更確認申請書（建築物）"]
[]
[]
[null,"（第一面）"]
[]
[]
[null,"　建築基準法第６条第１項又は第６条の２第１項の規定による確認を申請します。この申請書及び添付図書に記載の事項は、事実に相違ありません。"]
[]
[]
[]
[null,"　(公財)鹿児島県住宅・建築総合センター　御中"]
[]
[null,null,null,null,null,null,null,null,null,null,null,null,null,null,null,null,null,null,null,null,null,null,"令和",null,null,"年",null,"月",null,"日"]
[]
[null,null,"申請者氏名",null,null,null,{"$f":"第二面!K6","v":0}]
[]
[]
[]
[null,null,"設計者氏名",null,null,null,{"$f":"第二面!K23","v":0}]
[]
[null,"[計画を変更する建築物の直前の確認]"]
[null,"　　[確認済証番号]　",null,null,null,null,null,null,null,"第",null,null,null,null,null,null,"号"]
[null,"　　[確認済証交付年月日]　",null,null,null,null,null,null,null,"令和",null,null,"年",null,"月",null,"日"]
[null,"　　[確認済証交付者]",null,null,null,null,null,null,null,"(公財)鹿児島県住宅・建築総合センター　理事長　松尾　浩一"]
[null,"　　[計画変更の概要]"]
[]
[]
[]
[null,"※手数料欄"]
[]
[]
[]
[null,"※受付欄",null,null,null,null,null,null,null,"※消防関係同意欄",null,null,null,null,null,"※決裁欄",null,null,null,null,"※確認番号欄"]
[]
[]
[null,"　令和　　　年　　　月　　　日　",null,null,null,null,null,null,null,null,null,null,null,null,null,null,null,null,null,null,"　令和　　　　年　　　　月　　　　日"]
[]
[]
[null,null,null,null,null,null,null,null,null,null,null,null,null,null,null,null,null,null,null,null,"第　　　　　　　　　　　　　　　　　　　　　"]
[null,"第",null,null,null,null,null,null,"号",null,null,null,null,null,null,null,null,null,null,null,null,null,null,null,null,null,null,null,null,"号"]
[]
[null,"　係員氏名　",null,null,null,null,null,null,null,null,null,null,null,null,null,null,null,null,null,null,"　係員氏名　"]

{"sheet":"第二面","index":2,"n_rows":171,"n_cols":30,"rows_kept":171,"cut":false,"hidden":false,"merged":[[1,0,1,30],[133,10,133,14],[136,17,136,21],[136,22,136,24],[136,25,136,28],[142,10,142,14],[145,17,145,21],[145,22,145,24],[145,25,145,28],[38,11,38,29],[33,13,33,17],[35,10,35,12],[34,10,34,29],[123,10,123,14],[127,17,127,21],[127,22,127,24],[127,25,127,28],[49,14,49,16],[51,25,51,28],[71,13,71,29],[53,10,53,12],[76,13,76,29],[74,13,74,29],[104,10,104,13],[147,21,147,24],[147,25,147,28],[149,10,149,12],[148,10,148,29],[138,25,138,28],[138,11,138,12],[138,13,138,17],[143,10,143,29],[139,10,139,29],[140,10,140,12],[145,11,145,13],[145,14,145,16],[146,10,146,29],[147,11,147,12],[147,13,147,17],[147,18,147,20],[138,18,138,20],[138,21,138,24],[141,10,141,29],[103,10,103,29],[105,10,105,29],[87,10,87,13],[88,10,88,29],[94,10,94,12],[95,10,95,29],[99,2,99,10],[70,14,70,18],[72,14,72,18],[172,1,172,29],[173,1,173,29],[169,7,169,28],[171,1,171,29],[158,10,158,12],[159,10,159,29],[170,5,170,29],[163,7,163,28],[164,7,164,28],[168,7,168,28],[156,13,156,17],[155,10,155,29],[153,12,153,29],[165,7,165,28],[167,7,167,28],[152,10,152,29],[150,10,150,29],[157,10,157,29],[156,20,156,28],[153,2,153,11],[160,10,160,14],[151,10,151,14],[119,25,119,28],[119,13,119,17],[136,14,136,16],[135,12,135,29],[121,10,121,12],[136,11,136,13],[127,11,127,13],[130,10,130,29],[131,10,131,12],[132,10,132,29],[129,11,129,12],[129,13,129,17],[122,10,122,29],[125,2,125,11],[129,25,129,28],[128,10,128,29],[120,10,120,29],[13,21,13,24],[23,21,23,24],[13,18,13,20],[13,11,13,12],[13,13,13,17],[13,25,13,28],[14,10,14,29],[21,11,21,13],[21,14,21,16],[22,10,22,29],[23,18,23,20],[23,11,23,12],[23,13,23,17],[16,10,16,29],[15,10,15,12],[17,10,17,14],[21,17,21,21],[21,22,21,24],[21,25,21,28],[23,25,23,28],[7,10,7,29],[6,10,6,12],[4,10,4,29],[11,14,11,16],[11,11,11,13],[11,22,11,24],[11,25,11,28],[11,17,11,21],[8,10,8,14],[43,10,43,29],[44,10,44,12],[45,10,45,29],[40,17,40,21],[40,22,40,24],[40,25,40,28],[46,10,46,14],[42,11,42,12],[33,21,33,24],[33,25,33,28],[33,11,33,12],[36,10,36,29],[40,14,40,16],[33,18,33,20],[49,25,49,28],[50,10,50,29],[55,10,55,14],[51,18,51,20],[56,11,56,29],[65,14,65,18],[62,14,62,18],[61,13,61,29],[68,14,68,18],[67,13,67,29],[51,11,51,12],[64,13,64,29],[52,10,52,29],[51,21,51,24],[54,10,54,29],[51,13,51,17],[49,11,49,13],[49,17,49,21],[49,22,49,24],[2,1,2,29],[40,11,40,13],[42,13,42,17],[42,18,42,20],[29,2,29,9],[41,10,41,29],[42,21,42,24],[29,10,29,29],[32,10,32,29],[25,10,25,12],[26,10,26,29],[31,14,31,16],[31,11,31,13],[24,10,24,29],[12,10,12,29],[27,10,27,14],[31,17,31,21],[31,22,31,24],[31,25,31,28],[37,10,37,14],[28,11,28,29],[42,25,42,28],[3,10,3,29],[5,10,5,29],[47,11,47,29],[69,13,69,29],[83,10,83,29],[78,13,78,29],[84,10,84,29],[85,10,85,12],[119,11,119,12],[113,10,113,29],[114,10,114,29],[86,10,86,29],[96,10,96,13],[100,10,100,29],[101,10,101,29],[89,10,89,29],[117,17,117,21],[117,22,117,24],[117,25,117,28],[107,11,107,29],[106,10,106,29],[75,14,75,18],[77,14,77,18],[79,14,79,18],[107,2,107,10],[119,18,119,20],[137,10,137,29],[90,11,90,29],[97,10,97,29],[99,11,99,29],[119,21,119,24],[117,14,117,16],[102,10,102,12],[90,2,90,10],[108,10,108,29],[109,10,109,29],[110,10,110,12],[124,10,124,29],[134,10,134,29],[129,18,129,20],[127,14,127,16],[129,21,129,24],[125,12,125,29],[98,10,98,29],[92,10,92,29],[93,10,93,29],[117,11,117,13],[118,10,118,29],[111,10,111,29],[112,10,112,13]],"read":"row_number_cap"}
[null,"申請書（第二面）"]
["（第二面）"]
[null,"　建築主等の概要"]
[null,"【1．建築主】"]
[null,null,"【ｲ．氏名のﾌﾘｶﾞﾅ】"]
[null,null,"【ﾛ．氏名】"]
[null,null,"【ﾊ．郵便番号】"]
[null,null,"【ﾆ．住所】"]
[null,null,"【ﾎ．電話番号】"]
[]
[null,"【2．代理者】"]
[null,null,"【ｲ．資格】",null,null,null,null,null,null,null,"(",null,null,null,")建築士(",null,null,null,null,null,null,null,"）登録第",null,null,null,null,null,null,"号"]
[null,null,"【ﾛ．氏名】"]
[null,null,"【ﾊ．建築士事務所名】",null,null,null,null,null,null,null,"(",null,null,")建築士事務所(",null,null,null,null,null,null,null,")知事登録第",null,null,null,null,null,null,null,"号"]
[]
[null,null,"【ﾆ．郵便番号】"]
[null,null,"【ﾎ．所在地】"]
[null,null,"【ﾍ．電話番号】"]
[]
[null,"【3．設計者】"]
[null,"（代表となる設計者）"]
[null,null,"【ｲ．資格】",null,null,null,null,null,null,null,"(",null,null,null,")建築士(",null,null,null,null,null,null,null,"）登録第",null,null,null,null,null,null,"号"]
[null,null,"【ﾛ．氏名】"]
[null,null,"【ﾊ．建築士事務所名】",null,null,null,null,null,null,null,"(",null,null,")建築士事務所(",null,null,null,null,null,null,null,")知事登録第",null,null,null,null,null,null,null,"号"]
[]
[null,null,"【ﾆ．郵便番号】"]
[null,null,"【ﾎ．所在地】"]
[null,null,"【ﾍ．電話番号】"]
[null,null,"【ﾄ．作成又は確認した設計図書】"]
[]
[null,"（その他の設計者）"]
[null,null,"【ｲ．資格】",null,null,null,null,null,null,null,"(",null,null,null,")建築士(",null,null,null,null,null,null,null,"）登録第",null,null,null,null,null,null,"号"]
[null,null,"【ﾛ．氏名】"]
[null,null,"【ﾊ．建築士事務所名】",null,null,null,null,null,null,null,"(",null,null,")建築士事務所(",null,null,null,null,null,null,null,")知事登録第",null,null,null,null,null,null,null,"号"]
[]
[null,null,"【ﾆ．郵便番号】"]
[null,null,"【ﾎ．所在地】"]
[null,null,"【ﾍ．電話番号】"]
[null,null,"【ﾄ．作成又は確認した設計図書】"]
[]
[null,null,"【ｲ．資格】",null,null,null,null,null,null,null,"(",null,null,null,")建築士(",null,null,null,null,null,null,null,"）登録第",null,null,null,null,null,null,"号"]
[null,null,"【ﾛ．氏名】"]
[null,null,"【ﾊ．建築士事務所名】",null,null,null,null,null,null,null,"(",null,null,")建築士事務所(",null,null,null,null,null,null,null,")知事登録第",null,null,null,null,null,null,null,"号"]
[]
[null,null,"【ﾆ．郵便番号】"]
[null,null,"【ﾎ．所在地】"]
[null,null,"【ﾍ．電話番号】"]
[null,null,"【ﾄ．作成又は確認した設計図書】"]
[]
[null,null,"【ｲ．資格】",null,null,null,null,null,null,null,"(",null,null,null,")建築士(",null,null,null,null,null,null,null,"）登録第",null,null,null,null,null,null,"号"]
[null,null,"【ﾛ．氏名】"]
[null,null,"【ﾊ．建築士事務所名】",null,null,null,null,null,null,null,"(",null,null,")建築士事務所(",null,null,null,null,null,null,null,")知事登録第",null,null,null,null,null,null,null,"号"]
[]
[null,null,"【ﾆ．郵便番号】"]
[null,null,"【ﾎ．所在地】"]
[null,null,"【ﾍ．電話番号】"]
[null,null,"【ﾄ．作成又は確認した設計図書】"]
[]
[null,"　(構造設計一級建築士又は設備設計一級建築士である旨の表示をした者)"]
[null,"上記の設計者のうち、"]
[null,"□","建築士法第20条の２第１項の表示をした者"]
[null,null,"【ｲ．氏名】"]
[null,null,"【ﾛ．資格】構造設計一級建築士交付",null,null,null,null,null,null,null,null,null,null,"第",null,null,null,null,null,"号"]
[null,"□","建築士法第20条の２第３項の表示をした者"]
[null,null,"【ｲ．氏名】"]
[null,null,"【ﾛ．資格】構造設計一級建築士交付",null,null,null,null,null,null,null,null,null,null,"第",null,null,null,null,null,"号"]
[null,"□","建築士法第20条の３第１項の表示をした者"]
[null,null,"【ｲ．氏名】"]
[null,null,"【ﾛ．資格】設備設計一級建築士交付",null,null,null,null,null,null,null,null,null,null,"第",null,null,null,null,null,"号"]
[null,null,"【ｲ．氏名】"]
[null,null,"【ﾛ．資格】設備設計一級建築士交付",null,null,null,null,null,null,null,null,null,null,"第",null,null,null,null,null,"号"]
[null,null,"【ｲ．氏名】"]
[null,null,"【ﾛ．資格】設備設計一級建築士交付",null,null,null,null,null,null,null,null,null,null,"第",null,null,null,null,null,"号"]
[null,"□","建築士法第20条の３第３項の表示をした者"]
[null,null,"【ｲ．氏名】"]
[null,null,"【ﾛ．資格】設備設計一級建築士交付",null,null,null,null,null,null,null,null,null,null,"第",null,null,null,null,null,"号"]
[null,null,"【ｲ．氏名】"]
[null,null,"【ﾛ．資格】設備設計一級建築士交付",null,null,null,null,null,null,null,null,null,null,"第",null,null,null,null,null,"号"]
[null,null,"【ｲ．氏名】"]
[null,null,"【ﾛ．資格】設備設計一級建築士交付",null,null,null,null,null,null,null,null,null,null,"第",null,null,null,null,null,"号"]
[]
[null,"【4．建築設備の設計に関し意見を聴いた者】"]
[null,"（代表となる建築設備の設計に関し意見を聴いた者）"]
[null,null,"【ｲ．氏名】"]
[null,null,"【ﾛ．勤務先】"]
[null,null,"【ﾊ．郵便番号】"]
[null,null,"【ﾆ．所在地】"]
[null,null,"【ﾎ．電話番号】"]
[null,null,"【ﾍ．登録番号】"]
[null,null,"【ﾄ．意見を聴いた設計図書】"]
[]
[null,"（その他の建築設備の設計に関し意見を聴いた者）"]
[null,null,"【ｲ．氏名】"]
[null,null,"【ﾛ．勤務先】"]
[null,null,"【ﾊ．郵便番号】"]
[null,null,"【ﾆ．所在地】"]
[null,null,"【ﾎ．電話番号】"]
[null,null,"【ﾍ．登録番号】"]
[null,null,"【ﾄ．意見を聴いた設計図書】"]
[]
[null,null,"【ｲ．氏名】"]
[null,null,"【ﾛ．勤務先】"]
[null,null,"【ﾊ．郵便番号】"]
[null,null,"【ﾆ．所在地】"]
[null,null,"【ﾎ．電話番号】"]
[null,null,"【ﾍ．登録番号】"]
[null,null,"【ﾄ．意見を聴いた設計図書】"]
[]
[null,null,"【ｲ．氏名】"]
[null,null,"【ﾛ．勤務先】"]
[null,null,"【ﾊ．郵便番号】"]
[null,null,"【ﾆ．所在地】"]
[null,null,"【ﾎ．電話番号】"]
[null,null,"【ﾍ．登録番号】"]
[null,null,"【ﾄ．意見を聴いた設計図書】"]
[null,"【5．工事監理者】"]
[null,"（代表となる工事監理者）"]
[null,null,"【ｲ．資格】",null,null,null,null,null,null,null,"（",null,null,null,")建築士(",null,null,null,null,null,null,null,"）登録第",null,null,null,null,null,null,"号"]
[null,null,"【ﾛ．氏名】"]
[null,null,"【ﾊ．建築士事務所名】 ",null,null,null,null,null,null,null,"（",null,null,")建築士事務所(",null,null,null,null,null,null,null,")知事登録第",null,null,null,null,null,null,null,"号"]
[]
[null,null,"【ﾆ．郵便番号】"]
[null,null,"【ﾎ．所在地】"]
[null,null,"【ﾍ．電話番号】"]
[null,null,"【ﾄ．工事と照合する設計図書】"]
[]
[null,"（その他の工事監理者）"]
[null,null,"【ｲ．資格】",null,null,null,null,null,null,null,"(",null,null,null,")建築士(",null,null,null,null,null,null,null,"）登録第",null,null,null,null,null,null,"号"]
[null,null,"【ﾛ．氏名】"]
[null,null,"【ﾊ．建築士事務所名】 ",null,null,null,null,null,null,null,"(",null,null,")建築士事務所(",null,null,null,null,null,null,null,")知事登録第",null,null,null,null,null,null,null,"号"]
[]
[null,null,"【ﾆ．郵便番号】"]
[null,null,"【ﾎ．所在地】"]
[null,null,"【ﾍ．電話番号】"]
[null,null,"【ﾄ．工事と照合する設計図書】"]
[]
[null,null,"【ｲ．資格】",null,null,null,null,null,null,null,"(",null,null,null,")建築士(",null,null,null,null,null,null,null,"）登録第",null,null,null,null,null,null,"号"]
[null,null,"【ﾛ．氏名】"]
[null,null,"【ﾊ．建築士事務所名】 ",null,null,null,null,null,null,null,"(",null,null,")建築士事務所(",null,null,null,null,null,null,null,")知事登録第",null,null,null,null,null,null,null,"号"]
[]
[null,null,"【ﾆ．郵便番号】"]
[null,null,"【ﾎ．所在地】"]
[null,null,"【ﾍ．電話番号】"]
[null,null,"【ﾄ．工事と照合する設計図書】"]
[]
[null,null,"【ｲ．資格】",null,null,null,null,null,null,null,"(",null,null,null,")建築士(",null,null,null,null,null,null,null,"）登録第",null,null,null,null,null,null,"号"]
[null,null,"【ﾛ．氏名】"]
[null,null,"【ﾊ．建築士事務所名】 ",null,null,null,null,null,null,null,"(",null,null,")建築士事務所(",null,null,null,null,null,null,null,")知事登録第",null,null,null,null,null,null,null,"号"]
[]
[null,null,"【ﾆ．郵便番号】"]
[null,null,"【ﾎ．所在地】"]
[null,null,"【ﾍ．電話番号】"]
[null,null,"【ﾄ．工事と照合する設計図書】"]
[]
[null,"【6．工事施工者】"]
[null,null,"【ｲ．氏名】"]
[null,null,"【ﾛ．営業所名】建設業の許可",null,null,null,null,null,null,null,null,null,"(",null,null,null,null,null,") 第",null,null,null,null,null,null,null,null,null,null,"号"]
[]
[null,null,"【ﾊ．郵便番号】"]
[null,null,"【ﾆ．所在地】"]
[null,null,"【ﾎ．電話番号】"]
[]
[null,"【7．構造計算適合性判定の申請】"]
[null,null,"□","申請済",null,null,"（",null,null,null,null,null,null,null,null,null,null,null,null,null,null,null,null,null,null,null,null,null,null,"）"]
[null,null,"□","未申請",null,null,"（",null,null,null,null,null,null,null,null,null,null,null,null,null,null,null,null,null,null,null,null,null,null,"）"]
[null,null,"■","申請不要"]
[null,"【8．建築物エネルギー消費性能確保計画の提出】"]
[null,null,"□","提出済",null,null,"（",null,null,null,null,null,null,null,null,null,null,null,null,null,null,null,null,null,null,null,null,null,null,"）"]
[null,null,"□","未提出",null,null,"（",null,null,null,null,null,null,null,null,null,null,null,null,null,null,null,null,null,null,null,null,null,null,"）"]
[null,null,"■","提出不要",null,null,"（",null,null,null,null,null,null,null,null,null,null,null,null,null,null,null,null,null,null,null,null,null,null,"）"]
[null,"【9．備考】"]

{"sheet":"第三面","index":3,"n_rows":100,"n_cols":30,"rows_kept":100,"cut":false,"hidden":false,"merged":[[44,10,44,14],[44,16,44,20],[44,22,44,26],[51,10,51,14],[51,16,51,20],[51,22,51,26],[52,16,52,20],[52,22,52,26],[20,18,20,20],[4,6,4,29],[18,22,18,24],[17,10,17,12],[20,14,20,16],[37,16,37,20],[24,10,24,12],[27,6,27,29],[22,14,22,16],[16,10,16,12],[18,10,18,12],[17,14,17,16],[17,18,17,20],[16,14,16,16],[18,18,18,20],[18,14,18,16],[10,13,11,29],[34,10,34,14],[34,16,34,20],[34,22,34,26],[82,1,82,29],[83,1,83,29],[97,1,97,29],[1,0,2,30],[43,22,43,26],[28,8,28,10],[28,12,28,26],[16,18,16,20],[39,10,39,14],[43,10,43,14],[32,22,32,26],[32,10,32,14],[39,16,39,20],[39,22,39,26],[43,16,43,20],[20,10,20,12],[37,22,37,26],[23,10,23,12],[20,22,20,24],[16,22,16,24],[17,22,17,24],[5,6,5,29],[13,6,13,10],[14,14,14,18],[81,1,81,29],[22,10,22,12],[26,19,26,21],[22,18,22,20],[22,22,22,24],[32,16,32,20],[37,10,37,14],[47,16,47,20],[55,10,55,14],[54,10,54,14],[53,10,53,14],[48,10,48,14],[49,10,49,14],[46,16,46,20],[35,10,35,14],[41,16,41,20],[41,22,41,26],[49,22,49,26],[46,22,46,26],[45,16,45,20],[50,22,50,26],[25,19,25,21],[70,12,70,14],[71,12,71,14],[101,1,101,29],[84,1,84,29],[85,1,85,29],[90,16,90,28],[91,16,91,28],[92,16,92,28],[93,16,93,28],[96,1,96,29],[98,1,98,29],[100,1,100,29],[86,9,86,10],[88,9,88,10],[91,7,91,8],[92,7,92,8],[93,7,93,8],[80,1,80,29],[76,10,76,16],[53,22,53,26],[41,10,41,14],[73,10,73,13],[73,16,73,19],[45,10,45,14],[47,22,47,26],[45,22,45,26],[48,22,48,26],[75,10,75,14],[75,16,75,20],[46,10,46,14],[53,16,53,20],[50,10,50,14],[47,10,47,14],[49,16,49,20],[48,16,48,20],[50,16,50,20],[74,10,74,14],[74,16,74,20],[76,20,76,25],[72,10,72,14],[52,10,52,14]]}
[null,"申請書（第三面）"]
["(第三面）"]
[]
[null,"　建築物及びその敷地に関する事項"]
[null,"【1．地名地番】"]
[null,"【2．住居表示】"]
[null,"【3．都市計画区域及び準都市計画区域の内外の別等】"]
[null,null,null,null,"■","都市計画区域内 ",null,null,null,null,"(","□","市街化区域",null,null,null,"□","市街化調整区域",null,null,null,null,"■","区域区分非設定",null,null,null,null,")"]
[null,null,null,null,"□","準都市計画区域内",null,null,null,null,null,"□","都市計画区域及び準都市計画区域外　"]
[null,"【4．防火地域】",null,null,null,null,null,null,null,null,null,"□","防火地域",null,null,null,"□","準防火地域",null,null,null,null,"■","指定なし"]
[null,"【5．その他の区域、地域、地区又は街区】"]
[]
[null,"【6．道路】"]
[null,null,"【ｲ．幅員】",null,null,null,null,null,null,null,null,"ｍ"]
[null,null,"【ﾛ．敷地と接している部分の長さ】",null,null,null,null,null,null,null,null,null,null,null,null,null,null,null,null,"ｍ"]
[null,"【7．敷地面積】"]
[null,null,"【ｲ．敷地面積】",null,null,null,null,"（1） ",null,"（",null,null,null,")(",null,null,null,")(",null,null,null,")(",null,null,null,"）㎡"]
[null,null,null,null,null,null,null,"（2） ",null,"（",null,null,null,")(",null,null,null,")(",null,null,null,")(",null,null,null,"）㎡"]
[null,null,"【ﾛ．用途地域等】　  ",null,null,null,null,null,null,"（",null,null,null,")(",null,null,null,")(",null,null,null,")(",null,null,null,"）　"]
[null,null,"【ﾊ．建築基準法第５２条第１項及び第２項の規定による建築物の容積率】 　　　 　　"]
[null,null,null,null,null,null,null,null,null,"（",null,null,null,")(",null,null,null,")(",null,null,null,")(",null,null,null,"）％　"]
[null,null,"【ﾆ．建築基準法第５３条第１項の規定による建築物の建蔽率】 　　　　　 　　　　　　　　　　　　　　　                                   　　　　                 "]
[null,null,null,null,null,null,null,null,null,"（",null,null,null,")(",null,null,null,")(",null,null,null,")(",null,null,null,"）％　"]
[null,null,"【ﾎ．敷地面積の合計】 ",null,null,null,null,null,"（1）",null,{"$f":"ROUND(K17,2)+ROUND(O17,2)+ROUND(S17,2)+ROUND(W17,2)","v":0},null,null,"㎡"]
[null,null,null,null,null,null,null,null,"（2）",null,{"$f":"ROUND(K18,2)+ROUND(O18,2)+ROUND(S18,2)+ROUND(W18,2)","v":0},null,null,"㎡"]
[null,null,"【ﾍ．敷地に建築可能な延べ面積を敷地面積で除した数値】",null,null,null,null,null,null,null,null,null,null,null,null,null,null,null,null,null,null,null,"％"]
[null,null,"【ﾄ．敷地に建築可能な建築面積を敷地面積で除した数値】",null,null,null,null,null,null,null,null,null,null,null,null,null,null,null,null,null,null,null,"％"]
[null,null,"【ﾁ．備考】"]
[null,"【8．主要用途】　",null,null,null,null,"（区分",null,null,null,null,"）"]
[null,"【9．工事種別】"]
[null,null,null,"■","新築",null,"□","増築",null,"□","改築 ",null,"□","移転",null,"□","用途変更",null,null,"□","大規模の修繕",null,null,null,"□","大規模の模様替"]
[null,"【10．建築面積】　　　　",null,null,null,null,null,null,null,"（","申請部分",null,null,null,null,")(","申請以外の部分",null,null,null,null,")(","合計",null,null,null,null,"）　"]
[null,null,"【ｲ．建築面積】　　　 ",null,null,null,null,null,null,"（",null,null,null,null,null,")(",null,null,null,null,null,")(",{"$f":"ROUND(K33,2)+ROUND(Q33,2)","v":0},null,null,null,null,"）㎡"]
[null,null,"【ﾛ．建蔽率の算定の基礎となる建築面積】　　　 "]
[null,null,null,null,null,null,null,null,null,"（",null,null,null,null,null,")(",null,null,null,null,null,")(",{"$f":"ROUND(K35,2)+ROUND(Q35,2)","v":0},null,null,null,null,"）㎡"]
[null,null,"【ﾊ．建蔽率】",null,null,null,null,null,null,null,null,null,null,null,null,"％"]
[null,"【11．延べ面積】　　 　　 　",null,null,null,null,null,null,null,"（","申請部分",null,null,null,null,")(","申請以外の部分",null,null,null,null,")(","合計",null,null,null,null,"）　"]
[null,null,"【ｲ．建築物全体】　　　　 ",null,null,null,null,null,null,"（",null,null,null,null,null,")(",null,null,null,null,null,")(",{"$f":"ROUND(K38,2)+ROUND(Q38,2)","v":0},null,null,null,null,"）㎡"]
[null,null,"【ﾛ．地階の住宅又は老人ホーム等の部分】　 "]
[null,null,null,null,null,null,null,null,null,"（",null,null,null,null,null,")(",null,null,null,null,null,")(",{"$f":"ROUND(K40,2)+ROUND(Q40,2)","v":0},null,null,null,null,"）㎡"]
[null,null,"【ﾊ．エレベーターの昇降路の部分】"]
[null,null,null,null,null,null,null,null,null,"（",null,null,null,null,null,")(",null,null,null,null,null,")(",{"$f":"ROUND(K42,2)+ROUND(Q42,2)","v":0},null,null,null,null,"）㎡"]
[null,null,"【ﾆ．共同住宅又は老人ホーム等の共用の廊下等の部分】"]
[null,null,null,null,null,null,null,null,null,"（",null,null,null,null,null,")(",null,null,null,null,null,")(",{"$f":"ROUND(K44,2)+ROUND(Q44,2)","v":0},null,null,null,null,"）㎡"]
[null,null,"【ﾎ．認定機械室等の部分】 ",null,null,null,null,null,null,"（",null,null,null,null,null,")(",null,null,null,null,null,")(",{"$f":"ROUND(K45,2)+ROUND(Q45,2)","v":0},null,null,null,null,"）㎡"]
[null,null,"【ﾍ．自動車車庫等の部分】 ",null,null,null,null,null,null,"（",null,null,null,null,null,")(",null,null,null,null,null,")(",{"$f":"ROUND(K46,2)+ROUND(Q46,2)","v":0},null,null,null,null,"）㎡"]
[null,null,"【ﾄ．備蓄倉庫の部分】 ",null,null,null,null,null,null,"（",null,null,null,null,null,")(",null,null,null,null,null,")(",0,null,null,null,null,"）㎡"]
[null,null,"【ﾁ．蓄電池の設置部分】 ",null,null,null,null,null,null,"（",null,null,null,null,null,")(",null,null,null,null,null,")(",0,null,null,null,null,"）㎡"]
[null,null,"【ﾘ．自家発電設備の設置部分】 ",null,null,null,null,null,null,"（",null,null,null,null,null,")(",null,null,null,null,null,")(",0,null,null,null,null,"）㎡"]
[null,null,"【ﾇ．貯水槽の設置部分】 ",null,null,null,null,null,null,"（",null,null,null,null,null,")(",null,null,null,null,null,")(",0,null,null,null,null,"）㎡"]
[null,null,"【ﾙ．宅配ボックスの設置部分】　　　 　",null,null,null,null,null,null,"（",null,null,null,null,null,")(",null,null,null,null,null,")(",0,null,null,null,null,"）㎡"]
[null,null,"【ｦ．その他の不算入部分】　　　 　",null,null,null,null,null,null,"（",null,null,null,null,null,")(",null,null,null,null,null,")(",{"$f":"ROUND(K52,2)+ROUND(Q52,2)","v":0},null,null,null,null,"）㎡"]
[null,null,"【ﾜ．住宅の部分】",null,null,null,null,null,null,"（",null,null,null,null,null,")(",null,null,null,null,null,")(",{"$f":"ROUND(K53,2)+ROUND(Q53,2)","v":0},null,null,null,null,"）㎡"]
[null,null,"【ｶ．老人ホーム等の部分】",null,null,null,null,null,null,"（",null,null,null,null,null,")(",null,null,null,null,null,")(",{"$f":"ROUND(K54,2)+ROUND(Q54,2)","v":0},null,null,null,null,"）㎡"]
[null,null,"【ﾖ．延べ面積】",null,null,null,null,null,null,null,null,null,null,null,null,"㎡"]
[null,null,"【ﾀ．容積率】",null,null,null,null,null,null,null,null,null,null,null,null,"％"]
[]
[]
[]
[]
[]
[]
[]
[]
[]
[]
[]
[]
[]
[null,"【12．建築物の数】"]
[null,null,"【ｲ．申請に係る建築物の数】",null,null,null,null,null,null,null,null,null,"1"]
[null,null,"【ﾛ．同一敷地内の他の建築物の数】"]
[null,"【13．建築物の高さ等】",null,null,null,null,null,null,null,"（","申請に係る建築物",null,null,null,null,")(","他の建築物",null,null,null,null,"）"]
[null,null,"【ｲ．最高の高さ】　　 ",null,null,null,null,null,null,"（",0,null,null,null,"ｍ",")(",null,null,null,null,"ｍ","）"]
[null,null,"【ﾛ．階数】",null,null,null,null,"地上",null,"（",1,null,null,null,null,")(",null,null,null,null,null,"）"]
[null,null,null,null,null,null,null,"地下",null,"（",0,null,null,null,null,")(",null,null,null,null,null,"）"]
[null,null,"【ﾊ．構造】",null,null,null,null,null,null,null,null,null,null,null,null,null,null,"造　一部 ",null,null,null,null,null,null,null,null,"造"]
[null,"　【ﾆ．建築基準法第５６条第７項の規定による特例の適用の有無】",null,null,null,null,null,null,null,null,null,null,null,null,null,null,null,null,null,null,"□","有","■","無"]
[null,"　【ﾎ．適用があるときは、特例の区分】"]
[null,null,null,null,"□","道路高さ制限不適用",null,null,null,null,null,"□","隣地高さ制限不適用",null,null,null,null,null,"□","北側高さ制限不適用"]
[null,"【14．許可・認定等】"]
[]
[]
[]
[]
[]
[null,"【15．工事着手予定年月日】　",null,null,null,null,null,null,null,"令和",null,null,"年",null,"月",null,"日"]
[]
[null,"【16．工事完了予定年月日】　",null,null,null,null,null,null,null,"令和",null,null,"年",null,"月",null,"日"]
[]
[null,"【17．特定工程工事終了予定年月日】",null,null,null,null,null,null,null,null,null,null,null,null,null,"(","特定工程",null,null,null,null,null,null,null,null,null,null,null,null,"）"]
[null,null,null,"（第",null,"回）　",null,"令和",null,null,"年",null,"月",null,"日","(",null,null,null,null,null,null,null,null,null,null,null,null,null,"）"]
[null,null,null,"（第",null,"回）　",null,"令和",null,null,"年",null,"月",null,"日","(",null,null,null,null,null,null,null,null,null,null,null,null,null,"）"]
[null,null,null,"（第",null,"回）　",null,"令和",null,null,"年",null,"月",null,"日","(",null,null,null,null,null,null,null,null,null,null,null,null,null,"）"]
[]
[null,"【18．その他必要な事項】"]
[]
[]
[]
[null,"【19．備考】"]

{"sheet":"第四面","index":4,"n_rows":67,"n_cols":28,"rows_kept":67,"cut":false,"hidden":false,"merged":[[52,7,52,9],[52,12,52,15],[52,17,52,20],[52,22,52,25],[33,7,33,29],[51,12,51,15],[39,24,39,26],[41,21,41,26],[51,17,51,20],[48,22,48,25],[48,17,48,20],[46,17,46,22],[53,7,53,9],[53,12,53,15],[53,17,53,20],[53,22,53,25],[54,7,54,9],[64,8,64,15],[54,22,54,25],[55,7,55,9],[55,12,55,15],[55,17,55,20],[55,22,55,25],[56,12,56,15],[56,22,56,25],[58,7,58,9],[60,6,60,15],[54,12,54,15],[54,17,54,20],[1,0,1,30],[56,7,56,9],[57,22,57,25],[57,17,57,20],[57,12,57,15],[56,17,56,20],[6,12,6,28],[32,9,32,11],[5,12,5,28],[27,10,27,11],[48,12,48,15],[49,12,49,15],[2,1,2,29],[28,10,28,11],[7,7,7,10],[49,17,49,20],[3,7,3,8],[26,10,26,11],[30,7,30,21],[7,12,7,28],[8,7,8,10],[29,10,29,11],[68,5,68,29],[67,5,67,29],[4,7,4,10],[6,7,6,10],[49,22,49,25],[50,22,50,25],[51,22,51,25],[59,12,59,15],[59,17,59,20],[50,12,50,15],[58,22,58,25],[58,17,58,20],[58,12,58,15],[8,12,8,28],[4,12,4,28],[5,7,5,10],[69,5,69,29],[63,8,63,10],[11,5,11,11],[11,15,11,20],[49,7,49,9],[50,7,50,9],[59,22,59,25],[66,5,66,29],[65,1,65,7],[65,8,65,29],[51,7,51,9],[57,7,57,9],[61,6,61,15],[62,6,62,15],[50,17,50,20],[31,9,31,11]]}
[null,"申請書（第四面）"]
["（第四面）"]
[null,"建築物別概要"]
[null,"【1.番号】",null,null,null,null,null,"1"]
[null,"【2.用途】　",null,null,null,null,"（区分  ","",null,null,null,"）",""]
[null,null,null,null,null,null,"（区分  ","",null,null,null,"）",""]
[null,null,null,null,null,null,"（区分  ","",null,null,null,"）",""]
[null,null,null,null,null,null,"（区分  ","",null,null,null,"）",""]
[null,null,null,null,null,null,"（区分  ","",null,null,null,"）",""]
[null,"【3.工事種別】",null,null,null,null,null,"",null,null,null,null,""]
[null,null,null,"■","新築",null,"□","増築",null,"□","改築 ",null,"□","移転",null,"□","用途変更",null,null,"□","大規模の修繕",null,null,null,"□","大規模の模様替"]
[null,"【4.構造】　",null,null,null,null,null,null,null,null,null,null,"造　一部 ",null,null,null,null,null,null,null,null,"造"]
[null,"【5.主要構造部】",null,null,null,null,"□","耐火構造",null,null,null,"□","建築基準法施行令第108条の3第1項第1号イ及びロに掲げる基準に適合する構造"]
[null,null,null,null,null,null,"□","準耐火構造",null,null,null,"□","準耐火構造と同等の準耐火性能を有する構造（ロ-1）"]
[null,null,null,null,null,null,"□","準耐火構造と同等の準耐火性能を有する構造（ロ-2）",null,null,null,null,null,null,null,null,null,null,null,null,null,null,null,null,"■","その他"]
[]
[null,"【6.建築基準法第21条及び第27条の規定の適用】"]
[null,null,null,null,null,null,"□","建築基準法施行令第109条の5第1号に掲げる基準に適合する構造"]
[null,null,null,null,null,null,"□","建築基準法第21条第1項ただし書に該当する建築物"]
[null,null,null,null,null,null,"□","建築基準法施行令第110条第1号に掲げる基準に適合する構造"]
[null,null,null,null,null,null,"□","その他",null,null,null,null,null,"■","建築基準法第21条又は第27条の規定の適用を受けない"]
[]
[null,"【7.建築基準法第61条の規定の適用】"]
[null,null,null,null,null,null,"□","耐火建築物",null,null,null,null,null,"□","延焼防止建築物",null,null,null,null,"□","準耐火建築物"]
[null,null,null,null,null,null,"□","準延焼防止建築物",null,null,null,null,null,"□","その他",null,null,null,null,"■","建築基準法第61条の適用を受けない"]
[null,"【8.階数】"]
[null,null,"【イ.地階を除く階数】",null,null,null,null,null,null,null,"1",null,"階"]
[null,null,"【ロ.地階の階数】",null,null,null,null,null,null,null,null,null,"階"]
[null,null,"【ハ.昇降機塔等の階の数】",null,null,null,null,null,null,null,null,null,"階"]
[null,null,"【ニ.地階の倉庫等の階の数】",null,null,null,null,null,null,null,null,null,"階"]
[null,"【9.高さ】"]
[null,null,"【イ.最高の高さ】",null,null,null,null,null,null,null,null,null,"ｍ"]
[null,null,"【ロ.最高の軒の高さ】",null,null,null,null,null,null,null,null,null,"ｍ"]
[null,"【10.建築設備の種類】"]
[null,"【11.確認の特例】"]
[null,null,"【イ.建築基準法第6条の3第1項ただし書又は法第18条第4項ただし書の規定による審査の特例の適用の有無】 "]
[null,null,null,null,null,null,null,null,null,null,null,null,null,null,null,null,null,null,null,null,null,null,null,null,"□","有","■","無"]
[null,null,"【ロ.建築基準法第6条の4第1項の規定による確認の特例の適用の有無】 ",null,null,null,null,null,null,null,null,null,null,null,null,null,null,null,null,null,null,null,null,null,"□","有","□","無"]
[]
[null,null,"【ハ.建築基準法施行令第10条各号に掲げる建築物の区分】",null,null,null,null,null,null,null,null,null,null,null,null,null,null,null,null,null,null,null,null,"第",null,null,null,"号"]
[]
[null,null,"【ニ.認定型式の認定番号】",null,null,null,null,null,null,null,null,null,null,null,null,null,null,null,null,null,"第",null,null,null,null,null,null,"号"]
[]
[null,null,"【ホ.適合する一連の規定の区分】"]
[null,"　",null,null,null,null,null,null,null,null,null,null,null,null,null,null,null,"□","建築基準法施行令第136条の2の11第1号イ"]
[null,null,null,null,null,null,null,null,null,null,null,null,null,null,null,null,null,"□","建築基準法施行令第136条の2の11第1号ロ"]
[null,null,"【ヘ.認証型式部材等の認定番号】",null,null,null,null,null,null,null,null,null,null,null,null,null,"第",null,null,null,null,null,null,"号"]
[]
[null,"【12.床面積】   ",null,null,null,null,null,null,null,null,null,"(","申請部分",null,null,null,")(","申請以外の部分",null,null,null,")(","合計",null,null,null,"  ）"]
[null,null,null,null,null,null,"（","BF2",null,null,"階",")(",{"$f":"W50-R50","v":0},null,null,null,")(",null,null,null,null,")(",{"$f":"SUM(第五面!$V$14:$Z$19)","v":0},null,null,null,"㎡）"]
[null,null,null,null,null,null,"（","BF1",null,null,"階",")(",{"$f":"W51-R51","v":0},null,null,null,")(",null,null,null,null,")(",{"$f":"SUM(第五面!$V$36:$Z$41)","v":0},null,null,null,"㎡）"]
[null,null,"【イ.階別】 ",null,null,null,"（","F1",null,null,"階",")(",0,null,null,null,")(",null,null,null,null,")(",{"$f":"SUM(第五面!$V$58:$Z$63)","v":0},null,null,null,"㎡）"]
[null,null,null,null,null,null,"（","F2",null,null,"階",")(",0,null,null,null,")(",null,null,null,null,")(",{"$f":"SUM(第五面!$V$80:$Z$85)","v":0},null,null,null,"㎡）"]
[null,null,null,null,null,null,"（","F3",null,null,"階",")(",0,null,null,null,")(",null,null,null,null,")(",{"$f":"SUM(第五面!$V$102:$Z$107)","v":0},null,null,null,"㎡）"]
[null,null,null,null,null,null,"（","F4",null,null,"階",")(",0,null,null,null,")(",null,null,null,null,")(",{"$f":"SUM(第五面!$V$124:$Z$129)","v":0},null,null,null,"㎡）"]
[null,null,null,null,null,null,"（","F5",null,null,"階",")(",0,null,null,null,")(",null,null,null,null,")(",{"$f":"SUM(第五面!$V$146:$Z$151)","v":0},null,null,null,"㎡）"]
[null,null,null,null,null,null,"（","F6",null,null,"階",")(",0,null,null,null,")(",null,null,null,null,")(",{"$f":"SUM(第五面!$V$168:$Z$173)","v":0},null,null,null,"㎡）"]
[null,null,null,null,null,null,"（","PH1",null,null,"階",")(",0,null,null,null,")(",null,null,null,null,")(",{"$f":"SUM(第五面!$V$190:$Z$195)","v":0},null,null,null,"㎡）"]
[null,null,null,null,null,null,"（","PH2",null,null,"階",")(",0,null,null,null,")(",null,null,null,null,")(",{"$f":"SUM(第五面!$V$212:$Z$217)","v":0},null,null,null,"㎡）"]
[null,null,"【ロ.合計】",null,null,null,null,null,null,null,null,"(",{"$f":"SUBTOTAL(109,M50:P59)","v":0},null,null,null,")(",{"$f":"SUBTOTAL(109,R50:U59)","v":0},null,null,null,")(",{"$f":"SUBTOTAL(109,W50:Z59)","v":0},null,null,null,"㎡）"]
[null,"【13.屋根】"]
[null,"【14.外壁】"]
[null,"【15.軒裏】"]
[null,"【16.居室の床の高さ】",null,null,null,null,null,null,null,null,null,"ｍｍ"]
[null,"【17.便所の種類】"]
[null,"【18.その他必要な事項】"]
[null,"【19.備考】"]

{"sheet":"第四面 (2)","index":5,"n_rows":67,"n_cols":28,"rows_kept":67,"cut":false,"hidden":true,"merged":[[66,5,66,29],[67,5,67,29],[68,5,68,29],[69,5,69,29],[60,6,60,15],[61,6,61,15],[62,6,62,15],[63,8,63,10],[64,8,64,15],[65,1,65,7],[65,8,65,29],[58,7,58,9],[58,12,58,15],[58,17,58,20],[58,22,58,25],[59,12,59,15],[59,17,59,20],[59,22,59,25],[56,7,56,9],[56,12,56,15],[56,17,56,20],[56,22,56,25],[57,7,57,9],[57,12,57,15],[57,17,57,20],[57,22,57,25],[54,7,54,9],[54,12,54,15],[54,17,54,20],[54,22,54,25],[55,7,55,9],[55,12,55,15],[55,17,55,20],[55,22,55,25],[52,7,52,9],[52,12,52,15],[52,17,52,20],[52,22,52,25],[53,7,53,9],[53,12,53,15],[53,17,53,20],[53,22,53,25],[50,7,50,9],[50,12,50,15],[50,17,50,20],[50,22,50,25],[51,7,51,9],[51,12,51,15],[51,17,51,20],[51,22,51,25],[46,17,46,22],[48,12,48,15],[48,17,48,20],[48,22,48,25],[49,7,49,9],[49,12,49,15],[49,17,49,20],[49,22,49,25],[41,21,41,26],[11,5,11,11],[11,15,11,20],[26,10,26,11],[27,10,27,11],[28,10,28,11],[29,10,29,11],[30,7,30,21],[31,9,31,11],[32,9,32,11],[33,7,33,29],[39,24,39,26],[6,7,6,10],[6,12,6,28],[7,7,7,10],[7,12,7,28],[8,7,8,10],[8,12,8,28],[5,7,5,10],[5,12,5,28],[1,0,1,30],[2,1,2,29],[3,7,3,8],[4,7,4,10],[4,12,4,28]]}
[null,"申請書（第四面）"]
["（第四面）"]
[null,"建築物別概要"]
[null,"【1.番号】",null,null,null,null,null,"2"]
[null,"【2.用途】　",null,null,null,null,"（区分  ","",null,null,null,"）",""]
[null,null,null,null,null,null,"（区分  ","",null,null,null,"）",""]
[null,null,null,null,null,null,"（区分  ","",null,null,null,"）",""]
[null,null,null,null,null,null,"（区分  ","",null,null,null,"）",""]
[null,null,null,null,null,null,"（区分  ","",null,null,null,"）",""]
[null,"【3.工事種別】",null,null,null,null,null,"",null,null,null,null,""]
[null,null,null,"■","新築",null,"□","増築",null,"□","改築 ",null,"□","移転",null,"□","用途変更",null,null,"□","大規模の修繕",null,null,null,"□","大規模の模様替"]
[null,"【4.構造】　",null,null,null,null,null,null,null,null,null,null,"造　一部 ",null,null,null,null,null,null,null,null,"造"]
[null,"【5.主要構造部】",null,null,null,null,"□","耐火構造",null,null,null,"□","建築基準法施行令第108条の3第1項第1号イ及びロに掲げる基準に適合する構造"]
[null,null,null,null,null,null,"□","準耐火構造",null,null,null,"□","準耐火構造と同等の準耐火性能を有する構造（ロ-1）"]
[null,null,null,null,null,null,"□","準耐火構造と同等の準耐火性能を有する構造（ロ-2）",null,null,null,null,null,null,null,null,null,null,null,null,null,null,null,null,"■","その他"]
[]
[null,"【6.建築基準法第21条及び第27条の規定の適用】"]
[null,null,null,null,null,null,"□","建築基準法施行令第109条の5第1号に掲げる基準に適合する構造"]
[null,null,null,null,null,null,"□","建築基準法第21条第1項ただし書に該当する建築物"]
[null,null,null,null,null,null,"□","建築基準法施行令第110条第1号に掲げる基準に適合する構造"]
[null,null,null,null,null,null,"□","その他",null,null,null,null,null,"■","建築基準法第21条又は第27条の規定の適用を受けない"]
[]
[null,"【7.建築基準法第61条の規定の適用】"]
[null,null,null,null,null,null,"□","耐火建築物",null,null,null,null,null,"□","延焼防止建築物",null,null,null,null,"□","準耐火建築物"]
[null,null,null,null,null,null,"□","準延焼防止建築物",null,null,null,null,null,"□","その他",null,null,null,null,"■","建築基準法第61条の適用を受けない"]
[null,"【8.階数】"]
[null,null,"【イ.地階を除く階数】",null,null,null,null,null,null,null,"1",null,"階"]
[null,null,"【ロ.地階の階数】",null,null,null,null,null,null,null,null,null,"階"]
[null,null,"【ハ.昇降機塔等の階の数】",null,null,null,null,null,null,null,null,null,"階"]
[null,null,"【ニ.地階の倉庫等の階の数】",null,null,null,null,null,null,null,null,null,"階"]
[null,"【9.高さ】"]
[null,null,"【イ.最高の高さ】",null,null,null,null,null,null,null,null,null,"ｍ"]
[null,null,"【ロ.最高の軒の高さ】",null,null,null,null,null,null,null,null,null,"ｍ"]
[null,"【10.建築設備の種類】"]
[null,"【11.確認の特例】"]
[null,null,"【イ.建築基準法第6条の3第1項ただし書又は法第18条第4項ただし書の規定による審査の特例の適用の有無】 "]
[null,null,null,null,null,null,null,null,null,null,null,null,null,null,null,null,null,null,null,null,null,null,null,null,"□","有","■","無"]
[null,null,"【ロ.建築基準法第6条の4第1項の規定による確認の特例の適用の有無】 ",null,null,null,null,null,null,null,null,null,null,null,null,null,null,null,null,null,null,null,null,null,"□","有","□","無"]
[]
[null,null,"【ハ.建築基準法施行令第10条各号に掲げる建築物の区分】",null,null,null,null,null,null,null,null,null,null,null,null,null,null,null,null,null,null,null,null,"第",null,null,null,"号"]
[]
[null,null,"【ニ.認定型式の認定番号】",null,null,null,null,null,null,null,null,null,null,null,null,null,null,null,null,null,"第",null,null,null,null,null,null,"号"]
[]
[null,null,"【ホ.適合する一連の規定の区分】"]
[null,"　",null,null,null,null,null,null,null,null,null,null,null,null,null,null,null,"□","建築基準法施行令第136条の2の11第1号イ"]
[null,null,null,null,null,null,null,null,null,null,null,null,null,null,null,null,null,"□","建築基準法施行令第136条の2の11第1号ロ"]
[null,null,"【ヘ.認証型式部材等認証番号】",null,null,null,null,null,null,null,null,null,null,null,null,null,"第",null,null,null,null,null,null,"号"]
[]
[null,"【12.床面積】   ",null,null,null,null,null,null,null,null,null,"(","申請部分",null,null,null,")(","申請以外の部分",null,null,null,")(","合計",null,null,null,"  ）"]
[null,null,null,null,null,null,"（","BF2",null,null,"階",")(",{"$f":"W50-R50","v":0},null,null,null,")(",null,null,null,null,")(",{"$f":"SUM('第五面 (2)'!$V$14:$Z$19)","v":0},null,null,null,"㎡）"]
[null,null,null,null,null,null,"（","BF1",null,null,"階",")(",{"$f":"W51-R51","v":0},null,null,null,")(",null,null,null,null,")(",{"$f":"SUM('第五面 (2)'!$V$36:$Z$41)","v":0},null,null,null,"㎡）"]
[null,null,"【イ.階別】 ",null,null,null,"（","F1",null,null,"階",")(",0,null,null,null,")(",null,null,null,null,")(",{"$f":"SUM('第五面 (2)'!$V$58:$Z$63)","v":0},null,null,null,"㎡）"]
[null,null,null,null,null,null,"（","F2",null,null,"階",")(",0,null,null,null,")(",null,null,null,null,")(",{"$f":"SUM('第五面 (2)'!$V$80:$Z$85)","v":0},null,null,null,"㎡）"]
[null,null,null,null,null,null,"（","F3",null,null,"階",")(",0,null,null,null,")(",null,null,null,null,")(",{"$f":"SUM('第五面 (2)'!$V$102:$Z$107)","v":0},null,null,null,"㎡）"]
[null,null,null,null,null,null,"（","F4",null,null,"階",")(",0,null,null,null,")(",null,null,null,null,")(",{"$f":"SUM('第五面 (2)'!$V$124:$Z$129)","v":0},null,null,null,"㎡）"]
[null,null,null,null,null,null,"（","F5",null,null,"階",")(",0,null,null,null,")(",null,null,null,null,")(",{"$f":"SUM('第五面 (2)'!$V$146:$Z$151)","v":0},null,null,null,"㎡）"]
[null,null,null,null,null,null,"（","F6",null,null,"階",")(",0,null,null,null,")(",null,null,null,null,")(",{"$f":"SUM('第五面 (2)'!$V$168:$Z$173)","v":0},null,null,null,"㎡）"]
[null,null,null,null,null,null,"（","PH1",null,null,"階",")(",0,null,null,null,")(",null,null,null,null,")(",{"$f":"SUM('第五面 (2)'!$V$190:$Z$195)","v":0},null,null,null,"㎡）"]
[null,null,null,null,null,null,"（","PH2",null,null,"階",")(",0,null,null,null,")(",null,null,null,null,")(",{"$f":"SUM('第五面 (2)'!$V$212:$Z$217)","v":0},null,null,null,"㎡）"]
[null,null,"【ロ.合計】",null,null,null,null,null,null,null,null,"(",{"$f":"SUBTOTAL(109,M50:P59)","v":0},null,null,null,")(",{"$f":"SUBTOTAL(109,R50:U59)","v":0},null,null,null,")(",{"$f":"SUBTOTAL(109,W50:Z59)","v":0},null,null,null,"㎡）"]
[null,"【13.屋根】"]
[null,"【14.外壁】"]
[null,"【15.軒裏】"]
[null,"【16.居室の床の高さ】",null,null,null,null,null,null,null,null,null,"ｍｍ"]
[null,"【17.便所の種類】"]
[null,"【18.その他必要な事項】"]
[null,"【19.備考】"]

{"sheet":"第四面 (3)","index":6,"n_rows":67,"n_cols":28,"rows_kept":67,"cut":false,"hidden":true,"merged":[[66,5,66,29],[67,5,67,29],[68,5,68,29],[69,5,69,29],[60,6,60,15],[61,6,61,15],[62,6,62,15],[63,8,63,10],[64,8,64,15],[65,1,65,7],[65,8,65,29],[58,7,58,9],[58,12,58,15],[58,17,58,20],[58,22,58,25],[59,12,59,15],[59,17,59,20],[59,22,59,25],[56,7,56,9],[56,12,56,15],[56,17,56,20],[56,22,56,25],[57,7,57,9],[57,12,57,15],[57,17,57,20],[57,22,57,25],[54,7,54,9],[54,12,54,15],[54,17,54,20],[54,22,54,25],[55,7,55,9],[55,12,55,15],[55,17,55,20],[55,22,55,25],[52,7,52,9],[52,12,52,15],[52,17,52,20],[52,22,52,25],[53,7,53,9],[53,12,53,15],[53,17,53,20],[53,22,53,25],[50,7,50,9],[50,12,50,15],[50,17,50,20],[50,22,50,25],[51,7,51,9],[51,12,51,15],[51,17,51,20],[51,22,51,25],[46,17,46,22],[48,12,48,15],[48,17,48,20],[48,22,48,25],[49,7,49,9],[49,12,49,15],[49,17,49,20],[49,22,49,25],[41,21,41,26],[11,5,11,11],[11,15,11,20],[26,10,26,11],[27,10,27,11],[28,10,28,11],[29,10,29,11],[30,7,30,21],[31,9,31,11],[32,9,32,11],[33,7,33,29],[39,24,39,26],[6,7,6,10],[6,12,6,28],[7,7,7,10],[7,12,7,28],[8,7,8,10],[8,12,8,28],[5,7,5,10],[5,12,5,28],[1,0,1,30],[2,1,2,29],[3,7,3,8],[4,7,4,10],[4,12,4,28]]}
[null,"申請書（第四面）"]
["（第四面）"]
[null,"建築物別概要"]
[null,"【1.番号】",null,null,null,null,null,"3"]
[null,"【2.用途】　",null,null,null,null,"（区分  ","",null,null,null,"）",""]
[null,null,null,null,null,null,"（区分  ","",null,null,null,"）",""]
[null,null,null,null,null,null,"（区分  ","",null,null,null,"）",""]
[null,null,null,null,null,null,"（区分  ","",null,null,null,"）",""]
[null,null,null,null,null,null,"（区分  ","",null,null,null,"）",""]
[null,"【3.工事種別】",null,null,null,null,null,"",null,null,null,null,""]
[null,null,null,"■","新築",null,"□","増築",null,"□","改築 ",null,"□","移転",null,"□","用途変更",null,null,"□","大規模の修繕",null,null,null,"□","大規模の模様替"]
[null,"【4.構造】　",null,null,null,null,null,null,null,null,null,null,"造　一部 ",null,null,null,null,null,null,null,null,"造"]
[null,"【5.主要構造部】",null,null,null,null,"□","耐火構造",null,null,null,"□","建築基準法施行令第108条の3第1項第1号イ及びロに掲げる基準に適合する構造"]
[null,null,null,null,null,null,"□","準耐火構造",null,null,null,"□","準耐火構造と同等の準耐火性能を有する構造（ロ-1）"]
[null,null,null,null,null,null,"□","準耐火構造と同等の準耐火性能を有する構造（ロ-2）",null,null,null,null,null,null,null,null,null,null,null,null,null,null,null,null,"■","その他"]
[]
[null,"【6.建築基準法第21条及び第27条の規定の適用】"]
[null,null,null,null,null,null,"□","建築基準法施行令第109条の5第1号に掲げる基準に適合する構造"]
[null,null,null,null,null,null,"□","建築基準法第21条第1項ただし書に該当する建築物"]
[null,null,null,null,null,null,"□","建築基準法施行令第110条第1号に掲げる基準に適合する構造"]
[null,null,null,null,null,null,"□","その他",null,null,null,null,null,"■","建築基準法第21条又は第27条の規定の適用を受けない"]
[]
[null,"【7.建築基準法第61条の規定の適用】"]
[null,null,null,null,null,null,"□","耐火建築物",null,null,null,null,null,"□","延焼防止建築物",null,null,null,null,"□","準耐火建築物"]
[null,null,null,null,null,null,"□","準延焼防止建築物",null,null,null,null,null,"□","その他",null,null,null,null,"■","建築基準法第61条の適用を受けない"]
[null,"【8.階数】"]
[null,null,"【イ.地階を除く階数】",null,null,null,null,null,null,null,"1",null,"階"]
[null,null,"【ロ.地階の階数】",null,null,null,null,null,null,null,null,null,"階"]
[null,null,"【ハ.昇降機塔等の階の数】",null,null,null,null,null,null,null,null,null,"階"]
[null,null,"【ニ.地階の倉庫等の階の数】",null,null,null,null,null,null,null,null,null,"階"]
[null,"【9.高さ】"]
[null,null,"【イ.最高の高さ】",null,null,null,null,null,null,null,null,null,"ｍ"]
[null,null,"【ロ.最高の軒の高さ】",null,null,null,null,null,null,null,null,null,"ｍ"]
[null,"【10.建築設備の種類】"]
[null,"【11.確認の特例】"]
[null,null,"【イ.建築基準法第6条の3第1項ただし書又は法第18条第4項ただし書の規定による審査の特例の適用の有無】 "]
[null,null,null,null,null,null,null,null,null,null,null,null,null,null,null,null,null,null,null,null,null,null,null,null,"□","有","■","無"]
[null,null,"【ロ.建築基準法第6条の4第1項の規定による確認の特例の適用の有無】 ",null,null,null,null,null,null,null,null,null,null,null,null,null,null,null,null,null,null,null,null,null,"□","有","□","無"]
[]
[null,null,"【ハ.建築基準法施行令第10条各号に掲げる建築物の区分】",null,null,null,null,null,null,null,null,null,null,null,null,null,null,null,null,null,null,null,null,"第",null,null,null,"号"]
[]
[null,null,"【ニ.認定型式の認定番号】",null,null,null,null,null,null,null,null,null,null,null,null,null,null,null,null,null,"第",null,null,null,null,null,null,"号"]
[]
[null,null,"【ホ.適合する一連の規定の区分】"]
[null,"　",null,null,null,null,null,null,null,null,null,null,null,null,null,null,null,"□","建築基準法施行令第136条の2の11第1号イ"]
[null,null,null,null,null,null,null,null,null,null,null,null,null,null,null,null,null,"□","建築基準法施行令第136条の2の11第1号ロ"]
[null,null,"【ヘ.認証型式部材等認証番号】",null,null,null,null,null,null,null,null,null,null,null,null,null,"第",null,null,null,null,null,null,"号"]
[]
[null,"【12.床面積】   ",null,null,null,null,null,null,null,null,null,"(","申請部分",null,null,null,")(","申請以外の部分",null,null,null,")(","合計",null,null,null,"  ）"]
[null,null,null,null,null,null,"（","BF2",null,null,"階",")(",{"$f":"W50-R50","v":0},null,null,null,")(",null,null,null,null,")(",{"$f":"SUM('第五面 (3)'!$V$14:$Z$19)","v":0},null,null,null,"㎡）"]
[null,null,null,null,null,null,"（","BF1",null,null,"階",")(",{"$f":"W51-R51","v":0},null,null,null,")(",null,null,null,null,")(",{"$f":"SUM('第五面 (3)'!$V$36:$Z$41)","v":0},null,null,null,"㎡）"]
[null,null,"【イ.階別】 ",null,null,null,"（","F1",null,null,"階",")(",0,null,null,null,")(",null,null,null,null,")(",{"$f":"SUM('第五面 (3)'!$V$58:$Z$63)","v":0},null,null,null,"㎡）"]
[null,null,null,null,null,null,"（","F2",null,null,"階",")(",0,null,null,null,")(",null,null,null,null,")(",{"$f":"SUM('第五面 (3)'!$V$80:$Z$85)","v":0},null,null,null,"㎡）"]
[null,null,null,null,null,null,"（","F3",null,null,"階",")(",0,null,null,null,")(",null,null,null,null,")(",{"$f":"SUM('第五面 (3)'!$V$102:$Z$107)","v":0},null,null,null,"㎡）"]
[null,null,null,null,null,null,"（","F4",null,null,"階",")(",0,null,null,null,")(",null,null,null,null,")(",{"$f":"SUM('第五面 (3)'!$V$124:$Z$129)","v":0},null,null,null,"㎡）"]
[null,null,null,null,null,null,"（","F5",null,null,"階",")(",0,null,null,null,")(",null,null,null,null,")(",{"$f":"SUM('第五面 (3)'!$V$146:$Z$151)","v":0},null,null,null,"㎡）"]
[null,null,null,null,null,null,"（","F6",null,null,"階",")(",0,null,null,null,")(",null,null,null,null,")(",{"$f":"SUM('第五面 (3)'!$V$168:$Z$173)","v":0},null,null,null,"㎡）"]
[null,null,null,null,null,null,"（","PH1",null,null,"階",")(",0,null,null,null,")(",null,null,null,null,")(",{"$f":"SUM('第五面 (3)'!$V$190:$Z$195)","v":0},null,null,null,"㎡）"]
[null,null,null,null,null,null,"（","PH2",null,null,"階",")(",0,null,null,null,")(",null,null,null,null,")(",{"$f":"SUM('第五面 (3)'!$V$212:$Z$217)","v":0},null,null,null,"㎡）"]
[null,null,"【ロ.合計】",null,null,null,null,null,null,null,null,"(",{"$f":"SUBTOTAL(109,M50:P59)","v":0},null,null,null,")(",{"$f":"SUBTOTAL(109,R50:U59)","v":0},null,null,null,")(",{"$f":"SUBTOTAL(109,W50:Z59)","v":0},null,null,null,"㎡）"]
[null,"【13.屋根】"]
[null,"【14.外壁】"]
[null,"【15.軒裏】"]
[null,"【16.居室の床の高さ】",null,null,null,null,null,null,null,null,null,"ｍｍ"]
[null,"【17.便所の種類】"]
[null,"【18.その他必要な事項】"]
[null,"【19.備考】"]

{"sheet":"第四面 (4)","index":7,"n_rows":67,"n_cols":28,"rows_kept":67,"cut":false,"hidden":true,"merged":[[66,5,66,29],[67,5,67,29],[68,5,68,29],[69,5,69,29],[60,6,60,15],[61,6,61,15],[62,6,62,15],[63,8,63,10],[64,8,64,15],[65,1,65,7],[65,8,65,29],[58,7,58,9],[58,12,58,15],[58,17,58,20],[58,22,58,25],[59,12,59,15],[59,17,59,20],[59,22,59,25],[56,7,56,9],[56,12,56,15],[56,17,56,20],[56,22,56,25],[57,7,57,9],[57,12,57,15],[57,17,57,20],[57,22,57,25],[54,7,54,9],[54,12,54,15],[54,17,54,20],[54,22,54,25],[55,7,55,9],[55,12,55,15],[55,17,55,20],[55,22,55,25],[52,7,52,9],[52,12,52,15],[52,17,52,20],[52,22,52,25],[53,7,53,9],[53,12,53,15],[53,17,53,20],[53,22,53,25],[50,7,50,9],[50,12,50,15],[50,17,50,20],[50,22,50,25],[51,7,51,9],[51,12,51,15],[51,17,51,20],[51,22,51,25],[46,17,46,22],[48,12,48,15],[48,17,48,20],[48,22,48,25],[49,7,49,9],[49,12,49,15],[49,17,49,20],[49,22,49,25],[41,21,41,26],[11,5,11,11],[11,15,11,20],[26,10,26,11],[27,10,27,11],[28,10,28,11],[29,10,29,11],[30,7,30,21],[31,9,31,11],[32,9,32,11],[33,7,33,29],[39,24,39,26],[6,7,6,10],[6,12,6,28],[7,7,7,10],[7,12,7,28],[8,7,8,10],[8,12,8,28],[5,7,5,10],[5,12,5,28],[1,0,1,30],[2,1,2,29],[3,7,3,8],[4,7,4,10],[4,12,4,28]]}
[null,"申請書（第四面）"]
["（第四面）"]
[null,"建築物別概要"]
[null,"【1.番号】",null,null,null,null,null,"4"]
[null,"【2.用途】　",null,null,null,null,"（区分  ","",null,null,null,"）",""]
[null,null,null,null,null,null,"（区分  ","",null,null,null,"）",""]
[null,null,null,null,null,null,"（区分  ","",null,null,null,"）",""]
[null,null,null,null,null,null,"（区分  ","",null,null,null,"）",""]
[null,null,null,null,null,null,"（区分  ","",null,null,null,"）",""]
[null,"【3.工事種別】",null,null,null,null,null,"",null,null,null,null,""]
[null,null,null,"■","新築",null,"□","増築",null,"□","改築 ",null,"□","移転",null,"□","用途変更",null,null,"□","大規模の修繕",null,null,null,"□","大規模の模様替"]
[null,"【4.構造】　",null,null,null,null,null,null,null,null,null,null,"造　一部 ",null,null,null,null,null,null,null,null,"造"]
[null,"【5.主要構造部】",null,null,null,null,"□","耐火構造",null,null,null,"□","建築基準法施行令第108条の3第1項第1号イ及びロに掲げる基準に適合する構造"]
[null,null,null,null,null,null,"□","準耐火構造",null,null,null,"□","準耐火構造と同等の準耐火性能を有する構造（ロ-1）"]
[null,null,null,null,null,null,"□","準耐火構造と同等の準耐火性能を有する構造（ロ-2）",null,null,null,null,null,null,null,null,null,null,null,null,null,null,null,null,"■","その他"]
[]
[null,"【6.建築基準法第21条及び第27条の規定の適用】"]
[null,null,null,null,null,null,"□","建築基準法施行令第109条の5第1号に掲げる基準に適合する構造"]
[null,null,null,null,null,null,"□","建築基準法第21条第1項ただし書に該当する建築物"]
[null,null,null,null,null,null,"□","建築基準法施行令第110条第1号に掲げる基準に適合する構造"]
[null,null,null,null,null,null,"□","その他",null,null,null,null,null,"■","建築基準法第21条又は第27条の規定の適用を受けない"]
[]
[null,"【7.建築基準法第61条の規定の適用】"]
[null,null,null,null,null,null,"□","耐火建築物",null,null,null,null,null,"□","延焼防止建築物",null,null,null,null,"□","準耐火建築物"]
[null,null,null,null,null,null,"□","準延焼防止建築物",null,null,null,null,null,"□","その他",null,null,null,null,"■","建築基準法第61条の適用を受けない"]
[null,"【8.階数】"]
[null,null,"【イ.地階を除く階数】",null,null,null,null,null,null,null,"1",null,"階"]
[null,null,"【ロ.地階の階数】",null,null,null,null,null,null,null,null,null,"階"]
[null,null,"【ハ.昇降機塔等の階の数】",null,null,null,null,null,null,null,null,null,"階"]
[null,null,"【ニ.地階の倉庫等の階の数】",null,null,null,null,null,null,null,null,null,"階"]
[null,"【9.高さ】"]
[null,null,"【イ.最高の高さ】",null,null,null,null,null,null,null,null,null,"ｍ"]
[null,null,"【ロ.最高の軒の高さ】",null,null,null,null,null,null,null,null,null,"ｍ"]
[null,"【10.建築設備の種類】"]
[null,"【11.確認の特例】"]
[null,null,"【イ.建築基準法第6条の3第1項ただし書又は法第18条第4項ただし書の規定による審査の特例の適用の有無】 "]
[null,null,null,null,null,null,null,null,null,null,null,null,null,null,null,null,null,null,null,null,null,null,null,null,"□","有","■","無"]
[null,null,"【ロ.建築基準法第6条の4第1項の規定による確認の特例の適用の有無】 ",null,null,null,null,null,null,null,null,null,null,null,null,null,null,null,null,null,null,null,null,null,"□","有","□","無"]
[]
[null,null,"【ハ.建築基準法施行令第10条各号に掲げる建築物の区分】",null,null,null,null,null,null,null,null,null,null,null,null,null,null,null,null,null,null,null,null,"第",null,null,null,"号"]
[]
[null,null,"【ニ.認定型式の認定番号】",null,null,null,null,null,null,null,null,null,null,null,null,null,null,null,null,null,"第",null,null,null,null,null,null,"号"]
[]
[null,null,"【ホ.適合する一連の規定の区分】"]
[null,"　",null,null,null,null,null,null,null,null,null,null,null,null,null,null,null,"□","建築基準法施行令第136条の2の11第1号イ"]
[null,null,null,null,null,null,null,null,null,null,null,null,null,null,null,null,null,"□","建築基準法施行令第136条の2の11第1号ロ"]
[null,null,"【ヘ.認証型式部材等認証番号】",null,null,null,null,null,null,null,null,null,null,null,null,null,"第",null,null,null,null,null,null,"号"]
[]
[null,"【12.床面積】   ",null,null,null,null,null,null,null,null,null,"(","申請部分",null,null,null,")(","申請以外の部分",null,null,null,")(","合計",null,null,null,"  ）"]
[null,null,null,null,null,null,"（","BF2",null,null,"階",")(",{"$f":"W50-R50","v":0},null,null,null,")(",null,null,null,null,")(",{"$f":"SUM('第五面 (4)'!$V$14:$Z$19)","v":0},null,null,null,"㎡）"]
[null,null,null,null,null,null,"（","BF1",null,null,"階",")(",{"$f":"W51-R51","v":0},null,null,null,")(",null,null,null,null,")(",{"$f":"SUM('第五面 (4)'!$V$36:$Z$41)","v":0},null,null,null,"㎡）"]
[null,null,"【イ.階別】 ",null,null,null,"（","F1",null,null,"階",")(",0,null,null,null,")(",null,null,null,null,")(",{"$f":"SUM('第五面 (4)'!$V$58:$Z$63)","v":0},null,null,null,"㎡）"]
[null,null,null,null,null,null,"（","F2",null,null,"階",")(",0,null,null,null,")(",null,null,null,null,")(",{"$f":"SUM('第五面 (4)'!$V$80:$Z$85)","v":0},null,null,null,"㎡）"]
[null,null,null,null,null,null,"（","F3",null,null,"階",")(",0,null,null,null,")(",null,null,null,null,")(",{"$f":"SUM('第五面 (4)'!$V$102:$Z$107)","v":0},null,null,null,"㎡）"]
[null,null,null,null,null,null,"（","F4",null,null,"階",")(",0,null,null,null,")(",null,null,null,null,")(",{"$f":"SUM('第五面 (4)'!$V$124:$Z$129)","v":0},null,null,null,"㎡）"]
[null,null,null,null,null,null,"（","F5",null,null,"階",")(",0,null,null,null,")(",null,null,null,null,")(",{"$f":"SUM('第五面 (4)'!$V$146:$Z$151)","v":0},null,null,null,"㎡）"]
[null,null,null,null,null,null,"（","F6",null,null,"階",")(",0,null,null,null,")(",null,null,null,null,")(",{"$f":"SUM('第五面 (4)'!$V$168:$Z$173)","v":0},null,null,null,"㎡）"]
[null,null,null,null,null,null,"（","PH1",null,null,"階",")(",0,null,null,null,")(",null,null,null,null,")(",{"$f":"SUM('第五面 (4)'!$V$190:$Z$195)","v":0},null,null,null,"㎡）"]
[null,null,null,null,null,null,"（","PH2",null,null,"階",")(",0,null,null,null,")(",null,null,null,null,")(",{"$f":"SUM('第五面 (4)'!$V$212:$Z$217)","v":0},null,null,null,"㎡）"]
[null,null,"【ロ.合計】",null,null,null,null,null,null,null,null,"(",{"$f":"SUBTOTAL(109,M50:P59)","v":0},null,null,null,")(",{"$f":"SUBTOTAL(109,R50:U59)","v":0},null,null,null,")(",{"$f":"SUBTOTAL(109,W50:Z59)","v":0},null,null,null,"㎡）"]
[null,"【13.屋根】"]
[null,"【14.外壁】"]
[null,"【15.軒裏】"]
[null,"【16.居室の床の高さ】",null,null,null,null,null,null,null,null,null,"ｍｍ"]
[null,"【17.便所の種類】"]
[null,"【18.その他必要な事項】"]
[null,"【19.備考】"]

{"sheet":"第四面 (5)","index":8,"n_rows":67,"n_cols":28,"rows_kept":67,"cut":false,"hidden":true,"merged":[[66,5,66,29],[67,5,67,29],[68,5,68,29],[69,5,69,29],[60,6,60,15],[61,6,61,15],[62,6,62,15],[63,8,63,10],[64,8,64,15],[65,1,65,7],[65,8,65,29],[58,7,58,9],[58,12,58,15],[58,17,58,20],[58,22,58,25],[59,12,59,15],[59,17,59,20],[59,22,59,25],[56,7,56,9],[56,12,56,15],[56,17,56,20],[56,22,56,25],[57,7,57,9],[57,12,57,15],[57,17,57,20],[57,22,57,25],[54,7,54,9],[54,12,54,15],[54,17,54,20],[54,22,54,25],[55,7,55,9],[55,12,55,15],[55,17,55,20],[55,22,55,25],[52,7,52,9],[52,12,52,15],[52,17,52,20],[52,22,52,25],[53,7,53,9],[53,12,53,15],[53,17,53,20],[53,22,53,25],[50,7,50,9],[50,12,50,15],[50,17,50,20],[50,22,50,25],[51,7,51,9],[51,12,51,15],[51,17,51,20],[51,22,51,25],[46,17,46,22],[48,12,48,15],[48,17,48,20],[48,22,48,25],[49,7,49,9],[49,12,49,15],[49,17,49,20],[49,22,49,25],[41,21,41,26],[11,5,11,11],[11,15,11,20],[26,10,26,11],[27,10,27,11],[28,10,28,11],[29,10,29,11],[30,7,30,21],[31,9,31,11],[32,9,32,11],[33,7,33,29],[39,24,39,26],[6,7,6,10],[6,12,6,28],[7,7,7,10],[7,12,7,28],[8,7,8,10],[8,12,8,28],[5,7,5,10],[5,12,5,28],[1,0,1,30],[2,1,2,29],[3,7,3,8],[4,7,4,10],[4,12,4,28]]}
[null,"申請書（第四面）"]
["（第四面）"]
[null,"建築物別概要"]
[null,"【1.番号】",null,null,null,null,null,"5"]
[null,"【2.用途】　",null,null,null,null,"（区分  ","",null,null,null,"）",""]
[null,null,null,null,null,null,"（区分  ","",null,null,null,"）",""]
[null,null,null,null,null,null,"（区分  ","",null,null,null,"）",""]
[null,null,null,null,null,null,"（区分  ","",null,null,null,"）",""]
[null,null,null,null,null,null,"（区分  ","",null,null,null,"）",""]
[null,"【3.工事種別】",null,null,null,null,null,"",null,null,null,null,""]
[null,null,null,"■","新築",null,"□","増築",null,"□","改築 ",null,"□","移転",null,"□","用途変更",null,null,"□","大規模の修繕",null,null,null,"□","大規模の模様替"]
[null,"【4.構造】　",null,null,null,null,null,null,null,null,null,null,"造　一部 ",null,null,null,null,null,null,null,null,"造"]
[null,"【5.主要構造部】",null,null,null,null,"□","耐火構造",null,null,null,"□","建築基準法施行令第108条の3第1項第1号イ及びロに掲げる基準に適合する構造"]
[null,null,null,null,null,null,"□","準耐火構造",null,null,null,"□","準耐火構造と同等の準耐火性能を有する構造（ロ-1）"]
[null,null,null,null,null,null,"□","準耐火構造と同等の準耐火性能を有する構造（ロ-2）",null,null,null,null,null,null,null,null,null,null,null,null,null,null,null,null,"■","その他"]
[]
[null,"【6.建築基準法第21条及び第27条の規定の適用】"]
[null,null,null,null,null,null,"□","建築基準法施行令第109条の5第1号に掲げる基準に適合する構造"]
[null,null,null,null,null,null,"□","建築基準法第21条第1項ただし書に該当する建築物"]
[null,null,null,null,null,null,"□","建築基準法施行令第110条第1号に掲げる基準に適合する構造"]
[null,null,null,null,null,null,"□","その他",null,null,null,null,null,"■","建築基準法第21条又は第27条の規定の適用を受けない"]
[]
[null,"【7.建築基準法第61条の規定の適用】"]
[null,null,null,null,null,null,"□","耐火建築物",null,null,null,null,null,"□","延焼防止建築物",null,null,null,null,"□","準耐火建築物"]
[null,null,null,null,null,null,"□","準延焼防止建築物",null,null,null,null,null,"□","その他",null,null,null,null,"■","建築基準法第61条の適用を受けない"]
[null,"【8.階数】"]
[null,null,"【イ.地階を除く階数】",null,null,null,null,null,null,null,"1",null,"階"]
[null,null,"【ロ.地階の階数】",null,null,null,null,null,null,null,null,null,"階"]
[null,null,"【ハ.昇降機塔等の階の数】",null,null,null,null,null,null,null,null,null,"階"]
[null,null,"【ニ.地階の倉庫等の階の数】",null,null,null,null,null,null,null,null,null,"階"]
[null,"【9.高さ】"]
[null,null,"【イ.最高の高さ】",null,null,null,null,null,null,null,null,null,"ｍ"]
[null,null,"【ロ.最高の軒の高さ】",null,null,null,null,null,null,null,null,null,"ｍ"]
[null,"【10.建築設備の種類】"]
[null,"【11.確認の特例】"]
[null,null,"【イ.建築基準法第6条の3第1項ただし書又は法第18条第4項ただし書の規定による審査の特例の適用の有無】 "]
[null,null,null,null,null,null,null,null,null,null,null,null,null,null,null,null,null,null,null,null,null,null,null,null,"□","有","■","無"]
[null,null,"【ロ.建築基準法第6条の4第1項の規定による確認の特例の適用の有無】 ",null,null,null,null,null,null,null,null,null,null,null,null,null,null,null,null,null,null,null,null,null,"□","有","□","無"]
[]
[null,null,"【ハ.建築基準法施行令第10条各号に掲げる建築物の区分】",null,null,null,null,null,null,null,null,null,null,null,null,null,null,null,null,null,null,null,null,"第",null,null,null,"号"]
[]
[null,null,"【ニ.認定型式の認定番号】",null,null,null,null,null,null,null,null,null,null,null,null,null,null,null,null,null,"第",null,null,null,null,null,null,"号"]
[]
[null,null,"【ホ.適合する一連の規定の区分】"]
[null,"　",null,null,null,null,null,null,null,null,null,null,null,null,null,null,null,"□","建築基準法施行令第136条の2の11第1号イ"]
[null,null,null,null,null,null,null,null,null,null,null,null,null,null,null,null,null,"□","建築基準法施行令第136条の2の11第1号ロ"]
[null,null,"【ヘ.認証型式部材等認証番号】",null,null,null,null,null,null,null,null,null,null,null,null,null,"第",null,null,null,null,null,null,"号"]
[]
[null,"【12.床面積】   ",null,null,null,null,null,null,null,null,null,"(","申請部分",null,null,null,")(","申請以外の部分",null,null,null,")(","合計",null,null,null,"  ）"]
[null,null,null,null,null,null,"（","BF2",null,null,"階",")(",{"$f":"W50-R50","v":0},null,null,null,")(",null,null,null,null,")(",{"$f":"SUM('第五面 (5)'!$V$14:$Z$19)","v":0},null,null,null,"㎡）"]
[null,null,null,null,null,null,"（","BF1",null,null,"階",")(",{"$f":"W51-R51","v":0},null,null,null,")(",null,null,null,null,")(",{"$f":"SUM('第五面 (5)'!$V$36:$Z$41)","v":0},null,null,null,"㎡）"]
[null,null,"【イ.階別】 ",null,null,null,"（","F1",null,null,"階",")(",0,null,null,null,")(",null,null,null,null,")(",{"$f":"SUM('第五面 (5)'!$V$58:$Z$63)","v":0},null,null,null,"㎡）"]
[null,null,null,null,null,null,"（","F2",null,null,"階",")(",0,null,null,null,")(",null,null,null,null,")(",{"$f":"SUM('第五面 (5)'!$V$80:$Z$85)","v":0},null,null,null,"㎡）"]
[null,null,null,null,null,null,"（","F3",null,null,"階",")(",0,null,null,null,")(",null,null,null,null,")(",{"$f":"SUM('第五面 (5)'!$V$102:$Z$107)","v":0},null,null,null,"㎡）"]
[null,null,null,null,null,null,"（","F4",null,null,"階",")(",0,null,null,null,")(",null,null,null,null,")(",{"$f":"SUM('第五面 (5)'!$V$124:$Z$129)","v":0},null,null,null,"㎡）"]
[null,null,null,null,null,null,"（","F5",null,null,"階",")(",0,null,null,null,")(",null,null,null,null,")(",{"$f":"SUM('第五面 (5)'!$V$146:$Z$151)","v":0},null,null,null,"㎡）"]
[null,null,null,null,null,null,"（","F6",null,null,"階",")(",0,null,null,null,")(",null,null,null,null,")(",{"$f":"SUM('第五面 (5)'!$V$168:$Z$173)","v":0},null,null,null,"㎡）"]
[null,null,null,null,null,null,"（","PH1",null,null,"階",")(",0,null,null,null,")(",null,null,null,null,")(",{"$f":"SUM('第五面 (5)'!$V$190:$Z$195)","v":0},null,null,null,"㎡）"]
[null,null,null,null,null,null,"（","PH2",null,null,"階",")(",0,null,null,null,")(",null,null,null,null,")(",{"$f":"SUM('第五面 (5)'!$V$212:$Z$217)","v":0},null,null,null,"㎡）"]
[null,null,"【ロ.合計】",null,null,null,null,null,null,null,null,"(",{"$f":"SUBTOTAL(109,M50:P59)","v":0},null,null,null,")(",{"$f":"SUBTOTAL(109,R50:U59)","v":0},null,null,null,")(",{"$f":"SUBTOTAL(109,W50:Z59)","v":0},null,null,null,"㎡）"]
[null,"【13.屋根】"]
[null,"【14.外壁】"]
[null,"【15.軒裏】"]
[null,"【16.居室の床の高さ】",null,null,null,null,null,null,null,null,null,"ｍｍ"]
[null,"【17.便所の種類】"]
[null,"【18.その他必要な事項】"]
[null,"【19.備考】"]

{"sheet":"第五面","index":9,"n_rows":219,"n_cols":27,"rows_kept":219,"cut":false,"hidden":false,"merged":[[217,8,217,29],[218,5,218,29],[219,5,219,29],[220,5,220,29],[215,6,215,9],[215,11,215,19],[215,21,215,25],[216,6,216,9],[216,11,216,19],[216,21,216,25],[213,6,213,9],[213,11,213,19],[213,21,213,25],[214,6,214,9],[214,11,214,19],[214,21,214,25],[211,6,211,9],[211,11,211,19],[211,21,211,25],[212,6,212,9],[212,11,212,19],[212,21,212,25],[204,9,204,11],[205,9,205,11],[207,9,207,11],[209,11,209,29],[210,6,210,9],[210,11,210,19],[210,21,210,25],[200,1,200,7],[201,5,201,7],[202,5,202,7],[203,7,203,8],[203,9,203,11],[195,8,195,29],[196,5,196,29],[197,5,197,29],[198,5,198,29],[199,1,199,29],[193,6,193,9],[193,11,193,19],[193,21,193,25],[194,6,194,9],[194,11,194,19],[194,21,194,25],[191,6,191,9],[191,11,191,19],[191,21,191,25],[192,6,192,9],[192,11,192,19],[192,21,192,25],[189,6,189,9],[189,11,189,19],[189,21,189,25],[190,6,190,9],[190,11,190,19],[190,21,190,25],[182,9,182,11],[183,9,183,11],[185,9,185,11],[187,11,187,29],[188,6,188,9],[188,11,188,19],[188,21,188,25],[178,1,178,7],[179,5,179,7],[180,5,180,7],[181,7,181,8],[181,9,181,11],[173,8,173,29],[174,5,174,29],[175,5,175,29],[176,5,176,29],[177,1,177,29],[171,6,171,9],[171,11,171,19],[171,21,171,25],[172,6,172,9],[172,11,172,19],[172,21,172,25],[169,6,169,9],[169,11,169,19],[169,21,169,25],[170,6,170,9],[170,11,170,19],[170,21,170,25],[167,6,167,9],[167,11,167,19],[167,21,167,25],[168,6,168,9],[168,11,168,19],[168,21,168,25],[160,9,160,11],[161,9,161,11],[163,9,163,11],[165,11,165,29],[166,6,166,9],[166,11,166,19],[166,21,166,25],[156,1,156,7],[157,5,157,7],[158,5,158,7],[159,7,159,8],[159,9,159,11],[151,8,151,29],[152,5,152,29],[153,5,153,29],[154,5,154,29],[155,1,155,29],[149,6,149,9],[149,11,149,19],[149,21,149,25],[150,6,150,9],[150,11,150,19],[150,21,150,25],[147,6,147,9],[147,11,147,19],[147,21,147,25],[148,6,148,9],[148,11,148,19],[148,21,148,25],[145,6,145,9],[145,11,145,19],[145,21,145,25],[146,6,146,9],[146,11,146,19],[146,21,146,25],[138,9,138,11],[139,9,139,11],[141,9,141,11],[143,11,143,29],[144,6,144,9],[144,11,144,19],[144,21,144,25],[134,1,134,7],[135,5,135,7],[136,5,136,7],[137,7,137,8],[137,9,137,11],[129,8,129,29],[130,5,130,29],[131,5,131,29],[132,5,132,29],[133,1,133,29],[127,6,127,9],[127,11,127,19],[127,21,127,25],[128,6,128,9],[128,11,128,19],[128,21,128,25],[125,6,125,9],[125,11,125,19],[125,21,125,25],[126,6,126,9],[126,11,126,19],[126,21,126,25],[123,6,123,9],[123,11,123,19],[123,21,123,25],[124,6,124,9],[124,11,124,19],[124,21,124,25],[116,9,116,11],[117,9,117,11],[119,9,119,11],[121,11,121,29],[122,6,122,9],[122,11,122,19],[122,21,122,25],[112,1,112,7],[113,5,113,7],[114,5,114,7],[115,7,115,8],[115,9,115,11],[107,8,107,29],[108,5,108,29],[109,5,109,29],[110,5,110,29],[111,1,111,29],[105,6,105,9],[105,11,105,19],[105,21,105,25],[106,6,106,9],[106,11,106,19],[106,21,106,25],[103,6,103,9],[103,11,103,19],[103,21,103,25],[104,6,104,9],[104,11,104,19],[104,21,104,25],[101,6,101,9],[101,11,101,19],[101,21,101,25],[102,6,102,9],[102,11,102,19],[102,21,102,25],[94,9,94,11],[95,9,95,11],[97,9,97,11],[99,11,99,29],[100,6,100,9],[100,11,100,19],[100,21,100,25],[90,1,90,7],[91,5,91,7],[92,5,92,7],[93,7,93,8],[93,9,93,11],[85,8,85,29],[86,5,86,29],[87,5,87,29],[88,5,88,29],[89,1,89,29],[83,6,83,9],[83,11,83,19],[83,21,83,25],[84,6,84,9],[84,11,84,19],[84,21,84,25],[81,6,81,9],[81,11,81,19],[81,21,81,25],[82,6,82,9],[82,11,82,19],[82,21,82,25],[79,6,79,9],[79,11,79,19],[79,21,79,25],[80,6,80,9],[80,11,80,19],[80,21,80,25],[72,9,72,11],[73,9,73,11],[75,9,75,11],[77,11,77,29],[78,6,78,9],[78,11,78,19],[78,21,78,25],[68,1,68,7],[69,5,69,7],[70,5,70,7],[71,7,71,8],[71,9,71,11],[63,8,63,29],[64,5,64,29],[65,5,65,29],[66,5,66,29],[67,1,67,29],[61,6,61,9],[61,11,61,19],[61,21,61,25],[62,6,62,9],[62,11,62,19],[62,21,62,25],[59,6,59,9],[59,11,59,19],[59,21,59,25],[60,6,60,9],[60,11,60,19],[60,21,60,25],[57,6,57,9],[57,11,57,19],[57,21,57,25],[58,6,58,9],[58,11,58,19],[58,21,58,25],[50,9,50,11],[51,9,51,11],[53,9,53,11],[55,11,55,29],[56,6,56,9],[56,11,56,19],[56,21,56,25],[45,1,45,29],[46,1,46,7],[47,5,47,7],[48,5,48,7],[49,7,49,8],[49,9,49,11],[43,5,43,29],[44,5,44,29],[39,6,39,9],[39,11,39,19],[39,21,39,25],[40,6,40,9],[40,11,40,19],[40,21,40,25],[42,5,42,29],[41,8,41,29],[37,6,37,9],[37,11,37,19],[37,21,37,25],[38,6,38,9],[38,11,38,19],[38,21,38,25],[12,6,12,9],[34,6,34,9],[34,11,34,19],[34,21,34,25],[35,6,35,9],[35,11,35,19],[35,21,35,25],[13,6,13,9],[14,6,14,9],[15,6,15,9],[16,6,16,9],[17,6,17,9],[12,21,12,25],[13,21,13,25],[14,21,14,25],[15,21,15,25],[16,21,16,25],[12,11,12,19],[13,11,13,19],[14,11,14,19],[15,11,15,19],[16,11,16,19],[1,1,1,29],[2,1,2,7],[11,11,11,29],[5,7,5,8],[5,9,5,11],[6,9,6,11],[7,9,7,11],[9,9,9,11],[4,5,4,7],[3,5,3,7],[25,5,25,7],[36,6,36,9],[17,21,17,25],[18,21,18,25],[18,11,18,19],[18,6,18,9],[17,11,17,19],[36,11,36,19],[36,21,36,25],[27,9,27,11],[19,8,19,29],[20,5,20,29],[24,1,24,7],[21,5,21,29],[22,5,22,29],[23,1,23,29],[33,11,33,29],[26,5,26,7],[27,7,27,8],[29,9,29,11],[31,9,31,11],[28,9,28,11]]}
[null,"申請書（第五面）"]
[null,"（第五面）"]
[null,"　建築物の階別概要"]
[null,"【1．番号】",null,null,null,"1"]
[null,"【2．階】",null,null,null,"BF2",null,null,"階"]
[null,"【3．柱の小径】",null,null,null,null,null,null,null,null,null,null,"ｍｍ"]
[null,"【4．横架材間の垂直距離】",null,null,null,null,null,null,null,null,null,null,"ｍｍ"]
[null,"【5．階の高さ】",null,null,null,null,null,null,null,null,null,null,"ｍｍ"]
[null,"【6．天井】"]
[null,null,"【ｲ.居室の天井の高さ】",null,null,null,null,null,null,null,null,null,"ｍｍ"]
[null,null,"【ﾛ.建築基準法施行令第39条第3項に規定する特定天井】",null,null,null,null,null,null,null,null,null,null,null,null,null,null,null,null,"□","有",null,"■","無"]
[null,"【7．用途別床面積】"]
[null,null,null,null,null," （","用途の区分",null,null,null,")(","具体的な用途の名称",null,null,null,null,null,null,null,null,")(","床面積",null,null,null,null,"　) "]
[null,null,"【ｲ.】",null,null," （",null,null,null,null,")(",null,null,null,null,null,null,null,null,null,")(",null,null,null,null,null,"㎡) "]
[null,null,"【ﾛ.】",null,null," （",null,null,null,null,")(",null,null,null,null,null,null,null,null,null,")(",null,null,null,null,null,"㎡) "]
[null,null,"【ﾊ.】",null,null," （",null,null,null,null,")(",null,null,null,null,null,null,null,null,null,")(",null,null,null,null,null,"㎡) "]
[null,null,"【ﾆ.】",null,null," （",null,null,null,null,")(",null,null,null,null,null,null,null,null,null,")(",null,null,null,null,null,"㎡) "]
[null,null,"【ﾎ.】",null,null," （",null,null,null,null,")(",null,null,null,null,null,null,null,null,null,")(",null,null,null,null,null,"㎡) "]
[null,null,"【ﾍ.】",null,null," （",null,null,null,null,")(",null,null,null,null,null,null,null,null,null,")(",null,null,null,null,null,"㎡) "]
[null,"【8．その他必要な事項】"]
[null,"【9．備考】"]
[]
[]
[null,"（第五面）"]
[null,"　建築物の階別概要"]
[null,"【1．番号】",null,null,null,"1"]
[null,"【2．階】",null,null,null,"BF1",null,null,"階"]
[null,"【3．柱の小径】",null,null,null,null,null,null,null,null,null,null,"ｍｍ"]
[null,"【4．横架材間の垂直距離】",null,null,null,null,null,null,null,null,null,null,"ｍｍ"]
[null,"【5．階の高さ】",null,null,null,null,null,null,null,null,null,null,"ｍｍ"]
[null,"【6．天井】"]
[null,null,"【ｲ.居室の天井の高さ】",null,null,null,null,null,null,null,null,null,"ｍｍ"]
[null,null,"【ﾛ.建築基準法施行令第39条第3項に規定する特定天井】",null,null,null,null,null,null,null,null,null,null,null,null,null,null,null,null,"□","有",null,"■","無"]
[null,"【7．用途別床面積】"]
[null,null,null,null,null," （","用途の区分",null,null,null,")(","具体的な用途の名称",null,null,null,null,null,null,null,null,")(","床面積",null,null,null,null,"　) "]
[null,null,"【ｲ.】",null,null," （",null,null,null,null,")(",null,null,null,null,null,null,null,null,null,")(",null,null,null,null,null,"㎡) "]
[null,null,"【ﾛ.】",null,null," （",null,null,null,null,")(",null,null,null,null,null,null,null,null,null,")(",null,null,null,null,null,"㎡) "]
[null,null,"【ﾊ.】",null,null," （",null,null,null,null,")(",null,null,null,null,null,null,null,null,null,")(",null,null,null,null,null,"㎡) "]
[null,null,"【ﾆ.】",null,null," （",null,null,null,null,")(",null,null,null,null,null,null,null,null,null,")(",null,null,null,null,null,"㎡) "]
[null,null,"【ﾎ.】",null,null," （",null,null,null,null,")(",null,null,null,null,null,null,null,null,null,")(",null,null,null,null,null,"㎡) "]
[null,null,"【ﾍ.】",null,null," （",null,null,null,null,")(",null,null,null,null,null,null,null,null,null,")(",null,null,null,null,null,"㎡) "]
[null,"【8．その他必要な事項】"]
[null,"【9．備考】"]
[]
[]
[null,"（第五面）"]
[null,"　建築物の階別概要"]
[null,"【1．番号】",null,null,null,"1"]
[null,"【2．階】",null,null,null,"F1",null,null,"階"]
[null,"【3．柱の小径】",null,null,null,null,null,null,null,null,null,null,"ｍｍ"]
[null,"【4．横架材間の垂直距離】",null,null,null,null,null,null,null,null,null,null,"ｍｍ"]
[null,"【5．階の高さ】",null,null,null,null,null,null,null,null,null,null,"ｍｍ"]
[null,"【6．天井】"]
[null,null,"【ｲ.居室の天井の高さ】",null,null,null,null,null,null,null,null,null,"ｍｍ"]
[null,null,"【ﾛ.建築基準法施行令第39条第3項に規定する特定天井】",null,null,null,null,null,null,null,null,null,null,null,null,null,null,null,null,"□","有",null,"■","無"]
[null,"【7．用途別床面積】"]
[null,null,null,null,null," （","用途の区分",null,null,null,")(","具体的な用途の名称",null,null,null,null,null,null,null,null,")(","床面積",null,null,null,null,"　) "]
[null,null,"【ｲ.】",null,null," （",null,null,null,null,")(",null,null,null,null,null,null,null,null,null,")(",null,null,null,null,null,"㎡) "]
[null,null,"【ﾛ.】",null,null," （",null,null,null,null,")(",null,null,null,null,null,null,null,null,null,")(",null,null,null,null,null,"㎡) "]
[null,null,"【ﾊ.】",null,null," （",null,null,null,null,")(",null,null,null,null,null,null,null,null,null,")(",null,null,null,null,null,"㎡) "]
[null,null,"【ﾆ.】",null,null," （",null,null,null,null,")(",null,null,null,null,null,null,null,null,null,")(",null,null,null,null,null,"㎡) "]
[null,null,"【ﾎ.】",null,null," （",null,null,null,null,")(",null,null,null,null,null,null,null,null,null,")(",null,null,null,null,null,"㎡) "]
[null,null,"【ﾍ.】",null,null," （",null,null,null,null,")(",null,null,null,null,null,null,null,null,null,")(",null,null,null,null,null,"㎡) "]
[null,"【8．その他必要な事項】"]
[null,"【9．備考】"]
[]
[]
[null,"（第五面）"]
[null,"　建築物の階別概要"]
[null,"【1．番号】",null,null,null,"1"]
[null,"【2．階】",null,null,null,"F2",null,null,"階"]
[null,"【3．柱の小径】",null,null,null,null,null,null,null,null,null,null,"ｍｍ"]
[null,"【4．横架材間の垂直距離】",null,null,null,null,null,null,null,null,null,null,"ｍｍ"]
[null,"【5．階の高さ】",null,null,null,null,null,null,null,null,null,null,"ｍｍ"]
[null,"【6．天井】"]
[null,null,"【ｲ.居室の天井の高さ】",null,null,null,null,null,null,null,null,null,"ｍｍ"]
[null,null,"【ﾛ.建築基準法施行令第39条第3項に規定する特定天井】",null,null,null,null,null,null,null,null,null,null,null,null,null,null,null,null,"□","有",null,"■","無"]
[null,"【7．用途別床面積】"]
[null,null,null,null,null," （","用途の区分",null,null,null,")(","具体的な用途の名称",null,null,null,null,null,null,null,null,")(","床面積",null,null,null,null,"　) "]
[null,null,"【ｲ.】",null,null," （",null,null,null,null,")(",null,null,null,null,null,null,null,null,null,")(",null,null,null,null,null,"㎡) "]
[null,null,"【ﾛ.】",null,null," （",null,null,null,null,")(",null,null,null,null,null,null,null,null,null,")(",null,null,null,null,null,"㎡) "]
[null,null,"【ﾊ.】",null,null," （",null,null,null,null,")(",null,null,null,null,null,null,null,null,null,")(",null,null,null,null,null,"㎡) "]
[null,null,"【ﾆ.】",null,null," （",null,null,null,null,")(",null,null,null,null,null,null,null,null,null,")(",null,null,null,null,null,"㎡) "]
[null,null,"【ﾎ.】",null,null," （",null,null,null,null,")(",null,null,null,null,null,null,null,null,null,")(",null,null,null,null,null,"㎡) "]
[null,null,"【ﾍ.】",null,null," （",null,null,null,null,")(",null,null,null,null,null,null,null,null,null,")(",null,null,null,null,null,"㎡) "]
[null,"【8．その他必要な事項】"]
[null,"【9．備考】"]
[]
[]
[null,"（第五面）"]
[null,"　建築物の階別概要"]
[null,"【1．番号】",null,null,null,"1"]
[null,"【2．階】",null,null,null,"F3",null,null,"階"]
[null,"【3．柱の小径】",null,null,null,null,null,null,null,null,null,null,"ｍｍ"]
[null,"【4．横架材間の垂直距離】",null,null,null,null,null,null,null,null,null,null,"ｍｍ"]
[null,"【5．階の高さ】",null,null,null,null,null,null,null,null,null,null,"ｍｍ"]
[null,"【6．天井】"]
[null,null,"【ｲ.居室の天井の高さ】",null,null,null,null,null,null,null,null,null,"ｍｍ"]
[null,null,"【ﾛ.建築基準法施行令第39条第3項に規定する特定天井】",null,null,null,null,null,null,null,null,null,null,null,null,null,null,null,null,"□","有",null,"■","無"]
[null,"【7．用途別床面積】"]
[null,null,null,null,null," （","用途の区分",null,null,null,")(","具体的な用途の名称",null,null,null,null,null,null,null,null,")(","床面積",null,null,null,null,"　) "]
[null,null,"【ｲ.】",null,null," （",null,null,null,null,")(",null,null,null,null,null,null,null,null,null,")(",null,null,null,null,null,"㎡) "]
[null,null,"【ﾛ.】",null,null," （",null,null,null,null,")(",null,null,null,null,null,null,null,null,null,")(",null,null,null,null,null,"㎡) "]
[null,null,"【ﾊ.】",null,null," （",null,null,null,null,")(",null,null,null,null,null,null,null,null,null,")(",null,null,null,null,null,"㎡) "]
[null,null,"【ﾆ.】",null,null," （",null,null,null,null,")(",null,null,null,null,null,null,null,null,null,")(",null,null,null,null,null,"㎡) "]
[null,null,"【ﾎ.】",null,null," （",null,null,null,null,")(",null,null,null,null,null,null,null,null,null,")(",null,null,null,null,null,"㎡) "]
[null,null,"【ﾍ.】",null,null," （",null,null,null,null,")(",null,null,null,null,null,null,null,null,null,")(",null,null,null,null,null,"㎡) "]
[null,"【8．その他必要な事項】"]
[null,"【9．備考】"]
[]
[]
[null,"（第五面）"]
[null,"　建築物の階別概要"]
[null,"【1．番号】",null,null,null,"1"]
[null,"【2．階】",null,null,null,"F4",null,null,"階"]
[null,"【3．柱の小径】",null,null,null,null,null,null,null,null,null,null,"ｍｍ"]
[null,"【4．横架材間の垂直距離】",null,null,null,null,null,null,null,null,null,null,"ｍｍ"]
[null,"【5．階の高さ】",null,null,null,null,null,null,null,null,null,null,"ｍｍ"]
[null,"【6．天井】"]
[null,null,"【ｲ.居室の天井の高さ】",null,null,null,null,null,null,null,null,null,"ｍｍ"]
[null,null,"【ﾛ.建築基準法施行令第39条第3項に規定する特定天井】",null,null,null,null,null,null,null,null,null,null,null,null,null,null,null,null,"□","有",null,"■","無"]
[null,"【7．用途別床面積】"]
[null,null,null,null,null," （","用途の区分",null,null,null,")(","具体的な用途の名称",null,null,null,null,null,null,null,null,")(","床面積",null,null,null,null,"　) "]
[null,null,"【ｲ.】",null,null," （",null,null,null,null,")(",null,null,null,null,null,null,null,null,null,")(",null,null,null,null,null,"㎡) "]
[null,null,"【ﾛ.】",null,null," （",null,null,null,null,")(",null,null,null,null,null,null,null,null,null,")(",null,null,null,null,null,"㎡) "]
[null,null,"【ﾊ.】",null,null," （",null,null,null,null,")(",null,null,null,null,null,null,null,null,null,")(",null,null,null,null,null,"㎡) "]
[null,null,"【ﾆ.】",null,null," （",null,null,null,null,")(",null,null,null,null,null,null,null,null,null,")(",null,null,null,null,null,"㎡) "]
[null,null,"【ﾎ.】",null,null," （",null,null,null,null,")(",null,null,null,null,null,null,null,null,null,")(",null,null,null,null,null,"㎡) "]
[null,null,"【ﾍ.】",null,null," （",null,null,null,null,")(",null,null,null,null,null,null,null,null,null,")(",null,null,null,null,null,"㎡) "]
[null,"【8．その他必要な事項】"]
[null,"【9．備考】"]
[]
[]
[null,"（第五面）"]
[null,"　建築物の階別概要"]
[null,"【1．番号】",null,null,null,"1"]
[null,"【2．階】",null,null,null,"F5",null,null,"階"]
[null,"【3．柱の小径】",null,null,null,null,null,null,null,null,null,null,"ｍｍ"]
[null,"【4．横架材間の垂直距離】",null,null,null,null,null,null,null,null,null,null,"ｍｍ"]
[null,"【5．階の高さ】",null,null,null,null,null,null,null,null,null,null,"ｍｍ"]
[null,"【6．天井】"]
[null,null,"【ｲ.居室の天井の高さ】",null,null,null,null,null,null,null,null,null,"ｍｍ"]
[null,null,"【ﾛ.建築基準法施行令第39条第3項に規定する特定天井】",null,null,null,null,null,null,null,null,null,null,null,null,null,null,null,null,"□","有",null,"■","無"]
[null,"【7．用途別床面積】"]
[null,null,null,null,null," （","用途の区分",null,null,null,")(","具体的な用途の名称",null,null,null,null,null,null,null,null,")(","床面積",null,null,null,null,"　) "]
[null,null,"【ｲ.】",null,null," （",null,null,null,null,")(",null,null,null,null,null,null,null,null,null,")(",null,null,null,null,null,"㎡) "]
[null,null,"【ﾛ.】",null,null," （",null,null,null,null,")(",null,null,null,null,null,null,null,null,null,")(",null,null,null,null,null,"㎡) "]
[null,null,"【ﾊ.】",null,null," （",null,null,null,null,")(",null,null,null,null,null,null,null,null,null,")(",null,null,null,null,null,"㎡) "]
[null,null,"【ﾆ.】",null,null," （",null,null,null,null,")(",null,null,null,null,null,null,null,null,null,")(",null,null,null,null,null,"㎡) "]
[null,null,"【ﾎ.】",null,null," （",null,null,null,null,")(",null,null,null,null,null,null,null,null,null,")(",null,null,null,null,null,"㎡) "]
[null,null,"【ﾍ.】",null,null," （",null,null,null,null,")(",null,null,null,null,null,null,null,null,null,")(",null,null,null,null,null,"㎡) "]
[null,"【8．その他必要な事項】"]
[null,"【9．備考】"]
[]
[]
[null,"（第五面）"]
[null,"　建築物の階別概要"]
[null,"【1．番号】",null,null,null,"1"]
[null,"【2．階】",null,null,null,"F6",null,null,"階"]
[null,"【3．柱の小径】",null,null,null,null,null,null,null,null,null,null,"ｍｍ"]
[null,"【4．横架材間の垂直距離】",null,null,null,null,null,null,null,null,null,null,"ｍｍ"]
[null,"【5．階の高さ】",null,null,null,null,null,null,null,null,null,null,"ｍｍ"]
[null,"【6．天井】"]
[null,null,"【ｲ.居室の天井の高さ】",null,null,null,null,null,null,null,null,null,"ｍｍ"]
[null,null,"【ﾛ.建築基準法施行令第39条第3項に規定する特定天井】",null,null,null,null,null,null,null,null,null,null,null,null,null,null,null,null,"□","有",null,"■","無"]
[null,"【7．用途別床面積】"]
[null,null,null,null,null," （","用途の区分",null,null,null,")(","具体的な用途の名称",null,null,null,null,null,null,null,null,")(","床面積",null,null,null,null,"　) "]
[null,null,"【ｲ.】",null,null," （",null,null,null,null,")(",null,null,null,null,null,null,null,null,null,")(",null,null,null,null,null,"㎡) "]
[null,null,"【ﾛ.】",null,null," （",null,null,null,null,")(",null,null,null,null,null,null,null,null,null,")(",null,null,null,null,null,"㎡) "]
[null,null,"【ﾊ.】",null,null," （",null,null,null,null,")(",null,null,null,null,null,null,null,null,null,")(",null,null,null,null,null,"㎡) "]
[null,null,"【ﾆ.】",null,null," （",null,null,null,null,")(",null,null,null,null,null,null,null,null,null,")(",null,null,null,null,null,"㎡) "]
[null,null,"【ﾎ.】",null,null," （",null,null,null,null,")(",null,null,null,null,null,null,null,null,null,")(",null,null,null,null,null,"㎡) "]
[null,null,"【ﾍ.】",null,null," （",null,null,null,null,")(",null,null,null,null,null,null,null,null,null,")(",null,null,null,null,null,"㎡) "]
[null,"【8．その他必要な事項】"]
[null,"【9．備考】"]
[]
[]
[null,"（第五面）"]
[null,"　建築物の階別概要"]
[null,"【1．番号】",null,null,null,"1"]
[null,"【2．階】",null,null,null,"PH1",null,null,"階"]
[null,"【3．柱の小径】",null,null,null,null,null,null,null,null,null,null,"ｍｍ"]
[null,"【4．横架材間の垂直距離】",null,null,null,null,null,null,null,null,null,null,"ｍｍ"]
[null,"【5．階の高さ】",null,null,null,null,null,null,null,null,null,null,"ｍｍ"]
[null,"【6．天井】"]
[null,null,"【ｲ.居室の天井の高さ】",null,null,null,null,null,null,null,null,null,"ｍｍ"]
[null,null,"【ﾛ.建築基準法施行令第39条第3項に規定する特定天井】",null,null,null,null,null,null,null,null,null,null,null,null,null,null,null,null,"□","有",null,"■","無"]
[null,"【7．用途別床面積】"]
[null,null,null,null,null," （","用途の区分",null,null,null,")(","具体的な用途の名称",null,null,null,null,null,null,null,null,")(","床面積",null,null,null,null,"　) "]
[null,null,"【ｲ.】",null,null," （",null,null,null,null,")(",null,null,null,null,null,null,null,null,null,")(",null,null,null,null,null,"㎡) "]
[null,null,"【ﾛ.】",null,null," （",null,null,null,null,")(",null,null,null,null,null,null,null,null,null,")(",null,null,null,null,null,"㎡) "]
[null,null,"【ﾊ.】",null,null," （",null,null,null,null,")(",null,null,null,null,null,null,null,null,null,")(",null,null,null,null,null,"㎡) "]
[null,null,"【ﾆ.】",null,null," （",null,null,null,null,")(",null,null,null,null,null,null,null,null,null,")(",null,null,null,null,null,"㎡) "]
[null,null,"【ﾎ.】",null,null," （",null,null,null,null,")(",null,null,null,null,null,null,null,null,null,")(",null,null,null,null,null,"㎡) "]
[null,null,"【ﾍ.】",null,null," （",null,null,null,null,")(",null,null,null,null,null,null,null,null,null,")(",null,null,null,null,null,"㎡) "]
[null,"【8．その他必要な事項】"]
[null,"【9．備考】"]
[]
[]
[null,"（第五面）"]
[null,"　建築物の階別概要"]
[null,"【1．番号】",null,null,null,"1"]
[null,"【2．階】",null,null,null,"PH2",null,null,"階"]
[null,"【3．柱の小径】",null,null,null,null,null,null,null,null,null,null,"ｍｍ"]
[null,"【4．横架材間の垂直距離】",null,null,null,null,null,null,null,null,null,null,"ｍｍ"]
[null,"【5．階の高さ】",null,null,null,null,null,null,null,null,null,null,"ｍｍ"]
[null,"【6．天井】"]
[null,null,"【ｲ.居室の天井の高さ】",null,null,null,null,null,null,null,null,null,"ｍｍ"]
[null,null,"【ﾛ.建築基準法施行令第39条第3項に規定する特定天井】",null,null,null,null,null,null,null,null,null,null,null,null,null,null,null,null,"□","有",null,"■","無"]
[null,"【7．用途別床面積】"]
[null,null,null,null,null," （","用途の区分",null,null,null,")(","具体的な用途の名称",null,null,null,null,null,null,null,null,")(","床面積",null,null,null,null,"　) "]
[null,null,"【ｲ.】",null,null," （",null,null,null,null,")(",null,null,null,null,null,null,null,null,null,")(",null,null,null,null,null,"㎡) "]
[null,null,"【ﾛ.】",null,null," （",null,null,null,null,")(",null,null,null,null,null,null,null,null,null,")(",null,null,null,null,null,"㎡) "]
[null,null,"【ﾊ.】",null,null," （",null,null,null,null,")(",null,null,null,null,null,null,null,null,null,")(",null,null,null,null,null,"㎡) "]
[null,null,"【ﾆ.】",null,null," （",null,null,null,null,")(",null,null,null,null,null,null,null,null,null,")(",null,null,null,null,null,"㎡) "]
[null,null,"【ﾎ.】",null,null," （",null,null,null,null,")(",null,null,null,null,null,null,null,null,null,")(",null,null,null,null,null,"㎡) "]
[null,null,"【ﾍ.】",null,null," （",null,null,null,null,")(",null,null,null,null,null,null,null,null,null,")(",null,null,null,null,null,"㎡) "]
[null,"【8．その他必要な事項】"]
[null,"【9．備考】"]

{"sheet":"第五面 (2)","index":10,"n_rows":219,"n_cols":27,"rows_kept":219,"cut":false,"hidden":true,"merged":[[220,5,220,29],[216,6,216,9],[216,11,216,19],[216,21,216,25],[217,8,217,29],[218,5,218,29],[219,5,219,29],[214,6,214,9],[214,11,214,19],[214,21,214,25],[215,6,215,9],[215,11,215,19],[215,21,215,25],[212,6,212,9],[212,11,212,19],[212,21,212,25],[213,6,213,9],[213,11,213,19],[213,21,213,25],[207,9,207,11],[209,11,209,29],[210,6,210,9],[210,11,210,19],[210,21,210,25],[211,6,211,9],[211,11,211,19],[211,21,211,25],[201,5,201,7],[202,5,202,7],[203,7,203,8],[203,9,203,11],[204,9,204,11],[205,9,205,11],[195,8,195,29],[196,5,196,29],[197,5,197,29],[198,5,198,29],[199,1,199,29],[200,1,200,7],[193,6,193,9],[193,11,193,19],[193,21,193,25],[194,6,194,9],[194,11,194,19],[194,21,194,25],[191,6,191,9],[191,11,191,19],[191,21,191,25],[192,6,192,9],[192,11,192,19],[192,21,192,25],[189,6,189,9],[189,11,189,19],[189,21,189,25],[190,6,190,9],[190,11,190,19],[190,21,190,25],[182,9,182,11],[183,9,183,11],[185,9,185,11],[187,11,187,29],[188,6,188,9],[188,11,188,19],[188,21,188,25],[176,5,176,29],[177,1,177,29],[178,1,178,7],[179,5,179,7],[180,5,180,7],[181,7,181,8],[181,9,181,11],[172,6,172,9],[172,11,172,19],[172,21,172,25],[173,8,173,29],[174,5,174,29],[175,5,175,29],[170,6,170,9],[170,11,170,19],[170,21,170,25],[171,6,171,9],[171,11,171,19],[171,21,171,25],[168,6,168,9],[168,11,168,19],[168,21,168,25],[169,6,169,9],[169,11,169,19],[169,21,169,25],[163,9,163,11],[165,11,165,29],[166,6,166,9],[166,11,166,19],[166,21,166,25],[167,6,167,9],[167,11,167,19],[167,21,167,25],[157,5,157,7],[158,5,158,7],[159,7,159,8],[159,9,159,11],[160,9,160,11],[161,9,161,11],[151,8,151,29],[152,5,152,29],[153,5,153,29],[154,5,154,29],[155,1,155,29],[156,1,156,7],[149,6,149,9],[149,11,149,19],[149,21,149,25],[150,6,150,9],[150,11,150,19],[150,21,150,25],[147,6,147,9],[147,11,147,19],[147,21,147,25],[148,6,148,9],[148,11,148,19],[148,21,148,25],[145,6,145,9],[145,11,145,19],[145,21,145,25],[146,6,146,9],[146,11,146,19],[146,21,146,25],[138,9,138,11],[139,9,139,11],[141,9,141,11],[143,11,143,29],[144,6,144,9],[144,11,144,19],[144,21,144,25],[132,5,132,29],[133,1,133,29],[134,1,134,7],[135,5,135,7],[136,5,136,7],[137,7,137,8],[137,9,137,11],[128,6,128,9],[128,11,128,19],[128,21,128,25],[129,8,129,29],[130,5,130,29],[131,5,131,29],[126,6,126,9],[126,11,126,19],[126,21,126,25],[127,6,127,9],[127,11,127,19],[127,21,127,25],[124,6,124,9],[124,11,124,19],[124,21,124,25],[125,6,125,9],[125,11,125,19],[125,21,125,25],[119,9,119,11],[121,11,121,29],[122,6,122,9],[122,11,122,19],[122,21,122,25],[123,6,123,9],[123,11,123,19],[123,21,123,25],[113,5,113,7],[114,5,114,7],[115,7,115,8],[115,9,115,11],[116,9,116,11],[117,9,117,11],[107,8,107,29],[108,5,108,29],[109,5,109,29],[110,5,110,29],[111,1,111,29],[112,1,112,7],[105,6,105,9],[105,11,105,19],[105,21,105,25],[106,6,106,9],[106,11,106,19],[106,21,106,25],[103,6,103,9],[103,11,103,19],[103,21,103,25],[104,6,104,9],[104,11,104,19],[104,21,104,25],[101,6,101,9],[101,11,101,19],[101,21,101,25],[102,6,102,9],[102,11,102,19],[102,21,102,25],[94,9,94,11],[95,9,95,11],[97,9,97,11],[99,11,99,29],[100,6,100,9],[100,11,100,19],[100,21,100,25],[88,5,88,29],[89,1,89,29],[90,1,90,7],[91,5,91,7],[92,5,92,7],[93,7,93,8],[93,9,93,11],[84,6,84,9],[84,11,84,19],[84,21,84,25],[85,8,85,29],[86,5,86,29],[87,5,87,29],[82,6,82,9],[82,11,82,19],[82,21,82,25],[83,6,83,9],[83,11,83,19],[83,21,83,25],[80,6,80,9],[80,11,80,19],[80,21,80,25],[81,6,81,9],[81,11,81,19],[81,21,81,25],[75,9,75,11],[77,11,77,29],[78,6,78,9],[78,11,78,19],[78,21,78,25],[79,6,79,9],[79,11,79,19],[79,21,79,25],[69,5,69,7],[70,5,70,7],[71,7,71,8],[71,9,71,11],[72,9,72,11],[73,9,73,11],[63,8,63,29],[64,5,64,29],[65,5,65,29],[66,5,66,29],[67,1,67,29],[68,1,68,7],[61,6,61,9],[61,11,61,19],[61,21,61,25],[62,6,62,9],[62,11,62,19],[62,21,62,25],[59,6,59,9],[59,11,59,19],[59,21,59,25],[60,6,60,9],[60,11,60,19],[60,21,60,25],[57,6,57,9],[57,11,57,19],[57,21,57,25],[58,6,58,9],[58,11,58,19],[58,21,58,25],[50,9,50,11],[51,9,51,11],[53,9,53,11],[55,11,55,29],[56,6,56,9],[56,11,56,19],[56,21,56,25],[44,5,44,29],[45,1,45,29],[46,1,46,7],[47,5,47,7],[48,5,48,7],[49,7,49,8],[49,9,49,11],[40,6,40,9],[40,11,40,19],[40,21,40,25],[41,8,41,29],[42,5,42,29],[43,5,43,29],[38,6,38,9],[38,11,38,19],[38,21,38,25],[39,6,39,9],[39,11,39,19],[39,21,39,25],[36,6,36,9],[36,11,36,19],[36,21,36,25],[37,6,37,9],[37,11,37,19],[37,21,37,25],[31,9,31,11],[33,11,33,29],[34,6,34,9],[34,11,34,19],[34,21,34,25],[35,6,35,9],[35,11,35,19],[35,21,35,25],[25,5,25,7],[26,5,26,7],[27,7,27,8],[27,9,27,11],[28,9,28,11],[29,9,29,11],[19,8,19,29],[20,5,20,29],[21,5,21,29],[22,5,22,29],[23,1,23,29],[24,1,24,7],[17,6,17,9],[17,11,17,19],[17,21,17,25],[18,6,18,9],[18,11,18,19],[18,21,18,25],[15,6,15,9],[15,11,15,19],[15,21,15,25],[16,6,16,9],[16,11,16,19],[16,21,16,25],[14,6,14,9],[14,11,14,19],[14,21,14,25],[6,9,6,11],[7,9,7,11],[9,9,9,11],[11,11,11,29],[12,6,12,9],[12,11,12,19],[12,21,12,25],[1,1,1,29],[2,1,2,7],[3,5,3,7],[4,5,4,7],[5,7,5,8],[5,9,5,11],[13,6,13,9],[13,11,13,19],[13,21,13,25]]}
[null,"申請書（第五面）"]
[null,"（第五面）"]
[null,"　建築物の階別概要"]
[null,"【1．番号】",null,null,null,"2"]
[null,"【2．階】",null,null,null,"BF2",null,null,"階"]
[null,"【3．柱の小径】",null,null,null,null,null,null,null,null,null,null,"ｍｍ"]
[null,"【4．横架材間の垂直距離】",null,null,null,null,null,null,null,null,null,null,"ｍｍ"]
[null,"【5．階の高さ】",null,null,null,null,null,null,null,null,null,null,"ｍｍ"]
[null,"【6．天井】"]
[null,null,"【ｲ.居室の天井の高さ】",null,null,null,null,null,null,null,null,null,"ｍｍ"]
[null,null,"【ﾛ.建築基準法施行令第39条第3項に規定する特定天井】",null,null,null,null,null,null,null,null,null,null,null,null,null,null,null,null,"□","有",null,"■","無"]
[null,"【7．用途別床面積】"]
[null,null,null,null,null," （","用途の区分",null,null,null,")(","具体的な用途の名称",null,null,null,null,null,null,null,null,")(","床面積",null,null,null,null,"　) "]
[null,null,"【ｲ.】",null,null," （",null,null,null,null,")(",null,null,null,null,null,null,null,null,null,")(",null,null,null,null,null,"㎡) "]
[null,null,"【ﾛ.】",null,null," （",null,null,null,null,")(",null,null,null,null,null,null,null,null,null,")(",null,null,null,null,null,"㎡) "]
[null,null,"【ﾊ.】",null,null," （",null,null,null,null,")(",null,null,null,null,null,null,null,null,null,")(",null,null,null,null,null,"㎡) "]
[null,null,"【ﾆ.】",null,null," （",null,null,null,null,")(",null,null,null,null,null,null,null,null,null,")(",null,null,null,null,null,"㎡) "]
[null,null,"【ﾎ.】",null,null," （",null,null,null,null,")(",null,null,null,null,null,null,null,null,null,")(",null,null,null,null,null,"㎡) "]
[null,null,"【ﾍ.】",null,null," （",null,null,null,null,")(",null,null,null,null,null,null,null,null,null,")(",null,null,null,null,null,"㎡) "]
[null,"【8．その他必要な事項】"]
[null,"【9．備考】"]
[]
[]
[null,"（第五面）"]
[null,"　建築物の階別概要"]
[null,"【1．番号】",null,null,null,"2"]
[null,"【2．階】",null,null,null,"BF1",null,null,"階"]
[null,"【3．柱の小径】",null,null,null,null,null,null,null,null,null,null,"ｍｍ"]
[null,"【4．横架材間の垂直距離】",null,null,null,null,null,null,null,null,null,null,"ｍｍ"]
[null,"【5．階の高さ】",null,null,null,null,null,null,null,null,null,null,"ｍｍ"]
[null,"【6．天井】"]
[null,null,"【ｲ.居室の天井の高さ】",null,null,null,null,null,null,null,null,null,"ｍｍ"]
[null,null,"【ﾛ.建築基準法施行令第39条第3項に規定する特定天井】",null,null,null,null,null,null,null,null,null,null,null,null,null,null,null,null,"□","有",null,"■","無"]
[null,"【7．用途別床面積】"]
[null,null,null,null,null," （","用途の区分",null,null,null,")(","具体的な用途の名称",null,null,null,null,null,null,null,null,")(","床面積",null,null,null,null,"　) "]
[null,null,"【ｲ.】",null,null," （",null,null,null,null,")(",null,null,null,null,null,null,null,null,null,")(",null,null,null,null,null,"㎡) "]
[null,null,"【ﾛ.】",null,null," （",null,null,null,null,")(",null,null,null,null,null,null,null,null,null,")(",null,null,null,null,null,"㎡) "]
[null,null,"【ﾊ.】",null,null," （",null,null,null,null,")(",null,null,null,null,null,null,null,null,null,")(",null,null,null,null,null,"㎡) "]
[null,null,"【ﾆ.】",null,null," （",null,null,null,null,")(",null,null,null,null,null,null,null,null,null,")(",null,null,null,null,null,"㎡) "]
[null,null,"【ﾎ.】",null,null," （",null,null,null,null,")(",null,null,null,null,null,null,null,null,null,")(",null,null,null,null,null,"㎡) "]
[null,null,"【ﾍ.】",null,null," （",null,null,null,null,")(",null,null,null,null,null,null,null,null,null,")(",null,null,null,null,null,"㎡) "]
[null,"【8．その他必要な事項】"]
[null,"【9．備考】"]
[]
[]
[null,"（第五面）"]
[null,"　建築物の階別概要"]
[null,"【1．番号】",null,null,null,"2"]
[null,"【2．階】",null,null,null,"F1",null,null,"階"]
[null,"【3．柱の小径】",null,null,null,null,null,null,null,null,null,null,"ｍｍ"]
[null,"【4．横架材間の垂直距離】",null,null,null,null,null,null,null,null,null,null,"ｍｍ"]
[null,"【5．階の高さ】",null,null,null,null,null,null,null,null,null,null,"ｍｍ"]
[null,"【6．天井】"]
[null,null,"【ｲ.居室の天井の高さ】",null,null,null,null,null,null,null,null,null,"ｍｍ"]
[null,null,"【ﾛ.建築基準法施行令第39条第3項に規定する特定天井】",null,null,null,null,null,null,null,null,null,null,null,null,null,null,null,null,"□","有",null,"■","無"]
[null,"【7．用途別床面積】"]
[null,null,null,null,null," （","用途の区分",null,null,null,")(","具体的な用途の名称",null,null,null,null,null,null,null,null,")(","床面積",null,null,null,null,"　) "]
[null,null,"【ｲ.】",null,null," （",null,null,null,null,")(",null,null,null,null,null,null,null,null,null,")(",null,null,null,null,null,"㎡) "]
[null,null,"【ﾛ.】",null,null," （",null,null,null,null,")(",null,null,null,null,null,null,null,null,null,")(",null,null,null,null,null,"㎡) "]
[null,null,"【ﾊ.】",null,null," （",null,null,null,null,")(",null,null,null,null,null,null,null,null,null,")(",null,null,null,null,null,"㎡) "]
[null,null,"【ﾆ.】",null,null," （",null,null,null,null,")(",null,null,null,null,null,null,null,null,null,")(",null,null,null,null,null,"㎡) "]
[null,null,"【ﾎ.】",null,null," （",null,null,null,null,")(",null,null,null,null,null,null,null,null,null,")(",null,null,null,null,null,"㎡) "]
[null,null,"【ﾍ.】",null,null," （",null,null,null,null,")(",null,null,null,null,null,null,null,null,null,")(",null,null,null,null,null,"㎡) "]
[null,"【8．その他必要な事項】"]
[null,"【9．備考】"]
[]
[]
[null,"（第五面）"]
[null,"　建築物の階別概要"]
[null,"【1．番号】",null,null,null,"2"]
[null,"【2．階】",null,null,null,"F2",null,null,"階"]
[null,"【3．柱の小径】",null,null,null,null,null,null,null,null,null,null,"ｍｍ"]
[null,"【4．横架材間の垂直距離】",null,null,null,null,null,null,null,null,null,null,"ｍｍ"]
[null,"【5．階の高さ】",null,null,null,null,null,null,null,null,null,null,"ｍｍ"]
[null,"【6．天井】"]
[null,null,"【ｲ.居室の天井の高さ】",null,null,null,null,null,null,null,null,null,"ｍｍ"]
[null,null,"【ﾛ.建築基準法施行令第39条第3項に規定する特定天井】",null,null,null,null,null,null,null,null,null,null,null,null,null,null,null,null,"□","有",null,"■","無"]
[null,"【7．用途別床面積】"]
[null,null,null,null,null," （","用途の区分",null,null,null,")(","具体的な用途の名称",null,null,null,null,null,null,null,null,")(","床面積",null,null,null,null,"　) "]
[null,null,"【ｲ.】",null,null," （",null,null,null,null,")(",null,null,null,null,null,null,null,null,null,")(",null,null,null,null,null,"㎡) "]
[null,null,"【ﾛ.】",null,null," （",null,null,null,null,")(",null,null,null,null,null,null,null,null,null,")(",null,null,null,null,null,"㎡) "]
[null,null,"【ﾊ.】",null,null," （",null,null,null,null,")(",null,null,null,null,null,null,null,null,null,")(",null,null,null,null,null,"㎡) "]
[null,null,"【ﾆ.】",null,null," （",null,null,null,null,")(",null,null,null,null,null,null,null,null,null,")(",null,null,null,null,null,"㎡) "]
[null,null,"【ﾎ.】",null,null," （",null,null,null,null,")(",null,null,null,null,null,null,null,null,null,")(",null,null,null,null,null,"㎡) "]
[null,null,"【ﾍ.】",null,null," （",null,null,null,null,")(",null,null,null,null,null,null,null,null,null,")(",null,null,null,null,null,"㎡) "]
[null,"【8．その他必要な事項】"]
[null,"【9．備考】"]
[]
[]
[null,"（第五面）"]
[null,"　建築物の階別概要"]
[null,"【1．番号】",null,null,null,"2"]
[null,"【2．階】",null,null,null,"F3",null,null,"階"]
[null,"【3．柱の小径】",null,null,null,null,null,null,null,null,null,null,"ｍｍ"]
[null,"【4．横架材間の垂直距離】",null,null,null,null,null,null,null,null,null,null,"ｍｍ"]
[null,"【5．階の高さ】",null,null,null,null,null,null,null,null,null,null,"ｍｍ"]
[null,"【6．天井】"]
[null,null,"【ｲ.居室の天井の高さ】",null,null,null,null,null,null,null,null,null,"ｍｍ"]
[null,null,"【ﾛ.建築基準法施行令第39条第3項に規定する特定天井】",null,null,null,null,null,null,null,null,null,null,null,null,null,null,null,null,"□","有",null,"■","無"]
[null,"【7．用途別床面積】"]
[null,null,null,null,null," （","用途の区分",null,null,null,")(","具体的な用途の名称",null,null,null,null,null,null,null,null,")(","床面積",null,null,null,null,"　) "]
[null,null,"【ｲ.】",null,null," （",null,null,null,null,")(",null,null,null,null,null,null,null,null,null,")(",null,null,null,null,null,"㎡) "]
[null,null,"【ﾛ.】",null,null," （",null,null,null,null,")(",null,null,null,null,null,null,null,null,null,")(",null,null,null,null,null,"㎡) "]
[null,null,"【ﾊ.】",null,null," （",null,null,null,null,")(",null,null,null,null,null,null,null,null,null,")(",null,null,null,null,null,"㎡) "]
[null,null,"【ﾆ.】",null,null," （",null,null,null,null,")(",null,null,null,null,null,null,null,null,null,")(",null,null,null,null,null,"㎡) "]
[null,null,"【ﾎ.】",null,null," （",null,null,null,null,")(",null,null,null,null,null,null,null,null,null,")(",null,null,null,null,null,"㎡) "]
[null,null,"【ﾍ.】",null,null," （",null,null,null,null,")(",null,null,null,null,null,null,null,null,null,")(",null,null,null,null,null,"㎡) "]
[null,"【8．その他必要な事項】"]
[null,"【9．備考】"]
[]
[]
[null,"（第五面）"]
[null,"　建築物の階別概要"]
[null,"【1．番号】",null,null,null,"2"]
[null,"【2．階】",null,null,null,"F4",null,null,"階"]
[null,"【3．柱の小径】",null,null,null,null,null,null,null,null,null,null,"ｍｍ"]
[null,"【4．横架材間の垂直距離】",null,null,null,null,null,null,null,null,null,null,"ｍｍ"]
[null,"【5．階の高さ】",null,null,null,null,null,null,null,null,null,null,"ｍｍ"]
[null,"【6．天井】"]
[null,null,"【ｲ.居室の天井の高さ】",null,null,null,null,null,null,null,null,null,"ｍｍ"]
[null,null,"【ﾛ.建築基準法施行令第39条第3項に規定する特定天井】",null,null,null,null,null,null,null,null,null,null,null,null,null,null,null,null,"□","有",null,"■","無"]
[null,"【7．用途別床面積】"]
[null,null,null,null,null," （","用途の区分",null,null,null,")(","具体的な用途の名称",null,null,null,null,null,null,null,null,")(","床面積",null,null,null,null,"　) "]
[null,null,"【ｲ.】",null,null," （",null,null,null,null,")(",null,null,null,null,null,null,null,null,null,")(",null,null,null,null,null,"㎡) "]
[null,null,"【ﾛ.】",null,null," （",null,null,null,null,")(",null,null,null,null,null,null,null,null,null,")(",null,null,null,null,null,"㎡) "]
[null,null,"【ﾊ.】",null,null," （",null,null,null,null,")(",null,null,null,null,null,null,null,null,null,")(",null,null,null,null,null,"㎡) "]
[null,null,"【ﾆ.】",null,null," （",null,null,null,null,")(",null,null,null,null,null,null,null,null,null,")(",null,null,null,null,null,"㎡) "]
[null,null,"【ﾎ.】",null,null," （",null,null,null,null,")(",null,null,null,null,null,null,null,null,null,")(",null,null,null,null,null,"㎡) "]
[null,null,"【ﾍ.】",null,null," （",null,null,null,null,")(",null,null,null,null,null,null,null,null,null,")(",null,null,null,null,null,"㎡) "]
[null,"【8．その他必要な事項】"]
[null,"【9．備考】"]
[]
[]
[null,"（第五面）"]
[null,"　建築物の階別概要"]
[null,"【1．番号】",null,null,null,"2"]
[null,"【2．階】",null,null,null,"F5",null,null,"階"]
[null,"【3．柱の小径】",null,null,null,null,null,null,null,null,null,null,"ｍｍ"]
[null,"【4．横架材間の垂直距離】",null,null,null,null,null,null,null,null,null,null,"ｍｍ"]
[null,"【5．階の高さ】",null,null,null,null,null,null,null,null,null,null,"ｍｍ"]
[null,"【6．天井】"]
[null,null,"【ｲ.居室の天井の高さ】",null,null,null,null,null,null,null,null,null,"ｍｍ"]
[null,null,"【ﾛ.建築基準法施行令第39条第3項に規定する特定天井】",null,null,null,null,null,null,null,null,null,null,null,null,null,null,null,null,"□","有",null,"■","無"]
[null,"【7．用途別床面積】"]
[null,null,null,null,null," （","用途の区分",null,null,null,")(","具体的な用途の名称",null,null,null,null,null,null,null,null,")(","床面積",null,null,null,null,"　) "]
[null,null,"【ｲ.】",null,null," （",null,null,null,null,")(",null,null,null,null,null,null,null,null,null,")(",null,null,null,null,null,"㎡) "]
[null,null,"【ﾛ.】",null,null," （",null,null,null,null,")(",null,null,null,null,null,null,null,null,null,")(",null,null,null,null,null,"㎡) "]
[null,null,"【ﾊ.】",null,null," （",null,null,null,null,")(",null,null,null,null,null,null,null,null,null,")(",null,null,null,null,null,"㎡) "]
[null,null,"【ﾆ.】",null,null," （",null,null,null,null,")(",null,null,null,null,null,null,null,null,null,")(",null,null,null,null,null,"㎡) "]
[null,null,"【ﾎ.】",null,null," （",null,null,null,null,")(",null,null,null,null,null,null,null,null,null,")(",null,null,null,null,null,"㎡) "]
[null,null,"【ﾍ.】",null,null," （",null,null,null,null,")(",null,null,null,null,null,null,null,null,null,")(",null,null,null,null,null,"㎡) "]
[null,"【8．その他必要な事項】"]
[null,"【9．備考】"]
[]
[]
[null,"（第五面）"]
[null,"　建築物の階別概要"]
[null,"【1．番号】",null,null,null,"2"]
[null,"【2．階】",null,null,null,"F6",null,null,"階"]
[null,"【3．柱の小径】",null,null,null,null,null,null,null,null,null,null,"ｍｍ"]
[null,"【4．横架材間の垂直距離】",null,null,null,null,null,null,null,null,null,null,"ｍｍ"]
[null,"【5．階の高さ】",null,null,null,null,null,null,null,null,null,null,"ｍｍ"]
[null,"【6．天井】"]
[null,null,"【ｲ.居室の天井の高さ】",null,null,null,null,null,null,null,null,null,"ｍｍ"]
[null,null,"【ﾛ.建築基準法施行令第39条第3項に規定する特定天井】",null,null,null,null,null,null,null,null,null,null,null,null,null,null,null,null,"□","有",null,"■","無"]
[null,"【7．用途別床面積】"]
[null,null,null,null,null," （","用途の区分",null,null,null,")(","具体的な用途の名称",null,null,null,null,null,null,null,null,")(","床面積",null,null,null,null,"　) "]
[null,null,"【ｲ.】",null,null," （",null,null,null,null,")(",null,null,null,null,null,null,null,null,null,")(",null,null,null,null,null,"㎡) "]
[null,null,"【ﾛ.】",null,null," （",null,null,null,null,")(",null,null,null,null,null,null,null,null,null,")(",null,null,null,null,null,"㎡) "]
[null,null,"【ﾊ.】",null,null," （",null,null,null,null,")(",null,null,null,null,null,null,null,null,null,")(",null,null,null,null,null,"㎡) "]
[null,null,"【ﾆ.】",null,null," （",null,null,null,null,")(",null,null,null,null,null,null,null,null,null,")(",null,null,null,null,null,"㎡) "]
[null,null,"【ﾎ.】",null,null," （",null,null,null,null,")(",null,null,null,null,null,null,null,null,null,")(",null,null,null,null,null,"㎡) "]
[null,null,"【ﾍ.】",null,null," （",null,null,null,null,")(",null,null,null,null,null,null,null,null,null,")(",null,null,null,null,null,"㎡) "]
[null,"【8．その他必要な事項】"]
[null,"【9．備考】"]
[]
[]
[null,"（第五面）"]
[null,"　建築物の階別概要"]
[null,"【1．番号】",null,null,null,"2"]
[null,"【2．階】",null,null,null,"PH1",null,null,"階"]
[null,"【3．柱の小径】",null,null,null,null,null,null,null,null,null,null,"ｍｍ"]
[null,"【4．横架材間の垂直距離】",null,null,null,null,null,null,null,null,null,null,"ｍｍ"]
[null,"【5．階の高さ】",null,null,null,null,null,null,null,null,null,null,"ｍｍ"]
[null,"【6．天井】"]
[null,null,"【ｲ.居室の天井の高さ】",null,null,null,null,null,null,null,null,null,"ｍｍ"]
[null,null,"【ﾛ.建築基準法施行令第39条第3項に規定する特定天井】",null,null,null,null,null,null,null,null,null,null,null,null,null,null,null,null,"□","有",null,"■","無"]
[null,"【7．用途別床面積】"]
[null,null,null,null,null," （","用途の区分",null,null,null,")(","具体的な用途の名称",null,null,null,null,null,null,null,null,")(","床面積",null,null,null,null,"　) "]
[null,null,"【ｲ.】",null,null," （",null,null,null,null,")(",null,null,null,null,null,null,null,null,null,")(",null,null,null,null,null,"㎡) "]
[null,null,"【ﾛ.】",null,null," （",null,null,null,null,")(",null,null,null,null,null,null,null,null,null,")(",null,null,null,null,null,"㎡) "]
[null,null,"【ﾊ.】",null,null," （",null,null,null,null,")(",null,null,null,null,null,null,null,null,null,")(",null,null,null,null,null,"㎡) "]
[null,null,"【ﾆ.】",null,null," （",null,null,null,null,")(",null,null,null,null,null,null,null,null,null,")(",null,null,null,null,null,"㎡) "]
[null,null,"【ﾎ.】",null,null," （",null,null,null,null,")(",null,null,null,null,null,null,null,null,null,")(",null,null,null,null,null,"㎡) "]
[null,null,"【ﾍ.】",null,null," （",null,null,null,null,")(",null,null,null,null,null,null,null,null,null,")(",null,null,null,null,null,"㎡) "]
[null,"【8．その他必要な事項】"]
[null,"【9．備考】"]
[]
[]
[null,"（第五面）"]
[null,"　建築物の階別概要"]
[null,"【1．番号】",null,null,null,"2"]
[null,"【2．階】",null,null,null,"PH2",null,null,"階"]
[null,"【3．柱の小径】",null,null,null,null,null,null,null,null,null,null,"ｍｍ"]
[null,"【4．横架材間の垂直距離】",null,null,null,null,null,null,null,null,null,null,"ｍｍ"]
[null,"【5．階の高さ】",null,null,null,null,null,null,null,null,null,null,"ｍｍ"]
[null,"【6．天井】"]
[null,null,"【ｲ.居室の天井の高さ】",null,null,null,null,null,null,null,null,null,"ｍｍ"]
[null,null,"【ﾛ.建築基準法施行令第39条第3項に規定する特定天井】",null,null,null,null,null,null,null,null,null,null,null,null,null,null,null,null,"□","有",null,"■","無"]
[null,"【7．用途別床面積】"]
[null,null,null,null,null," （","用途の区分",null,null,null,")(","具体的な用途の名称",null,null,null,null,null,null,null,null,")(","床面積",null,null,null,null,"　) "]
[null,null,"【ｲ.】",null,null," （",null,null,null,null,")(",null,null,null,null,null,null,null,null,null,")(",null,null,null,null,null,"㎡) "]
[null,null,"【ﾛ.】",null,null," （",null,null,null,null,")(",null,null,null,null,null,null,null,null,null,")(",null,null,null,null,null,"㎡) "]
[null,null,"【ﾊ.】",null,null," （",null,null,null,null,")(",null,null,null,null,null,null,null,null,null,")(",null,null,null,null,null,"㎡) "]
[null,null,"【ﾆ.】",null,null," （",null,null,null,null,")(",null,null,null,null,null,null,null,null,null,")(",null,null,null,null,null,"㎡) "]
[null,null,"【ﾎ.】",null,null," （",null,null,null,null,")(",null,null,null,null,null,null,null,null,null,")(",null,null,null,null,null,"㎡) "]
[null,null,"【ﾍ.】",null,null," （",null,null,null,null,")(",null,null,null,null,null,null,null,null,null,")(",null,null,null,null,null,"㎡) "]
[null,"【8．その他必要な事項】"]
[null,"【9．備考】"]

{"sheet":"第五面 (3)","index":11,"n_rows":219,"n_cols":27,"rows_kept":219,"cut":false,"hidden":true,"merged":[[220,5,220,29],[216,6,216,9],[216,11,216,19],[216,21,216,25],[217,8,217,29],[218,5,218,29],[219,5,219,29],[214,6,214,9],[214,11,214,19],[214,21,214,25],[215,6,215,9],[215,11,215,19],[215,21,215,25],[212,6,212,9],[212,11,212,19],[212,21,212,25],[213,6,213,9],[213,11,213,19],[213,21,213,25],[207,9,207,11],[209,11,209,29],[210,6,210,9],[210,11,210,19],[210,21,210,25],[211,6,211,9],[211,11,211,19],[211,21,211,25],[201,5,201,7],[202,5,202,7],[203,7,203,8],[203,9,203,11],[204,9,204,11],[205,9,205,11],[195,8,195,29],[196,5,196,29],[197,5,197,29],[198,5,198,29],[199,1,199,29],[200,1,200,7],[193,6,193,9],[193,11,193,19],[193,21,193,25],[194,6,194,9],[194,11,194,19],[194,21,194,25],[191,6,191,9],[191,11,191,19],[191,21,191,25],[192,6,192,9],[192,11,192,19],[192,21,192,25],[189,6,189,9],[189,11,189,19],[189,21,189,25],[190,6,190,9],[190,11,190,19],[190,21,190,25],[182,9,182,11],[183,9,183,11],[185,9,185,11],[187,11,187,29],[188,6,188,9],[188,11,188,19],[188,21,188,25],[176,5,176,29],[177,1,177,29],[178,1,178,7],[179,5,179,7],[180,5,180,7],[181,7,181,8],[181,9,181,11],[172,6,172,9],[172,11,172,19],[172,21,172,25],[173,8,173,29],[174,5,174,29],[175,5,175,29],[170,6,170,9],[170,11,170,19],[170,21,170,25],[171,6,171,9],[171,11,171,19],[171,21,171,25],[168,6,168,9],[168,11,168,19],[168,21,168,25],[169,6,169,9],[169,11,169,19],[169,21,169,25],[163,9,163,11],[165,11,165,29],[166,6,166,9],[166,11,166,19],[166,21,166,25],[167,6,167,9],[167,11,167,19],[167,21,167,25],[157,5,157,7],[158,5,158,7],[159,7,159,8],[159,9,159,11],[160,9,160,11],[161,9,161,11],[151,8,151,29],[152,5,152,29],[153,5,153,29],[154,5,154,29],[155,1,155,29],[156,1,156,7],[149,6,149,9],[149,11,149,19],[149,21,149,25],[150,6,150,9],[150,11,150,19],[150,21,150,25],[147,6,147,9],[147,11,147,19],[147,21,147,25],[148,6,148,9],[148,11,148,19],[148,21,148,25],[145,6,145,9],[145,11,145,19],[145,21,145,25],[146,6,146,9],[146,11,146,19],[146,21,146,25],[138,9,138,11],[139,9,139,11],[141,9,141,11],[143,11,143,29],[144,6,144,9],[144,11,144,19],[144,21,144,25],[132,5,132,29],[133,1,133,29],[134,1,134,7],[135,5,135,7],[136,5,136,7],[137,7,137,8],[137,9,137,11],[128,6,128,9],[128,11,128,19],[128,21,128,25],[129,8,129,29],[130,5,130,29],[131,5,131,29],[126,6,126,9],[126,11,126,19],[126,21,126,25],[127,6,127,9],[127,11,127,19],[127,21,127,25],[124,6,124,9],[124,11,124,19],[124,21,124,25],[125,6,125,9],[125,11,125,19],[125,21,125,25],[119,9,119,11],[121,11,121,29],[122,6,122,9],[122,11,122,19],[122,21,122,25],[123,6,123,9],[123,11,123,19],[123,21,123,25],[113,5,113,7],[114,5,114,7],[115,7,115,8],[115,9,115,11],[116,9,116,11],[117,9,117,11],[107,8,107,29],[108,5,108,29],[109,5,109,29],[110,5,110,29],[111,1,111,29],[112,1,112,7],[105,6,105,9],[105,11,105,19],[105,21,105,25],[106,6,106,9],[106,11,106,19],[106,21,106,25],[103,6,103,9],[103,11,103,19],[103,21,103,25],[104,6,104,9],[104,11,104,19],[104,21,104,25],[101,6,101,9],[101,11,101,19],[101,21,101,25],[102,6,102,9],[102,11,102,19],[102,21,102,25],[94,9,94,11],[95,9,95,11],[97,9,97,11],[99,11,99,29],[100,6,100,9],[100,11,100,19],[100,21,100,25],[88,5,88,29],[89,1,89,29],[90,1,90,7],[91,5,91,7],[92,5,92,7],[93,7,93,8],[93,9,93,11],[84,6,84,9],[84,11,84,19],[84,21,84,25],[85,8,85,29],[86,5,86,29],[87,5,87,29],[82,6,82,9],[82,11,82,19],[82,21,82,25],[83,6,83,9],[83,11,83,19],[83,21,83,25],[80,6,80,9],[80,11,80,19],[80,21,80,25],[81,6,81,9],[81,11,81,19],[81,21,81,25],[75,9,75,11],[77,11,77,29],[78,6,78,9],[78,11,78,19],[78,21,78,25],[79,6,79,9],[79,11,79,19],[79,21,79,25],[69,5,69,7],[70,5,70,7],[71,7,71,8],[71,9,71,11],[72,9,72,11],[73,9,73,11],[63,8,63,29],[64,5,64,29],[65,5,65,29],[66,5,66,29],[67,1,67,29],[68,1,68,7],[61,6,61,9],[61,11,61,19],[61,21,61,25],[62,6,62,9],[62,11,62,19],[62,21,62,25],[59,6,59,9],[59,11,59,19],[59,21,59,25],[60,6,60,9],[60,11,60,19],[60,21,60,25],[57,6,57,9],[57,11,57,19],[57,21,57,25],[58,6,58,9],[58,11,58,19],[58,21,58,25],[50,9,50,11],[51,9,51,11],[53,9,53,11],[55,11,55,29],[56,6,56,9],[56,11,56,19],[56,21,56,25],[44,5,44,29],[45,1,45,29],[46,1,46,7],[47,5,47,7],[48,5,48,7],[49,7,49,8],[49,9,49,11],[40,6,40,9],[40,11,40,19],[40,21,40,25],[41,8,41,29],[42,5,42,29],[43,5,43,29],[38,6,38,9],[38,11,38,19],[38,21,38,25],[39,6,39,9],[39,11,39,19],[39,21,39,25],[36,6,36,9],[36,11,36,19],[36,21,36,25],[37,6,37,9],[37,11,37,19],[37,21,37,25],[31,9,31,11],[33,11,33,29],[34,6,34,9],[34,11,34,19],[34,21,34,25],[35,6,35,9],[35,11,35,19],[35,21,35,25],[25,5,25,7],[26,5,26,7],[27,7,27,8],[27,9,27,11],[28,9,28,11],[29,9,29,11],[19,8,19,29],[20,5,20,29],[21,5,21,29],[22,5,22,29],[23,1,23,29],[24,1,24,7],[17,6,17,9],[17,11,17,19],[17,21,17,25],[18,6,18,9],[18,11,18,19],[18,21,18,25],[15,6,15,9],[15,11,15,19],[15,21,15,25],[16,6,16,9],[16,11,16,19],[16,21,16,25],[14,6,14,9],[14,11,14,19],[14,21,14,25],[6,9,6,11],[7,9,7,11],[9,9,9,11],[11,11,11,29],[12,6,12,9],[12,11,12,19],[12,21,12,25],[1,1,1,29],[2,1,2,7],[3,5,3,7],[4,5,4,7],[5,7,5,8],[5,9,5,11],[13,6,13,9],[13,11,13,19],[13,21,13,25]]}
[null,"申請書（第五面）"]
[null,"（第五面）"]
[null,"　建築物の階別概要"]
[null,"【1．番号】",null,null,null,"3"]
[null,"【2．階】",null,null,null,"BF2",null,null,"階"]
[null,"【3．柱の小径】",null,null,null,null,null,null,null,null,null,null,"ｍｍ"]
[null,"【4．横架材間の垂直距離】",null,null,null,null,null,null,null,null,null,null,"ｍｍ"]
[null,"【5．階の高さ】",null,null,null,null,null,null,null,null,null,null,"ｍｍ"]
[null,"【6．天井】"]
[null,null,"【ｲ.居室の天井の高さ】",null,null,null,null,null,null,null,null,null,"ｍｍ"]
[null,null,"【ﾛ.建築基準法施行令第39条第3項に規定する特定天井】",null,null,null,null,null,null,null,null,null,null,null,null,null,null,null,null,"□","有",null,"■","無"]
[null,"【7．用途別床面積】"]
[null,null,null,null,null," （","用途の区分",null,null,null,")(","具体的な用途の名称",null,null,null,null,null,null,null,null,")(","床面積",null,null,null,null,"　) "]
[null,null,"【ｲ.】",null,null," （",null,null,null,null,")(",null,null,null,null,null,null,null,null,null,")(",null,null,null,null,null,"㎡) "]
[null,null,"【ﾛ.】",null,null," （",null,null,null,null,")(",null,null,null,null,null,null,null,null,null,")(",null,null,null,null,null,"㎡) "]
[null,null,"【ﾊ.】",null,null," （",null,null,null,null,")(",null,null,null,null,null,null,null,null,null,")(",null,null,null,null,null,"㎡) "]
[null,null,"【ﾆ.】",null,null," （",null,null,null,null,")(",null,null,null,null,null,null,null,null,null,")(",null,null,null,null,null,"㎡) "]
[null,null,"【ﾎ.】",null,null," （",null,null,null,null,")(",null,null,null,null,null,null,null,null,null,")(",null,null,null,null,null,"㎡) "]
[null,null,"【ﾍ.】",null,null," （",null,null,null,null,")(",null,null,null,null,null,null,null,null,null,")(",null,null,null,null,null,"㎡) "]
[null,"【8．その他必要な事項】"]
[null,"【9．備考】"]
[]
[]
[null,"（第五面）"]
[null,"　建築物の階別概要"]
[null,"【1．番号】",null,null,null,"3"]
[null,"【2．階】",null,null,null,"BF1",null,null,"階"]
[null,"【3．柱の小径】",null,null,null,null,null,null,null,null,null,null,"ｍｍ"]
[null,"【4．横架材間の垂直距離】",null,null,null,null,null,null,null,null,null,null,"ｍｍ"]
[null,"【5．階の高さ】",null,null,null,null,null,null,null,null,null,null,"ｍｍ"]
[null,"【6．天井】"]
[null,null,"【ｲ.居室の天井の高さ】",null,null,null,null,null,null,null,null,null,"ｍｍ"]
[null,null,"【ﾛ.建築基準法施行令第39条第3項に規定する特定天井】",null,null,null,null,null,null,null,null,null,null,null,null,null,null,null,null,"□","有",null,"■","無"]
[null,"【7．用途別床面積】"]
[null,null,null,null,null," （","用途の区分",null,null,null,")(","具体的な用途の名称",null,null,null,null,null,null,null,null,")(","床面積",null,null,null,null,"　) "]
[null,null,"【ｲ.】",null,null," （",null,null,null,null,")(",null,null,null,null,null,null,null,null,null,")(",null,null,null,null,null,"㎡) "]
[null,null,"【ﾛ.】",null,null," （",null,null,null,null,")(",null,null,null,null,null,null,null,null,null,")(",null,null,null,null,null,"㎡) "]
[null,null,"【ﾊ.】",null,null," （",null,null,null,null,")(",null,null,null,null,null,null,null,null,null,")(",null,null,null,null,null,"㎡) "]
[null,null,"【ﾆ.】",null,null," （",null,null,null,null,")(",null,null,null,null,null,null,null,null,null,")(",null,null,null,null,null,"㎡) "]
[null,null,"【ﾎ.】",null,null," （",null,null,null,null,")(",null,null,null,null,null,null,null,null,null,")(",null,null,null,null,null,"㎡) "]
[null,null,"【ﾍ.】",null,null," （",null,null,null,null,")(",null,null,null,null,null,null,null,null,null,")(",null,null,null,null,null,"㎡) "]
[null,"【8．その他必要な事項】"]
[null,"【9．備考】"]
[]
[]
[null,"（第五面）"]
[null,"　建築物の階別概要"]
[null,"【1．番号】",null,null,null,"3"]
[null,"【2．階】",null,null,null,"F1",null,null,"階"]
[null,"【3．柱の小径】",null,null,null,null,null,null,null,null,null,null,"ｍｍ"]
[null,"【4．横架材間の垂直距離】",null,null,null,null,null,null,null,null,null,null,"ｍｍ"]
[null,"【5．階の高さ】",null,null,null,null,null,null,null,null,null,null,"ｍｍ"]
[null,"【6．天井】"]
[null,null,"【ｲ.居室の天井の高さ】",null,null,null,null,null,null,null,null,null,"ｍｍ"]
[null,null,"【ﾛ.建築基準法施行令第39条第3項に規定する特定天井】",null,null,null,null,null,null,null,null,null,null,null,null,null,null,null,null,"□","有",null,"■","無"]
[null,"【7．用途別床面積】"]
[null,null,null,null,null," （","用途の区分",null,null,null,")(","具体的な用途の名称",null,null,null,null,null,null,null,null,")(","床面積",null,null,null,null,"　) "]
[null,null,"【ｲ.】",null,null," （",null,null,null,null,")(",null,null,null,null,null,null,null,null,null,")(",null,null,null,null,null,"㎡) "]
[null,null,"【ﾛ.】",null,null," （",null,null,null,null,")(",null,null,null,null,null,null,null,null,null,")(",null,null,null,null,null,"㎡) "]
[null,null,"【ﾊ.】",null,null," （",null,null,null,null,")(",null,null,null,null,null,null,null,null,null,")(",null,null,null,null,null,"㎡) "]
[null,null,"【ﾆ.】",null,null," （",null,null,null,null,")(",null,null,null,null,null,null,null,null,null,")(",null,null,null,null,null,"㎡) "]
[null,null,"【ﾎ.】",null,null," （",null,null,null,null,")(",null,null,null,null,null,null,null,null,null,")(",null,null,null,null,null,"㎡) "]
[null,null,"【ﾍ.】",null,null," （",null,null,null,null,")(",null,null,null,null,null,null,null,null,null,")(",null,null,null,null,null,"㎡) "]
[null,"【8．その他必要な事項】"]
[null,"【9．備考】"]
[]
[]
[null,"（第五面）"]
[null,"　建築物の階別概要"]
[null,"【1．番号】",null,null,null,"3"]
[null,"【2．階】",null,null,null,"F2",null,null,"階"]
[null,"【3．柱の小径】",null,null,null,null,null,null,null,null,null,null,"ｍｍ"]
[null,"【4．横架材間の垂直距離】",null,null,null,null,null,null,null,null,null,null,"ｍｍ"]
[null,"【5．階の高さ】",null,null,null,null,null,null,null,null,null,null,"ｍｍ"]
[null,"【6．天井】"]
[null,null,"【ｲ.居室の天井の高さ】",null,null,null,null,null,null,null,null,null,"ｍｍ"]
[null,null,"【ﾛ.建築基準法施行令第39条第3項に規定する特定天井】",null,null,null,null,null,null,null,null,null,null,null,null,null,null,null,null,"□","有",null,"■","無"]
[null,"【7．用途別床面積】"]
[null,null,null,null,null," （","用途の区分",null,null,null,")(","具体的な用途の名称",null,null,null,null,null,null,null,null,")(","床面積",null,null,null,null,"　) "]
[null,null,"【ｲ.】",null,null," （",null,null,null,null,")(",null,null,null,null,null,null,null,null,null,")(",null,null,null,null,null,"㎡) "]
[null,null,"【ﾛ.】",null,null," （",null,null,null,null,")(",null,null,null,null,null,null,null,null,null,")(",null,null,null,null,null,"㎡) "]
[null,null,"【ﾊ.】",null,null," （",null,null,null,null,")(",null,null,null,null,null,null,null,null,null,")(",null,null,null,null,null,"㎡) "]
[null,null,"【ﾆ.】",null,null," （",null,null,null,null,")(",null,null,null,null,null,null,null,null,null,")(",null,null,null,null,null,"㎡) "]
[null,null,"【ﾎ.】",null,null," （",null,null,null,null,")(",null,null,null,null,null,null,null,null,null,")(",null,null,null,null,null,"㎡) "]
[null,null,"【ﾍ.】",null,null," （",null,null,null,null,")(",null,null,null,null,null,null,null,null,null,")(",null,null,null,null,null,"㎡) "]
[null,"【8．その他必要な事項】"]
[null,"【9．備考】"]
[]
[]
[null,"（第五面）"]
[null,"　建築物の階別概要"]
[null,"【1．番号】",null,null,null,"3"]
[null,"【2．階】",null,null,null,"F3",null,null,"階"]
[null,"【3．柱の小径】",null,null,null,null,null,null,null,null,null,null,"ｍｍ"]
[null,"【4．横架材間の垂直距離】",null,null,null,null,null,null,null,null,null,null,"ｍｍ"]
[null,"【5．階の高さ】",null,null,null,null,null,null,null,null,null,null,"ｍｍ"]
[null,"【6．天井】"]
[null,null,"【ｲ.居室の天井の高さ】",null,null,null,null,null,null,null,null,null,"ｍｍ"]
[null,null,"【ﾛ.建築基準法施行令第39条第3項に規定する特定天井】",null,null,null,null,null,null,null,null,null,null,null,null,null,null,null,null,"□","有",null,"■","無"]
[null,"【7．用途別床面積】"]
[null,null,null,null,null," （","用途の区分",null,null,null,")(","具体的な用途の名称",null,null,null,null,null,null,null,null,")(","床面積",null,null,null,null,"　) "]
[null,null,"【ｲ.】",null,null," （",null,null,null,null,")(",null,null,null,null,null,null,null,null,null,")(",null,null,null,null,null,"㎡) "]
[null,null,"【ﾛ.】",null,null," （",null,null,null,null,")(",null,null,null,null,null,null,null,null,null,")(",null,null,null,null,null,"㎡) "]
[null,null,"【ﾊ.】",null,null," （",null,null,null,null,")(",null,null,null,null,null,null,null,null,null,")(",null,null,null,null,null,"㎡) "]
[null,null,"【ﾆ.】",null,null," （",null,null,null,null,")(",null,null,null,null,null,null,null,null,null,")(",null,null,null,null,null,"㎡) "]
[null,null,"【ﾎ.】",null,null," （",null,null,null,null,")(",null,null,null,null,null,null,null,null,null,")(",null,null,null,null,null,"㎡) "]
[null,null,"【ﾍ.】",null,null," （",null,null,null,null,")(",null,null,null,null,null,null,null,null,null,")(",null,null,null,null,null,"㎡) "]
[null,"【8．その他必要な事項】"]
[null,"【9．備考】"]
[]
[]
[null,"（第五面）"]
[null,"　建築物の階別概要"]
[null,"【1．番号】",null,null,null,"3"]
[null,"【2．階】",null,null,null,"F4",null,null,"階"]
[null,"【3．柱の小径】",null,null,null,null,null,null,null,null,null,null,"ｍｍ"]
[null,"【4．横架材間の垂直距離】",null,null,null,null,null,null,null,null,null,null,"ｍｍ"]
[null,"【5．階の高さ】",null,null,null,null,null,null,null,null,null,null,"ｍｍ"]
[null,"【6．天井】"]
[null,null,"【ｲ.居室の天井の高さ】",null,null,null,null,null,null,null,null,null,"ｍｍ"]
[null,null,"【ﾛ.建築基準法施行令第39条第3項に規定する特定天井】",null,null,null,null,null,null,null,null,null,null,null,null,null,null,null,null,"□","有",null,"■","無"]
[null,"【7．用途別床面積】"]
[null,null,null,null,null," （","用途の区分",null,null,null,")(","具体的な用途の名称",null,null,null,null,null,null,null,null,")(","床面積",null,null,null,null,"　) "]
[null,null,"【ｲ.】",null,null," （",null,null,null,null,")(",null,null,null,null,null,null,null,null,null,")(",null,null,null,null,null,"㎡) "]
[null,null,"【ﾛ.】",null,null," （",null,null,null,null,")(",null,null,null,null,null,null,null,null,null,")(",null,null,null,null,null,"㎡) "]
[null,null,"【ﾊ.】",null,null," （",null,null,null,null,")(",null,null,null,null,null,null,null,null,null,")(",null,null,null,null,null,"㎡) "]
[null,null,"【ﾆ.】",null,null," （",null,null,null,null,")(",null,null,null,null,null,null,null,null,null,")(",null,null,null,null,null,"㎡) "]
[null,null,"【ﾎ.】",null,null," （",null,null,null,null,")(",null,null,null,null,null,null,null,null,null,")(",null,null,null,null,null,"㎡) "]
[null,null,"【ﾍ.】",null,null," （",null,null,null,null,")(",null,null,null,null,null,null,null,null,null,")(",null,null,null,null,null,"㎡) "]
[null,"【8．その他必要な事項】"]
[null,"【9．備考】"]
[]
[]
[null,"（第五面）"]
[null,"　建築物の階別概要"]
[null,"【1．番号】",null,null,null,"3"]
[null,"【2．階】",null,null,null,"F5",null,null,"階"]
[null,"【3．柱の小径】",null,null,null,null,null,null,null,null,null,null,"ｍｍ"]
[null,"【4．横架材間の垂直距離】",null,null,null,null,null,null,null,null,null,null,"ｍｍ"]
[null,"【5．階の高さ】",null,null,null,null,null,null,null,null,null,null,"ｍｍ"]
[null,"【6．天井】"]
[null,null,"【ｲ.居室の天井の高さ】",null,null,null,null,null,null,null,null,null,"ｍｍ"]
[null,null,"【ﾛ.建築基準法施行令第39条第3項に規定する特定天井】",null,null,null,null,null,null,null,null,null,null,null,null,null,null,null,null,"□","有",null,"■","無"]
[null,"【7．用途別床面積】"]
[null,null,null,null,null," （","用途の区分",null,null,null,")(","具体的な用途の名称",null,null,null,null,null,null,null,null,")(","床面積",null,null,null,null,"　) "]
[null,null,"【ｲ.】",null,null," （",null,null,null,null,")(",null,null,null,null,null,null,null,null,null,")(",null,null,null,null,null,"㎡) "]
[null,null,"【ﾛ.】",null,null," （",null,null,null,null,")(",null,null,null,null,null,null,null,null,null,")(",null,null,null,null,null,"㎡) "]
[null,null,"【ﾊ.】",null,null," （",null,null,null,null,")(",null,null,null,null,null,null,null,null,null,")(",null,null,null,null,null,"㎡) "]
[null,null,"【ﾆ.】",null,null," （",null,null,null,null,")(",null,null,null,null,null,null,null,null,null,")(",null,null,null,null,null,"㎡) "]
[null,null,"【ﾎ.】",null,null," （",null,null,null,null,")(",null,null,null,null,null,null,null,null,null,")(",null,null,null,null,null,"㎡) "]
[null,null,"【ﾍ.】",null,null," （",null,null,null,null,")(",null,null,null,null,null,null,null,null,null,")(",null,null,null,null,null,"㎡) "]
[null,"【8．その他必要な事項】"]
[null,"【9．備考】"]
[]
[]
[null,"（第五面）"]
[null,"　建築物の階別概要"]
[null,"【1．番号】",null,null,null,"3"]
[null,"【2．階】",null,null,null,"F6",null,null,"階"]
[null,"【3．柱の小径】",null,null,null,null,null,null,null,null,null,null,"ｍｍ"]
[null,"【4．横架材間の垂直距離】",null,null,null,null,null,null,null,null,null,null,"ｍｍ"]
[null,"【5．階の高さ】",null,null,null,null,null,null,null,null,null,null,"ｍｍ"]
[null,"【6．天井】"]
[null,null,"【ｲ.居室の天井の高さ】",null,null,null,null,null,null,null,null,null,"ｍｍ"]
[null,null,"【ﾛ.建築基準法施行令第39条第3項に規定する特定天井】",null,null,null,null,null,null,null,null,null,null,null,null,null,null,null,null,"□","有",null,"■","無"]
[null,"【7．用途別床面積】"]
[null,null,null,null,null," （","用途の区分",null,null,null,")(","具体的な用途の名称",null,null,null,null,null,null,null,null,")(","床面積",null,null,null,null,"　) "]
[null,null,"【ｲ.】",null,null," （",null,null,null,null,")(",null,null,null,null,null,null,null,null,null,")(",null,null,null,null,null,"㎡) "]
[null,null,"【ﾛ.】",null,null," （",null,null,null,null,")(",null,null,null,null,null,null,null,null,null,")(",null,null,null,null,null,"㎡) "]
[null,null,"【ﾊ.】",null,null," （",null,null,null,null,")(",null,null,null,null,null,null,null,null,null,")(",null,null,null,null,null,"㎡) "]
[null,null,"【ﾆ.】",null,null," （",null,null,null,null,")(",null,null,null,null,null,null,null,null,null,")(",null,null,null,null,null,"㎡) "]
[null,null,"【ﾎ.】",null,null," （",null,null,null,null,")(",null,null,null,null,null,null,null,null,null,")(",null,null,null,null,null,"㎡) "]
[null,null,"【ﾍ.】",null,null," （",null,null,null,null,")(",null,null,null,null,null,null,null,null,null,")(",null,null,null,null,null,"㎡) "]
[null,"【8．その他必要な事項】"]
[null,"【9．備考】"]
[]
[]
[null,"（第五面）"]
[null,"　建築物の階別概要"]
[null,"【1．番号】",null,null,null,"3"]
[null,"【2．階】",null,null,null,"PH1",null,null,"階"]
[null,"【3．柱の小径】",null,null,null,null,null,null,null,null,null,null,"ｍｍ"]
[null,"【4．横架材間の垂直距離】",null,null,null,null,null,null,null,null,null,null,"ｍｍ"]
[null,"【5．階の高さ】",null,null,null,null,null,null,null,null,null,null,"ｍｍ"]
[null,"【6．天井】"]
[null,null,"【ｲ.居室の天井の高さ】",null,null,null,null,null,null,null,null,null,"ｍｍ"]
[null,null,"【ﾛ.建築基準法施行令第39条第3項に規定する特定天井】",null,null,null,null,null,null,null,null,null,null,null,null,null,null,null,null,"□","有",null,"■","無"]
[null,"【7．用途別床面積】"]
[null,null,null,null,null," （","用途の区分",null,null,null,")(","具体的な用途の名称",null,null,null,null,null,null,null,null,")(","床面積",null,null,null,null,"　) "]
[null,null,"【ｲ.】",null,null," （",null,null,null,null,")(",null,null,null,null,null,null,null,null,null,")(",null,null,null,null,null,"㎡) "]
[null,null,"【ﾛ.】",null,null," （",null,null,null,null,")(",null,null,null,null,null,null,null,null,null,")(",null,null,null,null,null,"㎡) "]
[null,null,"【ﾊ.】",null,null," （",null,null,null,null,")(",null,null,null,null,null,null,null,null,null,")(",null,null,null,null,null,"㎡) "]
[null,null,"【ﾆ.】",null,null," （",null,null,null,null,")(",null,null,null,null,null,null,null,null,null,")(",null,null,null,null,null,"㎡) "]
[null,null,"【ﾎ.】",null,null," （",null,null,null,null,")(",null,null,null,null,null,null,null,null,null,")(",null,null,null,null,null,"㎡) "]
[null,null,"【ﾍ.】",null,null," （",null,null,null,null,")(",null,null,null,null,null,null,null,null,null,")(",null,null,null,null,null,"㎡) "]
[null,"【8．その他必要な事項】"]
[null,"【9．備考】"]
[]
[]
[null,"（第五面）"]
[null,"　建築物の階別概要"]
[null,"【1．番号】",null,null,null,"3"]
[null,"【2．階】",null,null,null,"PH2",null,null,"階"]
[null,"【3．柱の小径】",null,null,null,null,null,null,null,null,null,null,"ｍｍ"]
[null,"【4．横架材間の垂直距離】",null,null,null,null,null,null,null,null,null,null,"ｍｍ"]
[null,"【5．階の高さ】",null,null,null,null,null,null,null,null,null,null,"ｍｍ"]
[null,"【6．天井】"]
[null,null,"【ｲ.居室の天井の高さ】",null,null,null,null,null,null,null,null,null,"ｍｍ"]
[null,null,"【ﾛ.建築基準法施行令第39条第3項に規定する特定天井】",null,null,null,null,null,null,null,null,null,null,null,null,null,null,null,null,"□","有",null,"■","無"]
[null,"【7．用途別床面積】"]
[null,null,null,null,null," （","用途の区分",null,null,null,")(","具体的な用途の名称",null,null,null,null,null,null,null,null,")(","床面積",null,null,null,null,"　) "]
[null,null,"【ｲ.】",null,null," （",null,null,null,null,")(",null,null,null,null,null,null,null,null,null,")(",null,null,null,null,null,"㎡) "]
[null,null,"【ﾛ.】",null,null," （",null,null,null,null,")(",null,null,null,null,null,null,null,null,null,")(",null,null,null,null,null,"㎡) "]
[null,null,"【ﾊ.】",null,null," （",null,null,null,null,")(",null,null,null,null,null,null,null,null,null,")(",null,null,null,null,null,"㎡) "]
[null,null,"【ﾆ.】",null,null," （",null,null,null,null,")(",null,null,null,null,null,null,null,null,null,")(",null,null,null,null,null,"㎡) "]
[null,null,"【ﾎ.】",null,null," （",null,null,null,null,")(",null,null,null,null,null,null,null,null,null,")(",null,null,null,null,null,"㎡) "]
[null,null,"【ﾍ.】",null,null," （",null,null,null,null,")(",null,null,null,null,null,null,null,null,null,")(",null,null,null,null,null,"㎡) "]
[null,"【8．その他必要な事項】"]
[null,"【9．備考】"]

{"sheet":"第五面 (4)","index":12,"n_rows":219,"n_cols":27,"rows_kept":219,"cut":false,"hidden":true,"merged":[[220,5,220,29],[216,6,216,9],[216,11,216,19],[216,21,216,25],[217,8,217,29],[218,5,218,29],[219,5,219,29],[214,6,214,9],[214,11,214,19],[214,21,214,25],[215,6,215,9],[215,11,215,19],[215,21,215,25],[212,6,212,9],[212,11,212,19],[212,21,212,25],[213,6,213,9],[213,11,213,19],[213,21,213,25],[207,9,207,11],[209,11,209,29],[210,6,210,9],[210,11,210,19],[210,21,210,25],[211,6,211,9],[211,11,211,19],[211,21,211,25],[201,5,201,7],[202,5,202,7],[203,7,203,8],[203,9,203,11],[204,9,204,11],[205,9,205,11],[195,8,195,29],[196,5,196,29],[197,5,197,29],[198,5,198,29],[199,1,199,29],[200,1,200,7],[193,6,193,9],[193,11,193,19],[193,21,193,25],[194,6,194,9],[194,11,194,19],[194,21,194,25],[191,6,191,9],[191,11,191,19],[191,21,191,25],[192,6,192,9],[192,11,192,19],[192,21,192,25],[189,6,189,9],[189,11,189,19],[189,21,189,25],[190,6,190,9],[190,11,190,19],[190,21,190,25],[182,9,182,11],[183,9,183,11],[185,9,185,11],[187,11,187,29],[188,6,188,9],[188,11,188,19],[188,21,188,25],[176,5,176,29],[177,1,177,29],[178,1,178,7],[179,5,179,7],[180,5,180,7],[181,7,181,8],[181,9,181,11],[172,6,172,9],[172,11,172,19],[172,21,172,25],[173,8,173,29],[174,5,174,29],[175,5,175,29],[170,6,170,9],[170,11,170,19],[170,21,170,25],[171,6,171,9],[171,11,171,19],[171,21,171,25],[168,6,168,9],[168,11,168,19],[168,21,168,25],[169,6,169,9],[169,11,169,19],[169,21,169,25],[163,9,163,11],[165,11,165,29],[166,6,166,9],[166,11,166,19],[166,21,166,25],[167,6,167,9],[167,11,167,19],[167,21,167,25],[157,5,157,7],[158,5,158,7],[159,7,159,8],[159,9,159,11],[160,9,160,11],[161,9,161,11],[151,8,151,29],[152,5,152,29],[153,5,153,29],[154,5,154,29],[155,1,155,29],[156,1,156,7],[149,6,149,9],[149,11,149,19],[149,21,149,25],[150,6,150,9],[150,11,150,19],[150,21,150,25],[147,6,147,9],[147,11,147,19],[147,21,147,25],[148,6,148,9],[148,11,148,19],[148,21,148,25],[145,6,145,9],[145,11,145,19],[145,21,145,25],[146,6,146,9],[146,11,146,19],[146,21,146,25],[138,9,138,11],[139,9,139,11],[141,9,141,11],[143,11,143,29],[144,6,144,9],[144,11,144,19],[144,21,144,25],[132,5,132,29],[133,1,133,29],[134,1,134,7],[135,5,135,7],[136,5,136,7],[137,7,137,8],[137,9,137,11],[128,6,128,9],[128,11,128,19],[128,21,128,25],[129,8,129,29],[130,5,130,29],[131,5,131,29],[126,6,126,9],[126,11,126,19],[126,21,126,25],[127,6,127,9],[127,11,127,19],[127,21,127,25],[124,6,124,9],[124,11,124,19],[124,21,124,25],[125,6,125,9],[125,11,125,19],[125,21,125,25],[119,9,119,11],[121,11,121,29],[122,6,122,9],[122,11,122,19],[122,21,122,25],[123,6,123,9],[123,11,123,19],[123,21,123,25],[113,5,113,7],[114,5,114,7],[115,7,115,8],[115,9,115,11],[116,9,116,11],[117,9,117,11],[107,8,107,29],[108,5,108,29],[109,5,109,29],[110,5,110,29],[111,1,111,29],[112,1,112,7],[105,6,105,9],[105,11,105,19],[105,21,105,25],[106,6,106,9],[106,11,106,19],[106,21,106,25],[103,6,103,9],[103,11,103,19],[103,21,103,25],[104,6,104,9],[104,11,104,19],[104,21,104,25],[101,6,101,9],[101,11,101,19],[101,21,101,25],[102,6,102,9],[102,11,102,19],[102,21,102,25],[94,9,94,11],[95,9,95,11],[97,9,97,11],[99,11,99,29],[100,6,100,9],[100,11,100,19],[100,21,100,25],[88,5,88,29],[89,1,89,29],[90,1,90,7],[91,5,91,7],[92,5,92,7],[93,7,93,8],[93,9,93,11],[84,6,84,9],[84,11,84,19],[84,21,84,25],[85,8,85,29],[86,5,86,29],[87,5,87,29],[82,6,82,9],[82,11,82,19],[82,21,82,25],[83,6,83,9],[83,11,83,19],[83,21,83,25],[80,6,80,9],[80,11,80,19],[80,21,80,25],[81,6,81,9],[81,11,81,19],[81,21,81,25],[75,9,75,11],[77,11,77,29],[78,6,78,9],[78,11,78,19],[78,21,78,25],[79,6,79,9],[79,11,79,19],[79,21,79,25],[69,5,69,7],[70,5,70,7],[71,7,71,8],[71,9,71,11],[72,9,72,11],[73,9,73,11],[63,8,63,29],[64,5,64,29],[65,5,65,29],[66,5,66,29],[67,1,67,29],[68,1,68,7],[61,6,61,9],[61,11,61,19],[61,21,61,25],[62,6,62,9],[62,11,62,19],[62,21,62,25],[59,6,59,9],[59,11,59,19],[59,21,59,25],[60,6,60,9],[60,11,60,19],[60,21,60,25],[57,6,57,9],[57,11,57,19],[57,21,57,25],[58,6,58,9],[58,11,58,19],[58,21,58,25],[50,9,50,11],[51,9,51,11],[53,9,53,11],[55,11,55,29],[56,6,56,9],[56,11,56,19],[56,21,56,25],[44,5,44,29],[45,1,45,29],[46,1,46,7],[47,5,47,7],[48,5,48,7],[49,7,49,8],[49,9,49,11],[40,6,40,9],[40,11,40,19],[40,21,40,25],[41,8,41,29],[42,5,42,29],[43,5,43,29],[38,6,38,9],[38,11,38,19],[38,21,38,25],[39,6,39,9],[39,11,39,19],[39,21,39,25],[36,6,36,9],[36,11,36,19],[36,21,36,25],[37,6,37,9],[37,11,37,19],[37,21,37,25],[31,9,31,11],[33,11,33,29],[34,6,34,9],[34,11,34,19],[34,21,34,25],[35,6,35,9],[35,11,35,19],[35,21,35,25],[25,5,25,7],[26,5,26,7],[27,7,27,8],[27,9,27,11],[28,9,28,11],[29,9,29,11],[19,8,19,29],[20,5,20,29],[21,5,21,29],[22,5,22,29],[23,1,23,29],[24,1,24,7],[17,6,17,9],[17,11,17,19],[17,21,17,25],[18,6,18,9],[18,11,18,19],[18,21,18,25],[15,6,15,9],[15,11,15,19],[15,21,15,25],[16,6,16,9],[16,11,16,19],[16,21,16,25],[14,6,14,9],[14,11,14,19],[14,21,14,25],[6,9,6,11],[7,9,7,11],[9,9,9,11],[11,11,11,29],[12,6,12,9],[12,11,12,19],[12,21,12,25],[1,1,1,29],[2,1,2,7],[3,5,3,7],[4,5,4,7],[5,7,5,8],[5,9,5,11],[13,6,13,9],[13,11,13,19],[13,21,13,25]]}
[null,"申請書（第五面）"]
[null,"（第五面）"]
[null,"　建築物の階別概要"]
[null,"【1．番号】",null,null,null,"4"]
[null,"【2．階】",null,null,null,"BF2",null,null,"階"]
[null,"【3．柱の小径】",null,null,null,null,null,null,null,null,null,null,"ｍｍ"]
[null,"【4．横架材間の垂直距離】",null,null,null,null,null,null,null,null,null,null,"ｍｍ"]
[null,"【5．階の高さ】",null,null,null,null,null,null,null,null,null,null,"ｍｍ"]
[null,"【6．天井】"]
[null,null,"【ｲ.居室の天井の高さ】",null,null,null,null,null,null,null,null,null,"ｍｍ"]
[null,null,"【ﾛ.建築基準法施行令第39条第3項に規定する特定天井】",null,null,null,null,null,null,null,null,null,null,null,null,null,null,null,null,"□","有",null,"■","無"]
[null,"【7．用途別床面積】"]
[null,null,null,null,null," （","用途の区分",null,null,null,")(","具体的な用途の名称",null,null,null,null,null,null,null,null,")(","床面積",null,null,null,null,"　) "]
[null,null,"【ｲ.】",null,null," （",null,null,null,null,")(",null,null,null,null,null,null,null,null,null,")(",null,null,null,null,null,"㎡) "]
[null,null,"【ﾛ.】",null,null," （",null,null,null,null,")(",null,null,null,null,null,null,null,null,null,")(",null,null,null,null,null,"㎡) "]
[null,null,"【ﾊ.】",null,null," （",null,null,null,null,")(",null,null,null,null,null,null,null,null,null,")(",null,null,null,null,null,"㎡) "]
[null,null,"【ﾆ.】",null,null," （",null,null,null,null,")(",null,null,null,null,null,null,null,null,null,")(",null,null,null,null,null,"㎡) "]
[null,null,"【ﾎ.】",null,null," （",null,null,null,null,")(",null,null,null,null,null,null,null,null,null,")(",null,null,null,null,null,"㎡) "]
[null,null,"【ﾍ.】",null,null," （",null,null,null,null,")(",null,null,null,null,null,null,null,null,null,")(",null,null,null,null,null,"㎡) "]
[null,"【8．その他必要な事項】"]
[null,"【9．備考】"]
[]
[]
[null,"（第五面）"]
[null,"　建築物の階別概要"]
[null,"【1．番号】",null,null,null,"4"]
[null,"【2．階】",null,null,null,"BF1",null,null,"階"]
[null,"【3．柱の小径】",null,null,null,null,null,null,null,null,null,null,"ｍｍ"]
[null,"【4．横架材間の垂直距離】",null,null,null,null,null,null,null,null,null,null,"ｍｍ"]
[null,"【5．階の高さ】",null,null,null,null,null,null,null,null,null,null,"ｍｍ"]
[null,"【6．天井】"]
[null,null,"【ｲ.居室の天井の高さ】",null,null,null,null,null,null,null,null,null,"ｍｍ"]
[null,null,"【ﾛ.建築基準法施行令第39条第3項に規定する特定天井】",null,null,null,null,null,null,null,null,null,null,null,null,null,null,null,null,"□","有",null,"■","無"]
[null,"【7．用途別床面積】"]
[null,null,null,null,null," （","用途の区分",null,null,null,")(","具体的な用途の名称",null,null,null,null,null,null,null,null,")(","床面積",null,null,null,null,"　) "]
[null,null,"【ｲ.】",null,null," （",null,null,null,null,")(",null,null,null,null,null,null,null,null,null,")(",null,null,null,null,null,"㎡) "]
[null,null,"【ﾛ.】",null,null," （",null,null,null,null,")(",null,null,null,null,null,null,null,null,null,")(",null,null,null,null,null,"㎡) "]
[null,null,"【ﾊ.】",null,null," （",null,null,null,null,")(",null,null,null,null,null,null,null,null,null,")(",null,null,null,null,null,"㎡) "]
[null,null,"【ﾆ.】",null,null," （",null,null,null,null,")(",null,null,null,null,null,null,null,null,null,")(",null,null,null,null,null,"㎡) "]
[null,null,"【ﾎ.】",null,null," （",null,null,null,null,")(",null,null,null,null,null,null,null,null,null,")(",null,null,null,null,null,"㎡) "]
[null,null,"【ﾍ.】",null,null," （",null,null,null,null,")(",null,null,null,null,null,null,null,null,null,")(",null,null,null,null,null,"㎡) "]
[null,"【8．その他必要な事項】"]
[null,"【9．備考】"]
[]
[]
[null,"（第五面）"]
[null,"　建築物の階別概要"]
[null,"【1．番号】",null,null,null,"4"]
[null,"【2．階】",null,null,null,"F1",null,null,"階"]
[null,"【3．柱の小径】",null,null,null,null,null,null,null,null,null,null,"ｍｍ"]
[null,"【4．横架材間の垂直距離】",null,null,null,null,null,null,null,null,null,null,"ｍｍ"]
[null,"【5．階の高さ】",null,null,null,null,null,null,null,null,null,null,"ｍｍ"]
[null,"【6．天井】"]
[null,null,"【ｲ.居室の天井の高さ】",null,null,null,null,null,null,null,null,null,"ｍｍ"]
[null,null,"【ﾛ.建築基準法施行令第39条第3項に規定する特定天井】",null,null,null,null,null,null,null,null,null,null,null,null,null,null,null,null,"□","有",null,"■","無"]
[null,"【7．用途別床面積】"]
[null,null,null,null,null," （","用途の区分",null,null,null,")(","具体的な用途の名称",null,null,null,null,null,null,null,null,")(","床面積",null,null,null,null,"　) "]
[null,null,"【ｲ.】",null,null," （",null,null,null,null,")(",null,null,null,null,null,null,null,null,null,")(",null,null,null,null,null,"㎡) "]
[null,null,"【ﾛ.】",null,null," （",null,null,null,null,")(",null,null,null,null,null,null,null,null,null,")(",null,null,null,null,null,"㎡) "]
[null,null,"【ﾊ.】",null,null," （",null,null,null,null,")(",null,null,null,null,null,null,null,null,null,")(",null,null,null,null,null,"㎡) "]
[null,null,"【ﾆ.】",null,null," （",null,null,null,null,")(",null,null,null,null,null,null,null,null,null,")(",null,null,null,null,null,"㎡) "]
[null,null,"【ﾎ.】",null,null," （",null,null,null,null,")(",null,null,null,null,null,null,null,null,null,")(",null,null,null,null,null,"㎡) "]
[null,null,"【ﾍ.】",null,null," （",null,null,null,null,")(",null,null,null,null,null,null,null,null,null,")(",null,null,null,null,null,"㎡) "]
[null,"【8．その他必要な事項】"]
[null,"【9．備考】"]
[]
[]
[null,"（第五面）"]
[null,"　建築物の階別概要"]
[null,"【1．番号】",null,null,null,"4"]
[null,"【2．階】",null,null,null,"F2",null,null,"階"]
[null,"【3．柱の小径】",null,null,null,null,null,null,null,null,null,null,"ｍｍ"]
[null,"【4．横架材間の垂直距離】",null,null,null,null,null,null,null,null,null,null,"ｍｍ"]
[null,"【5．階の高さ】",null,null,null,null,null,null,null,null,null,null,"ｍｍ"]
[null,"【6．天井】"]
[null,null,"【ｲ.居室の天井の高さ】",null,null,null,null,null,null,null,null,null,"ｍｍ"]
[null,null,"【ﾛ.建築基準法施行令第39条第3項に規定する特定天井】",null,null,null,null,null,null,null,null,null,null,null,null,null,null,null,null,"□","有",null,"■","無"]
[null,"【7．用途別床面積】"]
[null,null,null,null,null," （","用途の区分",null,null,null,")(","具体的な用途の名称",null,null,null,null,null,null,null,null,")(","床面積",null,null,null,null,"　) "]
[null,null,"【ｲ.】",null,null," （",null,null,null,null,")(",null,null,null,null,null,null,null,null,null,")(",null,null,null,null,null,"㎡) "]
[null,null,"【ﾛ.】",null,null," （",null,null,null,null,")(",null,null,null,null,null,null,null,null,null,")(",null,null,null,null,null,"㎡) "]
[null,null,"【ﾊ.】",null,null," （",null,null,null,null,")(",null,null,null,null,null,null,null,null,null,")(",null,null,null,null,null,"㎡) "]
[null,null,"【ﾆ.】",null,null," （",null,null,null,null,")(",null,null,null,null,null,null,null,null,null,")(",null,null,null,null,null,"㎡) "]
[null,null,"【ﾎ.】",null,null," （",null,null,null,null,")(",null,null,null,null,null,null,null,null,null,")(",null,null,null,null,null,"㎡) "]
[null,null,"【ﾍ.】",null,null," （",null,null,null,null,")(",null,null,null,null,null,null,null,null,null,")(",null,null,null,null,null,"㎡) "]
[null,"【8．その他必要な事項】"]
[null,"【9．備考】"]
[]
[]
[null,"（第五面）"]
[null,"　建築物の階別概要"]
[null,"【1．番号】",null,null,null,"4"]
[null,"【2．階】",null,null,null,"F3",null,null,"階"]
[null,"【3．柱の小径】",null,null,null,null,null,null,null,null,null,null,"ｍｍ"]
[null,"【4．横架材間の垂直距離】",null,null,null,null,null,null,null,null,null,null,"ｍｍ"]
[null,"【5．階の高さ】",null,null,null,null,null,null,null,null,null,null,"ｍｍ"]
[null,"【6．天井】"]
[null,null,"【ｲ.居室の天井の高さ】",null,null,null,null,null,null,null,null,null,"ｍｍ"]
[null,null,"【ﾛ.建築基準法施行令第39条第3項に規定する特定天井】",null,null,null,null,null,null,null,null,null,null,null,null,null,null,null,null,"□","有",null,"■","無"]
[null,"【7．用途別床面積】"]
[null,null,null,null,null," （","用途の区分",null,null,null,")(","具体的な用途の名称",null,null,null,null,null,null,null,null,")(","床面積",null,null,null,null,"　) "]
[null,null,"【ｲ.】",null,null," （",null,null,null,null,")(",null,null,null,null,null,null,null,null,null,")(",null,null,null,null,null,"㎡) "]
[null,null,"【ﾛ.】",null,null," （",null,null,null,null,")(",null,null,null,null,null,null,null,null,null,")(",null,null,null,null,null,"㎡) "]
[null,null,"【ﾊ.】",null,null," （",null,null,null,null,")(",null,null,null,null,null,null,null,null,null,")(",null,null,null,null,null,"㎡) "]
[null,null,"【ﾆ.】",null,null," （",null,null,null,null,")(",null,null,null,null,null,null,null,null,null,")(",null,null,null,null,null,"㎡) "]
[null,null,"【ﾎ.】",null,null," （",null,null,null,null,")(",null,null,null,null,null,null,null,null,null,")(",null,null,null,null,null,"㎡) "]
[null,null,"【ﾍ.】",null,null," （",null,null,null,null,")(",null,null,null,null,null,null,null,null,null,")(",null,null,null,null,null,"㎡) "]
[null,"【8．その他必要な事項】"]
[null,"【9．備考】"]
[]
[]
[null,"（第五面）"]
[null,"　建築物の階別概要"]
[null,"【1．番号】",null,null,null,"4"]
[null,"【2．階】",null,null,null,"F4",null,null,"階"]
[null,"【3．柱の小径】",null,null,null,null,null,null,null,null,null,null,"ｍｍ"]
[null,"【4．横架材間の垂直距離】",null,null,null,null,null,null,null,null,null,null,"ｍｍ"]
[null,"【5．階の高さ】",null,null,null,null,null,null,null,null,null,null,"ｍｍ"]
[null,"【6．天井】"]
[null,null,"【ｲ.居室の天井の高さ】",null,null,null,null,null,null,null,null,null,"ｍｍ"]
[null,null,"【ﾛ.建築基準法施行令第39条第3項に規定する特定天井】",null,null,null,null,null,null,null,null,null,null,null,null,null,null,null,null,"□","有",null,"■","無"]
[null,"【7．用途別床面積】"]
[null,null,null,null,null," （","用途の区分",null,null,null,")(","具体的な用途の名称",null,null,null,null,null,null,null,null,")(","床面積",null,null,null,null,"　) "]
[null,null,"【ｲ.】",null,null," （",null,null,null,null,")(",null,null,null,null,null,null,null,null,null,")(",null,null,null,null,null,"㎡) "]
[null,null,"【ﾛ.】",null,null," （",null,null,null,null,")(",null,null,null,null,null,null,null,null,null,")(",null,null,null,null,null,"㎡) "]
[null,null,"【ﾊ.】",null,null," （",null,null,null,null,")(",null,null,null,null,null,null,null,null,null,")(",null,null,null,null,null,"㎡) "]
[null,null,"【ﾆ.】",null,null," （",null,null,null,null,")(",null,null,null,null,null,null,null,null,null,")(",null,null,null,null,null,"㎡) "]
[null,null,"【ﾎ.】",null,null," （",null,null,null,null,")(",null,null,null,null,null,null,null,null,null,")(",null,null,null,null,null,"㎡) "]
[null,null,"【ﾍ.】",null,null," （",null,null,null,null,")(",null,null,null,null,null,null,null,null,null,")(",null,null,null,null,null,"㎡) "]
[null,"【8．その他必要な事項】"]
[null,"【9．備考】"]
[]
[]
[null,"（第五面）"]
[null,"　建築物の階別概要"]
[null,"【1．番号】",null,null,null,"4"]
[null,"【2．階】",null,null,null,"F5",null,null,"階"]
[null,"【3．柱の小径】",null,null,null,null,null,null,null,null,null,null,"ｍｍ"]
[null,"【4．横架材間の垂直距離】",null,null,null,null,null,null,null,null,null,null,"ｍｍ"]
[null,"【5．階の高さ】",null,null,null,null,null,null,null,null,null,null,"ｍｍ"]
[null,"【6．天井】"]
[null,null,"【ｲ.居室の天井の高さ】",null,null,null,null,null,null,null,null,null,"ｍｍ"]
[null,null,"【ﾛ.建築基準法施行令第39条第3項に規定する特定天井】",null,null,null,null,null,null,null,null,null,null,null,null,null,null,null,null,"□","有",null,"■","無"]
[null,"【7．用途別床面積】"]
[null,null,null,null,null," （","用途の区分",null,null,null,")(","具体的な用途の名称",null,null,null,null,null,null,null,null,")(","床面積",null,null,null,null,"　) "]
[null,null,"【ｲ.】",null,null," （",null,null,null,null,")(",null,null,null,null,null,null,null,null,null,")(",null,null,null,null,null,"㎡) "]
[null,null,"【ﾛ.】",null,null," （",null,null,null,null,")(",null,null,null,null,null,null,null,null,null,")(",null,null,null,null,null,"㎡) "]
[null,null,"【ﾊ.】",null,null," （",null,null,null,null,")(",null,null,null,null,null,null,null,null,null,")(",null,null,null,null,null,"㎡) "]
[null,null,"【ﾆ.】",null,null," （",null,null,null,null,")(",null,null,null,null,null,null,null,null,null,")(",null,null,null,null,null,"㎡) "]
[null,null,"【ﾎ.】",null,null," （",null,null,null,null,")(",null,null,null,null,null,null,null,null,null,")(",null,null,null,null,null,"㎡) "]
[null,null,"【ﾍ.】",null,null," （",null,null,null,null,")(",null,null,null,null,null,null,null,null,null,")(",null,null,null,null,null,"㎡) "]
[null,"【8．その他必要な事項】"]
[null,"【9．備考】"]
[]
[]
[null,"（第五面）"]
[null,"　建築物の階別概要"]
[null,"【1．番号】",null,null,null,"1"]
[null,"【2．階】",null,null,null,"F6",null,null,"階"]
[null,"【3．柱の小径】",null,null,null,null,null,null,null,null,null,null,"ｍｍ"]
[null,"【4．横架材間の垂直距離】",null,null,null,null,null,null,null,null,null,null,"ｍｍ"]
[null,"【5．階の高さ】",null,null,null,null,null,null,null,null,null,null,"ｍｍ"]
[null,"【6．天井】"]
[null,null,"【ｲ.居室の天井の高さ】",null,null,null,null,null,null,null,null,null,"ｍｍ"]
[null,null,"【ﾛ.建築基準法施行令第39条第3項に規定する特定天井】",null,null,null,null,null,null,null,null,null,null,null,null,null,null,null,null,"□","有",null,"■","無"]
[null,"【7．用途別床面積】"]
[null,null,null,null,null," （","用途の区分",null,null,null,")(","具体的な用途の名称",null,null,null,null,null,null,null,null,")(","床面積",null,null,null,null,"　) "]
[null,null,"【ｲ.】",null,null," （",null,null,null,null,")(",null,null,null,null,null,null,null,null,null,")(",null,null,null,null,null,"㎡) "]
[null,null,"【ﾛ.】",null,null," （",null,null,null,null,")(",null,null,null,null,null,null,null,null,null,")(",null,null,null,null,null,"㎡) "]
[null,null,"【ﾊ.】",null,null," （",null,null,null,null,")(",null,null,null,null,null,null,null,null,null,")(",null,null,null,null,null,"㎡) "]
[null,null,"【ﾆ.】",null,null," （",null,null,null,null,")(",null,null,null,null,null,null,null,null,null,")(",null,null,null,null,null,"㎡) "]
[null,null,"【ﾎ.】",null,null," （",null,null,null,null,")(",null,null,null,null,null,null,null,null,null,")(",null,null,null,null,null,"㎡) "]
[null,null,"【ﾍ.】",null,null," （",null,null,null,null,")(",null,null,null,null,null,null,null,null,null,")(",null,null,null,null,null,"㎡) "]
[null,"【8．その他必要な事項】"]
[null,"【9．備考】"]
[]
[]
[null,"（第五面）"]
[null,"　建築物の階別概要"]
[null,"【1．番号】",null,null,null,"4"]
[null,"【2．階】",null,null,null,"PH1",null,null,"階"]
[null,"【3．柱の小径】",null,null,null,null,null,null,null,null,null,null,"ｍｍ"]
[null,"【4．横架材間の垂直距離】",null,null,null,null,null,null,null,null,null,null,"ｍｍ"]
[null,"【5．階の高さ】",null,null,null,null,null,null,null,null,null,null,"ｍｍ"]
[null,"【6．天井】"]
[null,null,"【ｲ.居室の天井の高さ】",null,null,null,null,null,null,null,null,null,"ｍｍ"]
[null,null,"【ﾛ.建築基準法施行令第39条第3項に規定する特定天井】",null,null,null,null,null,null,null,null,null,null,null,null,null,null,null,null,"□","有",null,"■","無"]
[null,"【7．用途別床面積】"]
[null,null,null,null,null," （","用途の区分",null,null,null,")(","具体的な用途の名称",null,null,null,null,null,null,null,null,")(","床面積",null,null,null,null,"　) "]
[null,null,"【ｲ.】",null,null," （",null,null,null,null,")(",null,null,null,null,null,null,null,null,null,")(",null,null,null,null,null,"㎡) "]
[null,null,"【ﾛ.】",null,null," （",null,null,null,null,")(",null,null,null,null,null,null,null,null,null,")(",null,null,null,null,null,"㎡) "]
[null,null,"【ﾊ.】",null,null," （",null,null,null,null,")(",null,null,null,null,null,null,null,null,null,")(",null,null,null,null,null,"㎡) "]
[null,null,"【ﾆ.】",null,null," （",null,null,null,null,")(",null,null,null,null,null,null,null,null,null,")(",null,null,null,null,null,"㎡) "]
[null,null,"【ﾎ.】",null,null," （",null,null,null,null,")(",null,null,null,null,null,null,null,null,null,")(",null,null,null,null,null,"㎡) "]
[null,null,"【ﾍ.】",null,null," （",null,null,null,null,")(",null,null,null,null,null,null,null,null,null,")(",null,null,null,null,null,"㎡) "]
[null,"【8．その他必要な事項】"]
[null,"【9．備考】"]
[]
[]
[null,"（第五面）"]
[null,"　建築物の階別概要"]
[null,"【1．番号】",null,null,null,"4"]
[null,"【2．階】",null,null,null,"PH2",null,null,"階"]
[null,"【3．柱の小径】",null,null,null,null,null,null,null,null,null,null,"ｍｍ"]
[null,"【4．横架材間の垂直距離】",null,null,null,null,null,null,null,null,null,null,"ｍｍ"]
[null,"【5．階の高さ】",null,null,null,null,null,null,null,null,null,null,"ｍｍ"]
[null,"【6．天井】"]
[null,null,"【ｲ.居室の天井の高さ】",null,null,null,null,null,null,null,null,null,"ｍｍ"]
[null,null,"【ﾛ.建築基準法施行令第39条第3項に規定する特定天井】",null,null,null,null,null,null,null,null,null,null,null,null,null,null,null,null,"□","有",null,"■","無"]
[null,"【7．用途別床面積】"]
[null,null,null,null,null," （","用途の区分",null,null,null,")(","具体的な用途の名称",null,null,null,null,null,null,null,null,")(","床面積",null,null,null,null,"　) "]
[null,null,"【ｲ.】",null,null," （",null,null,null,null,")(",null,null,null,null,null,null,null,null,null,")(",null,null,null,null,null,"㎡) "]
[null,null,"【ﾛ.】",null,null," （",null,null,null,null,")(",null,null,null,null,null,null,null,null,null,")(",null,null,null,null,null,"㎡) "]
[null,null,"【ﾊ.】",null,null," （",null,null,null,null,")(",null,null,null,null,null,null,null,null,null,")(",null,null,null,null,null,"㎡) "]
[null,null,"【ﾆ.】",null,null," （",null,null,null,null,")(",null,null,null,null,null,null,null,null,null,")(",null,null,null,null,null,"㎡) "]
[null,null,"【ﾎ.】",null,null," （",null,null,null,null,")(",null,null,null,null,null,null,null,null,null,")(",null,null,null,null,null,"㎡) "]
[null,null,"【ﾍ.】",null,null," （",null,null,null,null,")(",null,null,null,null,null,null,null,null,null,")(",null,null,null,null,null,"㎡) "]
[null,"【8．その他必要な事項】"]
[null,"【9．備考】"]

{"sheet":"第五面 (5)","index":13,"n_rows":219,"n_cols":27,"rows_kept":219,"cut":false,"hidden":true,"merged":[[220,5,220,29],[216,6,216,9],[216,11,216,19],[216,21,216,25],[217,8,217,29],[218,5,218,29],[219,5,219,29],[214,6,214,9],[214,11,214,19],[214,21,214,25],[215,6,215,9],[215,11,215,19],[215,21,215,25],[212,6,212,9],[212,11,212,19],[212,21,212,25],[213,6,213,9],[213,11,213,19],[213,21,213,25],[207,9,207,11],[209,11,209,29],[210,6,210,9],[210,11,210,19],[210,21,210,25],[211,6,211,9],[211,11,211,19],[211,21,211,25],[201,5,201,7],[202,5,202,7],[203,7,203,8],[203,9,203,11],[204,9,204,11],[205,9,205,11],[195,8,195,29],[196,5,196,29],[197,5,197,29],[198,5,198,29],[199,1,199,29],[200,1,200,7],[193,6,193,9],[193,11,193,19],[193,21,193,25],[194,6,194,9],[194,11,194,19],[194,21,194,25],[191,6,191,9],[191,11,191,19],[191,21,191,25],[192,6,192,9],[192,11,192,19],[192,21,192,25],[189,6,189,9],[189,11,189,19],[189,21,189,25],[190,6,190,9],[190,11,190,19],[190,21,190,25],[182,9,182,11],[183,9,183,11],[185,9,185,11],[187,11,187,29],[188,6,188,9],[188,11,188,19],[188,21,188,25],[176,5,176,29],[177,1,177,29],[178,1,178,7],[179,5,179,7],[180,5,180,7],[181,7,181,8],[181,9,181,11],[172,6,172,9],[172,11,172,19],[172,21,172,25],[173,8,173,29],[174,5,174,29],[175,5,175,29],[170,6,170,9],[170,11,170,19],[170,21,170,25],[171,6,171,9],[171,11,171,19],[171,21,171,25],[168,6,168,9],[168,11,168,19],[168,21,168,25],[169,6,169,9],[169,11,169,19],[169,21,169,25],[163,9,163,11],[165,11,165,29],[166,6,166,9],[166,11,166,19],[166,21,166,25],[167,6,167,9],[167,11,167,19],[167,21,167,25],[157,5,157,7],[158,5,158,7],[159,7,159,8],[159,9,159,11],[160,9,160,11],[161,9,161,11],[151,8,151,29],[152,5,152,29],[153,5,153,29],[154,5,154,29],[155,1,155,29],[156,1,156,7],[149,6,149,9],[149,11,149,19],[149,21,149,25],[150,6,150,9],[150,11,150,19],[150,21,150,25],[147,6,147,9],[147,11,147,19],[147,21,147,25],[148,6,148,9],[148,11,148,19],[148,21,148,25],[145,6,145,9],[145,11,145,19],[145,21,145,25],[146,6,146,9],[146,11,146,19],[146,21,146,25],[138,9,138,11],[139,9,139,11],[141,9,141,11],[143,11,143,29],[144,6,144,9],[144,11,144,19],[144,21,144,25],[132,5,132,29],[133,1,133,29],[134,1,134,7],[135,5,135,7],[136,5,136,7],[137,7,137,8],[137,9,137,11],[128,6,128,9],[128,11,128,19],[128,21,128,25],[129,8,129,29],[130,5,130,29],[131,5,131,29],[126,6,126,9],[126,11,126,19],[126,21,126,25],[127,6,127,9],[127,11,127,19],[127,21,127,25],[124,6,124,9],[124,11,124,19],[124,21,124,25],[125,6,125,9],[125,11,125,19],[125,21,125,25],[119,9,119,11],[121,11,121,29],[122,6,122,9],[122,11,122,19],[122,21,122,25],[123,6,123,9],[123,11,123,19],[123,21,123,25],[113,5,113,7],[114,5,114,7],[115,7,115,8],[115,9,115,11],[116,9,116,11],[117,9,117,11],[107,8,107,29],[108,5,108,29],[109,5,109,29],[110,5,110,29],[111,1,111,29],[112,1,112,7],[105,6,105,9],[105,11,105,19],[105,21,105,25],[106,6,106,9],[106,11,106,19],[106,21,106,25],[103,6,103,9],[103,11,103,19],[103,21,103,25],[104,6,104,9],[104,11,104,19],[104,21,104,25],[101,6,101,9],[101,11,101,19],[101,21,101,25],[102,6,102,9],[102,11,102,19],[102,21,102,25],[94,9,94,11],[95,9,95,11],[97,9,97,11],[99,11,99,29],[100,6,100,9],[100,11,100,19],[100,21,100,25],[88,5,88,29],[89,1,89,29],[90,1,90,7],[91,5,91,7],[92,5,92,7],[93,7,93,8],[93,9,93,11],[84,6,84,9],[84,11,84,19],[84,21,84,25],[85,8,85,29],[86,5,86,29],[87,5,87,29],[82,6,82,9],[82,11,82,19],[82,21,82,25],[83,6,83,9],[83,11,83,19],[83,21,83,25],[80,6,80,9],[80,11,80,19],[80,21,80,25],[81,6,81,9],[81,11,81,19],[81,21,81,25],[75,9,75,11],[77,11,77,29],[78,6,78,9],[78,11,78,19],[78,21,78,25],[79,6,79,9],[79,11,79,19],[79,21,79,25],[69,5,69,7],[70,5,70,7],[71,7,71,8],[71,9,71,11],[72,9,72,11],[73,9,73,11],[63,8,63,29],[64,5,64,29],[65,5,65,29],[66,5,66,29],[67,1,67,29],[68,1,68,7],[61,6,61,9],[61,11,61,19],[61,21,61,25],[62,6,62,9],[62,11,62,19],[62,21,62,25],[59,6,59,9],[59,11,59,19],[59,21,59,25],[60,6,60,9],[60,11,60,19],[60,21,60,25],[57,6,57,9],[57,11,57,19],[57,21,57,25],[58,6,58,9],[58,11,58,19],[58,21,58,25],[50,9,50,11],[51,9,51,11],[53,9,53,11],[55,11,55,29],[56,6,56,9],[56,11,56,19],[56,21,56,25],[44,5,44,29],[45,1,45,29],[46,1,46,7],[47,5,47,7],[48,5,48,7],[49,7,49,8],[49,9,49,11],[40,6,40,9],[40,11,40,19],[40,21,40,25],[41,8,41,29],[42,5,42,29],[43,5,43,29],[38,6,38,9],[38,11,38,19],[38,21,38,25],[39,6,39,9],[39,11,39,19],[39,21,39,25],[36,6,36,9],[36,11,36,19],[36,21,36,25],[37,6,37,9],[37,11,37,19],[37,21,37,25],[31,9,31,11],[33,11,33,29],[34,6,34,9],[34,11,34,19],[34,21,34,25],[35,6,35,9],[35,11,35,19],[35,21,35,25],[25,5,25,7],[26,5,26,7],[27,7,27,8],[27,9,27,11],[28,9,28,11],[29,9,29,11],[19,8,19,29],[20,5,20,29],[21,5,21,29],[22,5,22,29],[23,1,23,29],[24,1,24,7],[17,6,17,9],[17,11,17,19],[17,21,17,25],[18,6,18,9],[18,11,18,19],[18,21,18,25],[15,6,15,9],[15,11,15,19],[15,21,15,25],[16,6,16,9],[16,11,16,19],[16,21,16,25],[14,6,14,9],[14,11,14,19],[14,21,14,25],[6,9,6,11],[7,9,7,11],[9,9,9,11],[11,11,11,29],[12,6,12,9],[12,11,12,19],[12,21,12,25],[1,1,1,29],[2,1,2,7],[3,5,3,7],[4,5,4,7],[5,7,5,8],[5,9,5,11],[13,6,13,9],[13,11,13,19],[13,21,13,25]]}
[null,"申請書（第五面）"]
[null,"（第五面）"]
[null,"　建築物の階別概要"]
[null,"【1．番号】",null,null,null,"5"]
[null,"【2．階】",null,null,null,"BF2",null,null,"階"]
[null,"【3．柱の小径】",null,null,null,null,null,null,null,null,null,null,"ｍｍ"]
[null,"【4．横架材間の垂直距離】",null,null,null,null,null,null,null,null,null,null,"ｍｍ"]
[null,"【5．階の高さ】",null,null,null,null,null,null,null,null,null,null,"ｍｍ"]
[null,"【6．天井】"]
[null,null,"【ｲ.居室の天井の高さ】",null,null,null,null,null,null,null,null,null,"ｍｍ"]
[null,null,"【ﾛ.建築基準法施行令第39条第3項に規定する特定天井】",null,null,null,null,null,null,null,null,null,null,null,null,null,null,null,null,"□","有",null,"■","無"]
[null,"【7．用途別床面積】"]
[null,null,null,null,null," （","用途の区分",null,null,null,")(","具体的な用途の名称",null,null,null,null,null,null,null,null,")(","床面積",null,null,null,null,"　) "]
[null,null,"【ｲ.】",null,null," （",null,null,null,null,")(",null,null,null,null,null,null,null,null,null,")(",null,null,null,null,null,"㎡) "]
[null,null,"【ﾛ.】",null,null," （",null,null,null,null,")(",null,null,null,null,null,null,null,null,null,")(",null,null,null,null,null,"㎡) "]
[null,null,"【ﾊ.】",null,null," （",null,null,null,null,")(",null,null,null,null,null,null,null,null,null,")(",null,null,null,null,null,"㎡) "]
[null,null,"【ﾆ.】",null,null," （",null,null,null,null,")(",null,null,null,null,null,null,null,null,null,")(",null,null,null,null,null,"㎡) "]
[null,null,"【ﾎ.】",null,null," （",null,null,null,null,")(",null,null,null,null,null,null,null,null,null,")(",null,null,null,null,null,"㎡) "]
[null,null,"【ﾍ.】",null,null," （",null,null,null,null,")(",null,null,null,null,null,null,null,null,null,")(",null,null,null,null,null,"㎡) "]
[null,"【8．その他必要な事項】"]
[null,"【9．備考】"]
[]
[]
[null,"（第五面）"]
[null,"　建築物の階別概要"]
[null,"【1．番号】",null,null,null,"5"]
[null,"【2．階】",null,null,null,"BF1",null,null,"階"]
[null,"【3．柱の小径】",null,null,null,null,null,null,null,null,null,null,"ｍｍ"]
[null,"【4．横架材間の垂直距離】",null,null,null,null,null,null,null,null,null,null,"ｍｍ"]
[null,"【5．階の高さ】",null,null,null,null,null,null,null,null,null,null,"ｍｍ"]
[null,"【6．天井】"]
[null,null,"【ｲ.居室の天井の高さ】",null,null,null,null,null,null,null,null,null,"ｍｍ"]
[null,null,"【ﾛ.建築基準法施行令第39条第3項に規定する特定天井】",null,null,null,null,null,null,null,null,null,null,null,null,null,null,null,null,"□","有",null,"■","無"]
[null,"【7．用途別床面積】"]
[null,null,null,null,null," （","用途の区分",null,null,null,")(","具体的な用途の名称",null,null,null,null,null,null,null,null,")(","床面積",null,null,null,null,"　) "]
[null,null,"【ｲ.】",null,null," （",null,null,null,null,")(",null,null,null,null,null,null,null,null,null,")(",null,null,null,null,null,"㎡) "]
[null,null,"【ﾛ.】",null,null," （",null,null,null,null,")(",null,null,null,null,null,null,null,null,null,")(",null,null,null,null,null,"㎡) "]
[null,null,"【ﾊ.】",null,null," （",null,null,null,null,")(",null,null,null,null,null,null,null,null,null,")(",null,null,null,null,null,"㎡) "]
[null,null,"【ﾆ.】",null,null," （",null,null,null,null,")(",null,null,null,null,null,null,null,null,null,")(",null,null,null,null,null,"㎡) "]
[null,null,"【ﾎ.】",null,null," （",null,null,null,null,")(",null,null,null,null,null,null,null,null,null,")(",null,null,null,null,null,"㎡) "]
[null,null,"【ﾍ.】",null,null," （",null,null,null,null,")(",null,null,null,null,null,null,null,null,null,")(",null,null,null,null,null,"㎡) "]
[null,"【8．その他必要な事項】"]
[null,"【9．備考】"]
[]
[]
[null,"（第五面）"]
[null,"　建築物の階別概要"]
[null,"【1．番号】",null,null,null,"5"]
[null,"【2．階】",null,null,null,"F1",null,null,"階"]
[null,"【3．柱の小径】",null,null,null,null,null,null,null,null,null,null,"ｍｍ"]
[null,"【4．横架材間の垂直距離】",null,null,null,null,null,null,null,null,null,null,"ｍｍ"]
[null,"【5．階の高さ】",null,null,null,null,null,null,null,null,null,null,"ｍｍ"]
[null,"【6．天井】"]
[null,null,"【ｲ.居室の天井の高さ】",null,null,null,null,null,null,null,null,null,"ｍｍ"]
[null,null,"【ﾛ.建築基準法施行令第39条第3項に規定する特定天井】",null,null,null,null,null,null,null,null,null,null,null,null,null,null,null,null,"□","有",null,"■","無"]
[null,"【7．用途別床面積】"]
[null,null,null,null,null," （","用途の区分",null,null,null,")(","具体的な用途の名称",null,null,null,null,null,null,null,null,")(","床面積",null,null,null,null,"　) "]
[null,null,"【ｲ.】",null,null," （",null,null,null,null,")(",null,null,null,null,null,null,null,null,null,")(",null,null,null,null,null,"㎡) "]
[null,null,"【ﾛ.】",null,null," （",null,null,null,null,")(",null,null,null,null,null,null,null,null,null,")(",null,null,null,null,null,"㎡) "]
[null,null,"【ﾊ.】",null,null," （",null,null,null,null,")(",null,null,null,null,null,null,null,null,null,")(",null,null,null,null,null,"㎡) "]
[null,null,"【ﾆ.】",null,null," （",null,null,null,null,")(",null,null,null,null,null,null,null,null,null,")(",null,null,null,null,null,"㎡) "]
[null,null,"【ﾎ.】",null,null," （",null,null,null,null,")(",null,null,null,null,null,null,null,null,null,")(",null,null,null,null,null,"㎡) "]
[null,null,"【ﾍ.】",null,null," （",null,null,null,null,")(",null,null,null,null,null,null,null,null,null,")(",null,null,null,null,null,"㎡) "]
[null,"【8．その他必要な事項】"]
[null,"【9．備考】"]
[]
[]
[null,"（第五面）"]
[null,"　建築物の階別概要"]
[null,"【1．番号】",null,null,null,"5"]
[null,"【2．階】",null,null,null,"F2",null,null,"階"]
[null,"【3．柱の小径】",null,null,null,null,null,null,null,null,null,null,"ｍｍ"]
[null,"【4．横架材間の垂直距離】",null,null,null,null,null,null,null,null,null,null,"ｍｍ"]
[null,"【5．階の高さ】",null,null,null,null,null,null,null,null,null,null,"ｍｍ"]
[null,"【6．天井】"]
[null,null,"【ｲ.居室の天井の高さ】",null,null,null,null,null,null,null,null,null,"ｍｍ"]
[null,null,"【ﾛ.建築基準法施行令第39条第3項に規定する特定天井】",null,null,null,null,null,null,null,null,null,null,null,null,null,null,null,null,"□","有",null,"■","無"]
[null,"【7．用途別床面積】"]
[null,null,null,null,null," （","用途の区分",null,null,null,")(","具体的な用途の名称",null,null,null,null,null,null,null,null,")(","床面積",null,null,null,null,"　) "]
[null,null,"【ｲ.】",null,null," （",null,null,null,null,")(",null,null,null,null,null,null,null,null,null,")(",null,null,null,null,null,"㎡) "]
[null,null,"【ﾛ.】",null,null," （",null,null,null,null,")(",null,null,null,null,null,null,null,null,null,")(",null,null,null,null,null,"㎡) "]
[null,null,"【ﾊ.】",null,null," （",null,null,null,null,")(",null,null,null,null,null,null,null,null,null,")(",null,null,null,null,null,"㎡) "]
[null,null,"【ﾆ.】",null,null," （",null,null,null,null,")(",null,null,null,null,null,null,null,null,null,")(",null,null,null,null,null,"㎡) "]
[null,null,"【ﾎ.】",null,null," （",null,null,null,null,")(",null,null,null,null,null,null,null,null,null,")(",null,null,null,null,null,"㎡) "]
[null,null,"【ﾍ.】",null,null," （",null,null,null,null,")(",null,null,null,null,null,null,null,null,null,")(",null,null,null,null,null,"㎡) "]
[null,"【8．その他必要な事項】"]
[null,"【9．備考】"]
[]
[]
[null,"（第五面）"]
[null,"　建築物の階別概要"]
[null,"【1．番号】",null,null,null,"5"]
[null,"【2．階】",null,null,null,"F3",null,null,"階"]
[null,"【3．柱の小径】",null,null,null,null,null,null,null,null,null,null,"ｍｍ"]
[null,"【4．横架材間の垂直距離】",null,null,null,null,null,null,null,null,null,null,"ｍｍ"]
[null,"【5．階の高さ】",null,null,null,null,null,null,null,null,null,null,"ｍｍ"]
[null,"【6．天井】"]
[null,null,"【ｲ.居室の天井の高さ】",null,null,null,null,null,null,null,null,null,"ｍｍ"]
[null,null,"【ﾛ.建築基準法施行令第39条第3項に規定する特定天井】",null,null,null,null,null,null,null,null,null,null,null,null,null,null,null,null,"□","有",null,"■","無"]
[null,"【7．用途別床面積】"]
[null,null,null,null,null," （","用途の区分",null,null,null,")(","具体的な用途の名称",null,null,null,null,null,null,null,null,")(","床面積",null,null,null,null,"　) "]
[null,null,"【ｲ.】",null,null," （",null,null,null,null,")(",null,null,null,null,null,null,null,null,null,")(",null,null,null,null,null,"㎡) "]
[null,null,"【ﾛ.】",null,null," （",null,null,null,null,")(",null,null,null,null,null,null,null,null,null,")(",null,null,null,null,null,"㎡) "]
[null,null,"【ﾊ.】",null,null," （",null,null,null,null,")(",null,null,null,null,null,null,null,null,null,")(",null,null,null,null,null,"㎡) "]
[null,null,"【ﾆ.】",null,null," （",null,null,null,null,")(",null,null,null,null,null,null,null,null,null,")(",null,null,null,null,null,"㎡) "]
[null,null,"【ﾎ.】",null,null," （",null,null,null,null,")(",null,null,null,null,null,null,null,null,null,")(",null,null,null,null,null,"㎡) "]
[null,null,"【ﾍ.】",null,null," （",null,null,null,null,")(",null,null,null,null,null,null,null,null,null,")(",null,null,null,null,null,"㎡) "]
[null,"【8．その他必要な事項】"]
[null,"【9．備考】"]
[]
[]
[null,"（第五面）"]
[null,"　建築物の階別概要"]
[null,"【1．番号】",null,null,null,"5"]
[null,"【2．階】",null,null,null,"F4",null,null,"階"]
[null,"【3．柱の小径】",null,null,null,null,null,null,null,null,null,null,"ｍｍ"]
[null,"【4．横架材間の垂直距離】",null,null,null,null,null,null,null,null,null,null,"ｍｍ"]
[null,"【5．階の高さ】",null,null,null,null,null,null,null,null,null,null,"ｍｍ"]
[null,"【6．天井】"]
[null,null,"【ｲ.居室の天井の高さ】",null,null,null,null,null,null,null,null,null,"ｍｍ"]
[null,null,"【ﾛ.建築基準法施行令第39条第3項に規定する特定天井】",null,null,null,null,null,null,null,null,null,null,null,null,null,null,null,null,"□","有",null,"■","無"]
[null,"【7．用途別床面積】"]
[null,null,null,null,null," （","用途の区分",null,null,null,")(","具体的な用途の名称",null,null,null,null,null,null,null,null,")(","床面積",null,null,null,null,"　) "]
[null,null,"【ｲ.】",null,null," （",null,null,null,null,")(",null,null,null,null,null,null,null,null,null,")(",null,null,null,null,null,"㎡) "]
[null,null,"【ﾛ.】",null,null," （",null,null,null,null,")(",null,null,null,null,null,null,null,null,null,")(",null,null,null,null,null,"㎡) "]
[null,null,"【ﾊ.】",null,null," （",null,null,null,null,")(",null,null,null,null,null,null,null,null,null,")(",null,null,null,null,null,"㎡) "]
[null,null,"【ﾆ.】",null,null," （",null,null,null,null,")(",null,null,null,null,null,null,null,null,null,")(",null,null,null,null,null,"㎡) "]
[null,null,"【ﾎ.】",null,null," （",null,null,null,null,")(",null,null,null,null,null,null,null,null,null,")(",null,null,null,null,null,"㎡) "]
[null,null,"【ﾍ.】",null,null," （",null,null,null,null,")(",null,null,null,null,null,null,null,null,null,")(",null,null,null,null,null,"㎡) "]
[null,"【8．その他必要な事項】"]
[null,"【9．備考】"]
[]
[]
[null,"（第五面）"]
[null,"　建築物の階別概要"]
[null,"【1．番号】",null,null,null,"5"]
[null,"【2．階】",null,null,null,"F5",null,null,"階"]
[null,"【3．柱の小径】",null,null,null,null,null,null,null,null,null,null,"ｍｍ"]
[null,"【4．横架材間の垂直距離】",null,null,null,null,null,null,null,null,null,null,"ｍｍ"]
[null,"【5．階の高さ】",null,null,null,null,null,null,null,null,null,null,"ｍｍ"]
[null,"【6．天井】"]
[null,null,"【ｲ.居室の天井の高さ】",null,null,null,null,null,null,null,null,null,"ｍｍ"]
[null,null,"【ﾛ.建築基準法施行令第39条第3項に規定する特定天井】",null,null,null,null,null,null,null,null,null,null,null,null,null,null,null,null,"□","有",null,"■","無"]
[null,"【7．用途別床面積】"]
[null,null,null,null,null," （","用途の区分",null,null,null,")(","具体的な用途の名称",null,null,null,null,null,null,null,null,")(","床面積",null,null,null,null,"　) "]
[null,null,"【ｲ.】",null,null," （",null,null,null,null,")(",null,null,null,null,null,null,null,null,null,")(",null,null,null,null,null,"㎡) "]
[null,null,"【ﾛ.】",null,null," （",null,null,null,null,")(",null,null,null,null,null,null,null,null,null,")(",null,null,null,null,null,"㎡) "]
[null,null,"【ﾊ.】",null,null," （",null,null,null,null,")(",null,null,null,null,null,null,null,null,null,")(",null,null,null,null,null,"㎡) "]
[null,null,"【ﾆ.】",null,null," （",null,null,null,null,")(",null,null,null,null,null,null,null,null,null,")(",null,null,null,null,null,"㎡) "]
[null,null,"【ﾎ.】",null,null," （",null,null,null,null,")(",null,null,null,null,null,null,null,null,null,")(",null,null,null,null,null,"㎡) "]
[null,null,"【ﾍ.】",null,null," （",null,null,null,null,")(",null,null,null,null,null,null,null,null,null,")(",null,null,null,null,null,"㎡) "]
[null,"【8．その他必要な事項】"]
[null,"【9．備考】"]
[]
[]
[null,"（第五面）"]
[null,"　建築物の階別概要"]
[null,"【1．番号】",null,null,null,"5"]
[null,"【2．階】",null,null,null,"F6",null,null,"階"]
[null,"【3．柱の小径】",null,null,null,null,null,null,null,null,null,null,"ｍｍ"]
[null,"【4．横架材間の垂直距離】",null,null,null,null,null,null,null,null,null,null,"ｍｍ"]
[null,"【5．階の高さ】",null,null,null,null,null,null,null,null,null,null,"ｍｍ"]
[null,"【6．天井】"]
[null,null,"【ｲ.居室の天井の高さ】",null,null,null,null,null,null,null,null,null,"ｍｍ"]
[null,null,"【ﾛ.建築基準法施行令第39条第3項に規定する特定天井】",null,null,null,null,null,null,null,null,null,null,null,null,null,null,null,null,"□","有",null,"■","無"]
[null,"【7．用途別床面積】"]
[null,null,null,null,null," （","用途の区分",null,null,null,")(","具体的な用途の名称",null,null,null,null,null,null,null,null,")(","床面積",null,null,null,null,"　) "]
[null,null,"【ｲ.】",null,null," （",null,null,null,null,")(",null,null,null,null,null,null,null,null,null,")(",null,null,null,null,null,"㎡) "]
[null,null,"【ﾛ.】",null,null," （",null,null,null,null,")(",null,null,null,null,null,null,null,null,null,")(",null,null,null,null,null,"㎡) "]
[null,null,"【ﾊ.】",null,null," （",null,null,null,null,")(",null,null,null,null,null,null,null,null,null,")(",null,null,null,null,null,"㎡) "]
[null,null,"【ﾆ.】",null,null," （",null,null,null,null,")(",null,null,null,null,null,null,null,null,null,")(",null,null,null,null,null,"㎡) "]
[null,null,"【ﾎ.】",null,null," （",null,null,null,null,")(",null,null,null,null,null,null,null,null,null,")(",null,null,null,null,null,"㎡) "]
[null,null,"【ﾍ.】",null,null," （",null,null,null,null,")(",null,null,null,null,null,null,null,null,null,")(",null,null,null,null,null,"㎡) "]
[null,"【8．その他必要な事項】"]
[null,"【9．備考】"]
[]
[]
[null,"（第五面）"]
[null,"　建築物の階別概要"]
[null,"【1．番号】",null,null,null,"5"]
[null,"【2．階】",null,null,null,"PH1",null,null,"階"]
[null,"【3．柱の小径】",null,null,null,null,null,null,null,null,null,null,"ｍｍ"]
[null,"【4．横架材間の垂直距離】",null,null,null,null,null,null,null,null,null,null,"ｍｍ"]
[null,"【5．階の高さ】",null,null,null,null,null,null,null,null,null,null,"ｍｍ"]
[null,"【6．天井】"]
[null,null,"【ｲ.居室の天井の高さ】",null,null,null,null,null,null,null,null,null,"ｍｍ"]
[null,null,"【ﾛ.建築基準法施行令第39条第3項に規定する特定天井】",null,null,null,null,null,null,null,null,null,null,null,null,null,null,null,null,"□","有",null,"■","無"]
[null,"【7．用途別床面積】"]
[null,null,null,null,null," （","用途の区分",null,null,null,")(","具体的な用途の名称",null,null,null,null,null,null,null,null,")(","床面積",null,null,null,null,"　) "]
[null,null,"【ｲ.】",null,null," （",null,null,null,null,")(",null,null,null,null,null,null,null,null,null,")(",null,null,null,null,null,"㎡) "]
[null,null,"【ﾛ.】",null,null," （",null,null,null,null,")(",null,null,null,null,null,null,null,null,null,")(",null,null,null,null,null,"㎡) "]
[null,null,"【ﾊ.】",null,null," （",null,null,null,null,")(",null,null,null,null,null,null,null,null,null,")(",null,null,null,null,null,"㎡) "]
[null,null,"【ﾆ.】",null,null," （",null,null,null,null,")(",null,null,null,null,null,null,null,null,null,")(",null,null,null,null,null,"㎡) "]
[null,null,"【ﾎ.】",null,null," （",null,null,null,null,")(",null,null,null,null,null,null,null,null,null,")(",null,null,null,null,null,"㎡) "]
[null,null,"【ﾍ.】",null,null," （",null,null,null,null,")(",null,null,null,null,null,null,null,null,null,")(",null,null,null,null,null,"㎡) "]
[null,"【8．その他必要な事項】"]
[null,"【9．備考】"]
[]
[]
[null,"（第五面）"]
[null,"　建築物の階別概要"]
[null,"【1．番号】",null,null,null,"5"]
[null,"【2．階】",null,null,null,"PH2",null,null,"階"]
[null,"【3．柱の小径】",null,null,null,null,null,null,null,null,null,null,"ｍｍ"]
[null,"【4．横架材間の垂直距離】",null,null,null,null,null,null,null,null,null,null,"ｍｍ"]
[null,"【5．階の高さ】",null,null,null,null,null,null,null,null,null,null,"ｍｍ"]
[null,"【6．天井】"]
[null,null,"【ｲ.居室の天井の高さ】",null,null,null,null,null,null,null,null,null,"ｍｍ"]
[null,null,"【ﾛ.建築基準法施行令第39条第3項に規定する特定天井】",null,null,null,null,null,null,null,null,null,null,null,null,null,null,null,null,"□","有",null,"■","無"]
[null,"【7．用途別床面積】"]
[null,null,null,null,null," （","用途の区分",null,null,null,")(","具体的な用途の名称",null,null,null,null,null,null,null,null,")(","床面積",null,null,null,null,"　) "]
[null,null,"【ｲ.】",null,null," （",null,null,null,null,")(",null,null,null,null,null,null,null,null,null,")(",null,null,null,null,null,"㎡) "]
[null,null,"【ﾛ.】",null,null," （",null,null,null,null,")(",null,null,null,null,null,null,null,null,null,")(",null,null,null,null,null,"㎡) "]
[null,null,"【ﾊ.】",null,null," （",null,null,null,null,")(",null,null,null,null,null,null,null,null,null,")(",null,null,null,null,null,"㎡) "]
[null,null,"【ﾆ.】",null,null," （",null,null,null,null,")(",null,null,null,null,null,null,null,null,null,")(",null,null,null,null,null,"㎡) "]
[null,null,"【ﾎ.】",null,null," （",null,null,null,null,")(",null,null,null,null,null,null,null,null,null,")(",null,null,null,null,null,"㎡) "]
[null,null,"【ﾍ.】",null,null," （",null,null,null,null,")(",null,null,null,null,null,null,null,null,null,")(",null,null,null,null,null,"㎡) "]
[null,"【8．その他必要な事項】"]
[null,"【9．備考】"]

{"sheet":"第六面","index":14,"n_rows":104,"n_cols":27,"rows_kept":104,"cut":false,"hidden":false,"merged":[[0,1,2,9],[1,10,1,14],[1,15,1,17],[36,2,36,28],[8,10,8,13],[9,10,9,13],[10,13,10,16],[10,21,10,24],[33,1,33,29],[11,10,11,16],[11,20,11,25],[25,7,25,25],[24,1,24,29],[30,1,30,29],[34,2,34,28],[35,2,35,28],[3,1,3,29],[4,1,4,29],[13,1,13,29],[17,1,17,29],[31,7,31,25],[5,5,5,7],[6,8,6,12],[38,1,38,29],[39,1,39,29],[40,5,40,7],[41,8,41,12],[43,10,43,13],[44,10,44,13],[45,13,45,16],[45,21,45,24],[46,10,46,16],[46,20,46,25],[48,1,48,29],[52,1,52,29],[59,1,59,29],[60,7,60,25],[65,1,65,29],[66,7,66,25],[68,1,68,29],[69,2,69,28],[70,2,70,28],[71,2,71,28],[73,1,73,29],[74,1,74,29],[75,5,75,7],[76,8,76,12],[78,10,78,13],[79,10,79,13],[80,13,80,16],[80,21,80,24],[81,10,81,16],[81,20,81,25],[83,1,83,29],[87,1,87,29],[94,1,94,29],[95,7,95,25],[100,1,100,29],[101,7,101,25],[103,1,103,29],[104,2,104,28],[105,2,105,28],[106,2,106,28]]}
[null,"申請書（第六面）"]
[null,null,null,null,null,null,null,null,null,null,"独立部分の数",null,null,null,null,1]
[]
[null,"（第六面）"]
[null,"　建築物独立部分別概要"]
[null,"【1．番号】",null,null,null,1]
[null,"【2．延べ面積】",null,null,null,null,null,null,null,null,null,null,null,null,"㎡"]
[null,"【3．建築物の高さ等】"]
[null,null,"【ｲ．最高の高さ】",null,null,null,null,null,null,null,null,null,null,null,"ｍ"]
[null,null,"【ﾛ．最高の軒の高さ】",null,null,null,null,null,null,null,null,null,null,null,"ｍ"]
[null,null,"【ﾊ．階数】",null,null,null,null,null,null,null,"地上",null,"（",null,null,null,null,"）","地下",null,"（",null,null,null,null,"）"]
[null,null,"【ﾆ．構造】",null,null,null,null,null,null,null,null,null,null,null,null,null,null,"造　一部 ",null,null,null,null,null,null,null,null,"造"]
[]
[null,"【4．特定構造計算基準又は特定増改築構造計算基準の別】"]
[null,null,null,"□","特定構造計算基準"]
[null,null,null,"□","特定増改築構造計算基準"]
[]
[null,"【5．構造計算の区分】"]
[null,null,null,"□","建築基準法施行令第81条第１項各号に掲げる基準に従った構造計算"]
[null,null,null,"□","建築基準法施行令第81条第２項第１号イに掲げる構造計算"]
[null,null,null,"□","建築基準法施行令第81条第２項第１号ロに掲げる構造計算"]
[null,null,null,"□","建築基準法施行令第81条第２項第２号イに掲げる構造計算"]
[null,null,null,"□","建築基準法施行令第81条第３項に掲げる構造計算"]
[]
[null,"【6．構造計算に用いたプログラム】"]
[null,null,"【ｲ．名称】",null,null,null,"（",null,null,null,null,null,null,null,null,null,null,null,null,null,null,null,null,null,null,null,"）"]
[null,null,"【ﾛ．区分】",null,null,null,"□","建築基準法第20条第１項第２号イ又は第３号イの認定を受けたプログラム"]
[null,null,null,null,null,null,null,null,null,null,"（","大臣認定番号",null,null,null,null,null,null,null,null,null,null,null,null,null,null,"）"]
[null,null,null,null,null,null,"□","その他のプログラム"]
[]
[null,"【7．建築基準法施行令第137条の２各号に定める基準の区分】"]
[null,null,null,null,null,null,"（",null,null,null,null,null,null,null,null,null,null,null,null,null,null,null,null,null,null,null,"）"]
[]
[null,"【8．備考】"]
[]
[]
[]
[]
[null,"（第六面）"]
[null,"　建築物独立部分別概要"]
[null,"【1．番号】",null,null,null,"1-2"]
[null,"【2．延べ面積】",null,null,null,null,null,null,null,null,null,null,null,null,"㎡"]
[null,"【3．建築物の高さ等】"]
[null,null,"【ｲ．最高の高さ】",null,null,null,null,null,null,null,null,null,null,null,"ｍ"]
[null,null,"【ﾛ．最高の軒の高さ】",null,null,null,null,null,null,null,null,null,null,null,"ｍ"]
[null,null,"【ﾊ．階数】",null,null,null,null,null,null,null,"地上",null,"（",null,null,null,null,"）","地下",null,"（",null,null,null,null,"）"]
[null,null,"【ﾆ．構造】",null,null,null,null,null,null,null,null,null,null,null,null,null,null,"造　一部 ",null,null,null,null,null,null,null,null,"造"]
[]
[null,"【4．特定構造計算基準又は特定増改築構造計算基準の別】"]
[null,null,null,"□","特定構造計算基準"]
[null,null,null,"□","特定増改築構造計算基準"]
[]
[null,"【5．構造計算の区分】"]
[null,null,null,"□","建築基準法施行令第81条第１項各号に掲げる基準に従った構造計算"]
[null,null,null,"□","建築基準法施行令第81条第２項第１号イに掲げる構造計算"]
[null,null,null,"□","建築基準法施行令第81条第２項第１号ロに掲げる構造計算"]
[null,null,null,"□","建築基準法施行令第81条第２項第２号イに掲げる構造計算"]
[null,null,null,"□","建築基準法施行令第81条第３項に掲げる構造計算"]
[]
[null,"【6．構造計算に用いたプログラム】"]
[null,null,"【ｲ．名称】",null,null,null,"（",null,null,null,null,null,null,null,null,null,null,null,null,null,null,null,null,null,null,null,"）"]
[null,null,"【ﾛ．区分】",null,null,null,"□","建築基準法第20条第１項第２号イ又は第３号イの認定を受けたプログラム"]
[null,null,null,null,null,null,null,null,null,null,"（","大臣認定番号",null,null,null,null,null,null,null,null,null,null,null,null,null,null,"）"]
[null,null,null,null,null,null,"□","その他のプログラム"]
[]
[null,"【7．建築基準法施行令第137条の２各号に定める基準の区分】"]
[null,null,null,null,null,null,"（",null,null,null,null,null,null,null,null,null,null,null,null,null,null,null,null,null,null,null,"）"]
[]
[null,"【8．備考】"]
[]
[]
[]
[]
[null,"（第六面）"]
[null,"　建築物独立部分別概要"]
[null,"【1．番号】",null,null,null,"1-3"]
[null,"【2．延べ面積】",null,null,null,null,null,null,null,null,null,null,null,null,"㎡"]
[null,"【3．建築物の高さ等】"]
[null,null,"【ｲ．最高の高さ】",null,null,null,null,null,null,null,null,null,null,null,"ｍ"]
[null,null,"【ﾛ．最高の軒の高さ】",null,null,null,null,null,null,null,null,null,null,null,"ｍ"]
[null,null,"【ﾊ．階数】",null,null,null,null,null,null,null,"地上",null,"（",null,null,null,null,"）","地下",null,"（",null,null,null,null,"）"]
[null,null,"【ﾆ．構造】",null,null,null,null,null,null,null,null,null,null,null,null,null,null,"造　一部 ",null,null,null,null,null,null,null,null,"造"]
[]
[null,"【4．特定構造計算基準又は特定増改築構造計算基準の別】"]
[null,null,null,"□","特定構造計算基準"]
[null,null,null,"□","特定増改築構造計算基準"]
[]
[null,"【5．構造計算の区分】"]
[null,null,null,"□","建築基準法施行令第81条第１項各号に掲げる基準に従った構造計算"]
[null,null,null,"□","建築基準法施行令第81条第２項第１号イに掲げる構造計算"]
[null,null,null,"□","建築基準法施行令第81条第２項第１号ロに掲げる構造計算"]
[null,null,null,"□","建築基準法施行令第81条第２項第２号イに掲げる構造計算"]
[null,null,null,"□","建築基準法施行令第81条第３項に掲げる構造計算"]
[]
[null,"【6．構造計算に用いたプログラム】"]
[null,null,"【ｲ．名称】",null,null,null,"（",null,null,null,null,null,null,null,null,null,null,null,null,null,null,null,null,null,null,null,"）"]
[null,null,"【ﾛ．区分】",null,null,null,"□","建築基準法第20条第１項第２号イ又は第３号イの認定を受けたプログラム"]
[null,null,null,null,null,null,null,null,null,null,"（","大臣認定番号",null,null,null,null,null,null,null,null,null,null,null,null,null,null,"）"]
[null,null,null,null,null,null,"□","その他のプログラム"]
[]
[null,"【7．建築基準法施行令第137条の２各号に定める基準の区分】"]
[null,null,null,null,null,null,"（",null,null,null,null,null,null,null,null,null,null,null,null,null,null,null,null,null,null,null,"）"]
[]
[null,"【8．備考】"]

{"sheet":"第六面 (2)","index":15,"n_rows":104,"n_cols":27,"rows_kept":104,"cut":false,"hidden":true,"merged":[[105,2,105,28],[106,2,106,28],[94,1,94,29],[95,7,95,25],[100,1,100,29],[101,7,101,25],[103,1,103,29],[104,2,104,28],[87,1,87,29],[73,1,73,29],[74,1,74,29],[75,5,75,7],[76,8,76,12],[78,10,78,13],[79,10,79,13],[80,13,80,16],[80,21,80,24],[81,10,81,16],[81,20,81,25],[83,1,83,29],[71,2,71,28],[46,10,46,16],[46,20,46,25],[48,1,48,29],[52,1,52,29],[59,1,59,29],[60,7,60,25],[65,1,65,29],[66,7,66,25],[68,1,68,29],[69,2,69,28],[70,2,70,28],[45,21,45,24],[33,1,33,29],[34,2,34,28],[35,2,35,28],[36,2,36,28],[38,1,38,29],[39,1,39,29],[40,5,40,7],[41,8,41,12],[43,10,43,13],[44,10,44,13],[45,13,45,16],[31,7,31,25],[6,8,6,12],[8,10,8,13],[9,10,9,13],[10,13,10,16],[10,21,10,24],[11,10,11,16],[11,20,11,25],[13,1,13,29],[17,1,17,29],[24,1,24,29],[25,7,25,25],[30,1,30,29],[5,5,5,7],[0,1,2,9],[1,10,1,14],[1,15,1,17],[3,1,3,29],[4,1,4,29]]}
[null,"申請書（第六面）"]
[null,null,null,null,null,null,null,null,null,null,"独立部分の数",null,null,null,null,1]
[]
[null,"（第六面）"]
[null,"　建築物独立部分別概要"]
[null,"【1．番号】",null,null,null,2]
[null,"【2．延べ面積】",null,null,null,null,null,null,null,null,null,null,null,null,"㎡"]
[null,"【3．建築物の高さ等】"]
[null,null,"【ｲ．最高の高さ】",null,null,null,null,null,null,null,null,null,null,null,"ｍ"]
[null,null,"【ﾛ．最高の軒の高さ】",null,null,null,null,null,null,null,null,null,null,null,"ｍ"]
[null,null,"【ﾊ．階数】",null,null,null,null,null,null,null,"地上",null,"（",null,null,null,null,"）","地下",null,"（",null,null,null,null,"）"]
[null,null,"【ﾆ．構造】",null,null,null,null,null,null,null,null,null,null,null,null,null,null,"造　一部 ",null,null,null,null,null,null,null,null,"造"]
[]
[null,"【4．特定構造計算基準又は特定増改築構造計算基準の別】"]
[null,null,null,"□","特定構造計算基準"]
[null,null,null,"□","特定増改築構造計算基準"]
[]
[null,"【5．構造計算の区分】"]
[null,null,null,"□","建築基準法施行令第81条第１項各号に掲げる基準に従った構造計算"]
[null,null,null,"□","建築基準法施行令第81条第２項第１号イに掲げる構造計算"]
[null,null,null,"□","建築基準法施行令第81条第２項第１号ロに掲げる構造計算"]
[null,null,null,"□","建築基準法施行令第81条第２項第２号イに掲げる構造計算"]
[null,null,null,"□","建築基準法施行令第81条第３項に掲げる構造計算"]
[]
[null,"【6．構造計算に用いたプログラム】"]
[null,null,"【ｲ．名称】",null,null,null,"（",null,null,null,null,null,null,null,null,null,null,null,null,null,null,null,null,null,null,null,"）"]
[null,null,"【ﾛ．区分】",null,null,null,"□","建築基準法第20条第１項第２号イ又は第３号イの認定を受けたプログラム"]
[null,null,null,null,null,null,null,null,null,null,"（","大臣認定番号",null,null,null,null,null,null,null,null,null,null,null,null,null,null,"）"]
[null,null,null,null,null,null,"□","その他のプログラム"]
[]
[null,"【7．建築基準法施行令第137条の２各号に定める基準の区分】"]
[null,null,null,null,null,null,"（",null,null,null,null,null,null,null,null,null,null,null,null,null,null,null,null,null,null,null,"）"]
[]
[null,"【8．備考】"]
[]
[]
[]
[]
[null,"（第六面）"]
[null,"　建築物独立部分別概要"]
[null,"【1．番号】",null,null,null,"2-2"]
[null,"【2．延べ面積】",null,null,null,null,null,null,null,null,null,null,null,null,"㎡"]
[null,"【3．建築物の高さ等】"]
[null,null,"【ｲ．最高の高さ】",null,null,null,null,null,null,null,null,null,null,null,"ｍ"]
[null,null,"【ﾛ．最高の軒の高さ】",null,null,null,null,null,null,null,null,null,null,null,"ｍ"]
[null,null,"【ﾊ．階数】",null,null,null,null,null,null,null,"地上",null,"（",null,null,null,null,"）","地下",null,"（",null,null,null,null,"）"]
[null,null,"【ﾆ．構造】",null,null,null,null,null,null,null,null,null,null,null,null,null,null,"造　一部 ",null,null,null,null,null,null,null,null,"造"]
[]
[null,"【4．特定構造計算基準又は特定増改築構造計算基準の別】"]
[null,null,null,"□","特定構造計算基準"]
[null,null,null,"□","特定増改築構造計算基準"]
[]
[null,"【5．構造計算の区分】"]
[null,null,null,"□","建築基準法施行令第81条第１項各号に掲げる基準に従った構造計算"]
[null,null,null,"□","建築基準法施行令第81条第２項第１号イに掲げる構造計算"]
[null,null,null,"□","建築基準法施行令第81条第２項第１号ロに掲げる構造計算"]
[null,null,null,"□","建築基準法施行令第81条第２項第２号イに掲げる構造計算"]
[null,null,null,"□","建築基準法施行令第81条第３項に掲げる構造計算"]
[]
[null,"【6．構造計算に用いたプログラム】"]
[null,null,"【ｲ．名称】",null,null,null,"（",null,null,null,null,null,null,null,null,null,null,null,null,null,null,null,null,null,null,null,"）"]
[null,null,"【ﾛ．区分】",null,null,null,"□","建築基準法第20条第１項第２号イ又は第３号イの認定を受けたプログラム"]
[null,null,null,null,null,null,null,null,null,null,"（","大臣認定番号",null,null,null,null,null,null,null,null,null,null,null,null,null,null,"）"]
[null,null,null,null,null,null,"□","その他のプログラム"]
[]
[null,"【7．建築基準法施行令第137条の２各号に定める基準の区分】"]
[null,null,null,null,null,null,"（",null,null,null,null,null,null,null,null,null,null,null,null,null,null,null,null,null,null,null,"）"]
[]
[null,"【8．備考】"]
[]
[]
[]
[]
[null,"（第六面）"]
[null,"　建築物独立部分別概要"]
[null,"【1．番号】",null,null,null,"2-3"]
[null,"【2．延べ面積】",null,null,null,null,null,null,null,null,null,null,null,null,"㎡"]
[null,"【3．建築物の高さ等】"]
[null,null,"【ｲ．最高の高さ】",null,null,null,null,null,null,null,null,null,null,null,"ｍ"]
[null,null,"【ﾛ．最高の軒の高さ】",null,null,null,null,null,null,null,null,null,null,null,"ｍ"]
[null,null,"【ﾊ．階数】",null,null,null,null,null,null,null,"地上",null,"（",null,null,null,null,"）","地下",null,"（",null,null,null,null,"）"]
[null,null,"【ﾆ．構造】",null,null,null,null,null,null,null,null,null,null,null,null,null,null,"造　一部 ",null,null,null,null,null,null,null,null,"造"]
[]
[null,"【4．特定構造計算基準又は特定増改築構造計算基準の別】"]
[null,null,null,"□","特定構造計算基準"]
[null,null,null,"□","特定増改築構造計算基準"]
[]
[null,"【5．構造計算の区分】"]
[null,null,null,"□","建築基準法施行令第81条第１項各号に掲げる基準に従った構造計算"]
[null,null,null,"□","建築基準法施行令第81条第２項第１号イに掲げる構造計算"]
[null,null,null,"□","建築基準法施行令第81条第２項第１号ロに掲げる構造計算"]
[null,null,null,"□","建築基準法施行令第81条第２項第２号イに掲げる構造計算"]
[null,null,null,"□","建築基準法施行令第81条第３項に掲げる構造計算"]
[]
[null,"【6．構造計算に用いたプログラム】"]
[null,null,"【ｲ．名称】",null,null,null,"（",null,null,null,null,null,null,null,null,null,null,null,null,null,null,null,null,null,null,null,"）"]
[null,null,"【ﾛ．区分】",null,null,null,"□","建築基準法第20条第１項第２号イ又は第３号イの認定を受けたプログラム"]
[null,null,null,null,null,null,null,null,null,null,"（","大臣認定番号",null,null,null,null,null,null,null,null,null,null,null,null,null,null,"）"]
[null,null,null,null,null,null,"□","その他のプログラム"]
[]
[null,"【7．建築基準法施行令第137条の２各号に定める基準の区分】"]
[null,null,null,null,null,null,"（",null,null,null,null,null,null,null,null,null,null,null,null,null,null,null,null,null,null,null,"）"]
[]
[null,"【8．備考】"]

{"sheet":"第六面 (3)","index":16,"n_rows":104,"n_cols":27,"rows_kept":104,"cut":false,"hidden":true,"merged":[[105,2,105,28],[106,2,106,28],[94,1,94,29],[95,7,95,25],[100,1,100,29],[101,7,101,25],[103,1,103,29],[104,2,104,28],[87,1,87,29],[73,1,73,29],[74,1,74,29],[75,5,75,7],[76,8,76,12],[78,10,78,13],[79,10,79,13],[80,13,80,16],[80,21,80,24],[81,10,81,16],[81,20,81,25],[83,1,83,29],[71,2,71,28],[46,10,46,16],[46,20,46,25],[48,1,48,29],[52,1,52,29],[59,1,59,29],[60,7,60,25],[65,1,65,29],[66,7,66,25],[68,1,68,29],[69,2,69,28],[70,2,70,28],[45,21,45,24],[33,1,33,29],[34,2,34,28],[35,2,35,28],[36,2,36,28],[38,1,38,29],[39,1,39,29],[40,5,40,7],[41,8,41,12],[43,10,43,13],[44,10,44,13],[45,13,45,16],[31,7,31,25],[6,8,6,12],[8,10,8,13],[9,10,9,13],[10,13,10,16],[10,21,10,24],[11,10,11,16],[11,20,11,25],[13,1,13,29],[17,1,17,29],[24,1,24,29],[25,7,25,25],[30,1,30,29],[5,5,5,7],[0,1,2,9],[1,10,1,14],[1,15,1,17],[3,1,3,29],[4,1,4,29]]}
[null,"申請書（第六面）"]
[null,null,null,null,null,null,null,null,null,null,"独立部分の数",null,null,null,null,1]
[]
[null,"（第六面）"]
[null,"　建築物独立部分別概要"]
[null,"【1．番号】",null,null,null,3]
[null,"【2．延べ面積】",null,null,null,null,null,null,null,null,null,null,null,null,"㎡"]
[null,"【3．建築物の高さ等】"]
[null,null,"【ｲ．最高の高さ】",null,null,null,null,null,null,null,null,null,null,null,"ｍ"]
[null,null,"【ﾛ．最高の軒の高さ】",null,null,null,null,null,null,null,null,null,null,null,"ｍ"]
[null,null,"【ﾊ．階数】",null,null,null,null,null,null,null,"地上",null,"（",null,null,null,null,"）","地下",null,"（",null,null,null,null,"）"]
[null,null,"【ﾆ．構造】",null,null,null,null,null,null,null,null,null,null,null,null,null,null,"造　一部 ",null,null,null,null,null,null,null,null,"造"]
[]
[null,"【4．特定構造計算基準又は特定増改築構造計算基準の別】"]
[null,null,null,"□","特定構造計算基準"]
[null,null,null,"□","特定増改築構造計算基準"]
[]
[null,"【5．構造計算の区分】"]
[null,null,null,"□","建築基準法施行令第81条第１項各号に掲げる基準に従った構造計算"]
[null,null,null,"□","建築基準法施行令第81条第２項第１号イに掲げる構造計算"]
[null,null,null,"□","建築基準法施行令第81条第２項第１号ロに掲げる構造計算"]
[null,null,null,"□","建築基準法施行令第81条第２項第２号イに掲げる構造計算"]
[null,null,null,"□","建築基準法施行令第81条第３項に掲げる構造計算"]
[]
[null,"【6．構造計算に用いたプログラム】"]
[null,null,"【ｲ．名称】",null,null,null,"（",null,null,null,null,null,null,null,null,null,null,null,null,null,null,null,null,null,null,null,"）"]
[null,null,"【ﾛ．区分】",null,null,null,"□","建築基準法第20条第１項第２号イ又は第３号イの認定を受けたプログラム"]
[null,null,null,null,null,null,null,null,null,null,"（","大臣認定番号",null,null,null,null,null,null,null,null,null,null,null,null,null,null,"）"]
[null,null,null,null,null,null,"□","その他のプログラム"]
[]
[null,"【7．建築基準法施行令第137条の２各号に定める基準の区分】"]
[null,null,null,null,null,null,"（",null,null,null,null,null,null,null,null,null,null,null,null,null,null,null,null,null,null,null,"）"]
[]
[null,"【8．備考】"]
[]
[]
[]
[]
[null,"（第六面）"]
[null,"　建築物独立部分別概要"]
[null,"【1．番号】",null,null,null,"3-2"]
[null,"【2．延べ面積】",null,null,null,null,null,null,null,null,null,null,null,null,"㎡"]
[null,"【3．建築物の高さ等】"]
[null,null,"【ｲ．最高の高さ】",null,null,null,null,null,null,null,null,null,null,null,"ｍ"]
[null,null,"【ﾛ．最高の軒の高さ】",null,null,null,null,null,null,null,null,null,null,null,"ｍ"]
[null,null,"【ﾊ．階数】",null,null,null,null,null,null,null,"地上",null,"（",null,null,null,null,"）","地下",null,"（",null,null,null,null,"）"]
[null,null,"【ﾆ．構造】",null,null,null,null,null,null,null,null,null,null,null,null,null,null,"造　一部 ",null,null,null,null,null,null,null,null,"造"]
[]
[null,"【4．特定構造計算基準又は特定増改築構造計算基準の別】"]
[null,null,null,"□","特定構造計算基準"]
[null,null,null,"□","特定増改築構造計算基準"]
[]
[null,"【5．構造計算の区分】"]
[null,null,null,"□","建築基準法施行令第81条第１項各号に掲げる基準に従った構造計算"]
[null,null,null,"□","建築基準法施行令第81条第２項第１号イに掲げる構造計算"]
[null,null,null,"□","建築基準法施行令第81条第２項第１号ロに掲げる構造計算"]
[null,null,null,"□","建築基準法施行令第81条第２項第２号イに掲げる構造計算"]
[null,null,null,"□","建築基準法施行令第81条第３項に掲げる構造計算"]
[]
[null,"【6．構造計算に用いたプログラム】"]
[null,null,"【ｲ．名称】",null,null,null,"（",null,null,null,null,null,null,null,null,null,null,null,null,null,null,null,null,null,null,null,"）"]
[null,null,"【ﾛ．区分】",null,null,null,"□","建築基準法第20条第１項第２号イ又は第３号イの認定を受けたプログラム"]
[null,null,null,null,null,null,null,null,null,null,"（","大臣認定番号",null,null,null,null,null,null,null,null,null,null,null,null,null,null,"）"]
[null,null,null,null,null,null,"□","その他のプログラム"]
[]
[null,"【7．建築基準法施行令第137条の２各号に定める基準の区分】"]
[null,null,null,null,null,null,"（",null,null,null,null,null,null,null,null,null,null,null,null,null,null,null,null,null,null,null,"）"]
[]
[null,"【8．備考】"]
[]
[]
[]
[]
[null,"（第六面）"]
[null,"　建築物独立部分別概要"]
[null,"【1．番号】",null,null,null,"3-3"]
[null,"【2．延べ面積】",null,null,null,null,null,null,null,null,null,null,null,null,"㎡"]
[null,"【3．建築物の高さ等】"]
[null,null,"【ｲ．最高の高さ】",null,null,null,null,null,null,null,null,null,null,null,"ｍ"]
[null,null,"【ﾛ．最高の軒の高さ】",null,null,null,null,null,null,null,null,null,null,null,"ｍ"]
[null,null,"【ﾊ．階数】",null,null,null,null,null,null,null,"地上",null,"（",null,null,null,null,"）","地下",null,"（",null,null,null,null,"）"]
[null,null,"【ﾆ．構造】",null,null,null,null,null,null,null,null,null,null,null,null,null,null,"造　一部 ",null,null,null,null,null,null,null,null,"造"]
[]
[null,"【4．特定構造計算基準又は特定増改築構造計算基準の別】"]
[null,null,null,"□","特定構造計算基準"]
[null,null,null,"□","特定増改築構造計算基準"]
[]
[null,"【5．構造計算の区分】"]
[null,null,null,"□","建築基準法施行令第81条第１項各号に掲げる基準に従った構造計算"]
[null,null,null,"□","建築基準法施行令第81条第２項第１号イに掲げる構造計算"]
[null,null,null,"□","建築基準法施行令第81条第２項第１号ロに掲げる構造計算"]
[null,null,null,"□","建築基準法施行令第81条第２項第２号イに掲げる構造計算"]
[null,null,null,"□","建築基準法施行令第81条第３項に掲げる構造計算"]
[]
[null,"【6．構造計算に用いたプログラム】"]
[null,null,"【ｲ．名称】",null,null,null,"（",null,null,null,null,null,null,null,null,null,null,null,null,null,null,null,null,null,null,null,"）"]
[null,null,"【ﾛ．区分】",null,null,null,"□","建築基準法第20条第１項第２号イ又は第３号イの認定を受けたプログラム"]
[null,null,null,null,null,null,null,null,null,null,"（","大臣認定番号",null,null,null,null,null,null,null,null,null,null,null,null,null,null,"）"]
[null,null,null,null,null,null,"□","その他のプログラム"]
[]
[null,"【7．建築基準法施行令第137条の２各号に定める基準の区分】"]
[null,null,null,null,null,null,"（",null,null,null,null,null,null,null,null,null,null,null,null,null,null,null,null,null,null,null,"）"]
[]
[null,"【8．備考】"]

{"sheet":"第六面 (4)","index":17,"n_rows":104,"n_cols":27,"rows_kept":104,"cut":false,"hidden":true,"merged":[[105,2,105,28],[106,2,106,28],[94,1,94,29],[95,7,95,25],[100,1,100,29],[101,7,101,25],[103,1,103,29],[104,2,104,28],[87,1,87,29],[73,1,73,29],[74,1,74,29],[75,5,75,7],[76,8,76,12],[78,10,78,13],[79,10,79,13],[80,13,80,16],[80,21,80,24],[81,10,81,16],[81,20,81,25],[83,1,83,29],[71,2,71,28],[46,10,46,16],[46,20,46,25],[48,1,48,29],[52,1,52,29],[59,1,59,29],[60,7,60,25],[65,1,65,29],[66,7,66,25],[68,1,68,29],[69,2,69,28],[70,2,70,28],[45,21,45,24],[33,1,33,29],[34,2,34,28],[35,2,35,28],[36,2,36,28],[38,1,38,29],[39,1,39,29],[40,5,40,7],[41,8,41,12],[43,10,43,13],[44,10,44,13],[45,13,45,16],[31,7,31,25],[6,8,6,12],[8,10,8,13],[9,10,9,13],[10,13,10,16],[10,21,10,24],[11,10,11,16],[11,20,11,25],[13,1,13,29],[17,1,17,29],[24,1,24,29],[25,7,25,25],[30,1,30,29],[5,5,5,7],[0,1,2,9],[1,10,1,14],[1,15,1,17],[3,1,3,29],[4,1,4,29]]}
[null,"申請書（第六面）"]
[null,null,null,null,null,null,null,null,null,null,"独立部分の数",null,null,null,null,1]
[]
[null,"（第六面）"]
[null,"　建築物独立部分別概要"]
[null,"【1．番号】",null,null,null,4]
[null,"【2．延べ面積】",null,null,null,null,null,null,null,null,null,null,null,null,"㎡"]
[null,"【3．建築物の高さ等】"]
[null,null,"【ｲ．最高の高さ】",null,null,null,null,null,null,null,null,null,null,null,"ｍ"]
[null,null,"【ﾛ．最高の軒の高さ】",null,null,null,null,null,null,null,null,null,null,null,"ｍ"]
[null,null,"【ﾊ．階数】",null,null,null,null,null,null,null,"地上",null,"（",null,null,null,null,"）","地下",null,"（",null,null,null,null,"）"]
[null,null,"【ﾆ．構造】",null,null,null,null,null,null,null,null,null,null,null,null,null,null,"造　一部 ",null,null,null,null,null,null,null,null,"造"]
[]
[null,"【4．特定構造計算基準又は特定増改築構造計算基準の別】"]
[null,null,null,"□","特定構造計算基準"]
[null,null,null,"□","特定増改築構造計算基準"]
[]
[null,"【5．構造計算の区分】"]
[null,null,null,"□","建築基準法施行令第81条第１項各号に掲げる基準に従った構造計算"]
[null,null,null,"□","建築基準法施行令第81条第２項第１号イに掲げる構造計算"]
[null,null,null,"□","建築基準法施行令第81条第２項第１号ロに掲げる構造計算"]
[null,null,null,"□","建築基準法施行令第81条第２項第２号イに掲げる構造計算"]
[null,null,null,"□","建築基準法施行令第81条第３項に掲げる構造計算"]
[]
[null,"【6．構造計算に用いたプログラム】"]
[null,null,"【ｲ．名称】",null,null,null,"（",null,null,null,null,null,null,null,null,null,null,null,null,null,null,null,null,null,null,null,"）"]
[null,null,"【ﾛ．区分】",null,null,null,"□","建築基準法第20条第１項第２号イ又は第３号イの認定を受けたプログラム"]
[null,null,null,null,null,null,null,null,null,null,"（","大臣認定番号",null,null,null,null,null,null,null,null,null,null,null,null,null,null,"）"]
[null,null,null,null,null,null,"□","その他のプログラム"]
[]
[null,"【7．建築基準法施行令第137条の２各号に定める基準の区分】"]
[null,null,null,null,null,null,"（",null,null,null,null,null,null,null,null,null,null,null,null,null,null,null,null,null,null,null,"）"]
[]
[null,"【8．備考】"]
[]
[]
[]
[]
[null,"（第六面）"]
[null,"　建築物独立部分別概要"]
[null,"【1．番号】",null,null,null,"4-2"]
[null,"【2．延べ面積】",null,null,null,null,null,null,null,null,null,null,null,null,"㎡"]
[null,"【3．建築物の高さ等】"]
[null,null,"【ｲ．最高の高さ】",null,null,null,null,null,null,null,null,null,null,null,"ｍ"]
[null,null,"【ﾛ．最高の軒の高さ】",null,null,null,null,null,null,null,null,null,null,null,"ｍ"]
[null,null,"【ﾊ．階数】",null,null,null,null,null,null,null,"地上",null,"（",null,null,null,null,"）","地下",null,"（",null,null,null,null,"）"]
[null,null,"【ﾆ．構造】",null,null,null,null,null,null,null,null,null,null,null,null,null,null,"造　一部 ",null,null,null,null,null,null,null,null,"造"]
[]
[null,"【4．特定構造計算基準又は特定増改築構造計算基準の別】"]
[null,null,null,"□","特定構造計算基準"]
[null,null,null,"□","特定増改築構造計算基準"]
[]
[null,"【5．構造計算の区分】"]
[null,null,null,"□","建築基準法施行令第81条第１項各号に掲げる基準に従った構造計算"]
[null,null,null,"□","建築基準法施行令第81条第２項第１号イに掲げる構造計算"]
[null,null,null,"□","建築基準法施行令第81条第２項第１号ロに掲げる構造計算"]
[null,null,null,"□","建築基準法施行令第81条第２項第２号イに掲げる構造計算"]
[null,null,null,"□","建築基準法施行令第81条第３項に掲げる構造計算"]
[]
[null,"【6．構造計算に用いたプログラム】"]
[null,null,"【ｲ．名称】",null,null,null,"（",null,null,null,null,null,null,null,null,null,null,null,null,null,null,null,null,null,null,null,"）"]
[null,null,"【ﾛ．区分】",null,null,null,"□","建築基準法第20条第１項第２号イ又は第３号イの認定を受けたプログラム"]
[null,null,null,null,null,null,null,null,null,null,"（","大臣認定番号",null,null,null,null,null,null,null,null,null,null,null,null,null,null,"）"]
[null,null,null,null,null,null,"□","その他のプログラム"]
[]
[null,"【7．建築基準法施行令第137条の２各号に定める基準の区分】"]
[null,null,null,null,null,null,"（",null,null,null,null,null,null,null,null,null,null,null,null,null,null,null,null,null,null,null,"）"]
[]
[null,"【8．備考】"]
[]
[]
[]
[]
[null,"（第六面）"]
[null,"　建築物独立部分別概要"]
[null,"【1．番号】",null,null,null,"4-3"]
[null,"【2．延べ面積】",null,null,null,null,null,null,null,null,null,null,null,null,"㎡"]
[null,"【3．建築物の高さ等】"]
[null,null,"【ｲ．最高の高さ】",null,null,null,null,null,null,null,null,null,null,null,"ｍ"]
[null,null,"【ﾛ．最高の軒の高さ】",null,null,null,null,null,null,null,null,null,null,null,"ｍ"]
[null,null,"【ﾊ．階数】",null,null,null,null,null,null,null,"地上",null,"（",null,null,null,null,"）","地下",null,"（",null,null,null,null,"）"]
[null,null,"【ﾆ．構造】",null,null,null,null,null,null,null,null,null,null,null,null,null,null,"造　一部 ",null,null,null,null,null,null,null,null,"造"]
[]
[null,"【4．特定構造計算基準又は特定増改築構造計算基準の別】"]
[null,null,null,"□","特定構造計算基準"]
[null,null,null,"□","特定増改築構造計算基準"]
[]
[null,"【5．構造計算の区分】"]
[null,null,null,"□","建築基準法施行令第81条第１項各号に掲げる基準に従った構造計算"]
[null,null,null,"□","建築基準法施行令第81条第２項第１号イに掲げる構造計算"]
[null,null,null,"□","建築基準法施行令第81条第２項第１号ロに掲げる構造計算"]
[null,null,null,"□","建築基準法施行令第81条第２項第２号イに掲げる構造計算"]
[null,null,null,"□","建築基準法施行令第81条第３項に掲げる構造計算"]
[]
[null,"【6．構造計算に用いたプログラム】"]
[null,null,"【ｲ．名称】",null,null,null,"（",null,null,null,null,null,null,null,null,null,null,null,null,null,null,null,null,null,null,null,"）"]
[null,null,"【ﾛ．区分】",null,null,null,"□","建築基準法第20条第１項第２号イ又は第３号イの認定を受けたプログラム"]
[null,null,null,null,null,null,null,null,null,null,"（","大臣認定番号",null,null,null,null,null,null,null,null,null,null,null,null,null,null,"）"]
[null,null,null,null,null,null,"□","その他のプログラム"]
[]
[null,"【7．建築基準法施行令第137条の２各号に定める基準の区分】"]
[null,null,null,null,null,null,"（",null,null,null,null,null,null,null,null,null,null,null,null,null,null,null,null,null,null,null,"）"]
[]
[null,"【8．備考】"]

{"sheet":"第六面 (5)","index":18,"n_rows":104,"n_cols":27,"rows_kept":104,"cut":false,"hidden":true,"merged":[[105,2,105,28],[106,2,106,28],[94,1,94,29],[95,7,95,25],[100,1,100,29],[101,7,101,25],[103,1,103,29],[104,2,104,28],[87,1,87,29],[73,1,73,29],[74,1,74,29],[75,5,75,7],[76,8,76,12],[78,10,78,13],[79,10,79,13],[80,13,80,16],[80,21,80,24],[81,10,81,16],[81,20,81,25],[83,1,83,29],[71,2,71,28],[46,10,46,16],[46,20,46,25],[48,1,48,29],[52,1,52,29],[59,1,59,29],[60,7,60,25],[65,1,65,29],[66,7,66,25],[68,1,68,29],[69,2,69,28],[70,2,70,28],[45,21,45,24],[33,1,33,29],[34,2,34,28],[35,2,35,28],[36,2,36,28],[38,1,38,29],[39,1,39,29],[40,5,40,7],[41,8,41,12],[43,10,43,13],[44,10,44,13],[45,13,45,16],[31,7,31,25],[6,8,6,12],[8,10,8,13],[9,10,9,13],[10,13,10,16],[10,21,10,24],[11,10,11,16],[11,20,11,25],[13,1,13,29],[17,1,17,29],[24,1,24,29],[25,7,25,25],[30,1,30,29],[5,5,5,7],[0,1,2,9],[1,10,1,14],[1,15,1,17],[3,1,3,29],[4,1,4,29]]}
[null,"申請書（第六面）"]
[null,null,null,null,null,null,null,null,null,null,"独立部分の数",null,null,null,null,1]
[]
[null,"（第六面）"]
[null,"　建築物独立部分別概要"]
[null,"【1．番号】",null,null,null,5]
[null,"【2．延べ面積】",null,null,null,null,null,null,null,null,null,null,null,null,"㎡"]
[null,"【3．建築物の高さ等】"]
[null,null,"【ｲ．最高の高さ】",null,null,null,null,null,null,null,null,null,null,null,"ｍ"]
[null,null,"【ﾛ．最高の軒の高さ】",null,null,null,null,null,null,null,null,null,null,null,"ｍ"]
[null,null,"【ﾊ．階数】",null,null,null,null,null,null,null,"地上",null,"（",null,null,null,null,"）","地下",null,"（",null,null,null,null,"）"]
[null,null,"【ﾆ．構造】",null,null,null,null,null,null,null,null,null,null,null,null,null,null,"造　一部 ",null,null,null,null,null,null,null,null,"造"]
[]
[null,"【4．特定構造計算基準又は特定増改築構造計算基準の別】"]
[null,null,null,"□","特定構造計算基準"]
[null,null,null,"□","特定増改築構造計算基準"]
[]
[null,"【5．構造計算の区分】"]
[null,null,null,"□","建築基準法施行令第81条第１項各号に掲げる基準に従った構造計算"]
[null,null,null,"□","建築基準法施行令第81条第２項第１号イに掲げる構造計算"]
[null,null,null,"□","建築基準法施行令第81条第２項第１号ロに掲げる構造計算"]
[null,null,null,"□","建築基準法施行令第81条第２項第２号イに掲げる構造計算"]
[null,null,null,"□","建築基準法施行令第81条第３項に掲げる構造計算"]
[]
[null,"【6．構造計算に用いたプログラム】"]
[null,null,"【ｲ．名称】",null,null,null,"（",null,null,null,null,null,null,null,null,null,null,null,null,null,null,null,null,null,null,null,"）"]
[null,null,"【ﾛ．区分】",null,null,null,"□","建築基準法第20条第１項第２号イ又は第３号イの認定を受けたプログラム"]
[null,null,null,null,null,null,null,null,null,null,"（","大臣認定番号",null,null,null,null,null,null,null,null,null,null,null,null,null,null,"）"]
[null,null,null,null,null,null,"□","その他のプログラム"]
[]
[null,"【7．建築基準法施行令第137条の２各号に定める基準の区分】"]
[null,null,null,null,null,null,"（",null,null,null,null,null,null,null,null,null,null,null,null,null,null,null,null,null,null,null,"）"]
[]
[null,"【8．備考】"]
[]
[]
[]
[]
[null,"（第六面）"]
[null,"　建築物独立部分別概要"]
[null,"【1．番号】",null,null,null,"5-2"]
[null,"【2．延べ面積】",null,null,null,null,null,null,null,null,null,null,null,null,"㎡"]
[null,"【3．建築物の高さ等】"]
[null,null,"【ｲ．最高の高さ】",null,null,null,null,null,null,null,null,null,null,null,"ｍ"]
[null,null,"【ﾛ．最高の軒の高さ】",null,null,null,null,null,null,null,null,null,null,null,"ｍ"]
[null,null,"【ﾊ．階数】",null,null,null,null,null,null,null,"地上",null,"（",null,null,null,null,"）","地下",null,"（",null,null,null,null,"）"]
[null,null,"【ﾆ．構造】",null,null,null,null,null,null,null,null,null,null,null,null,null,null,"造　一部 ",null,null,null,null,null,null,null,null,"造"]
[]
[null,"【4．特定構造計算基準又は特定増改築構造計算基準の別】"]
[null,null,null,"□","特定構造計算基準"]
[null,null,null,"□","特定増改築構造計算基準"]
[]
[null,"【5．構造計算の区分】"]
[null,null,null,"□","建築基準法施行令第81条第１項各号に掲げる基準に従った構造計算"]
[null,null,null,"□","建築基準法施行令第81条第２項第１号イに掲げる構造計算"]
[null,null,null,"□","建築基準法施行令第81条第２項第１号ロに掲げる構造計算"]
[null,null,null,"□","建築基準法施行令第81条第２項第２号イに掲げる構造計算"]
[null,null,null,"□","建築基準法施行令第81条第３項に掲げる構造計算"]
[]
[null,"【6．構造計算に用いたプログラム】"]
[null,null,"【ｲ．名称】",null,null,null,"（",null,null,null,null,null,null,null,null,null,null,null,null,null,null,null,null,null,null,null,"）"]
[null,null,"【ﾛ．区分】",null,null,null,"□","建築基準法第20条第１項第２号イ又は第３号イの認定を受けたプログラム"]
[null,null,null,null,null,null,null,null,null,null,"（","大臣認定番号",null,null,null,null,null,null,null,null,null,null,null,null,null,null,"）"]
[null,null,null,null,null,null,"□","その他のプログラム"]
[]
[null,"【7．建築基準法施行令第137条の２各号に定める基準の区分】"]
[null,null,null,null,null,null,"（",null,null,null,null,null,null,null,null,null,null,null,null,null,null,null,null,null,null,null,"）"]
[]
[null,"【8．備考】"]
[]
[]
[]
[]
[null,"（第六面）"]
[null,"　建築物独立部分別概要"]
[null,"【1．番号】",null,null,null,"5-3"]
[null,"【2．延べ面積】",null,null,null,null,null,null,null,null,null,null,null,null,"㎡"]
[null,"【3．建築物の高さ等】"]
[null,null,"【ｲ．最高の高さ】",null,null,null,null,null,null,null,null,null,null,null,"ｍ"]
[null,null,"【ﾛ．最高の軒の高さ】",null,null,null,null,null,null,null,null,null,null,null,"ｍ"]
[null,null,"【ﾊ．階数】",null,null,null,null,null,null,null,"地上",null,"（",null,null,null,null,"）","地下",null,"（",null,null,null,null,"）"]
[null,null,"【ﾆ．構造】",null,null,null,null,null,null,null,null,null,null,null,null,null,null,"造　一部 ",null,null,null,null,null,null,null,null,"造"]
[]
[null,"【4．特定構造計算基準又は特定増改築構造計算基準の別】"]
[null,null,null,"□","特定構造計算基準"]
[null,null,null,"□","特定増改築構造計算基準"]
[]
[null,"【5．構造計算の区分】"]
[null,null,null,"□","建築基準法施行令第81条第１項各号に掲げる基準に従った構造計算"]
[null,null,null,"□","建築基準法施行令第81条第２項第１号イに掲げる構造計算"]
[null,null,null,"□","建築基準法施行令第81条第２項第１号ロに掲げる構造計算"]
[null,null,null,"□","建築基準法施行令第81条第２項第２号イに掲げる構造計算"]
[null,null,null,"□","建築基準法施行令第81条第３項に掲げる構造計算"]
[]
[null,"【6．構造計算に用いたプログラム】"]
[null,null,"【ｲ．名称】",null,null,null,"（",null,null,null,null,null,null,null,null,null,null,null,null,null,null,null,null,null,null,null,"）"]
[null,null,"【ﾛ．区分】",null,null,null,"□","建築基準法第20条第１項第２号イ又は第３号イの認定を受けたプログラム"]
[null,null,null,null,null,null,null,null,null,null,"（","大臣認定番号",null,null,null,null,null,null,null,null,null,null,null,null,null,null,"）"]
[null,null,null,null,null,null,"□","その他のプログラム"]
[]
[null,"【7．建築基準法施行令第137条の２各号に定める基準の区分】"]
[null,null,null,null,null,null,"（",null,null,null,null,null,null,null,null,null,null,null,null,null,null,null,null,null,null,null,"）"]
[]
[null,"【8．備考】"]

{"sheet":"建築計画概要書","index":19,"n_rows":290,"n_cols":30,"rows_kept":290,"cut":false,"hidden":false,"merged":[[1,1,1,29],[2,1,2,29],[3,1,3,29],[5,10,5,29],[6,10,6,29],[7,10,7,12],[8,10,8,29],[9,10,9,14],[12,11,12,13],[12,14,12,16],[12,17,12,21],[12,22,12,24],[12,25,12,28],[13,10,13,29],[14,11,14,12],[14,13,14,17],[14,18,14,20],[14,21,14,24],[14,25,14,28],[30,2,30,9],[30,10,30,29],[15,10,15,29],[16,10,16,12],[17,10,17,29],[18,10,18,14],[22,11,22,13],[22,14,22,16],[22,17,22,21],[22,22,22,24],[22,25,22,28],[35,10,35,29],[23,10,23,29],[24,11,24,12],[24,13,24,17],[24,18,24,20],[24,21,24,24],[24,25,24,28],[25,10,25,29],[26,10,26,12],[27,10,27,29],[28,10,28,14],[29,11,29,29],[32,11,32,13],[32,14,32,16],[32,17,32,21],[32,22,32,24],[32,25,32,28],[33,10,33,29],[34,11,34,12],[34,13,34,17],[34,18,34,20],[34,21,34,24],[34,25,34,28],[47,10,47,14],[48,11,48,29],[49,10,49,29],[36,10,36,12],[37,10,37,29],[38,10,38,14],[39,11,39,29],[40,10,40,29],[41,11,41,13],[41,14,41,16],[41,17,41,21],[41,22,41,24],[41,25,41,28],[42,10,42,29],[43,11,43,12],[43,13,43,17],[43,18,43,20],[43,21,43,24],[43,25,43,28],[44,10,44,29],[45,10,45,12],[46,10,46,29],[68,14,68,18],[69,13,69,29],[70,14,70,18],[50,11,50,13],[50,14,50,16],[50,17,50,21],[50,22,50,24],[50,25,50,28],[51,10,51,29],[52,11,52,12],[52,13,52,17],[52,18,52,20],[52,21,52,24],[52,25,52,28],[53,10,53,29],[54,10,54,12],[55,10,55,29],[56,10,56,14],[57,11,57,29],[61,13,61,29],[62,14,62,18],[64,13,64,29],[65,14,65,18],[67,13,67,29],[96,10,96,13],[97,10,97,29],[98,10,98,29],[71,13,71,29],[72,14,72,18],[74,13,74,29],[75,14,75,18],[76,13,76,29],[77,14,77,18],[78,13,78,29],[79,14,79,18],[83,10,83,29],[84,10,84,29],[85,10,85,12],[86,10,86,29],[87,10,87,13],[88,10,88,29],[89,10,89,29],[90,2,90,10],[90,11,90,29],[92,10,92,29],[93,10,93,29],[94,10,94,12],[95,10,95,29],[118,10,118,29],[99,2,99,10],[99,11,99,29],[100,10,100,29],[101,10,101,29],[102,10,102,12],[103,10,103,29],[104,10,104,13],[105,10,105,29],[106,10,106,29],[107,2,107,10],[107,11,107,29],[108,10,108,29],[109,10,109,29],[110,10,110,12],[111,10,111,29],[112,10,112,13],[113,10,113,29],[114,10,114,29],[117,11,117,13],[117,14,117,16],[117,17,117,21],[117,22,117,24],[117,25,117,28],[130,10,130,29],[119,11,119,12],[119,13,119,17],[119,18,119,20],[119,21,119,24],[119,25,119,28],[120,10,120,29],[121,10,121,12],[122,10,122,29],[123,10,123,14],[124,10,124,29],[125,2,125,11],[125,12,125,29],[127,11,127,13],[127,14,127,16],[127,17,127,21],[127,22,127,24],[127,25,127,28],[128,10,128,29],[129,11,129,12],[129,13,129,17],[129,18,129,20],[129,21,129,24],[129,25,129,28],[142,10,142,14],[143,10,143,29],[144,12,144,29],[131,10,131,12],[132,10,132,29],[133,10,133,14],[134,10,134,29],[135,12,135,29],[136,11,136,13],[136,14,136,16],[136,17,136,21],[136,22,136,24],[136,25,136,28],[137,10,137,29],[138,11,138,12],[138,13,138,17],[138,18,138,20],[138,21,138,24],[138,25,138,28],[139,10,139,29],[140,10,140,12],[141,10,141,29],[157,10,157,29],[158,10,158,12],[159,10,159,29],[145,11,145,13],[145,14,145,16],[145,17,145,21],[145,22,145,24],[145,25,145,28],[146,10,146,29],[147,11,147,12],[147,13,147,17],[147,18,147,20],[147,21,147,24],[147,25,147,28],[148,10,148,29],[149,10,149,12],[150,10,150,29],[151,10,151,14],[152,10,152,29],[153,2,153,11],[153,12,153,29],[155,10,155,29],[156,13,156,17],[156,20,156,28],[185,10,185,12],[185,14,185,16],[185,18,185,20],[185,22,185,24],[160,10,160,14],[162,5,162,29],[163,1,163,29],[165,1,165,29],[167,6,167,29],[168,6,168,29],[171,5,171,9],[173,13,174,29],[176,6,176,10],[177,14,177,18],[179,10,179,12],[179,14,179,16],[179,18,179,20],[179,22,179,24],[180,10,180,12],[180,14,180,16],[180,18,180,20],[180,22,180,24],[181,10,181,12],[181,14,181,16],[181,18,181,20],[181,22,181,24],[183,10,183,12],[183,14,183,16],[183,18,183,20],[183,22,183,24],[209,10,209,14],[209,16,209,20],[209,22,209,26],[186,10,186,12],[187,10,187,12],[188,19,188,21],[189,19,189,21],[190,6,190,29],[191,8,191,10],[191,12,191,26],[195,10,195,14],[195,16,195,20],[195,22,195,26],[198,10,198,14],[200,10,200,14],[200,16,200,20],[200,22,200,26],[202,10,202,14],[210,16,210,20],[210,22,210,26],[211,10,211,14],[211,16,211,20],[211,22,211,26],[212,10,212,14],[212,16,212,20],[212,22,212,26],[214,10,214,14],[214,16,214,20],[214,22,214,26],[238,10,238,14],[238,16,238,20],[247,1,247,29],[248,1,248,29],[246,1,246,29],[216,22,216,26],[234,12,234,14],[236,10,236,13],[236,16,236,19],[237,10,237,14],[237,16,237,20],[217,10,217,14],[218,10,218,14],[233,12,233,14],[216,10,216,14],[216,16,216,20],[269,1,269,29],[271,2,271,6],[290,2,290,6],[249,9,249,10],[251,9,251,10],[253,16,253,28],[254,7,254,8],[254,16,254,28],[239,10,239,16],[239,20,239,25],[243,1,243,29],[244,1,244,29],[245,1,245,29],[255,7,255,8],[255,16,255,28],[256,7,256,8],[256,16,256,28],[263,1,263,29],[264,1,264,29],[265,1,265,29],[267,1,267,29],[268,1,268,29],[197,10,197,14],[197,16,197,20],[197,22,197,26],[208,10,208,14],[208,16,208,20],[208,22,208,26],[215,10,215,14],[215,16,215,20],[215,22,215,26],[206,10,206,14],[206,16,206,20],[206,22,206,26],[213,10,213,14],[213,16,213,20],[213,22,213,26],[202,16,202,20],[202,22,202,26],[204,10,204,14],[204,16,204,20],[204,22,204,26],[207,10,207,14],[207,16,207,20],[207,22,207,26],[210,10,210,14]]}
[null,"建築計画概要書"]
[null,"第三号様式（第一条の三、第三条、第三条の三、第三条の四、第三条の七、第三条の十、第六条の三、第十一条の三関係）（Ａ４）"]
[null,"建築計画概要書（第一面）"]
[null,"　建築主等の概要"]
[null,"【1．建築主】"]
[null,null,"【ｲ．氏名のﾌﾘｶﾞﾅ】"]
[null,null,"【ﾛ．氏名】"]
[null,null,"【ﾊ．郵便番号】"]
[null,null,"【ﾆ．住所】"]
[null,null,"【ﾎ．電話番号】",null,null,null,null,null,null,null,"099-224-4548"]
[]
[null,"【2．代理者】"]
[null,null,"【ｲ．資格】",null,null,null,null,null,null,null,"(",null,null,null,")建築士(",null,null,null,null,null,null,null,"）登録第",null,null,"",null,null,null,"号"]
[null,null,"【ﾛ．氏名】"]
[null,null,"【ﾊ．建築士事務所名】",null,null,null,null,null,null,null,"(",null,null,")建築士事務所(",null,null,null,null,null,null,null,")知事登録第",null,null,null,"",null,null,null,"号"]
[]
[null,null,"【ﾆ．郵便番号】"]
[null,null,"【ﾎ．所在地】"]
[null,null,"【ﾍ．電話番号】",null,null,null,null,null,null,null,""]
[]
[null,"【3．設計者】"]
[null,"（代表となる設計者）"]
[null,null,"【ｲ．資格】",null,null,null,null,null,null,null,"(",null,null,null,")建築士(",null,null,null,null,null,null,null,"）登録第",null,null,"",null,null,null,"号"]
[null,null,"【ﾛ．氏名】"]
[null,null,"【ﾊ．建築士事務所名】",null,null,null,null,null,null,null,"(",null,null,")建築士事務所(",null,null,null,null,null,null,null,")知事登録第",null,null,null,"",null,null,null,"号"]
[]
[null,null,"【ﾆ．郵便番号】"]
[null,null,"【ﾎ．所在地】"]
[null,null,"【ﾍ．電話番号】",null,null,null,null,null,null,null,""]
[null,null,"【ﾄ．作成又は確認した設計図書】",null,null,null,null,null,null,null,null,""]
[]
[null,"（その他の設計者）"]
[null,null,"【ｲ．資格】",null,null,null,null,null,null,null,"(",null,null,null,")建築士(",null,null,null,null,null,null,null,"）登録第",null,null,"",null,null,null,"号"]
[null,null,"【ﾛ．氏名】"]
[null,null,"【ﾊ．建築士事務所名】",null,null,null,null,null,null,null,"(",null,null,")建築士事務所(",null,null,null,null,null,null,null,")知事登録第",null,null,null,"",null,null,null,"号"]
[]
[null,null,"【ﾆ．郵便番号】"]
[null,null,"【ﾎ．所在地】"]
[null,null,"【ﾍ．電話番号】",null,null,null,null,null,null,null,""]
[null,null,"【ﾄ．作成又は確認した設計図書】",null,null,null,null,null,null,null,null,""]
[]
[null,null,"【ｲ．資格】",null,null,null,null,null,null,null,"(",null,null,null,")建築士(",null,null,null,null,null,null,null,"）登録第",null,null,"",null,null,null,"号"]
[null,null,"【ﾛ．氏名】"]
[null,null,"【ﾊ．建築士事務所名】",null,null,null,null,null,null,null,"(",null,null,")建築士事務所(",null,null,null,null,null,null,null,")知事登録第",null,null,null,"",null,null,null,"号"]
[]
[null,null,"【ﾆ．郵便番号】"]
[null,null,"【ﾎ．所在地】"]
[null,null,"【ﾍ．電話番号】",null,null,null,null,null,null,null,""]
[null,null,"【ﾄ．作成又は確認した設計図書】",null,null,null,null,null,null,null,null,""]
[]
[null,null,"【ｲ．資格】",null,null,null,null,null,null,null,"(",null,null,null,")建築士(",null,null,null,null,null,null,null,"）登録第",null,null,"",null,null,null,"号"]
[null,null,"【ﾛ．氏名】"]
[null,null,"【ﾊ．建築士事務所名】",null,null,null,null,null,null,null,"(",null,null,")建築士事務所(",null,null,null,null,null,null,null,")知事登録第",null,null,null,"",null,null,null,"号"]
[]
[null,null,"【ﾆ．郵便番号】"]
[null,null,"【ﾎ．所在地】"]
[null,null,"【ﾍ．電話番号】",null,null,null,null,null,null,null,""]
[null,null,"【ﾄ．作成又は確認した設計図書】",null,null,null,null,null,null,null,null,""]
[null,"　(構造設計一級建築士又は設備設計一級建築士である旨の表示をした者)"]
[null,"上記の設計者のうち、"]
[null,"□","建築士法第20条の２第１項の表示をした者"]
[null,null,"【ｲ．氏名】"]
[null,null,"【ﾛ．資格】構造設計一級建築士交付",null,null,null,null,null,null,null,null,null,null,"第","",null,null,null,null,"号"]
[null,"□","建築士法第20条の２第３項の表示をした者"]
[null,null,"【ｲ．氏名】"]
[null,null,"【ﾛ．資格】構造設計一級建築士交付",null,null,null,null,null,null,null,null,null,null,"第","",null,null,null,null,"号"]
[null,"□","建築士法第20条の３第１項の表示をした者"]
[null,null,"【ｲ．氏名】"]
[null,null,"【ﾛ．資格】設備設計一級建築士交付",null,null,null,null,null,null,null,null,null,null,"第","",null,null,null,null,"号"]
[null,null,"【ｲ．氏名】"]
[null,null,"【ﾛ．資格】設備設計一級建築士交付",null,null,null,null,null,null,null,null,null,null,"第","",null,null,null,null,"号"]
[null,null,"【ｲ．氏名】"]
[null,null,"【ﾛ．資格】設備設計一級建築士交付",null,null,null,null,null,null,null,null,null,null,"第","",null,null,null,null,"号"]
[null,"□","建築士法第20条の３第３項の表示をした者"]
[null,null,"【ｲ．氏名】"]
[null,null,"【ﾛ．資格】設備設計一級建築士交付",null,null,null,null,null,null,null,null,null,null,"第","",null,null,null,null,"号"]
[null,null,"【ｲ．氏名】"]
[null,null,"【ﾛ．資格】設備設計一級建築士交付",null,null,null,null,null,null,null,null,null,null,"第","",null,null,null,null,"号"]
[null,null,"【ｲ．氏名】"]
[null,null,"【ﾛ．資格】設備設計一級建築士交付",null,null,null,null,null,null,null,null,null,null,"第","",null,null,null,null,"号"]
[]
[null,"【4．建築設備の設計に関し意見を聴いた者】"]
[null,"（代表となる建築設備の設計に関し意見を聴いた者）"]
[null,null,"【ｲ．氏名】"]
[null,null,"【ﾛ．勤務先】"]
[null,null,"【ﾊ．郵便番号】"]
[null,null,"【ﾆ．所在地】"]
[null,null,"【ﾎ．電話番号】",null,null,null,null,null,null,null,""]
[null,null,"【ﾍ．登録番号】",null,null,null,null,null,null,null,""]
[null,null,"【ﾄ．意見を聴いた設計図書】",null,null,null,null,null,null,null,""]
[]
[null,"（その他の建築設備の設計に関し意見を聴いた者）"]
[null,null,"【ｲ．氏名】"]
[null,null,"【ﾛ．勤務先】"]
[null,null,"【ﾊ．郵便番号】"]
[null,null,"【ﾆ．所在地】"]
[null,null,"【ﾎ．電話番号】",null,null,null,null,null,null,null,""]
[null,null,"【ﾍ．登録番号】",null,null,null,null,null,null,null,""]
[null,null,"【ﾄ．意見を聴いた設計図書】",null,null,null,null,null,null,null,""]
[]
[null,null,"【ｲ．氏名】"]
[null,null,"【ﾛ．勤務先】"]
[null,null,"【ﾊ．郵便番号】"]
[null,null,"【ﾆ．所在地】"]
[null,null,"【ﾎ．電話番号】",null,null,null,null,null,null,null,""]
[null,null,"【ﾍ．登録番号】",null,null,null,null,null,null,null,""]
[null,null,"【ﾄ．意見を聴いた設計図書】",null,null,null,null,null,null,null,""]
[]
[null,null,"【ｲ．氏名】"]
[null,null,"【ﾛ．勤務先】"]
[null,null,"【ﾊ．郵便番号】"]
[null,null,"【ﾆ．所在地】"]
[null,null,"【ﾎ．電話番号】",null,null,null,null,null,null,null,""]
[null,null,"【ﾍ．登録番号】",null,null,null,null,null,null,null,""]
[null,null,"【ﾄ．意見を聴いた設計図書】",null,null,null,null,null,null,null,""]
[null,"【5．工事監理者】"]
[null,"（代表となる工事監理者）"]
[null,null,"【ｲ．資格】",null,null,null,null,null,null,null,"(",null,null,null,")建築士(",null,null,null,null,null,null,null,"）登録第",null,null,"",null,null,null,"号"]
[null,null,"【ﾛ．氏名】"]
[null,null,"【ﾊ．建築士事務所名】 ",null,null,null,null,null,null,null,"(",null,null,")建築士事務所(",null,null,null,null,null,null,null,")知事登録第",null,null,null,"",null,null,null,"号"]
[]
[null,null,"【ﾆ．郵便番号】"]
[null,null,"【ﾎ．所在地】"]
[null,null,"【ﾍ．電話番号】",null,null,null,null,null,null,null,""]
[null,null,"【ﾄ．工事と照合する設計図書】",null,null,null,null,null,null,null,""]
[]
[null,"（その他の工事監理者）"]
[null,null,"【ｲ．資格】",null,null,null,null,null,null,null,"(",null,null,null,")建築士(",null,null,null,null,null,null,null,"）登録第",null,null,"",null,null,null,"号"]
[null,null,"【ﾛ．氏名】"]
[null,null,"【ﾊ．建築士事務所名】 ",null,null,null,null,null,null,null,"(",null,null,")建築士事務所(",null,null,null,null,null,null,null,")知事登録第",null,null,null,"",null,null,null,"号"]
[]
[null,null,"【ﾆ．郵便番号】"]
[null,null,"【ﾎ．所在地】"]
[null,null,"【ﾍ．電話番号】",null,null,null,null,null,null,null,""]
[null,null,"【ﾄ．工事と照合する設計図書】",null,null,null,null,null,null,null,""]
[]
[null,null,"【ｲ．資格】",null,null,null,null,null,null,null,"(",null,null,null,")建築士(",null,null,null,null,null,null,null,"）登録第",null,null,"",null,null,null,"号"]
[null,null,"【ﾛ．氏名】"]
[null,null,"【ﾊ．建築士事務所名】 ",null,null,null,null,null,null,null,"(",null,null,")建築士事務所(",null,null,null,null,null,null,null,")知事登録第",null,null,null,"",null,null,null,"号"]
[]
[null,null,"【ﾆ．郵便番号】"]
[null,null,"【ﾎ．所在地】"]
[null,null,"【ﾍ．電話番号】",null,null,null,null,null,null,null,""]
[null,null,"【ﾄ．工事と照合する設計図書】",null,null,null,null,null,null,null,""]
[]
[null,null,"【ｲ．資格】",null,null,null,null,null,null,null,"(",null,null,null,")建築士(",null,null,null,null,null,null,null,"）登録第",null,null,"",null,null,null,"号"]
[null,null,"【ﾛ．氏名】"]
[null,null,"【ﾊ．建築士事務所名】 ",null,null,null,null,null,null,null,"(",null,null,")建築士事務所(",null,null,null,null,null,null,null,")知事登録第",null,null,null,"",null,null,null,"号"]
[]
[null,null,"【ﾆ．郵便番号】"]
[null,null,"【ﾎ．所在地】"]
[null,null,"【ﾍ．電話番号】",null,null,null,null,null,null,null,""]
[null,null,"【ﾄ．工事と照合する設計図書】",null,null,null,null,null,null,null,""]
[]
[null,"【6．工事施工者】"]
[null,null,"【ｲ．氏名】"]
[null,null,"【ﾛ．営業所名】建設業の許可",null,null,null,null,null,null,null,null,null,"(",null,null,null,null,null,") 第",null,null,null,null,null,null,null,null,null,null,"号"]
[]
[null,null,"【ﾊ．郵便番号】"]
[null,null,"【ﾆ．所在地】"]
[null,null,"【ﾎ．電話番号】",null,null,null,null,null,null,null,""]
[]
[null,"【7．備考】"]
[]
[]
[null,"建築計画概要書(第二面）"]
[null,"　建築物及びその敷地に関する事項"]
[null,"【1．地名地番】",null,null,null,null,""]
[null,"【2．住居表示】",null,null,null,null,""]
[null,"【3．都市計画区域及び準都市計画区域の内外の別等】"]
[null,null,null,null,"□","都市計画区域内 ",null,null,null,null,"(","□","市街化区域",null,null,null,"□","市街化調整区域",null,null,null,null,"□","区域区分非設定",null,null,null,null,")"]
[null,null,null,null,"□","準都市計画区域内",null,null,null,null,null,"□","都市計画区域及び準都市計画区域外　"]
[null,"【4．防火地域】",null,null,null,null,null,null,null,null,null,"□","防火地域",null,null,null,"□","準防火地域",null,null,null,null,"□","指定なし"]
[null,"【5．その他の区域、地域、地区又は街区】",null,null,null,null,null,null,null,null,null,null,null,""]
[]
[null,"【6．道路】"]
[null,null,"【ｲ．幅員】",null,null,null,null,null,null,null,null,"ｍ",null,null,null,""]
[null,null,"【ﾛ．敷地と接している部分の長さ】",null,null,null,null,null,null,null,null,null,null,null,null,null,null,null,null,"ｍ"]
[null,"【7．敷地面積】"]
[null,null,"【ｲ．敷地面積】",null,null,null,null,"（1） ",null,"（",null,null,null,")(",null,null,null,")(",null,null,null,")(",null,null,null,"）㎡"]
[null,null,null,null,null,null,null,"（2） ",null,"（",null,null,null,")(",null,null,null,")(",null,null,null,")(",null,null,null,"）㎡"]
[null,null,"【ﾛ．用途地域等】　  ",null,null,null,null,null,null,"（","",null,null,")(","",null,null,")(","",null,null,")(","",null,null,"）　"]
[null,null,"【ﾊ．建築基準法第５２条第１項及び第２項の規定による建築物の容積率】 　　　 　　"]
[null,null,null,null,null,null,null,null,null,"（",null,null,null,")(",null,null,null,")(",null,null,null,")(",null,null,null,"）％"]
[null,null,"【ﾆ．建築基準法第５３条第１項の規定による建築物の建蔽率】 　　　　　 　　　　　　　　　　　　　　　                                   　　　　                 "]
[null,null,null,null,null,null,null,null,null,"（",null,null,null,")(",null,null,null,")(",null,null,null,")(",null,null,null,"）％"]
[null,null,"【ﾎ．敷地面積の合計】 ",null,null,null,null,null,"（1）",null,{"$f":"ROUND(K180,2)+ROUND(O180,2)+ROUND(S180,2)+ROUND(W180,2)","v":0},null,null,"㎡"]
[null,null,null,null,null,null,null,null,"（2）",null,{"$f":"ROUND(K181,2)+ROUND(O181,2)+ROUND(S181,2)+ROUND(W181,2)","v":0},null,null,"㎡"]
[null,null,"【ﾍ．敷地に建築可能な延べ面積を敷地面積で除した数値】",null,null,null,null,null,null,null,null,null,null,null,null,null,null,null,null,null,null,null,"％"]
[null,null,"【ﾄ．敷地に建築可能な建築面積を敷地面積で除した数値】",null,null,null,null,null,null,null,null,null,null,null,null,null,null,null,null,null,null,null,"％"]
[null,null,"【ﾁ．備考】",null,null,null,""]
[null,"【8．主要用途】　",null,null,null,null,"（区分",null,"",null,null,"）",""]
[null,"【9．工事種別】"]
[null,null,null,"□","新築",null,"□","増築",null,"□","改築 ",null,"□","移転",null,"□","用途変更",null,null,"□","大規模の修繕",null,null,null,"□","大規模の模様替"]
[null,"【10．建築面積】　　　　",null,null,null,null,null,null,null,"（","申請部分",null,null,null,null,")(","申請以外の部分",null,null,null,null,")(","合計",null,null,null,null,"）　"]
[null,null,"【ｲ．建築面積】　　　 ",null,null,null,null,null,null,"（",null,null,null,null,null,")(",null,null,null,null,null,")(",{"$f":"ROUND(K196,2)+ROUND(Q196,2)","v":0},null,null,null,null,"）㎡"]
[null,null,"【ﾛ．建蔽率の算定の基礎となる建築面積】　　　 "]
[null,null,null,null,null,null,null,null,null,"（",null,null,null,null,null,")(",null,null,null,null,null,")(",{"$f":"ROUND(K198,2)+ROUND(Q198,2)","v":0},null,null,null,null,"）㎡"]
[null,null,"【ﾊ．建蔽率】",null,null,null,null,null,null,null,null,null,null,null,null,"％"]
[null,"【11．延べ面積】　　 　　 　",null,null,null,null,null,null,null,"（","申請部分",null,null,null,null,")(","申請以外の部分",null,null,null,null,")(","合計",null,null,null,null,"）　"]
[null,null,"【ｲ．建築物全体】　　　　 ",null,null,null,null,null,null,"（",null,null,null,null,null,")(",null,null,null,null,null,")(",{"$f":"ROUND(K201,2)+ROUND(Q201,2)","v":0},null,null,null,null,"）㎡"]
[null,null,"【ﾛ．地階の住宅又は老人ホーム等の部分】　 "]
[null,null,null,null,null,null,null,null,null,"（",null,null,null,null,null,")(",null,null,null,null,null,")(",{"$f":"ROUND(K203,2)+ROUND(Q203,2)","v":0},null,null,null,null,"）㎡"]
[null,null,"【ﾊ．エレベーターの昇降路の部分】"]
[null,null,null,null,null,null,null,null,null,"（",null,null,null,null,null,")(",null,null,null,null,null,")(",{"$f":"ROUND(K205,2)+ROUND(Q205,2)","v":0},null,null,null,null,"）㎡"]
[null,null,"【ﾆ．共同住宅又は老人ホーム等の共用の廊下等の部分】"]
[null,null,null,null,null,null,null,null,null,"（",null,null,null,null,null,")(",null,null,null,null,null,")(",{"$f":"ROUND(K207,2)+ROUND(Q207,2)","v":0},null,null,null,null,"）㎡"]
[null,null,"【ﾎ．認定機械室等の部分】 ",null,null,null,null,null,null,"（",null,null,null,null,null,")(",null,null,null,null,null,")(",{"$f":"ROUND(K208,2)+ROUND(Q208,2)","v":0},null,null,null,null,"）㎡"]
[null,null,"【ﾍ．自動車車庫等の部分】 ",null,null,null,null,null,null,"（",null,null,null,null,null,")(",null,null,null,null,null,")(",{"$f":"ROUND(K209,2)+ROUND(Q209,2)","v":0},null,null,null,null,"）㎡"]
[null,null,"【ﾄ．備蓄倉庫の部分】 ",null,null,null,null,null,null,"（",null,null,null,null,null,")(",null,null,null,null,null,")(",0,null,null,null,null,"）㎡"]
[null,null,"【ﾁ．蓄電池の設置部分】 ",null,null,null,null,null,null,"（",null,null,null,null,null,")(",null,null,null,null,null,")(",0,null,null,null,null,"）㎡"]
[null,null,"【ﾘ．自家発電設備の設置部分】 ",null,null,null,null,null,null,"（",null,null,null,null,null,")(",null,null,null,null,null,")(",0,null,null,null,null,"）㎡"]
[null,null,"【ﾇ．貯水槽の設置部分】 ",null,null,null,null,null,null,"（",null,null,null,null,null,")(",null,null,null,null,null,")(",0,null,null,null,null,"）㎡"]
[null,null,"【ﾙ．宅配ボックスの設置部分】　　　 　",null,null,null,null,null,null,"（",null,null,null,null,null,")(",null,null,null,null,null,")(",0,null,null,null,null,"）㎡"]
[null,null,"【ｦ．その他の不算入部分】　　　 　",null,null,null,null,null,null,"（",null,null,null,null,null,")(",null,null,null,null,null,")(",0,null,null,null,null,"）㎡"]
[null,null,"【ﾜ．住宅の部分】",null,null,null,null,null,null,"（",null,null,null,null,null,")(",null,null,null,null,null,")(",{"$f":"ROUND(K216,2)+ROUND(Q216,2)","v":0},null,null,null,null,"）㎡"]
[null,null,"【ｶ．老人ホーム等の部分】",null,null,null,null,null,null,"（",null,null,null,null,null,")(",null,null,null,null,null,")(",{"$f":"ROUND(K217,2)+ROUND(Q217,2)","v":0},null,null,null,null,"）㎡"]
[null,null,"【ﾖ．延べ面積】",null,null,null,null,null,null,null,null,null,null,null,null,"㎡"]
[null,null,"【ﾀ．容積率】",null,null,null,null,null,null,null,null,null,null,null,null,"％"]
[]
[]
[]
[]
[]
[]
[]
[]
[]
[]
[]
[]
[]
[null,"【12．建築物の数】"]
[null,null,"【ｲ．申請に係る建築物の数】",null,null,null,null,null,null,null,null,null,""]
[null,null,"【ﾛ．同一敷地内の他の建築物の数】",null,null,null,null,null,null,null,null,null,""]
[null,"【13．建築物の高さ等】",null,null,null,null,null,null,null,"（","申請に係る建築物",null,null,null,null,")(","他の建築物",null,null,null,null,"）"]
[null,null,"【ｲ．最高の高さ】　　 ",null,null,null,null,null,null,"（",null,null,null,null,"ｍ",")(",null,null,null,null,"ｍ","）"]
[null,null,"【ﾛ．階数】",null,null,null,null,"地上",null,"（","",null,null,null,null,")(","",null,null,null,null,"）"]
[null,null,null,null,null,null,null,"地下",null,"（","",null,null,null,null,")(","",null,null,null,null,"）"]
[null,null,"【ﾊ．構造】",null,null,null,null,null,null,null,"",null,null,null,null,null,null,"造　一部 ",null,null,"",null,null,null,null,null,"造"]
[null,null,"【ﾆ．建築基準法第５６条第７項の規定による特例の適用の有無】",null,null,null,null,null,null,null,null,null,null,null,null,null,null,null,null,null,"□","有","□","無"]
[null,null,"【ﾎ．適用があるときは、特例の区分】"]
[null,null,null,null,"□","道路高さ制限不適用",null,null,null,null,null,"□","隣地高さ制限不適用",null,null,null,null,null,"□","北側高さ制限不適用"]
[null,"【14．許可・認定等】"]
[]
[]
[]
[]
[]
[null,"【15．工事着手予定年月日】　",null,null,null,null,null,null,null,"令和",null,"","年","","月","","日"]
[]
[null,"【16．工事完了予定年月日】　",null,null,null,null,null,null,null,"令和",null,"","年","","月","","日"]
[]
[null,"【17．特定工程工事終了予定年月日】",null,null,null,null,null,null,null,null,null,null,null,null,null,"(","特定工程",null,null,null,null,null,null,null,null,null,null,null,null,"）"]
[null,null,null,"（第",null,"回）　",null,"令和",null,null,"年",null,"月",null,"日","(",null,null,null,null,null,null,null,null,null,null,null,null,null,"）"]
[null,null,null,"（第",null,"回）　",null,"令和",null,null,"年",null,"月",null,"日","(",null,null,null,null,null,null,null,null,null,null,null,null,null,"）"]
[null,null,null,"（第",null,"回）　",null,"令和",null,null,"年",null,"月",null,"日","(",null,null,null,null,null,null,null,null,null,null,null,null,null,"）"]
[]
[null,"【18.建築基準法第12条第1項の規定による調査の要否】",null,null,null,null,null,null,null,null,null,null,null,null,null,null,null,null,null,null,"□","要","■","否"]
[]
[null,"【19.建築基準法第12条第3項の規定による検査を要する防火設備の有無】",null,null,null,null,null,null,null,null,null,null,null,null,null,null,null,null,null,null,"□","有","■","無"]
[]
[null,"【20．その他必要な事項】"]
[]
[]
[]
[null,"【21．備考】"]
[]
[]
[null,"建築計画概要書（第三面）"]
[null,"　付近見取図"]
[null,null,"　"]
[]
[]
[]
[]
[]
[]
[]
[]
[]
[]
[]
[]
[]
[]
[]
[]
[]
[null,"　配置図"]

{"sheet":"建築工事届","index":20,"n_rows":127,"n_cols":29,"rows_kept":127,"cut":false,"hidden":false,"merged":[[77,8,77,13],[78,8,78,13],[78,15,78,20],[74,15,74,20],[75,15,75,20],[76,15,76,20],[74,8,74,13],[75,8,75,13],[76,8,76,13],[95,10,95,12],[95,16,95,18],[95,22,95,24],[93,22,93,24],[92,10,92,12],[92,16,92,18],[92,22,92,24],[90,10,90,12],[79,15,79,20],[80,15,80,20],[81,15,81,20],[82,15,82,20],[79,8,79,13],[80,8,80,13],[81,8,81,13],[82,8,82,13],[97,10,97,12],[97,16,97,18],[97,22,97,24],[118,15,118,16],[125,12,125,15],[102,9,102,11],[117,15,117,16],[110,18,110,20],[110,23,110,25],[98,14,98,17],[99,1,99,29],[101,9,101,11],[126,12,126,15],[47,1,47,29],[69,14,69,15],[70,14,70,15],[71,14,71,15],[119,15,119,16],[111,8,111,10],[111,13,111,15],[111,18,111,20],[111,23,111,25],[116,1,116,29],[109,2,109,6],[110,8,110,10],[110,13,110,15],[93,10,93,12],[93,16,93,18],[72,1,72,9],[73,7,73,9],[73,14,73,16],[73,21,73,23],[90,16,90,18],[90,22,90,24],[74,22,74,27],[75,22,75,27],[76,22,76,27],[77,22,77,27],[78,22,78,27],[79,22,79,27],[80,22,80,27],[81,22,81,27],[82,22,82,27],[77,15,77,20],[61,7,61,29],[40,7,40,29],[41,7,41,11],[30,7,30,29],[31,7,31,11],[35,9,35,27],[37,7,37,27],[38,7,38,29],[39,7,39,10],[29,7,29,10],[14,7,14,27],[15,7,15,10],[16,7,16,29],[17,7,17,11],[19,7,19,29],[21,7,21,29],[22,7,22,10],[23,7,23,29],[24,7,24,11],[26,7,26,29],[28,7,28,29],[11,1,11,12],[4,1,4,29],[5,1,5,29],[7,1,7,29],[10,1,10,12],[10,21,10,22]]}
[null,"建築工事届"]
[null,"規則別記"]
[null,"第４０号様式（第８条関係）（Ａ４）"]
[]
[null,"建築基準法第１５条第１項の規定による"]
[null,"建 築 工 事 届"]
[]
[null,"（第一面）"]
[]
[]
[null,null,null,null,null,null,null,null,null,null,null,null,null,null,null,null,null,null,null,null,null,"令和",null,{"$f":"第一面!Y18","v":0},"年",{"$f":"第一面!AA18","v":0},"月",{"$f":"第一面!AC18","v":0},"日"]
[null,"鹿児島県知事　様"]
[]
[null,"建築主"]
[null,"　　　氏名　　　"]
[null,"　　　郵便番号"]
[null,"　　　住所"]
[null,"　　　電話番号",null,null,null,null,null,""]
[null,"工事施工者（設計者又は代理者）"]
[null,"　　　氏名"]
[null,"　　　営業所名（建築士事務所名）"]
[]
[null,"　　　郵便番号"]
[null,"　　　所在地"]
[null,"　　　電話番号",null,null,null,null,null,""]
[null,"工事監理者"]
[null,"　　　氏名"]
[null,"　　　営業所名（建築士事務所名）"]
[]
[null,"　　　郵便番号"]
[null,"　　　所在地"]
[null,"　　　電話番号",null,null,null,null,null,""]
[null,"建築確認"]
[null,"　　　確認済証番号　",null,null,null,null,null,null,null,"第",null,null,null,null,null,null,null,null,"号"]
[null,"　　　確認済証交付年月日",null,null,null,null,null,null,null,"令和",null,null,"年",null,"月",null,"日"]
[null,"　　　確認済証交付者",null,null,null,null,null,null,null,"(公財)鹿児島県住宅・建築総合センター　理事長　松尾　浩一"]
[null,"除却工事施工者"]
[null,"　　　氏名　　　　　　　　　　　　　　　　　　　　　　　　　　　　　　　　　"]
[null,"　　　営業所名"]
[null,"　　　郵便番号"]
[null,"　　　所在地"]
[null,"　　　電話番号",null,null,null,null,null,""]
[null,"※受付経由機関記載欄"]
[]
[]
[]
[]
[null,"（第二面）"]
[null,"【１.着工及び工事完了の予定期日】"]
[null,null,null,null,null,null,null,"令和",null,"年",null,"月",null,"日から"]
[null,null,null,null,null,null,null,"令和",null,"年",null,"月",null,"日まで",null,null,"　　"]
[]
[null,"【２.建築主】",null,null,null,null,"",null,null,null,"",null,null,null,null,null,null,null,""]
[null,"　　","【イ.建築主の種別】",null,null,null,null,null,"□","(1)国",null,null,"□","(2)都道府県",null,null,null,null,null,"□","(3)市区町村"]
[null,null,null,null,null,null,null,null,"□","(4)会社",null,null,"□","(5)会社でない団体",null,null,null,null,null,"□","(6)個人"]
[null,null,"【ロ.資本金の額又は出資の総額】"]
[null,null,null,null,null,null,null,null,"□","(1) 1,000万円以下",null,null,null,null,null,null,null,"□","(2) 1,000万円超～3,000万円以下"]
[null,null,null,null,null,null,null,null,"□","(3) 3,000万円超～1億円以下",null,null,null,null,null,null,null,"□","(4) 1億円超～10億円以下"]
[null,null,null,null,null,null,null,null,"□","(5) 10億円超"]
[]
[null,"【３.敷地の位置】"]
[null,"　　【イ.地名地番】",null,null,null,null,null,""]
[null,"　　【ロ.都市計画】",null,null,null,null,null,"□","(1)市街化区域",null,null,null,null,"□","(2)市街化調整区域"]
[null,null,null,null,null,null,null,"□","(3)区域区分非設定都市計画区域",null,null,null,null,null,null,null,null,"","□","(4)準都市計画区域"]
[null,null,null,null,null,null,null,"□","(5)都市計画区域及び準都市計画区域外"]
[]
[]
[null,"【４.工事種別】",null,null,null,null,null,"□","(1)新築",null,null,"□","(2)増築",null,null,"□","(3)改築",null,null,"□","(4)移転"]
[]
[null,"【５.主要用途】　",null,null,null,null,null,"(1)居住専用建築物",null,null,null,null,null,"（","",null,"）"]
[null,null,null,null,null,null,null,"(2)居住産業併用建築物",null,null,null,null,null,"（","",null,"）"]
[null,null,null,null,null,null,null,"(3)産業専用建築物",null,null,null,null,null,"（","",null,"）"]
[null,"【６.一の建築物ごとの内容】",null,null,null,null,null,null,null,null,null,null,null,null,"",null,null,null,null,null,null,""]
[null,null,"【イ.番号】",null,null,null,"（",null,null,null,"）",null,null,"（",null,null,null,"）",null,null,"（",null,null,null,"）"]
[null,null,"【ロ.用途】　",null,null,null,null,"□","(1)事務所等",null,null,null,null,null,"□","(1)事務所等",null,null,null,null,null,"□","(1)事務所等"]
[null,null,null,null,null,null,null,"□","(2)物品販売業を",null,null,null,null,null,"□","(2)物品販売業を",null,null,null,null,null,"□","(2)物品販売業を"]
[null,null,null,null,null,null,null,null,"営む店舗等",null,null,null,null,null,null,"営む店舗等",null,null,null,null,null,null,"営む店舗等"]
[null,null,null,null,null,null,null,"□","(3)工場，作業場",null,null,null,null,null,"□","(3)工場，作業場",null,null,null,null,null,"□","(3)工場，作業場"]
[null,null,null,null,null,null,null,"□","(4)倉庫",null,null,null,null,null,"□","(4)倉庫",null,null,null,null,null,"□","(4)倉庫"]
[null,null,null,null,null,null,null,"□","(5)学校",null,null,null,null,null,"□","(5)学校",null,null,null,null,null,"□","(5)学校"]
[null,null,null,null,null,null,null,"□","(6)病院，診療所",null,null,null,null,null,"□","(6)病院，診療所",null,null,null,null,null,"□","(6)病院，診療所"]
[null,null,null,null,null,null,null,"□","(9)その他",null,null,null,null,null,"□","(9)その他",null,null,null,null,null,"□","(9)その他"]
[null,null,null,null,null,null,null,"□","多用途",null,null,null,null,null,"□","多用途",null,null,null,null,null,"□","多用途"]
[null,null,"【ハ.工事部分の構造】",null,null,null,null,null,null,null,null,null,null,null,null,null,null,null,null,null,null,""]
[null,null,null,null,null,null,null,"□","(1)木造",null,null,null,null,null,"□","(1)木造",null,null,null,null,null,"□","(1)木造"]
[null,null,null,null,null,null,null,"□","(2)鉄骨鉄筋ｺﾝｸﾘｰﾄ造",null,null,null,null,null,"□","(2)鉄骨鉄筋ｺﾝｸﾘｰﾄ造",null,null,null,null,null,"□","(2)鉄骨鉄筋ｺﾝｸﾘｰﾄ造"]
[null,null,null,null,null,null,null,"□","(3)鉄筋ｺﾝｸﾘｰﾄ造",null,null,null,null,null,"□","(3)鉄筋ｺﾝｸﾘｰﾄ造",null,null,null,null,null,"□","(3)鉄筋ｺﾝｸﾘｰﾄ造"]
[null,null,null,null,null,null,null,"□","(4)鉄骨造",null,null,null,null,null,"□","(4)鉄骨造",null,null,null,null,null,"□","(4)鉄骨造"]
[null,null,null,null,null,null,null,"□","(5)ｺﾝｸﾘｰﾄﾌﾞﾛｯｸ造",null,null,null,null,null,"□","(5)ｺﾝｸﾘｰﾄﾌﾞﾛｯｸ造",null,null,null,null,null,"□","(5)ｺﾝｸﾘｰﾄﾌﾞﾛｯｸ造"]
[null,null,null,null,null,null,null,"□","(6)その他",null,null,null,null,null,"□","(6)その他",null,null,null,null,null,"□","(6)その他"]
[null,null,"【ニ.工事の予定期間】",null,null,null,null,null,null,"(",null,null,null,"月間）",null,"(",null,null,null,"月間）",null,"(",null,null,null,"月間）"]
[null,null,"【ホ.工事部分の床面積の合計】 ",null,null,null,null,null,null,null,"",null,null,null,null,null,"",null,null,null,null,null,""]
[null,null,null,null,null,null,null,null,null,"(",null,null,null,"㎡)",null,"(",null,null,null,"㎡)",null,"(",null,null,null,"㎡)"]
[null,null,"【ヘ.建築工事費予定額】",null,null,null,null,null,null,"(",null,null,null,"万円）",null,"(",null,null,null,"万円）",null,"(",null,null,null,"万円）"]
[null,null,"【ト.新築工事の場合における地上の階数】　"]
[null,null,null,null,null,null,null,null,null,"(","",null,null,"）",null,"(","",null,null,"）",null,"(","",null,null,"）"]
[null,null,"【チ.新築工事の場合における地下の階数】"]
[null,null,null,null,null,null,null,null,null,"(","",null,null,"）","","(","",null,null,"）",null,"(","",null,null,"）"]
[null,"【７.新築工事の場合における敷地面積】　",null,null,null,null,null,null,null,null,null,null,null,null,null,null,null,null,"㎡"]
[null,"（第三面）"]
[null,"【１.住宅部分の概要】"]
[null,null,"【イ.番号】"]
[null,null,"【ロ.新設とその他の別】",null,null,null,null,null,null,"(1)新設",null,null,"（","□","(1)新築",null,null,"□","(2)増築",null,null,"□","(3)改築",null,null,"）"]
[null,null,null,null,null,null,null,null,null,"(2)その他",null,null,"（",null,null,null,null,"□","(2)増築",null,null,"□","(3)改築",null,null,"）"]
[null,null,"【ハ.新設住宅の資金】",null,null,null,null,null,"□","(1)民間資金住宅",null,null,null,null,null,"□","(2)公営住宅",null,null,null,"□","(3)住宅金融支援機構住宅"]
[null,null,null,null,null,null,null,null,"□","(4)都市再生機構住宅",null,null,null,null,null,"□","(5)その他"]
[null,null,"【ニ.住宅の建築工法】　",null,null,null,null,null,"□","(1)在来工法",null,null,null,"□","(2)プレハブ工法",null,null,null,null,"□","(3)枠組壁工法"]
[null,null,"【ホ.住宅の種類】",null,null,null,null,null,"□","(1）専用住宅",null,null,null,"□","(2）併用住宅",null,null,null,null,"□","(3）その他の住宅"]
[null,null,"【ヘ.住宅の建て方】",null,null,null,null,null,"□","(1)一戸建住宅",null,null,null,"□","(2)長屋建住宅",null,null,null,null,"□","(3)共同住宅"]
[null,null,"【ト.利用関係】",null,null,null,null,null,"□","(1)持家",null,null,null,"□","(2)貸家",null,null,null,"□","(3)給与住宅",null,null,null,"□","(4)分譲住宅"]
[null,null,"【チ.住宅の戸数】",null,null,null,null,"（",null,null,null,"戸","）（",null,null,null,"戸","）（",null,null,null,"戸","）（",null,null,null,"戸","）"]
[null,null,"【リ.工事部分の",null,null,null,null,"（",null,null,null,"㎡","）（",null,null,null,"㎡","）（",null,null,null,"㎡","）（",null,null,null,"㎡","）"]
[null,null,"　床面積の合計】　　"]
[]
[]
[]
[null,"（第四面）"]
[null,"　【1.主要用途】",null,null,null,null,null,"(1)居住専用建築物",null,null,null,null,null,null,"（","",null,"）"]
[null,null,null,null,null,null,null,"(2)居住産業併用建築物",null,null,null,null,null,null,"（","",null,"）"]
[null,null,null,null,null,null,null,"(3)産業専用建築物",null,null,null,null,null,null,"（","",null,"）"]
[null,"　【2.除却要因】",null,null,null,null,null,"□","(1)老朽して危険があるため",null,null,null,null,null,null,"□","(2)その他"]
[null,"　【3.構造種別】",null,null,null,null,null,"□","(1)木造",null,null,null,null,null,null,"□","(2)その他"]
[null,"　【4.建築物の数】"]
[null,"　【5.住宅の戸数】　　　",null,null,null,null,null,null,null,"戸"]
[null,"　【6.住宅の利用関係】",null,null,null,null,null,null,"□","(1)持家",null,null,"□","(2)貸家",null,null,"□","(3)給与住宅"]
[null,"　【7.建築物の床面積の合計】",null,null,null,null,null,null,null,null,null,null,null,null,null,null,"㎡"]
[null,"　【8.建築物の評価額】　　",null,null,null,null,null,null,null,null,null,null,null,null,null,null,"千円"]

{"sheet":"現地調査票","index":21,"n_rows":163,"n_cols":49,"rows_kept":163,"cut":false,"hidden":false,"merged":[[150,1,150,45],[151,1,151,45],[152,0,152,45],[153,1,153,45],[154,1,154,45],[155,1,155,45],[162,1,162,45],[156,1,156,45],[157,1,157,45],[158,0,158,45],[159,1,159,45],[160,1,160,45],[161,1,161,45],[146,1,146,45],[147,1,147,45],[148,1,148,45],[149,1,149,45],[138,1,138,45],[139,1,139,45],[140,1,140,45],[141,0,141,45],[142,1,142,45],[143,1,143,45],[108,17,108,18],[108,20,108,21],[109,8,109,11],[109,12,109,28],[144,1,144,45],[145,1,145,45],[109,29,109,31],[109,32,109,46],[110,8,113,11],[110,12,113,46],[117,0,117,42],[119,1,119,45],[108,0,113,7],[108,8,108,11],[108,12,108,13],[108,14,108,15],[132,0,132,42],[133,1,133,45],[134,1,134,45],[135,0,135,45],[136,1,136,45],[137,1,137,45],[103,8,106,11],[103,12,106,46],[107,0,107,7],[107,8,107,46],[101,0,106,7],[101,8,101,11],[101,12,101,13],[101,14,101,15],[101,17,101,18],[101,20,101,21],[95,8,95,11],[95,12,95,28],[102,29,102,31],[102,32,102,46],[102,8,102,11],[102,12,102,28],[95,29,95,31],[95,32,95,46],[96,8,99,11],[96,12,99,46],[100,0,100,7],[100,8,100,46],[94,0,99,7],[94,8,94,11],[94,12,94,13],[94,14,94,15],[86,0,86,7],[86,8,86,46],[87,0,92,7],[87,8,87,11],[87,12,87,13],[87,14,87,15],[87,17,87,18],[87,20,87,21],[88,8,88,11],[88,12,88,28],[88,29,88,31],[88,32,88,46],[89,8,92,11],[89,12,92,46],[93,0,93,7],[93,8,93,46],[94,17,94,18],[94,20,94,21],[79,0,79,7],[79,8,79,46],[80,0,85,7],[80,8,80,11],[80,12,80,13],[80,14,80,15],[80,17,80,18],[80,20,80,21],[81,8,81,11],[81,12,81,28],[81,29,81,31],[81,32,81,46],[82,8,85,11],[82,12,85,46],[68,43,71,46],[69,12,69,15],[69,16,69,32],[69,33,69,35],[69,36,69,42],[70,12,71,15],[70,16,71,42],[72,0,76,7],[75,26,76,42],[68,0,71,7],[68,8,71,11],[68,12,68,15],[68,16,68,17],[68,18,68,19],[68,21,68,22],[68,24,68,25],[66,0,67,7],[66,24,66,27],[66,28,66,30],[66,32,66,33],[66,34,66,35],[57,0,65,7],[59,26,59,30],[66,37,66,38],[66,40,66,41],[63,16,63,32],[63,33,63,35],[50,0,51,7],[52,0,53,7],[55,0,55,42],[56,0,56,7],[56,8,56,42],[56,43,56,46],[59,43,65,46],[62,8,65,11],[62,12,62,15],[62,16,62,17],[62,18,62,19],[62,21,62,22],[62,24,62,25],[63,12,63,15],[63,36,63,42],[64,12,65,15],[64,16,65,42],[44,0,45,7],[44,26,45,31],[46,0,46,7],[46,43,49,46],[47,0,49,7],[48,23,48,24],[48,26,48,27],[48,29,48,31],[48,33,48,40],[49,21,49,38],[41,0,43,7],[42,17,42,20],[42,22,42,25],[24,43,29,46],[30,0,32,7],[30,29,30,42],[31,30,31,42],[32,30,32,42],[32,43,32,46],[42,27,42,33],[33,0,37,7],[33,35,33,42],[34,36,34,42],[35,36,35,42],[36,36,36,42],[37,36,37,42],[38,0,38,7],[38,36,38,41],[39,0,39,7],[24,0,29,7],[24,12,24,16],[24,17,24,19],[24,20,24,22],[40,0,40,7],[12,43,23,46],[13,9,13,17],[13,18,13,22],[13,24,13,26],[13,27,13,42],[14,9,14,17],[14,18,14,22],[14,24,14,26],[14,27,14,42],[15,8,15,42],[16,8,16,42],[17,8,17,42],[18,8,18,42],[19,9,19,13],[19,17,19,24],[19,26,19,28],[19,30,19,41],[12,9,12,17],[12,18,12,22],[12,24,12,26],[12,27,12,42],[20,16,20,17],[20,18,20,19],[20,21,20,22],[8,0,8,42],[9,0,9,7],[9,8,9,42],[5,37,5,39],[5,40,5,45],[6,0,6,6],[7,0,7,42],[6,7,6,30],[9,43,9,46],[10,0,23,7],[10,8,10,17],[10,18,10,23],[10,24,10,26],[10,27,10,42],[11,9,11,17],[11,18,11,22],[11,24,11,26],[11,27,11,42],[21,36,21,42],[22,12,23,15],[22,16,23,42],[20,24,20,25],[21,12,21,15],[21,16,21,32],[21,33,21,35],[20,8,23,11],[20,12,20,15],[0,1,0,25],[1,0,1,42],[2,0,3,22],[2,36,2,37],[2,38,2,39],[2,41,2,42],[2,44,2,45],[4,24,4,26],[4,27,4,29],[4,30,4,32],[4,33,4,36],[4,37,4,38],[4,40,4,45]]}
[null,"現地調査票"]
["現地調査票　1/2 "]
["公益財団法人　鹿児島県住宅・建築総合センター　御中",null,null,null,null,null,null,null,null,null,null,null,null,null,null,null,null,null,null,null,null,null,null,null,null,null,null,null,null,null,null,null,null,null,null,null,"令和",null,null,null,"年",null,null,"月",null,null,"日"]
[]
[null,null,null,null,null,null,null,null,null,null,null,null,null,null,null,null,null,null,null,null,null,null,null,null,"設計者",null,null,null,null,null,"建築士",null,null,null,null,null,null,"登録",null,"第",null,null,null,null,null,null,"号",null,"★ブロック塀★"]
[null,null,null,null,null,null,null,null,null,null,null,null,null,null,null,null,null,null,null,null,null,null,null,null,null,null,null,null,null,null,null,null,null,null,null,null,null,"氏名",null,null,null,null,null,null,null,null,null,null,{"$f":"HYPERLINK(\"https://www.pref.kagoshima.jp/ah12/burokkuheizissiyouryou.html\",\"ブロック塀等の安全性の確認等実施要領\")","v":"ブロック塀等の安全性の確認等実施要領"}]
["建築主名："]
["　確認申請にあたり、建築士法第18条第１項の規定に基づき調査した内容は下記の通りです。"]
["なお、この現地調査票に記載の内容については事実に相違ありません。"]
["項　　目",null,null,null,null,null,null,null,"調　査　欄",null,null,null,null,null,null,null,null,null,null,null,null,null,null,null,null,null,null,null,null,null,null,null,null,null,null,null,null,null,null,null,null,null,null,"※センター\n確認欄"]
["道路種別",null,null,null,null,null,null,null,"法第42条等の該当項号",null,null,null,null,null,null,null,null,null,"道路幅員",null,null,null,null,null,"道路区分",null,null,"備考欄",null,null,null,null,null,null,null,null,null,null,null,null,null,null,null,"Ａ","Ｂ","Ｃ","Ｄ"]
[null,null,null,null,null,null,null,null,"①",null,null,null,null,null,null,null,null,null,null,null,null,null,null,"ｍ"]
[null,null,null,null,null,null,null,null,"②",null,null,null,null,null,null,null,null,null,null,null,null,null,null,"ｍ"]
[null,null,null,null,null,null,null,null,"③",null,null,null,null,null,null,null,null,null,null,null,null,null,null,"ｍ"]
[null,null,null,null,null,null,null,null,"④",null,null,null,null,null,null,null,null,null,null,null,null,null,null,"ｍ"]
[null,null,null,null,null,null,null,null,"※接道する全ての前面道路について記載ください。道路種別の分類は、記入要領※１を参照してください。"]
[null,null,null,null,null,null,null,null,"※道路幅員は一の前面道路の両端で幅員が異なる場合は幅員の欄に「○～△m」と記載ください。"]
[null,null,null,null,null,null,null,null,"※道路区分欄には、国、県、市、町、村道等の区分を記入してください。 (一号道路の場合記入してください。）"]
[null,null,null,null,null,null,null,null,"★道路についての調査方法"]
[null,null,null,null,null,null,null,null,"□","現地にて実測",null,null,null,null,null,null,"□","道路台帳にて確認",null,null,null,null,null,null,null,"□","その他",null,null,"（",null,null,null,null,null,null,null,null,null,null,null,null,"）"]
[null,null,null,null,null,null,null,null,"協議事項",null,null,null,"協議年月日：",null,null,null,"令和",null,"",null,"年",null,null,"月",null,null,"日"]
[null,null,null,null,null,null,null,null,null,null,null,null,"行政庁等：",null,null,null,null,null,null,null,null,null,null,null,null,null,null,null,null,null,null,null,null,"担当課："]
[null,null,null,null,null,null,null,null,null,null,null,null,"内容等："]
[]
["がけに\n関する\n調査",null,null,null,null,null,null,null,"□","近接する",null,null,"（がけの高さ",null,null,null,null,null,null,null,"ｍ）",null,null,"（※もっとも高いがけの高さを記入ください。）"]
[null,null,null,null,null,null,null,null,null,"□","がけの高さの２倍以上の水平距離を確保している"]
[null,null,null,null,null,null,null,null,null,"□","高さ２mをこえる擁壁がある"]
[null,null,null,null,null,null,null,null,null,null,"・建築基準法の完了検査、開発許可又は宅造許可を受けた擁壁",null,null,null,null,null,null,null,null,null,null,null,null,null,null,null,null,null,null,null,null,"□","有",null,"□","無"]
[null,null,null,null,null,null,null,null,null,null,"（※完了検査、許可を受けた擁壁については、原則検査済証・許可証・開発登録簿等を添付する必要があります。）"]
[null,null,null,null,null,null,null,null,null,"住宅センターへのがけ相談の有無",null,null,null,null,null,null,null,null,null,null,null,"□","有",null,"□","無"]
["区域区分",null,null,null,null,null,null,null,"□","都市計画区域内",null,null,null,null,null,null,null,null,null,null,null,null,null,null,null,null,null,null,null,"市街化調整区域の場合",null,null,null,null,null,null,null,null,null,null,null,null,null,"Ａ","Ｂ","Ｃ","Ｄ"]
[null,null,null,null,null,null,null,null,"（","□","市街化区域",null,null,null,null,"□","市街化調整区域",null,null,null,null,null,"□","区域区分非設定",null,null,null,null,")","□","事前協議済証の写し"]
[null,null,null,null,null,null,null,null,"□","都市計画区域外",null,null,null,null,null,null,null,null,null,null,null,null,null,null,null,null,null,null,null,"□","建築許可通知書の写し(都市計画法第43条第１項)",null,null,null,null,null,null,null,null,null,null,null,null,null,null,null,null,null,"市町村公開の地図システム等"]
["用途地域等",null,null,null,null,null,null,null,"□","第１種低層住居専用地域",null,null,null,null,null,null,null,null,"□","第２種低層住居専用地域",null,null,null,null,null,null,null,null,null,null,null,null,null,null,null,"★調査方法",null,null,null,null,null,null,null,"Ａ","Ｂ","Ｃ","Ｄ",null,{"$f":"HYPERLINK(\"https://www2.wagmap.jp/kagoshima/Portal\",\"・かごしまiマップ\")","v":"・かごしまiマップ"}]
[null,null,null,null,null,null,null,null,"□","第１種中高層住居専用地域",null,null,null,null,null,null,null,null,"□","第２種中高層住居専用地域",null,null,null,null,null,null,null,null,null,null,null,null,null,null,null,"□","市町村担当課で確認",null,null,null,null,null,null,null,null,null,null,null,{"$f":"HYPERLINK(\"https://www.sonicweb-asp.jp/satsumasendai/\",\"・薩摩川内市地図サービス\")","v":"・薩摩川内市地図サービス"}]
[null,null,null,null,null,null,null,null,"□","第１種住居地域",null,null,null,null,null,"□","第２種住居地域",null,null,null,null,null,"□","準住居地域",null,null,null,null,null,null,null,null,null,null,null,"□","都市計画図",null,null,null,null,null,null,null,null,null,null,null,{"$f":"HYPERLINK(\"https://www2.wagmap.jp/kanoya/Portal\",\"・まっぷdeかのや\")","v":"・まっぷdeかのや"}]
[null,null,null,null,null,null,null,null,"□","近隣商業地域",null,null,null,null,null,"□","商業地域",null,null,null,null,null,"□","準工業地域",null,null,null,null,null,"□","工業地域",null,null,null,null,"□","行政のHP",null,null,null,null,null,null,null,null,null,null,null,{"$f":"HYPERLINK(\"https://www.city-kirishima.jp/toshi/keikaku/zumen.html\",\"・霧島市HP\")","v":"・霧島市HP"}]
[null,null,null,null,null,null,null,null,"□","工業専用地域",null,null,null,null,null,"□","用途地域の指定のない区域",null,null,null,null,null,null,null,null,null,null,null,null,null,null,null,null,null,null,"□","その他",null,null,null,null,null,null,"Ａ","Ｂ","Ｃ","Ｄ",null,{"$f":"HYPERLINK(\"https://www.city.aira.lg.jp/toshi/youto.html\",\"・姶良市HP\")","v":"・姶良市HP"}]
["防火地域",null,null,null,null,null,null,null,"□","防火地域",null,null,null,null,null,"□","準防火地域",null,null,null,null,null,"□","指定なし",null,null,null,"（","□","法22条区域",null,null,null,"）",null,"（",null,null,null,null,null,null,"）",null,null,null,null,null,{"$f":"HYPERLINK(\"https://www.city.kagoshima-izumi.lg.jp/page/page_20113.html\",\"・出水市HP\")","v":"・出水市HP"}]
["地区計画",null,null,null,null,null,null,null,"□","内",null,"□","区域指定なし",null,null,null,null,"（※区域内の場合は、届出が必要です。　受理通知書の写しの添付が必要になります。）"]
["外壁後退",null,null,null,null,null,null,null,"壁面後退の指定　（１ｍ）",null,null,null,null,null,null,null,null,"□","有",null,"□","無",null,null,"（※枕崎市の第１種低層住居専用地域に指定があります。）"]
["日影規制",null,null,null,null,null,null,null,"□","有（用途地域:住居系）"]
[null,null,null,null,null,null,null,null,null,null,"□","対象外建築物",null,null,null,null,"□","対象建築物(",null,null,null,"□","軒高７m超",null,null,null,"□","地階を除く階数が３以上",null,null,null,null,null,null,"□","最高高さ10ｍ超 ）"]
[null,null,null,null,null,null,null,null,"□","無（用途地域:住居系以外）"]
["都市計画\n施設\nの計画",null,null,null,null,null,null,null,"□","有","（","□","道路",null,"□","公園",null,"□","緑地",null,"□","その他",null,null,"）",null,"都市計画法　　　　　第53条第１項許可",null,null,null,null,null,"□","要",null,"※許可証の写しの添付",null,null,null,null,null,null,null,"Ａ","Ｂ","Ｃ","Ｄ"]
[null,null,null,null,null,null,null,null,"□","無",null,null,null,null,null,null,null,null,null,null,null,null,null,null,null,null,null,null,null,null,null,null,"□","不要"]
["土地区画整理事業",null,null,null,null,null,null,null,"□","区域外",null,null,null,"□","区域内",null,null,"※許可証の写しの添付"]
["下水道処理区域　　　　　　　　　　　　　　　　　　及び汚水の放流先",null,null,null,null,null,null,null,"□","公共下水道",null,null,null,null,null,"□","集中浄化槽",null,null,null,null,"※浄化槽の場合の放流先"]
[null,null,null,null,null,null,null,null,"□","浄化槽",null,null,null,null,null,"□","汲取",null,null,null,null,null,"□","側溝",null,"□","水路",null,"□","その他",null,null,"（",null,null,null,null,null,null,null,null,"）"]
[null,null,null,null,null,null,null,null,"□","農業集落排水",null,null,null,null,null,null,null,null,null,null,null,"※放流先が水路の場合：管理者等（水利組合含）との協議",null,null,null,null,null,null,null,null,null,null,null,null,null,null,null,null,null,"□","有"]
["急傾斜地崩壊危険区域",null,null,null,null,null,null,null,"□","内",null,"□","外","（※急傾斜地崩壊危険区域内の場合は、県条例ただし書き承認及び許可証の添付が必要です。）",null,null,null,null,null,null,null,null,null,null,null,null,null,null,null,null,null,null,null,null,null,null,null,null,null,null,null,null,null,"Ａ","Ｂ","Ｃ","Ｄ",null,"県公開の地図システム等"]
[null,null,null,null,null,null,null,null,null,null,null,null,null,null,null,null,null,null,null,null,null,null,null,null,null,null,null,null,null,null,null,null,null,null,null,null,null,null,null,null,null,null,null,null,null,null,null,null,{"$f":"HYPERLINK(\"http://www.kago-kengi-cals.jp/sabomap/\",\"・砂防三法マップ\")","v":"・砂防三法マップ"}]
["土砂災害特別警戒区域",null,null,null,null,null,null,null,"□","内",null,"□","外","（※土砂災害特別警戒区域内の場合は、施行令第80条の３の構造規定の遵守や開発許可等が必要です。）",null,null,null,null,null,null,null,null,null,null,null,null,null,null,null,null,null,null,null,null,null,null,null,null,null,null,null,null,null,"Ａ","Ｂ","Ｃ","Ｄ",null,{"$f":"HYPERLINK(\"http://sabomap.pref.kagoshima.jp/00common/map.php?PREF_KBN=kagoshima&extent=14514584.5443115,3670899.2504113,14552740.3796913,3730870.47376361\",\"・土砂災害警戒区域等マップ\")","v":"・土砂災害警戒区域等マップ"}]
[]
["※センター確認欄　Ａ：計画で適合と判断　Ｂ：公開情報（ＨＰ等）で判断　Ｃ：照会による　Ｄ：その他で判断"]
["現地調査票　2/2"]
["項　　目",null,null,null,null,null,null,null,"調　査　欄",null,null,null,null,null,null,null,null,null,null,null,null,null,null,null,null,null,null,null,null,null,null,null,null,null,null,null,null,null,null,null,null,null,null,"※センター\n確認欄"]
["開発許可\n（都計法第29条）",null,null,null,null,null,null,null,"□","開発区域内",null,null,null,null,null,null,null,null,null,null,null,null,null,null,null,null,null,null,null,null,null,null,null,null,null,null,null,null,null,null,null,null,null,"Ａ","Ｂ","Ｃ","Ｄ",null,"鹿児島県開発許可について"]
[null,null,null,null,null,null,null,null,null,"★用途地域の指定のない地域での開発許可区域の場合",null,null,null,null,null,null,null,null,null,null,null,null,null,null,null,null,null,null,null,null,null,null,null,null,null,null,null,null,null,null,null,null,null,null,null,null,null,null,{"$f":"HYPERLINK(\"https://www.pref.kagoshima.jp/ah12/infra/kentiku/shidou/tokeikyoka/kaihastukyokasinnseitebiki.html\",\"・鹿児島県HP\")","v":"・鹿児島県HP"}]
[null,null,null,null,null,null,null,null,null,null,"・開発許可による予定建築物",null,null,null,null,null,null,null,null,null,null,"□","有","（","用途：",null,null,null,null,null,null,"）",null,"□","無",null,null,null,null,null,null,null,null,null,null,null,null,null,{"$f":"HYPERLINK(\"http://www.city.kagoshima.lg.jp/kensetu/toshikeikaku/tochiriyou/machizukuri/kaihatsu/takuchi/sedo.html\",\"・鹿児島市HP\")","v":"・鹿児島市HP"}]
[null,null,null,null,null,null,null,null,null,null,"※予定建築物以外の建築物を建築する場合は、許可が必要となります。"]
[null,null,null,null,null,null,null,null,"□","開発許可不要"]
[null,null,null,null,null,null,null,null,"協議事項",null,null,null,"協議年月日：",null,null,null,"令和",null,"",null,"年",null,null,"月",null,null,"日"]
[null,null,null,null,null,null,null,null,null,null,null,null,"行政庁等：",null,null,null,null,null,null,null,null,null,null,null,null,null,null,null,null,null,null,null,null,"担当課："]
[null,null,null,null,null,null,null,null,null,null,null,null,"内容等："]
[null,null,null,null,null,null,null,null,null,null,null,null,null,null,null,null,null,null,null,null,null,null,null,null,null,null,null,null,null,null,null,null,null,null,null,null,null,null,null,null,null,null,null,null,null,null,null,null,"土地利用対策要綱について"]
["宅造規制\n区域",null,null,null,null,null,null,null,"□","内","（","□","許可有",null,null,"・","□","不要",null,"）",null,"□","外",null,"検査済番号",null,null,null,"",null,null,"号","令和",null,"",null,"年",null,null,"月",null,null,"日","Ａ","Ｂ","Ｃ","Ｄ",null,{"$f":"HYPERLINK(\"https://www.city.satsumasendai.lg.jp/www/contents/1096523345906/index.html\",\"・薩摩川内市\")","v":"・薩摩川内市"}]
[null,null,null,null,null,null,null,null,null,null,null,null,null,null,null,null,null,null,null,null,null,null,null,null,null,null,null,null,null,null,null,null,null,null,null,null,null,null,null,null,null,null,null,null,null,null,null,null,{"$f":"HYPERLINK(\"http://www.city.aira.lg.jp/toshi/kurashi/shinseisho/kaihatu.html\",\"・姶良市\")","v":"・姶良市"}]
["市町村の土地利用対策要綱等",null,null,null,null,null,null,null,"協議事項",null,null,null,"協議年月日：",null,null,null,"令和",null,"",null,"年",null,null,"月",null,null,"日",null,null,null,null,null,null,null,null,null,null,null,null,null,null,null,null,null,null,null,null,null,{"$f":"HYPERLINK(\"https://www.city.kanoya.lg.jp/toshikan/kurashi/tochi/tochi/yoko.html\",\"・鹿屋市\")","v":"・鹿屋市"}]
[null,null,null,null,null,null,null,null,null,null,null,null,"行政庁等：",null,null,null,null,null,null,null,null,null,null,null,null,null,null,null,null,null,null,null,null,"担当課：",null,null,null,null,null,null,null,null,null,null,null,null,null,null,{"$f":"HYPERLINK(\"https://www.city-kirishima.jp/toshi/machizukuri/toshikekaku/toshikekaku/kyogi.html\",\"・霧島市\")","v":"・霧島市"}]
[null,null,null,null,null,null,null,null,null,null,null,null,"内容等：",null,null,null,null,null,null,null,null,null,null,null,null,null,null,null,null,null,null,null,null,null,null,null,null,null,null,null,null,null,null,null,null,null,null,null,{"$f":"HYPERLINK(\"https://www.city.hioki.kagoshima.jp/tokei/shisejoho/kocho/faq/kaihatsu.html\",\"・日置市\")","v":"・日置市"}]
[null,null,null,null,null,null,null,null,null,null,null,null,null,null,null,null,null,null,null,null,null,null,null,null,null,null,null,null,null,null,null,null,null,null,null,null,null,null,null,null,null,null,null,null,null,null,null,null,{"$f":"HYPERLINK(\"https://www.city.minamikyushu.lg.jp/tosikei/kurashi/kenchiku/kaihatsukoi/taisakuyoko.html\",\"・南九州市\")","v":"・南九州市"}]
["その他の地区地域　　条例等",null,null,null,null,null,null,null,"□","特別用途地区",null,null,null,null,null,null,"□","特定用途制限地域",null,null,null,null,null,null,null,"□","風致地区",null,null,null,null,null,null,null,"□","臨港地区",null,null,null,null,null,null,null,"Ａ","Ｂ","Ｃ","Ｄ"]
[null,null,null,null,null,null,null,null,"□","高度地区",null,null,null,null,null,null,"□","高度利用地区",null,null,null,null,null,null,null,"□","建築協定"]
[null,null,null,null,null,null,null,null,"□","鹿児島県福祉のまちづくり条例",null,null,null,null,null,null,null,null,null,null,null,null,null,null,null,"□","屋外広告物条例"]
[null,null,null,null,null,null,null,null,"□","民間共同住宅等の建設に関する条例又は指導要綱\n",null,null,null,null,null,null,null,null,null,null,null,null,null,null,null,"□","鹿児島市指定建築物の建築等に係る住環境の保全に関する条例"]
[null,null,null,null,null,null,null,null,"□","駐車場整備地区等",null,null,null,null,null,null,"□","公害防止条例"]
[]
["その他相談・協議・打合せ事項",null,null,null,null,null,null,null,null,null,null,null,null,null,"※現地調査票に付加する場合や、必要な場合は明記ください。"]
["項　　目",null,null,null,null,null,null,null,"協　議　事　項　欄"]
[null,null,null,null,null,null,null,null,"協議年月日：",null,null,null,"令和",null,"",null,"年",null,null,"月",null,null,"日"]
[null,null,null,null,null,null,null,null,"行政庁等：",null,null,null,null,null,null,null,null,null,null,null,null,null,null,null,null,null,null,null,null,"担当課："]
[null,null,null,null,null,null,null,null,"内容等："]
[]
[]
[]
["項　　目",null,null,null,null,null,null,null,"協　議　事　項　欄"]
[null,null,null,null,null,null,null,null,"協議年月日：",null,null,null,"",null,"",null,"年",null,null,"月",null,null,"日"]
[null,null,null,null,null,null,null,null,"行政庁等：",null,null,null,null,null,null,null,null,null,null,null,null,null,null,null,null,null,null,null,null,"担当課："]
[null,null,null,null,null,null,null,null,"内容等："]
[]
[]
[]
["項　　目",null,null,null,null,null,null,null,"協　議　事　項　欄"]
[null,null,null,null,null,null,null,null,"協議年月日：",null,null,null,"令和",null,"",null,"年",null,null,"月",null,null,"日"]
[null,null,null,null,null,null,null,null,"行政庁等：",null,null,null,null,null,null,null,null,null,null,null,null,null,null,null,null,null,null,null,null,"担当課："]
[null,null,null,null,null,null,null,null,"内容等："]
[]
[]
[]
[null,null,null,null,null,null,null,null,"協　議　事　項　欄"]
[null,null,null,null,null,null,null,null,"協議年月日：",null,null,null,"",null,"",null,"年",null,null,"月",null,null,"日"]
[null,null,null,null,null,null,null,null,"行政庁等：",null,null,null,null,null,null,null,null,null,null,null,null,null,null,null,null,null,null,null,null,"担当課："]
[null,null,null,null,null,null,null,null,"内容等："]
[]
[]
[]
["項　　目",null,null,null,null,null,null,null,"協　議　事　項　欄"]
[null,null,null,null,null,null,null,null,"協議年月日：",null,null,null,"令和",null,"",null,"年",null,null,"月",null,null,"日"]
[null,null,null,null,null,null,null,null,"行政庁等：",null,null,null,null,null,null,null,null,null,null,null,null,null,null,null,null,null,null,null,null,"担当課："]
[null,null,null,null,null,null,null,null,"内容等："]
[]
[]
[]
["※センター確認欄　Ａ：計画で適合と判断　Ｂ：公開情報（ＨＰ等）で判断　Ｃ：照会による　Ｄ：その他で判断"]
[null,null,null,null,null,null,null,null,null,null,null,null,null,null,null,null,null,null,null,null,null,null,null,null,null,null,null,null,null,null,null,null,null,null,null,null,null,null,null,null,null,"(2021.04.01版）"]
[]
["現地調査票記入要領"]
[]
[null,"道路の種別の分類は次の通りです。　※１　"]
[null," ・「第１号道路」：道路法による道路で幅員４ｍ以上のもの"]
[null," ・「第２号道路」：都市計画法又は土地区画整理法等による道路で幅員４ｍ以上のもの"]
[null," ・「第３号道路」：第３章の規定が適用されるに至った際現に存する道で幅員４ｍ以上のもの（既存道路）"]
[null," ・「第４号道路」：道路法、都市計画法、土地区画整理法等による新設又は変更の事業計画のある道路で、２年以内にその事業が執行される予定のもの"]
[null,null,"　として特定行政庁が指定したもので幅員４ｍ以上のもの（計画道路）"]
[null," ・「第５号道路」：道路位置指定道路"]
[null,"■位置指定道路の場合は、道路位置指定通知書の写し又は特定行政庁の証明書の写しを添付してください。"]
[null,"■昭和46年３月31日以前に道路位置指定を受けたものは、位置指定道路の省令第第9条に規定する図面、不動産登記法による直近の全部事項証明書等で"]
[null,null,"位置指定道路の位置等が確認できるものに限ります。"]
[null,"■「法第42条第２項道路」は、第３章が適用されるに至った際に現に建築物が立ち並んでいる幅員４ｍ未満（１．８　ｍ以上）の道で、"]
[null,null,"特定行政庁の指定したもので道路中心後退（道路の中心から２ｍ）等が必要となります。"]
[]
["１. この現地調査票は、建築士法第１８条第１項の規定に基づき調査した内容を記入するものです。"]
[" ","（建築士法第１８条第１項：建築士は、設計を行う場合においては、設計に係る建築物が法令又は条例の定める建築物に関する基準に適合"]
[null,"　するようにしなければならない。）"]
["２. □（チェックボックス）がある場合は、該当する□にチェックを入れてください。（プルダウンリストより☑,□を選択できます。）　"]
[null,"※市町村担当職員との打合せに際しては、計画概要（付近見取図、配置図、平面図等）を提出等のうえ、申請地及び設計内容に係る正確"]
[null,"　　な確認をお願いします。"]
[null,"行政のＨＰで確認できるものもあります。"]
[null,"　・鹿児島市：ｉマップ　　・薩摩川内市：薩摩川内市地図サービス"]
[null,"　・鹿児島県：急傾斜地崩壊危険区域～砂防三法情報マップ、 土砂災害警戒区域等マップ～土砂災害警戒区域・特別警戒区域"]
["３. がけに関する調査の記入について"]
[null,"・建築基準法施行条例（昭和46年鹿児島県条例第33号）"]
[null,"(がけに近接する建築物)"]
[null,"第３条　　建築物が高さ２メートルをこえるがけに近接する場合は、がけの上にあってはがけの下端から、がけの下にあってはがけの"]
[null,"　　　　上端から、建築物との間にそのがけの高さの２倍以上の水平距離を保たなければならない。"]
[null,"２　鉄筋コンクリート造等の重量建築物をがけの上に建築しようとする場合にあっては，前項の数値を安全上支障がない程度に増大しなけ"]
[null,"　　ればならない。"]
[null,"３　前２項の規定は，建築物の用途，規模若しくは構造若しくは擁壁の設置又はがけの状況により建築物が安全上支障がないと認められる"]
[null,"　　場合には適用しない。"]
[null,"　擁壁が設置されている場合で、擁壁の検査済証の交付を受けているときは、必要事項を記入してください。"]
[null,"　なお、第３項の規定による場合は、建築基準法施行条例第３条３項の規定の適用申請等、当センターのがけの事前相談が必要となります。"]
["５. 開発許可関係の記入について"]
[null,"（１）県（地域振興局）・市町村担当課と打合せてください。"]
[null,"　※鹿児島市の場合は、鹿児島市土地利用調整課と打合せてください。"]
[null,"（２）用途地域の指定のない地域の開発許可の場合、開発許可による予定建築物以外の建築物は、別途都市計画法による許可を受"]
[null,"　　けなければ建築できませんので、ご注意ください。"]
[null,"・宅造規制区域（鹿児島市のみ指定あり）の宅造許可の場合、検査済番号・年月日を明示ください。"]
["６. 土地利用対策要綱等について"]
[null,"・土地利用対策要綱等の適用があるかを、担当部署と確実に打合せてください。"]
[null,"　≪参考≫"]
[null,"　　鹿児島県土地利用対策要綱、姶良市土地利用協議、鹿屋市土地利用対策要綱、霧島市土地利用対策要綱"]
[null,"　　薩摩川内市土地利用対策要綱、日置市土地利用対策要綱"]

{"sheet":"委任状","index":22,"n_rows":23,"n_cols":27,"rows_kept":23,"cut":false,"hidden":false,"merged":[[1,1,1,26],[9,1,9,26],[2,19,2,20],[4,1,4,6],[6,1,6,6],[6,7,6,26],[4,25,4,26],[4,7,4,24],[5,1,5,6],[5,7,5,24],[5,25,5,26],[18,1,18,6],[19,1,19,6],[20,1,22,6],[20,7,20,9],[21,7,21,9],[22,7,22,9],[18,7,18,26],[19,7,19,26],[20,10,20,26],[21,10,21,26],[22,10,22,26],[15,1,17,6],[15,8,15,26],[16,8,16,26],[17,8,17,26],[12,1,12,26]]}
[20000,"委任状"]
[null,"委　任　状"]
[null,null,null,null,null,null,null,null,null,null,null,null,null,null,null,null,null,null,null,"令和",null,null,"年",null,"月",null,"日"]
[null,"申請者（建築主）"]
[null,"氏名"]
[null,"氏名",null,null,null,null,null,null,null,null,null,null,null,null,null,null,null,null,null,null,null,null,null,null,null,"印"]
[null,"住所"]
[]
[]
[null,"　私は下記の者を代理者と定め、(公財)鹿児島県住宅・建築総合センターに対する下記の建築物等に係る建築基準法の規定に基づく手続き及び交付される文書の受領等に関する一切の権限を委任します。"]
[]
[]
[null,"記"]
[]
[]
[null,"委任する手続\n（該当項目をチェック）",null,null,null,null,null,"■","確認申請手続（計画変更確認申請を含む）"]
[null,null,null,null,null,null,null,"□","中間検査申請手続"]
[null,null,null,null,null,null,null,"■","完了検査申請手続"]
[null,"建築物等の用途"]
[null,"敷地の地名地番"]
[null,"代　理　者",null,null,null,null,null,"（氏　名）"]
[null,null,null,null,null,null,null,"（会社名）"]
[null,null,null,null,null,null,null,"（住　所）"]

{"sheet":"完了第一面","index":23,"n_rows":45,"n_cols":30,"rows_kept":45,"cut":false,"hidden":false,"merged":[[41,29,43,29],[44,1,46,3],[44,4,46,8],[38,3,40,3],[38,5,40,5],[38,7,40,7],[41,8,43,8],[44,22,46,24],[44,25,46,29],[38,27,40,27],[38,28,40,28],[38,29,40,29],[41,23,43,28],[38,22,40,23],[38,8,40,8],[38,24,40,24],[38,25,40,25],[38,26,40,26],[41,1,43,1],[41,2,43,7],[38,1,40,2],[38,4,40,4],[38,6,40,6],[41,22,43,22],[22,1,22,29],[19,2,19,5],[19,6,19,28],[23,6,23,28],[26,1,26,29],[20,17,20,28],[1,1,1,29],[5,1,5,29],[8,1,8,29],[10,1,13,29],[17,22,17,23]]}
[null,"完了検査申請書（第一面）"]
[null,"第十九号様式（第四条、第四条の四の二）（Ａ４）　"]
[]
[]
[]
[null,"完了検査申請書"]
[]
[]
[null,"（第一面）"]
[]
[null,"　工事を完了しましたので、建築基準法第７条の２第１項（これらの規定を同法第８７条の４又は第８８条第１項若しくは第２項において準用する場合を含む。）の規定により検査を申請します。この申請書及び添付図書に記載の事項は、事実に相違ありません。"]
[]
[]
[]
[]
[null,"公益財団法人　鹿児島県住宅・建築総合センター　御中"]
[]
[null,null,null,null,null,null,null,null,null,null,null,null,null,null,null,null,null,null,null,null,null,null,"令和",null,null,"年",null,"月",null,"日"]
[]
[null,null,"申請者氏名",null,null,null,{"$f":"完了第二面!K6","v":0}]
[null,null,null,null,null,null,null,null,null,null,null,null,null,null,null,null,null,null,null,null,null,null,null,null,null,null,null,null,null,"印"]
[]
[null,"第四面に記載の事項は、事実に相違ありません。"]
[null,"工事監理者氏名",null,null,null,null,{"$f":"完了第二面!K62","v":0}]
[]
[]
[null,"　　【検査を申請する建築物等】"]
[null,null,null,"■","建築物",null,null,null,null,null,null,null,"□","建築設備（昇降機）",null,null,null,null,null,null,null,"□","建築設備（昇降機以外）"]
[null,"   ",null,"□","工作物（昇降機）",null,null,null,null,null,null,null,"□","工作物（法第88条第１項）",null,null,null,null,null,null,null,"□","工作物（法第88条第２項）"]
[]
[]
[null,"※手数料欄"]
[]
[]
[]
[null,"※受付欄",null,null,null,null,null,null,null,"※検査の特例欄",null,null,null,null,"※検査欄",null,null,null,"※決裁欄",null,null,null,"※検査済証欄"]
[]
[]
[null,"令和",null,null,"年",null,"月",null,"日",null,null,null,null,null,null,null,null,null,null,null,null,null,"令和",null,null,"年",null,"月",null,"日"]
[]
[]
[null,"第",null,null,null,null,null,null,"号",null,null,null,null,null,null,null,null,null,null,null,null,null,"第",null,null,null,null,null,null,"号"]
[]
[]
[null,"係員氏名",null,null,null,null,null,null,null,null,null,null,null,null,null,null,null,null,null,null,null,null,"係員氏名"]

{"sheet":"完了第二面","index":24,"n_rows":140,"n_cols":30,"rows_kept":140,"cut":false,"hidden":false,"merged":[[105,10,105,29],[108,10,108,29],[109,10,109,29],[110,10,110,12],[114,10,114,29],[116,10,116,29],[117,10,117,29],[118,10,118,12],[99,10,99,29],[100,10,100,29],[102,10,102,29],[104,10,104,29],[140,1,140,29],[141,1,141,29],[121,10,121,29],[122,10,122,29],[124,10,124,29],[125,10,125,29],[126,10,126,12],[127,10,127,29],[128,10,128,14],[129,10,129,29],[130,10,130,29],[134,20,134,28],[135,10,135,29],[136,10,136,12],[137,10,137,29],[138,10,138,14],[134,13,134,17],[139,5,139,29],[131,3,131,29],[133,10,133,29],[119,10,119,29],[120,10,120,14],[80,10,80,29],[81,11,81,12],[81,13,81,17],[81,18,81,20],[81,21,81,24],[81,25,81,28],[82,10,82,29],[83,10,83,12],[84,10,84,29],[85,10,85,14],[88,11,88,13],[88,14,88,16],[88,17,88,21],[88,22,88,24],[93,10,93,29],[88,25,88,28],[89,10,89,29],[111,10,111,29],[112,10,112,14],[103,10,103,14],[101,10,101,12],[113,10,113,29],[70,11,70,13],[70,14,70,16],[75,10,75,29],[76,10,76,14],[67,10,67,29],[77,10,77,29],[70,17,70,21],[70,22,70,24],[70,25,70,28],[71,10,71,29],[72,11,72,12],[72,13,72,17],[72,18,72,20],[72,21,72,24],[72,25,72,28],[73,10,73,29],[74,10,74,12],[62,11,62,12],[62,13,62,17],[62,18,62,20],[62,21,62,24],[62,25,62,28],[63,10,63,29],[64,10,64,12],[65,10,65,29],[66,10,66,14],[52,10,52,29],[53,10,53,12],[54,10,54,29],[55,10,55,14],[60,11,60,13],[60,14,60,16],[60,17,60,21],[60,22,60,24],[60,25,60,28],[57,10,57,29],[56,11,56,29],[41,10,41,29],[42,11,42,12],[42,13,42,17],[42,18,42,20],[42,21,42,24],[42,25,42,28],[51,18,51,20],[51,21,51,24],[51,25,51,28],[50,10,50,29],[51,11,51,12],[51,13,51,17],[47,11,47,29],[34,10,34,29],[35,10,35,12],[36,10,36,29],[37,10,37,14],[40,11,40,13],[40,14,40,16],[40,17,40,21],[40,22,40,24],[40,25,40,28],[38,11,38,29],[27,10,27,14],[31,11,31,13],[31,14,31,16],[31,17,31,21],[31,22,31,24],[31,25,31,28],[32,10,32,29],[33,11,33,12],[33,13,33,17],[33,18,33,20],[33,21,33,24],[33,25,33,28],[28,11,28,29],[22,10,22,29],[23,11,23,12],[23,13,23,17],[23,18,23,20],[23,21,23,24],[23,25,23,28],[24,10,24,29],[25,10,25,12],[26,10,26,29],[17,10,17,14],[21,11,21,13],[21,14,21,16],[21,17,21,21],[21,22,21,24],[21,25,21,28],[11,17,11,21],[11,22,11,24],[11,25,11,28],[12,10,12,29],[13,11,13,12],[13,13,13,17],[13,18,13,20],[13,21,13,24],[13,25,13,28],[1,1,1,29],[2,1,2,29],[29,3,29,29],[61,10,61,29],[43,10,43,29],[44,10,44,12],[45,10,45,29],[46,10,46,14],[49,11,49,13],[49,14,49,16],[49,17,49,21],[49,22,49,24],[49,25,49,28],[14,10,14,29],[15,10,15,12],[16,10,16,29],[3,11,3,29],[11,11,11,13],[11,14,11,16],[4,10,4,29],[5,10,5,29],[6,10,6,12],[7,10,7,29],[8,10,8,14],[86,10,86,29],[79,11,79,13],[79,14,79,16],[79,17,79,21],[79,22,79,24],[79,25,79,28],[95,10,95,29],[90,11,90,12],[90,13,90,17],[90,18,90,20],[90,21,90,24],[90,25,90,28],[91,10,91,29],[92,10,92,12],[94,10,94,14]]}
[null,"完了検査申請書（第二面）"]
[null,"（第二面）"]
[null,"　建築主、設置者又は築造主等の概要"]
[null,"【1．建築主、設置者又は築造主】"]
[null,"　【ｲ．氏名のﾌﾘｶﾞﾅ】"]
[null,"　【ﾛ．氏名】"]
[null,"　【ﾊ．郵便番号】"]
[null,"　【ﾆ．住所】"]
[null,"　【ﾎ．電話番号】"]
[]
[null,"【2．代理者】"]
[null,"　【ｲ．資格】",null,null,null,null,null,null,null,null,"(",null,null,null,")建築士(",null,null,null,null,null,null,null,"）登録第",null,null,null,null,null,null,"号"]
[null,"　【ﾛ．氏名】"]
[null,"　【ﾊ．建築士事務所名】",null,null,null,null,null,null,null,null,"(",null,null,")建築士事務所(",null,null,null,null,null,null,null,")知事登録第",null,null,null,null,null,null,null,"号"]
[]
[null,"　【ﾆ．郵便番号】"]
[null,"　【ﾎ．所在地】"]
[null,"　【ﾍ．電話番号】"]
[]
[null,"【3．設計者】"]
[null,"（代表となる設計者）"]
[null,"　【ｲ．資格】",null,null,null,null,null,null,null,null,"(",null,null,null,")建築士(",null,null,null,null,null,null,null,"）登録第",null,null,null,null,null,null,"号"]
[null,"　【ﾛ．氏名】"]
[null,"　【ﾊ．建築士事務所名】 ",null,null,null,null,null,null,null,null,"(",null,null,")建築士事務所(",null,null,null,null,null,null,null,")知事登録第",null,null,null,null,null,null,null,"号"]
[]
[null,"　【ﾆ．郵便番号】"]
[null,"　【ﾎ．所在地】"]
[null,"　【ﾍ．電話番号】"]
[null,"　【ﾄ．作成した設計図書】"]
[]
[null,"（その他の設計者）"]
[null,"　【ｲ．資格】",null,null,null,null,null,null,null,null,"(",null,null,null,")建築士(",null,null,null,null,null,null,null,"）登録第",null,null,null,null,null,null,"号"]
[null,"　【ﾛ．氏名】"]
[null,"　【ﾊ．建築士事務所名】",null,null,null,null,null,null,null,null,"(",null,null,")建築士事務所(",null,null,null,null,null,null,null,")知事登録第",null,null,null,null,null,null,null,"号"]
[]
[null,"　【ﾆ．郵便番号】"]
[null,"　【ﾎ．所在地】"]
[null,"　【ﾍ．電話番号】"]
[null,"　【ﾄ．作成した設計図書】"]
[]
[null,"　【ｲ．資格】",null,null,null,null,null,null,null,null,"(",null,null,null,")建築士(",null,null,null,null,null,null,null,"）登録第",null,null,null,null,null,null,"号"]
[null,"　【ﾛ．氏名】"]
[null,"　【ﾊ．建築士事務所名】",null,null,null,null,null,null,null,null,"(",null,null,")建築士事務所(",null,null,null,null,null,null,null,")知事登録第",null,null,null,null,null,null,null,"号"]
[]
[null,"　【ﾆ．郵便番号】"]
[null,"　【ﾎ．所在地】"]
[null,"　【ﾍ．電話番号】"]
[null,"　【ﾄ．作成した設計図書】"]
[]
[null,"　【ｲ．資格】",null,null,null,null,null,null,null,null,"(",null,null,null,")建築士(",null,null,null,null,null,null,null,"）登録第",null,null,null,null,null,null,"号"]
[null,"　【ﾛ．氏名】"]
[null,"　【ﾊ．建築士事務所名】 ",null,null,null,null,null,null,null,null,"(",null,null,")建築士事務所(",null,null,null,null,null,null,null,")知事登録第",null,null,null,null,null,null,null,"号"]
[]
[null,"　【ﾆ．郵便番号】"]
[null,"　【ﾎ．所在地】"]
[null,"　【ﾍ．電話番号】"]
[null,"　【ﾄ．作成した設計図書】"]
[]
[null,"【4．工事監理者】"]
[null,"（代表となる工事監理者）"]
[null,"　【ｲ．資格】",null,null,null,null,null,null,null,null,"(",null,null,null,")建築士(",null,null,null,null,null,null,null,"）登録第",null,null,null,null,null,null,"号"]
[null,"　【ﾛ．氏名】"]
[null,"　【ﾊ．建築士事務所名】 ",null,null,null,null,null,null,null,null,"(",null,null,")建築士事務所(",null,null,null,null,null,null,null,")知事登録第",null,null,null,null,null,null,null,"号"]
[]
[null,"　【ﾆ．郵便番号】"]
[null,"　【ﾎ．所在地】"]
[null,"　【ﾍ．電話番号】"]
[null,"　【ﾄ．工事と照合した設計図書】"]
[]
[null,"（その他の工事監理者）"]
[null,"　【ｲ．資格】",null,null,null,null,null,null,null,null,"(",null,null,null,")建築士(",null,null,null,null,null,null,null,"）登録第",null,null,null,null,null,null,"号"]
[null,"　【ﾛ．氏名】"]
[null,"　【ﾊ．建築士事務所名】 ",null,null,null,null,null,null,null,null,"(",null,null,")建築士事務所(",null,null,null,null,null,null,null,")知事登録第",null,null,null,null,null,null,null,"号"]
[]
[null,"　【ﾆ．郵便番号】"]
[null,"　【ﾎ．所在地】"]
[null,"　【ﾍ．電話番号】"]
[null,"　【ﾄ．工事と照合した設計図書】"]
[]
[null,"　【ｲ．資格】",null,null,null,null,null,null,null,null,"(",null,null,null,")建築士(",null,null,null,null,null,null,null,"）登録第",null,null,null,null,null,null,"号"]
[null,"　【ﾛ．氏名】"]
[null,"　【ﾊ．建築士事務所名】 ",null,null,null,null,null,null,null,null,"(",null,null,")建築士事務所(",null,null,null,null,null,null,null,")知事登録第",null,null,null,null,null,null,null,"号"]
[]
[null,"　【ﾆ．郵便番号】"]
[null,"　【ﾎ．所在地】"]
[null,"　【ﾍ．電話番号】"]
[null,"　【ﾄ．工事と照合した設計図書】"]
[]
[null,"　【ｲ．資格】",null,null,null,null,null,null,null,null,"(",null,null,null,")建築士(",null,null,null,null,null,null,null,"）登録第",null,null,null,null,null,null,"号"]
[null,"　【ﾛ．氏名】"]
[null,"　【ﾊ．建築士事務所名】 ",null,null,null,null,null,null,null,null,"(",null,null,")建築士事務所(",null,null,null,null,null,null,null,")知事登録第",null,null,null,null,null,null,null,"号"]
[]
[null,"　【ﾆ．郵便番号】"]
[null,"　【ﾎ．所在地】"]
[null,"　【ﾍ．電話番号】"]
[null,"　【ﾄ．工事と照合した設計図書】"]
[]
[null,"【5．建築設備の工事監理に関し意見を聴いた者】"]
[null,"（代表となる建築設備の工事監理に関し意見を聴いた者）"]
[null,"　【ｲ．氏名】"]
[null,"　【ﾛ．勤務先】"]
[null,"　【ﾊ．郵便番号】"]
[null,"　【ﾆ．所在地】"]
[null,"　【ﾎ．電話番号】"]
[null,"　【ﾍ．登録番号】"]
[null,"　【ﾄ．意見を聴いた設計図書】"]
[]
[null,"（その他の建築設備の工事監理に関し意見を聴いた者）"]
[null,"　【ｲ．氏名】"]
[null,"　【ﾛ．勤務先】"]
[null,"　【ﾊ．郵便番号】"]
[null,"　【ﾆ．所在地】"]
[null,"　【ﾎ．電話番号】"]
[null,"　【ﾍ．登録番号】"]
[null,"　【ﾄ．意見を聴いた設計図書】"]
[]
[null,"　【ｲ．氏名】"]
[null,"　【ﾛ．勤務先】"]
[null,"　【ﾊ．郵便番号】"]
[null,"　【ﾆ．所在地】"]
[null,"　【ﾎ．電話番号】"]
[null,"　【ﾍ．登録番号】"]
[null,"　【ﾄ．意見を聴いた設計図書】"]
[]
[null,"　【ｲ．氏名】"]
[null,"　【ﾛ．勤務先】"]
[null,"　【ﾊ．郵便番号】"]
[null,"　【ﾆ．所在地】"]
[null,"　【ﾎ．電話番号】"]
[null,"　【ﾍ．登録番号】"]
[null,"　【ﾄ．意見を聴いた設計図書】"]
[]
[null,"【6．工事施工者】"]
[null,"　【ｲ．氏名】"]
[null,"　【ﾛ．営業所名】建設業の許可",null,null,null,null,null,null,null,null,null,null,"(",null,null,null,null,null,") 第",null,null,null,null,null,null,null,null,null,null,"号"]
[]
[null,"　【ﾊ．郵便番号】"]
[null,"　【ﾆ．所在地】"]
[null,"　【ﾎ．電話番号】"]
[null,"【7．備考】"]

{"sheet":"完了第三面","index":25,"n_rows":40,"n_cols":30,"rows_kept":40,"cut":false,"hidden":false,"merged":[[1,1,1,29],[4,7,4,29],[5,7,5,29],[13,9,13,13],[12,7,12,19],[12,22,12,28],[8,22,8,24],[26,20,26,27],[27,20,27,27],[19,9,19,10],[21,9,21,10],[15,9,15,10],[17,8,17,29],[21,17,21,18],[40,1,40,29],[41,1,41,29],[42,1,42,29],[23,9,23,12],[32,12,32,29],[28,11,28,18],[28,20,28,27],[34,1,34,29],[35,1,35,29],[36,1,36,29],[37,1,37,29],[38,1,38,29],[25,14,25,15],[25,23,25,24],[26,11,26,18],[27,11,27,18]]}
[null,"完了検査申請書（第三面）"]
[null,"（第三面）"]
[null,"　申請する工事の概要"]
[null,"【1．建築場所、設置場所又は築造場所】"]
[null,"　【ｲ．地名地番】"]
[null,"　【ﾛ．住居表示】"]
[]
[null,"【2．工事種別】"]
[null,"　【ｲ．建築基準法施行令第１０条各号に掲げる建築物の区分】",null,null,null,null,null,null,null,null,null,null,null,null,null,null,null,null,null,null,null,"第",null,null,null,"号"]
[null,"　【ﾛ．工事種別】",null,null,null,null,null,"■","新築",null,null,"□","増築",null,null,"□","改築",null,null,"□","移転"]
[null,null,null,null,null,null,null,"□","大規模の修繕",null,null,null,null,"□","大規模の模様替",null,null,null,null,"□","建築設備の設置"]
[null,"　【ﾊ.建築基準法第６８条の２０第２項の検査の特例に係る認証番号】"]
[null,null,null,null,null,null,null,null,null,null,null,null,null,null,null,null,null,null,null,null,null,"第",null,null,null,null,null,null,null,"号"]
[null,"【3．確認済証番号】",null,null,null,null,null,null,"第",null,null,null,null,null,"号"]
[]
[null,"【4．確認済証交付年月日】",null,null,null,null,null,null,null,"令和",null,null,"年",null,"月",null,"日"]
[]
[null,"【5．確認済証交付者】",null,null,null,null,null,null,"(公財)鹿児島県住宅・建築総合センター　理事長　松尾　浩一"]
[]
[null,"【6．工事着手年月日】",null,null,null,null,null,null,null,"令和",null,null,"年",null,"月",null,"日"]
[]
[null,"【7．工事完了年月日】",null,null,null,null,null,null,null,"令和",null,null,"年",null,"月",null,"日"]
[]
[null,"【8．検査対象床面積】",null,null,null,null,null,null,null,null,null,null,null,"㎡"]
[]
[null,"【9．検査経過】 ",null,null,null,null,null,null,null,null,"(","第",null,null,null,null,null,null,"回",")(","第",null,null,null,null,null,null,"回","）"]
[null,"　【ｲ．特定工程】",null,null,null,null,null,null,null,null,"(",null,null,null,null,null,null,null,null,")(",null,null,null,null,null,null,null,null,"）"]
[null,"　【ﾛ．中間検査合格証交付者】",null,null,null,null,null,null,null,null,"(",null,null,null,null,null,null,null,null,")(",null,null,null,null,null,null,null,null,"）"]
[null,"　【ﾊ．中間検査合格証番号】",null,null,null,null,null,null,null,null,"(",null,null,null,null,null,null,null,null,")(",null,null,null,null,null,null,null,null,"）"]
[null,"　【ﾆ．交付年月日】",null,null,null,null,null,null,null,null,"(","令和",null,null,"年",null,"月",null,"日",")(","令和",null,null,"年",null,"月",null,"日","）"]
[]
[null,"【10．確認以降の軽微な変更の概要】"]
[null,"　【ｲ．変更された設計図書の種類】"]
[null,"　【ﾛ．変更の概要】"]
[]
[]
[]
[]
[]
[null,"【11．備考】"]

{"sheet":"完了第四面","index":26,"n_rows":61,"n_cols":27,"rows_kept":61,"cut":false,"hidden":false,"merged":[[59,1,59,5],[59,6,59,9],[59,10,59,13],[59,14,59,17],[59,18,59,21],[59,22,59,25],[59,26,59,29],[60,1,60,5],[60,6,60,9],[60,10,60,13],[60,14,60,17],[60,18,60,21],[60,22,60,25],[60,26,60,29],[57,1,57,5],[57,6,57,9],[57,10,57,13],[57,14,57,17],[57,18,57,21],[57,22,57,25],[57,26,57,29],[58,1,58,5],[58,6,58,9],[58,10,58,13],[58,14,58,17],[58,18,58,21],[58,22,58,25],[58,26,58,29],[55,1,55,5],[55,6,55,9],[55,10,55,13],[55,14,55,17],[55,18,55,21],[55,22,55,25],[55,26,55,29],[56,1,56,5],[56,6,56,9],[56,10,56,13],[56,14,56,17],[56,18,56,21],[56,22,56,25],[56,26,56,29],[53,1,53,5],[53,6,53,9],[53,10,53,13],[53,14,53,17],[53,18,53,21],[53,22,53,25],[53,26,53,29],[54,1,54,5],[54,6,54,9],[54,10,54,13],[54,14,54,17],[54,18,54,21],[54,22,54,25],[54,26,54,29],[51,1,51,5],[51,6,51,9],[51,10,51,13],[51,14,51,17],[51,18,51,21],[51,22,51,25],[51,26,51,29],[52,1,52,5],[52,6,52,9],[52,10,52,13],[52,14,52,17],[52,18,52,21],[52,22,52,25],[52,26,52,29],[48,1,48,29],[49,1,49,5],[49,6,49,9],[49,10,49,13],[49,14,49,17],[49,18,49,21],[49,22,49,25],[49,26,49,29],[50,1,50,5],[50,6,50,9],[50,10,50,13],[50,14,50,17],[50,18,50,21],[50,22,50,25],[50,26,50,29],[44,1,44,5],[44,6,44,9],[44,10,44,13],[44,14,44,17],[44,18,44,21],[44,22,44,25],[44,26,44,29],[45,1,45,5],[45,6,45,9],[45,10,45,13],[45,14,45,17],[45,18,45,21],[45,22,45,25],[45,26,45,29],[42,1,42,5],[42,6,42,9],[42,10,42,13],[42,14,42,17],[42,18,42,21],[42,22,42,25],[42,26,42,29],[43,1,43,5],[43,6,43,9],[43,10,43,13],[43,14,43,17],[43,18,43,21],[43,22,43,25],[43,26,43,29],[40,1,40,5],[40,6,40,9],[40,10,40,13],[40,14,40,17],[40,18,40,21],[40,22,40,25],[40,26,40,29],[41,1,41,5],[41,6,41,9],[41,10,41,13],[41,14,41,17],[41,18,41,21],[41,22,41,25],[41,26,41,29],[38,1,38,5],[38,6,38,9],[38,10,38,13],[38,14,38,17],[38,18,38,21],[38,22,38,25],[38,26,38,29],[39,1,39,5],[39,6,39,9],[39,10,39,13],[39,14,39,17],[39,18,39,21],[39,22,39,25],[39,26,39,29],[36,1,36,5],[36,6,36,9],[36,10,36,13],[36,14,36,17],[36,18,36,21],[36,22,36,25],[36,26,36,29],[37,1,37,5],[37,6,37,9],[37,10,37,13],[37,14,37,17],[37,18,37,21],[37,22,37,25],[37,26,37,29],[33,1,33,29],[34,1,34,5],[34,6,34,9],[34,10,34,13],[34,14,34,17],[34,18,34,21],[34,22,34,25],[34,26,34,29],[35,1,35,5],[35,6,35,9],[35,10,35,13],[35,14,35,17],[35,18,35,21],[35,22,35,25],[35,26,35,29],[6,1,6,5],[6,6,6,9],[1,1,1,29],[3,1,3,29],[4,1,4,5],[4,6,4,9],[4,10,4,13],[4,14,4,17],[4,18,4,21],[4,22,4,25],[4,26,4,29],[5,1,5,5],[5,6,5,9],[5,10,5,13],[5,14,5,17],[5,18,5,21],[7,10,7,13],[7,14,7,17],[7,18,7,21],[7,22,7,25],[5,26,5,29],[6,10,6,13],[6,14,6,17],[6,18,6,21],[7,26,7,29],[6,22,6,25],[6,26,6,29],[5,22,5,25],[9,26,9,29],[10,10,10,13],[10,14,10,17],[10,18,10,21],[11,26,11,29],[8,22,8,25],[8,26,8,29],[7,1,7,5],[7,6,7,9],[10,22,10,25],[10,26,10,29],[9,1,9,5],[9,6,9,9],[9,10,9,13],[9,14,9,17],[9,18,9,21],[9,22,9,25],[10,1,10,5],[10,6,10,9],[8,1,8,5],[8,6,8,9],[8,10,8,13],[8,14,8,17],[8,18,8,21],[12,22,12,25],[12,26,12,29],[11,1,11,5],[11,6,11,9],[13,1,13,5],[13,6,13,9],[13,10,13,13],[13,14,13,17],[13,18,13,21],[13,22,13,25],[12,1,12,5],[12,6,12,9],[12,10,12,13],[12,14,12,17],[12,18,12,21],[11,10,11,13],[11,14,11,17],[11,18,11,21],[11,22,11,25],[13,26,13,29],[14,1,14,5],[14,6,14,9],[14,10,14,13],[14,14,14,17],[14,18,14,21],[14,22,14,25],[14,26,14,29],[15,6,15,9],[15,10,15,13],[15,14,15,17],[15,18,15,21],[15,22,15,25],[15,26,15,29],[18,1,18,29],[19,1,19,5],[19,6,19,9],[19,10,19,13],[19,14,19,17],[19,18,19,21],[19,22,19,25],[19,26,19,29],[15,1,15,5],[20,22,20,25],[20,26,20,29],[21,1,21,5],[21,6,21,9],[21,10,21,13],[21,14,21,17],[21,18,21,21],[21,22,21,25],[21,26,21,29],[20,1,20,5],[20,6,20,9],[20,10,20,13],[20,14,20,17],[20,18,20,21],[22,22,22,25],[22,26,22,29],[23,1,23,5],[23,6,23,9],[23,10,23,13],[23,14,23,17],[23,18,23,21],[23,22,23,25],[23,26,23,29],[22,1,22,5],[22,6,22,9],[22,10,22,13],[22,14,22,17],[22,18,22,21],[24,22,24,25],[24,26,24,29],[25,1,25,5],[25,6,25,9],[25,10,25,13],[25,14,25,17],[25,18,25,21],[25,22,25,25],[25,26,25,29],[24,1,24,5],[24,6,24,9],[24,10,24,13],[24,14,24,17],[24,18,24,21],[26,22,26,25],[26,26,26,29],[27,1,27,5],[27,6,27,9],[27,10,27,13],[27,14,27,17],[27,18,27,21],[27,22,27,25],[27,26,27,29],[26,1,26,5],[26,6,26,9],[26,10,26,13],[26,14,26,17],[26,18,26,21],[30,22,30,25],[30,26,30,29],[30,1,30,5],[30,6,30,9],[30,10,30,13],[30,14,30,17],[30,18,30,21],[28,22,28,25],[28,26,28,29],[29,1,29,5],[29,6,29,9],[29,10,29,13],[29,14,29,17],[29,18,29,21],[29,22,29,25],[29,26,29,29],[28,1,28,5],[28,6,28,9],[28,10,28,13],[28,14,28,17],[28,18,28,21]]}
[null,"完了検査申請書（第四面）"]
[null,"（第四面）"]
[]
[null,"工事監理の状況"]
[null,null,null,null,null,null,"確認を行った部位、材料の種類等",null,null,null,"照合内容",null,null,null,"照合を行った設計図書",null,null,null,"設計図書の内容について設計者に確認した事項",null,null,null,"照合方法",null,null,null,"照会結果（不適の場合には建築主に対して行った報告の内容）"]
[null,"敷地の形状、高さ、衛生及び安全",null,null,null,null,"敷地、擁壁、支持 地盤、排水管、排水溝、ブロック塀",null,null,null,"髙さ、形状、寸 法、接道状況、 地盤の種類、地 耐力",null,null,null,"配置図\n敷地測量図\n構造図\n設備図",null,null,null,"特になし",null,null,null,"現場目視\n計測確認\n土工事の工程終了後に現場で照合",null,null,null,"適"]
[null,"主要構造部及び主要構造部以外の構造耐力上主要な部分に用いる材料（接合材料を含む｡)の種類､品質、形状及び寸法",null,null,null,null,"基礎、ｺﾝｸﾘｰﾄ、鉄 筋、接合金物、木 材、土台、柱、梁、 壁、屋根",null,null,null,"ｺﾝｸﾘｰﾄ強度、鉄 筋、接合金物の 材質、形状、寸 法、材料、種類、\n 規格",null,null,null,"平面図\n構造図\n立面図\n断面図\n仕様書 ",null,null,null,"特になし",null,null,null,"現場目視\n計測確認\n納品書確認\n品質管理記録等",null,null,null,"適"]
[null,"主要構造部及び主要構造部以外の構造耐力上主要な部分に用いる材料の接合状況、接合部分の形状等",null,null,null,null,"各接合部分",null,null,null,"接合状況、接合金物の材質形状",null,null,null,"同上",null,null,null,"特になし",null,null,null,"現場目視\n計測確認\n納品書確認\n品質管理記録等",null,null,null,"適"]
[null,"建築物の各部分の位置、形状及び大きさ",null,null,null,null,"基礎、土台、柱、 梁、壁、屋根、階 段",null,null,null,"位置、形状、寸 法の確認、幅、 蹴上げ、踏み面 の確認、建築物 高さの確認",null,null,null,"平面図\n断面図\n立面図",null,null,null,"特になし",null,null,null,"現場目視\n計測確認",null,null,null,"適"]
[null,"構造耐力上主要な部分の防錆、防腐及び防蟻措置及び状況",null,null,null,null,"土台、柱、筋かい、 外壁下地",null,null,null,"防腐、防蟻措置 の状況、金物の 防錆措置の状況",null,null,null,"同上",null,null,null,"特になし",null,null,null,"現場目視",null,null,null,"適"]
[null,"特定天井に用いる材料の種類並びに当該特定天井の構造及び施工状況",null,null,null,null,"該当なし",null,null,null,"該当なし",null,null,null,"該当なし",null,null,null,"該当なし",null,null,null,"該当なし",null,null,null,"該当なし"]
[null,"居室の内装の仕上げに用いる建築材料の種別及び当該建築材料を用いる部分の面積",null,null,null,null,"台所、各居室の 床、壁、天井",null,null,null,"不燃材料、シッ クハウス対応の内容",null,null,null,"仕上表\n平面図 ",null,null,null,"特になし",null,null,null,"現場目視確認\n納品書確認",null,null,null,"適"]
[null,"天井及び壁の室内に面する部分に係る仕上げの材料の種別及び厚さ",null,null,null,null,"全室",null,null,null,"内装材料の品質 ",null,null,null,"仕上表\n平面図 ",null,null,null,"特になし",null,null,null,"現場目視確認\n納品書等との確認",null,null,null,"適"]
[null,"開口部に設ける建具の種類及び大きさ",null,null,null,null,"アルミサッシ 鋼製扉",null,null,null,"防火設備",null,null,null,"平面図\n立面図\n断面図\n仕様書 ",null,null,null,"特になし",null,null,null,"現場目視確認\n納品書等との確認 ",null,null,null,"適"]
[null,"建築設備に用いる材料の種類及びその照合した内容並びに当該建築設備の構造及び施工状況（区画貫通部の処理状況を含む。）",null,null,null,null,"各種配管\n台所、シックハウ ス換気設備 ",null,null,null,"配管材料の確認\n換気量、換気回 数",null,null,null,"設備図\n仕様書\n平面図",null,null,null,"特になし",null,null,null,"現場目視\n計測確認\n納品書等との照合 ",null,null,null,"適"]
[null,"備考",null,null,null,null,"住宅用火災機器",null,null,null,"位置・種類",null,null,null,"平面図",null,null,null,"特になし",null,null,null,"現場目視確認\n納品書等との照合 ",null,null,null,"適"]
[]
[null,"記入例（木造）"]
[null,"工事監理の状況"]
[null,null,null,null,null,null,"確認を行った部位、材料の種類等",null,null,null,"照合内容",null,null,null,"照合を行った設計図書",null,null,null,"設計図書の内容について設計者に確認した事項",null,null,null,"照合方法",null,null,null,"照会結果（不適の場合には建築主に対して行った報告の内容）"]
[null,"敷地の形状、高さ、衛生及び安全",null,null,null,null,"敷地、擁壁、支持 地盤、排水管、排水溝、ブロック塀",null,null,null,"髙さ、形状、寸 法、接道状況、 地盤の種類、地 耐力",null,null,null,"配置図\n敷地測量図\n構造図\n設備図",null,null,null,"特になし",null,null,null,"現場目視\n計測確認\n土工事の工程終了後に現場で照合",null,null,null,"適"]
[null,"主要構造部及び主要構造部以外の構造耐力上主要な部分に用いる材料（接合材料を含む｡)の種類､品質、形状及び寸法",null,null,null,null,"基礎、ｺﾝｸﾘｰﾄ、鉄 筋、接合金物、木 材、土台、柱、梁、 壁、屋根",null,null,null,"ｺﾝｸﾘｰﾄ強度、鉄 筋、接合金物の 材質、形状、寸 法、材料、種類、\n 規格",null,null,null,"平面図\n構造図\n立面図\n断面図\n仕様書 ",null,null,null,"特になし",null,null,null,"現場目視\n計測確認\n納品書確認\n品質管理記録等",null,null,null,"適"]
[null,"主要構造部及び主要構造部以外の構造耐力上主要な部分に用いる材料の接合状況、接合部分の形状等",null,null,null,null,"各接合部分",null,null,null,"接合状況、接合金物の材質形状",null,null,null,"同上",null,null,null,"特になし",null,null,null,"現場目視\n計測確認\n納品書確認\n品質管理記録等",null,null,null,"適"]
[null,"建築物の各部分の位置、形状及び大きさ",null,null,null,null,"基礎、土台、柱、 梁、壁、屋根、階 段",null,null,null,"位置、形状、寸 法の確認、幅、 蹴上げ、踏み面 の確認、建築物 高さの確認",null,null,null,"平面図\n断面図\n立面図",null,null,null,"特になし",null,null,null,"現場目視\n計測確認",null,null,null,"適"]
[null,"構造耐力上主要な部分の防錆、防腐及び防蟻措置及び状況",null,null,null,null,"土台、柱、筋かい、 外壁下地",null,null,null,"防腐、防蟻措置 の状況、金物の 防錆措置の状況",null,null,null,"同上",null,null,null,"特になし",null,null,null,"現場目視",null,null,null,"適"]
[null,"特定天井に用いる材料の種類並びに当該特定天井の構造及び施工状況",null,null,null,null,"該当なし",null,null,null,"該当なし",null,null,null,"該当なし",null,null,null,"該当なし",null,null,null,"該当なし",null,null,null,"該当なし"]
[null,"居室の内装の仕上げに用いる建築材料の種別及び当該建築材料を用いる部分の面積",null,null,null,null,"台所、各居室の 床、壁、天井",null,null,null,"不燃材料、シッ クハウス対応の内容",null,null,null,"仕上表\n平面図 ",null,null,null,"特になし",null,null,null,"現場目視確認\n納品書確認",null,null,null,"適"]
[null,"天井及び壁の室内に面する部分に係る仕上げの材料の種別及び厚さ",null,null,null,null,"全室",null,null,null,"内装材料の品質 ",null,null,null,"仕上表\n平面図 ",null,null,null,"特になし",null,null,null,"現場目視確認\n納品書等との確認",null,null,null,"適"]
[null,"開口部に設ける建具の種類及び大きさ",null,null,null,null,"アルミサッシ 鋼製扉",null,null,null,"防火設備",null,null,null,"平面図\n立面図\n断面図\n仕様書 ",null,null,null,"特になし",null,null,null,"現場目視確認\n納品書等との確認 ",null,null,null,"適"]
[null,"建築設備に用いる材料の種類及びその照合した内容並びに当該建築設備の構造及び施工状況（区画貫通部の処理状況を含む。）",null,null,null,null,"各種配管\n台所、シックハウ ス換気設備 ",null,null,null,"配管材料の確認\n換気量、換気回 数",null,null,null,"設備図\n仕様書\n平面図",null,null,null,"特になし",null,null,null,"現場目視\n計測確認\n納品書等との照合 ",null,null,null,"適"]
[null,"備考",null,null,null,null,"住宅用火災機器",null,null,null,"位置・種類",null,null,null,"平面図",null,null,null,"特になし",null,null,null,"現場目視確認\n納品書等との照合 ",null,null,null,"適"]
[]
[null,"記入例（S造）"]
[null,"工事監理の状況"]
[null,null,null,null,null,null,"確認を行った部位、材料の種類等",null,null,null,"照合内容",null,null,null,"照合を行った設計図書",null,null,null,"設計図書の内容について設計者に確認した事項",null,null,null,"照合方法",null,null,null,"照会結果（不適の場合には建築主に対して行った報告の内容）"]
[null,"敷地の形状、高さ、衛生及び安全",null,null,null,null,"敷地、擁壁、支持 地盤、排水管、排水溝、ブロック塀",null,null,null,"髙さ、形状、寸 法、接道状況、 地盤の種類、地 耐力",null,null,null,"配置図\n敷地測量図\n構造図\n設備図",null,null,null,"特になし",null,null,null,"現場目視\n計測確認\n土工事の工程終了後に現場で照合",null,null,null,"適"]
[null,"主要構造部及び主要構造部以外の構造耐力上主要な部分に用いる材料（接合材料を含む｡)の種類､品質、形状及び寸法",null,null,null,null,"杭、ｺﾝｸﾘｰﾄ、鉄 筋、鋼材、基礎、柱、梁、床、ブレース、壁、屋根",null,null,null,"杭工法、種類、規格、ｺﾝｸﾘｰﾄ強度、鋼材強度 材質、形状、寸法、材料、種類、規格 ",null,null,null,"平面図\n構造図\n立面図\n断面図\n仕様書 ",null,null,null,"特になし",null,null,null,"現場目視\n計測確認\n納品書確認\n工場試験書類の確認\n杭工事施工結果報告書\n現場受入検査\n非破壊検査     ",null,null,null,"適"]
[null,"主要構造部及び主要構造部以外の構造耐力上主要な部分に用いる材料の接合状況、接合部分の形状等",null,null,null,null,"基礎、柱、梁、壁、屋根",null,null,null,"ボルトの種類、締付状況、接合部の状況",null,null,null,"同上",null,null,null,"特になし",null,null,null,"現場目視\n計測確認\n納品書確認",null,null,null,"適"]
[null,"建築物の各部分の位置、形状及び大きさ",null,null,null,null,"基礎、柱、 梁、壁、屋根、階段",null,null,null,"位置、形状、寸 法の確認、幅、 蹴上げ、踏み面 の確認、建築物 高さの確認",null,null,null,"同上",null,null,null,"特になし",null,null,null,"現場目視\n計測確認",null,null,null,"適"]
[null,"構造耐力上主要な部分の防錆、防腐及び防蟻措置及び状況",null,null,null,null,"柱、梁、ﾌﾞﾚｰｽ、 床版 ",null,null,null,"防錆措置 （防錆塗料の 種類、回数） ",null,null,null,"同上",null,null,null,"特になし",null,null,null,"現場目視\n計測確認",null,null,null,"適"]
[null,"特定天井に用いる材料の種類並びに当該特定天井の構造及び施工状況",null,null,null,null,"該当なし",null,null,null,"該当なし",null,null,null,"該当なし",null,null,null,"該当なし",null,null,null,"該当なし",null,null,null,"該当なし"]
[null,"居室の内装の仕上げに用いる建築材料の種別及び当該建築材料を用いる部分の面積",null,null,null,null,"火気使用室、各居室の床、壁、天井 ",null,null,null,"不燃材料、シッ クハウス対応の内容",null,null,null,"仕上表\n平面図 ",null,null,null,"特になし",null,null,null,"現場目視確認\n納品書確認",null,null,null,"適"]
[null,"天井及び壁の室内に面する部分に係る仕上げの材料の種別及び厚さ",null,null,null,null,"全室",null,null,null,"内装材料の品質 ",null,null,null,"仕上表\n平面図 ",null,null,null,"特になし",null,null,null,"現場目視確認\n納品書確認",null,null,null,"適"]
[null,"開口部に設ける建具の種類及び大きさ",null,null,null,null,"アルミサッシ 鋼製扉",null,null,null,"形状、寸法",null,null,null,"平面図\n立面図\n断面図\n仕様書 ",null,null,null,"特になし",null,null,null,"現場目視確認\n納品書確認",null,null,null,"適"]
[null,"建築設備に用いる材料の種類及びその照合した内容並びに当該建築設備の構造及び施工状況（区画貫通部の処理状況を含む。）",null,null,null,null,"各種配管\n台所、シックハウ ス換気設備 ",null,null,null,"配管材料の確認\n換気量、換気回 数",null,null,null,"平面図\n立面図\n断面図\n仕様書",null,null,null,"特になし",null,null,null,"現場目視\n計測確認\n納品書確認",null,null,null,"適"]
[null,"備考"]
[]
[null,"記入例（RC造）"]
[null,"工事監理の状況"]
[null,null,null,null,null,null,"確認を行った部位、材料の種類等",null,null,null,"照合内容",null,null,null,"照合を行った設計図書",null,null,null,"設計図書の内容について設計者に確認した事項",null,null,null,"照合方法",null,null,null,"照会結果（不適の場合には建築主に対して行った報告の内容）"]
[null,"敷地の形状、高さ、衛生及び安全",null,null,null,null,"敷地、擁壁、支持 地盤、排水管、排水溝、ブロック塀",null,null,null,"髙さ、形状、寸 法、接道状況、 地盤の種類、地 耐力",null,null,null,"配置図\n敷地測量図\n構造図\n設備図",null,null,null,"特になし",null,null,null,"現場目視\n計測確認\n土工事の工程終了後に現場で照合",null,null,null,"適"]
[null,"主要構造部及び主要構造部以外の構造耐力上主要な部分に用いる材料（接合材料を含む｡)の種類､品質、形状及び寸法",null,null,null,null,"杭、ｺﾝｸﾘｰﾄ、鉄 筋、鋼材、基礎、柱、梁、床、ブレース、壁、屋根",null,null,null,"杭工法、種類、規格、ｺﾝｸﾘｰﾄ強度、鋼材強度 材質、形状、寸法、材料、種類、規格 ",null,null,null,"平面図\n構造図\n立面図\n断面図\n仕様書 ",null,null,null,"特になし",null,null,null,"現場目視\n計測確認\n納品書確認\n工場試験書類の確認\n杭工事施工結果報告書    ",null,null,null,"適"]
[null,"主要構造部及び主要構造部以外の構造耐力上主要な部分に用いる材料の接合状況、接合部分の形状等",null,null,null,null,"基礎、柱、梁、壁、屋根",null,null,null,"配筋状況",null,null,null,"同上",null,null,null,"特になし",null,null,null,"現場目視計測確認\nガス圧接部検査 ミルシート納品書確認",null,null,null,"適"]
[null,"建築物の各部分の位置、形状及び大きさ",null,null,null,null,"基礎、柱、 梁、壁、屋根、階段",null,null,null,"位置、形状、寸 法の確認、幅、 蹴上げ、踏み面 の確認、建築物 高さの確認",null,null,null,"同上",null,null,null,"特になし",null,null,null,"現場目視\n計測確認",null,null,null,"適"]
[null,"構造耐力上主要な部分の防錆、防腐及び防蟻措置及び状況",null,null,null,null,"該当箇所なし",null,null,null,"－",null,null,null,"－",null,null,null,"－",null,null,null,"－",null,null,null,"－"]
[null,"特定天井に用いる材料の種類並びに当該特定天井の構造及び施工状況",null,null,null,null,"該当なし",null,null,null,"該当なし",null,null,null,"該当なし",null,null,null,"該当なし",null,null,null,"該当なし",null,null,null,"該当なし"]
[null,"居室の内装の仕上げに用いる建築材料の種別及び当該建築材料を用いる部分の面積",null,null,null,null,"台所、各居室の床、壁、天井",null,null,null,"不燃材料、シッ クハウス対応の内容",null,null,null,"仕上表\n平面図 ",null,null,null,"特になし",null,null,null,"現場目視確認\n納品書確認",null,null,null,"適"]
[null,"天井及び壁の室内に面する部分に係る仕上げの材料の種別及び厚さ",null,null,null,null,"全室",null,null,null,"内装材料の品質 ",null,null,null,"仕上表\n平面図 ",null,null,null,"特になし",null,null,null,"現場目視確認\n納品書確認",null,null,null,"適"]
[null,"開口部に設ける建具の種類及び大きさ",null,null,null,null,"アルミサッシ 鋼製扉",null,null,null,"形状、寸法",null,null,null,"平面図\n立面図\n断面図\n仕様書 ",null,null,null,"特になし",null,null,null,"現場目視確認\n納品書確認",null,null,null,"適"]
[null,"建築設備に用いる材料の種類及びその照合した内容並びに当該建築設備の構造及び施工状況（区画貫通部の処理状況を含む。）",null,null,null,null,"各種配管\n台所、シックハウ ス換気設備 ",null,null,null,"配管材料の確認\n換気量、換気回 数",null,null,null,"平面図\n立面図\n断面図\n仕様書",null,null,null,"特になし",null,null,null,"現場目視\n計測確認\n納品書確認",null,null,null,"適"]
[null,"備考"]

{"sheet":"建築主情報","index":27,"n_rows":12,"n_cols":9,"rows_kept":12,"cut":false,"hidden":false,"merged":[[0,1,0,2],[0,3,0,5]]}
[null,"建築主情報",null,null,null,null,"工事届記載情報"]
["No.","氏名","ﾌﾘｶﾞﾅ","郵便番号","住所","電話番号","種別","業種","資本金"]
[1,"KJC不動産　住宅　太郎","ｹｰｼﾞｪｰｼｰﾌﾄﾞｳｻﾝ ｼﾞｭｳﾀｸ ﾀﾛｳ","890-0123","鹿児島県鹿児島市新屋敷町16-228","099-224-4548","会社","不動産業","1,000万円超～3,000万円以下"]
[2]
[3]
[4]
[5]
[6]
[7]
[8]
[9]
[10]

{"sheet":"建築士情報","index":28,"n_rows":22,"n_cols":17,"rows_kept":22,"cut":false,"hidden":false,"merged":[[0,1,0,2],[0,3,0,9],[0,10,0,16]]}
[null,"建築士情報",null,"資格情報",null,null,null,null,null,null,"建築士事務所情報"]
["No.","氏名","ふりがな","建築士資格種別","大臣または登録を受けた都道府県","登録番号","構造一級建築士の資格の有無","構造一級建築士証の交付番号","設備一級建築士の資格","設備一級建築士証の交付番号","事務所種別","登録都道府県","事務所登録番号","所属事務所の名称","郵便番号","住所","電話番号"]
[1,"住宅　せん太","じゅうたくせんた","一級","大臣",1234567,null,null,null,null,"一級","鹿児島県","1-29-99","ABCDE建築設計事務所","892-0838","鹿児島県鹿児島市新屋敷町16-228","099-999-9999"]
[2,"建築　構造","けんちくこうぞう","一級","大臣",9999999,"○",12345,null,null,"一級","鹿児島県","1-30-00","CENTER構造設計事務所","891-0000","鹿児島県鹿児島市新屋敷町99-999","099-000-0000"]
[3]
[4]
[5]
[6]
[7]
[8]
[9]
[10]
[11]
[12]
[13]
[14]
[15]
[16]
[17]
[18]
[19]
[20]

{"sheet":"外部仕上登録","index":29,"n_rows":18,"n_cols":5,"rows_kept":18,"cut":false,"hidden":false,"merged":[]}
[null,"●外部仕上登録"]
[null,"No","屋根","外壁","軒裏"]
[null,1,"ガルバリウム鋼板","窯業系サイディング","ケイカル板"]
[null,2,"コロニアル葺き","金属系サイディング","スラグ石膏板"]
[null,3,"瓦葺き","ガルバリウム鋼板","ガルバリウム鋼板"]
[null,4,"-","-","-"]
[null,5,"-","-","-"]
[null,6,"-","-","-"]
[null,7,"-","-","-"]
[null,8,"-","-","-"]
[null,9,"-","-","-"]
[null,10,"-","-","-"]
[null,11,"-","-","-"]
[null,12,"-","-","-"]
[null,13,"-","-","-"]
[null,14,"-","-","-"]
[null,15,"-","-","-"]
[null,"※15個まで登録できます。"]

{"sheet":"更新履歴","index":30,"n_rows":25,"n_cols":6,"rows_kept":25,"cut":false,"hidden":false,"merged":[]}
[null,"●プログラム更新履歴"]
[null,"No.","公開日","公開後ver.名","主な更新内容","備考"]
[null,1,"2018-07-23","Ver.1.00","－","新規"]
[null,2,"2018-07-31","Ver.1.01","・確認申請書第四面建築設備リストが表示されない問題を修正\n・工事届の建築主ボタンから入力する際の不具合を修正"]
[null,3,"2018-08-02","Ver.1.02","・工事届の工事予定期間の算定を修正"]
[null,4,"2018-08-22","ver.1.03","・工事届の工事予定期間のエラーチェック機能の不具合を修正（表示形式を数値→文字列へ）"]
[null,5,"2018-09-06","ver.1.04","・工事届の工事予定期間の算定の修正\n・現地調査票-道路種別-「道路扱い(鹿児島市)」を追加"]
[null,6,"2018-09-25","ver.2.00","・平成30年9月25日法改正による確認申請書の様式変更に対応"]
[null,7,"2019-01-07","ver.2.01","・エラーチェックリストの印刷機能追加\n・現地調査票-法改正対応 道路種別の名称を追加・修正\n・その他軽微な修正"]
[null,8,"2019-04-19","ver.2.02","・新元号(令和)に変更\n・その他軽微な修正"]
[null,9,"2019-06-26","ver.3.00","新様式(2019.6.25)への対応"]
[null,10,"2019-07-04","ver.3.01","・2棟目以降の第五面から第四面へ転記されない不具合の修正\n・その他軽微な修正"]
[null,11,"2019-09-02","ver.3.02","・工事届の申請書からの転記の際のにクリアコード削除"]
[null,12,"2020-04-01","ver.4.00","令和2年4月1日付の建築基準法施行規則の改正に対応した確認申請書等の様式変更"]
[null,13,"2021-01-04","ver.5.00","令和2年12月23日交付の「押印を求める手続の見直しのための国土交通省関係省令の一部を改正する省令」による規則改正対応"]
[null,14,"2021-02-04","ver.5.01","・委任状の押印不要対応\n・印刷時の不具合修正"]
[null,15,"2021-07-02","ver.5.02","・現地調査票の様式変更\n・建築工事届の様式変更"]
[null,16,"2022-03-29","ver.5.03","・建築工事届の様式変更\n・建築計画概要書の様式変更"]
[null,17,"2022-04-04","ver.5.04","・建築計画概要書の軽微な修正"]
[null,18,"2022-09-14","ver.5.05","・軽微な様式修正"]
[null,19,"2023-03-14","ver.6.00","令和5年4月1日付の建築基準法施行規則の改正に対応した確認申請書等の様式変更"]
[null,20]
[null,21]
[null,22]
[null,23]

{"sheet":"施工者情報","index":31,"n_rows":12,"n_cols":9,"rows_kept":12,"cut":false,"hidden":false,"merged":[[0,1,0,2],[0,4,0,8]]}
[null,"施工者情報"]
["No.","役職・氏名","ふりがな","営業所名","許可権者(大臣または都道府県知事)","許可番号","郵便番号","住所","電話番号"]
[1,"代表取締役　住宅　千太","じゅうたくけんせつ","（株）住宅建設","鹿児島県知事","（般-4）0000","892-0838","鹿児島県鹿児島市新屋敷町16-228","000-999-0000"]
[2]
[3]
[4]
[5]
[6]
[7]
[8]
[9]
[10]

{"sheet":"マスター","index":32,"n_rows":80,"n_cols":13,"rows_kept":80,"cut":false,"hidden":true,"merged":[]}
["用途コード",null,null,"工事届",null,null,null,null,null,null,"構造種別",null,"資本金"]
["08010","一戸建ての住宅",null,"種別",null,null,"(1)居住専用建築物","code",null,null,"木(在来軸組工法)",null,"1,000万円以下"]
["08490","自動車車庫",null,1,"国",null,null,"01","居住専用住宅（附属建築物を除く。）",null,"木(枠組壁工法)",null,"1,000万円超～3,000万円以下"]
["08520","倉庫業を営まない倉庫",null,2,"都道府県",null,null,"02","居住専用住宅附属建築物（物置，車庫等）",null,"鉄骨",null,"3,000万円超～1億円以下"]
["08470","事務所",null,3,"市区町村",null,null,"03","寮，寄宿舎，合宿所（附属建築物を除く。",null,"鉄筋コンクリート",null,"1億円超～10億円以下"]
["08456","理髪店、美容院、クリーニング取次店、質屋、貸衣装屋、貸本屋その他これらに類するサービス業を営む店舗、洋服店、畳屋、建具屋、自転車店、家庭電気器具店その他これらに類するサービス業を営む店舗で作業場の床面積の合計が50平方メートル以内のもの（原動機を使用する場合にあっては、その出力の合計が0.75キロワット以下のものに限る。）、自家販売のために食品製造業を営むパン屋、米屋、豆腐屋、菓子屋その他これらに類するもので作業場の床面積の合計が50平方メートル以内のもの（原動機を使用する場合にあっては、その出力の合計が0.75キロワット以下のものに限る。）又は学習塾、華道教室、囲碁教室その他これらに類する施設",null,4,"会社",null,null,"04","寮，寄宿舎，合宿所附属建築物（物置，車庫等） ",null,"壁式鉄筋コンクリート",null,"10億円超"]
[null,null,null,5,"会社でない団体",null,null,"05","他に分類されない居住専用建築物 ",null,"アルミニウム合金"]
["08010","一戸建ての住宅",null,6,"個人",null,"「(2)居住産業併用建築物」及び「(3)産業専用建築物」」に該当する場合"]
["08020","長屋",null,"業種",null,null,"農林水産業 ","11","農業，林業，漁業，水産養殖業 "]
["08030","共同住宅",null,1,"農林水産業",null,"鉱業，採石業，砂利採取業，建設業","12","鉱業，採石業，砂利採取業"]
["08040","寄宿舎",null,2,"鉱業，採石業，砂利採取業，建設業",null,"製造業","13","建設業 "]
["08050","下宿",null,3,"製造業",null,"電気・ガス・熱供給・水道業 ","14","食料品製造業，飲料・たばこ・飼料製造業，繊維工業，木材・ 木製品製造業，家具・装備品製造業，パルプ・紙・紙加工品 製造業，印刷・同関連業, プラスチック製品製造業（記号15から記号18までに該当するものを除く。） ，窯業・土石製 品製造業 "]
["08060","住宅で事務所、店舗その他これらに類する用途を兼ねるもの",null,4,"電気・ガス・熱供給・水道業",null,"情報通信業 ","15","化学工業，石油製品・石炭製品製造業"]
["08070","幼稚園",null,5,"情報通信業",null,"運輸業","16","鉄鋼業，非鉄金属製造業，金属製品製造業"]
["08080","小学校",null,6,"運輸業",null,"卸売業，小売業","17","はん用機械器具製造業，生産用機械器具製造業，業務用機械 器具製造業，電子部品・デバイス・電子回路製造業，電気機 械器具製造業，情報通信機械器具製造業，輸送用機械器具製造業 "]
["08082","義務教育学校",null,7,"卸売業，小売業",null,"金融業，保険業","18","ゴム製品製造業, なめし革・同製品・毛皮製造業, その他の製造業"]
["08090","中学校又は高等学校",null,8,"金融業，保険業",null,"不動産業 ","19","電気業"]
["08100","養護学校、盲学校又は聾学校",null,9,"不動産業",null,"宿泊業，飲食サービス業 ","20","ガス業"]
["08110","大学又は高等専門学校",null,10,"宿泊業，飲食サービス業",null,"教育，学習支援業 ","21","熱供給業"]
["08120","専修学校",null,11,"医療，福祉",null,"医療，福祉","22","水道業"]
["08130","各種学校",null,12,"教育，学習支援業",null,"その他のサービス業","23","通信業"]
["08132","幼保連携型認定こども園",null,13,"その他のサービス業",null,"国家公務，地方公務","24","放送業，情報サービス業，インターネット附随サービス業 "]
["08140","図書館その他これに類するもの",null,14,"国家公務，地方公務",null,"他に分類されないもの ","25","映像・音声・文字情報製作業（新聞業及び出版業を除く。） "]
["08150","博物館その他これに類するもの",null,15,"他に分類されないもの",null,null,"26","映像・音声・文字情報製作業（新聞業及び出版業に限る。）"]
["08152","美術館その他これに類するもの",null,null,null,null,null,"27","鉄道業，道路旅客運送業，道路貨物運送業，水運業，航空運 輸業，倉庫業，運輸に附帯するサービス業 "]
["08160","神社、寺院、教会その他これらに類するもの",null,null,null,null,null,"28","卸売業，小売業"]
["08170","老人ホーム、身体障害者福祉ホームその他これらに類するもの",null,null,null,null,null,"29","金融業，保険業"]
["08180","保育所その他これに類するもの",null,null,null,null,null,"30","不動産取引業，不動産賃貸業・管理業（駐車場業を除く。） "]
["08190","助産所（入所する者の寝室があるものに限る。）",null,null,null,null,null,"31","不動産賃貸業・管理業（駐車場業に限る。）"]
["08192","助産所（入所する者の寝室がないものに限る。）",null,null,null,null,null,"32","宿泊業"]
["08210","児童福祉施設等（建築基準法施行令第19条第1項に規定する児童福祉施設等をいい、前4項に掲げるものを除く。次項において同じ。）（入所する者の寝室があるものに限る。）",null,null,null,null,null,"33","飲食店，持ち帰り・配達飲食サービス業 "]
["08220","児童福祉施設等（入所する者の寝室がないものに限る。）",null,null,null,null,null,"34","学校教育"]
["08230","公衆浴場（個室付浴場業に係る公衆浴場を除く。）",null,null,null,null,null,"35","その他の教育，学習支援業（社会教育に限る。） その他の教育，学習支援業（社会教育に限る。） "]
["08240","診療所（患者の収容施設のあるものに限る。）",null,null,null,null,null,"36","その他の教育，学習支援業（学習塾及び教養・技能教授業に限る。"]
["08250","診療所（患者の収容施設のないものに限る。）",null,null,null,null,null,"37","その他の教育及び学習支援業（記号35及び記号36に該当するものを除く。） "]
["08260","病院",null,null,null,null,null,"38","医療業，保健衛生 "]
["08270","巡査派出所",null,null,null,null,null,"39","社会保険・社会福祉・介護事業 "]
["08280","公衆電話所",null,null,null,null,null,"40","郵便業（信書便事業を含む。），郵便局 "]
["08290","郵便法（昭和二十二年法律第百六十五号）の規定により行う郵便の業務（郵便窓口業務の委託等に関する法律（昭和二十四年法律第二百十三号）第二条に規定する郵便窓口業務を含む。）の用に供する施設",null,null,null,null,null,"41","学術・開発研究機関，政治・経済・文化団体"]
["08300","地方公共団体の支庁又は支所",null,null,null,null,null,"42","その他の生活関連サービス業（旅行業に限る。）"]
["08310","公衆便所、休憩所又は路線バスの停留所の上屋",null,null,null,null,null,"43","娯楽業"]
["08320","建築基準法施行令第130条の4第5号に基づき国土交通大臣が指定する施設",null,null,null,null,null,"44","宗教 "]
["08330","税務署、警察署、保健所又は消防署その他これらに類するもの",null,null,null,null,null,"45","物品賃貸業，専門サービス業，広告業，技術サービス業，洗濯・理容・美容・浴場業，その他の生活関連サービス業（旅行業を除く。），協同組合，サービス業（他に分類されないも の）（記号41及び記号44に該当するものを除く。） "]
["08340","工場（自動車修理工場を除く。）",null,null,null,null,null,46,"国家公務，地方公務"]
["08350","自動車修理工場",null,null,null,null,null,99,"他に分類されないもの"]
["08360","危険物の貯蔵又は処理に供するもの"]
["08370","ボーリング場、スケート場、水泳場、スキー場、ゴルフ練習場又はバッティング練習場"]
["08380","体育館又はスポーツの練習場（前項に掲げるものを除く。）"]
["08390","マージャン屋、ぱちんこ屋、射的場、勝馬投票券販売所、場外車券売場その他これらに類するもの又はカラオケボックスその他これに類するもの"]
["08400","ホテル又は旅館"]
["08410","自動車教習所"]
["08420","畜舎"]
["08430","堆肥舎又は水産物の増殖場若しくは養殖場"]
["08438","日用品の販売を主たる目的とする店舗"]
["08440","百貨店、マーケットその他の物品販売業を営む店舗（前項に掲げるもの、専ら性的好奇心をそそる写真その他の物品の販売を行うもの並びに田園住居地域及びその周辺の地域で生産された農産物の販売を主たる目的とするものを除く。）"]
["08450","飲食店（次項に掲げるもの並びに田園住居地域及びその周辺の地域で生産された農産物を材料とする料理の提供を主たる目的とするものを除く。）"]
["08452","食堂又は喫茶店"]
["08456","理髪店、美容院、クリーニング取次店、質屋、貸衣装屋、貸本屋その他これらに類するサービス業を営む店舗、洋服店、畳屋、建具屋、自転車店、家庭電気器具店その他これらに類するサービス業を営む店舗で作業場の床面積の合計が50平方メートル以内のもの（原動機を使用する場合にあっては、その出力の合計が0.75キロワット以下のものに限る。）、自家販売のために食品製造業を営むパン屋、米屋、豆腐屋、菓子屋その他これらに類するもの（田園住居地域及びその周辺の地域で生産された農産物を原材料とする食品の製造又は加工を主たる目的とするものを除く。）で作業場の床面積の合計が50平方メートル以内のもの（原動機を使用する場合にあっては、その出力の合計が0.75キロワット以下のものに限る。）又は学習塾、華道教室、囲碁教室その他これらに類する施設"]
["08458","銀行の支店、損害保険代理店、宅地建物取引業を営む店舗その他これらに類するサービス業を営む店舗"]
["08460","物品販売業を営む店舗以外の店舗（前2項に掲げるものを除く。）"]
["08470","事務所"]
["08480","映画スタジオ又はテレビスタジオ"]
["08490","自動車車庫"]
["08500","自転車駐輪場"]
["08510","倉庫業を営む倉庫"]
["08520","倉庫業を営まない倉庫"]
["08530","劇場、映画館又は演芸場"]
["08540","観覧場"]
["08550","公会堂又は集会場"]
["08560","展示場"]
["08570","料理店"]
["08580","キャバレー、カフェー、ナイトクラブ又はバー"]
["08590","ダンスホール"]
["08600","個室付浴場業に係る公衆浴場、ヌードスタジオ、のぞき劇場、ストリップ劇場、専ら異性を同伴する客の休憩の用に供する施設、専ら性的好奇心をそそる写真その他の物品の販売を目的とする店舗その他これらに類するもの"]
["08610","卸売市場"]
["08620","火葬場又はと畜場、汚物処理場、ごみ焼却場その他の処理施設"]
["08630","農産物の生産、集荷、処理又は貯蔵に供するもの"]
["08640","農業の生産資材の貯蔵に供するもの"]
["08650","田園住居地域及びその周辺の地域で生産された農産物の販売を主たる目的とする店舗、当該農産物を材料とする料理の提供を主たる目的とする飲食店又は自家販売のために食品製造業を営むパン屋、米屋、豆腐屋、菓子屋その他これらに類するもの（当該農産物を原材料とする食品の製造又は加工を主たる目的とするものに限る。）で作業場の床面積の合計が50平方メートル以内のもの（原動機を使用する場合にあっては、その出力の合計が0.75キロワット以下のものに限る。）"]
["08990","その他"]